Workbook

Sheet Auxiliar (hidden)
A1: Paso 1 | C1: Zoom: | D1: 100 | F1: 0.01
A2: Paso 1.2 | B2: 1 | C2: Verde | F2: 0.02
A3: Paso 1.3 | B3: 2 | C3: Verde bajito | F3: 0.03
A4: Paso 1.4 | B4: 2 | C4: Amarillo | F4: 0.04
A5: Listo Paso 1 | B5: =IF(AND(A.Paso1.2<>0,A.Paso1.3<>0,A.Paso1.4<>0),1,0) -> 1 | C5: Rojo | F5: 0.05
A6: Escenario: | B6: 4 | C6: Verificado: | D6: 0 | F6: 0.06
A7: PosiciónRenglónP1 | B7: 19 | F7: 0.07
C8: PosiciónRenglónP2 | D8: 49 | F8: 0.08
C9: TerminóPaso2 | D9: 2 | F9: 0.09
F10: 0.1
F11: 0.11
A12: Se ajustaron los %? | B12: No | F12: 0.12
F13: 0.13
F14: 0.14
F15: 0.15
F16: 0.16
A17: , | F17: 0.17
F18: 0.18
F19: 0.19
F20: 0.2
F21: 0.21
F22: 0.22
F23: 0.23
F24: 0.24
F25: 0.25
F26: 0.26
F27: 0.27
F28: 0.28
F29: 0.29
F30: 0.3
F31: 0.31
F32: 0.32
F33: 0.33
F34: 0.34
F35: 0.35
F36: 0.36
F37: 0.37
F38: 0.38
F39: 0.39
F40: 0.4
F41: 0.41
F42: 0.42
F43: 0.43
F44: 0.44
F45: 0.45
F46: 0.46
F47: 0.47
F48: 0.48
F49: 0.49
F50: 0.5
F51: 0.51
F52: 0.52
F53: 0.53
F54: 0.54
F55: 0.55
F56: 0.56
F57: 0.57
F58: 0.58
F59: 0.59
F60: 0.6
F61: 0.61
F62: 0.62
F63: 0.63
F64: 0.64
F65: 0.65
F66: 0.66
F67: 0.67
F68: 0.68
F69: 0.69
F70: 0.7
F71: 0.71
F72: 0.72
F73: 0.73
F74: 0.74
F75: 0.75
F76: 0.76
F77: 0.77
F78: 0.78
F79: 0.79
F80: 0.8
F81: 0.81
F82: 0.82
F83: 0.83
F84: 0.84
F85: 0.85
F86: 0.86
F87: 0.87
F88: 0.88
F89: 0.89
F90: 0.9
F91: 0.91
F92: 0.92
F93: 0.93
F94: 0.94
F95: 0.95
F96: 0.96
F97: 0.97
F98: 0.98
F99: 0.99
F100: 1

Sheet Menú
B2: Es indispensable que al abrir este excel, acepte que se habiliten las macros. Si no se hizo, cierre y abra el archivo para aceptar la solicitud que excel de escritorio hace de forma automática.
C6: Objetivo
C7: Evaluar proyectos, a nivel de pre-factibilidad, con especial énfasis en proyectos de aprovechamiento, tratamiento y valorización de gestión de residuos sólidos, considerando: aspectos técnicos, condiciones de mercado/uso de los productos recuperados, aspectos financieros, aspectos económicos, aspectos ambientales, aspectos sociales y aspectos asociados a la gestión de riesgos y a los modelos de transacción o negocio.
C12: Instrucciones: | J12: Su escenario de contexto y recomendaciones para reforzar su capacidad insitucional para llevar a cabo un proyecto de valorización de residuos:
C13: Paso 1 | J13: --> Escenario 4. • Mejorar la calidad y continuidad de la recolección y transporte de residuos. • Mejorar condiciones de disposición final, a partir de la construcción o ampliación de un relleno sanitario local, implementar alternativas de tratamiento de bajo nivel de complejidad. • Si no existe un relleno sanitario con autorización ambiental vigente se recomienda mejorar las condiciones de disposición final a partir de la construcción o ampliación de un relleno sanitario, analizando la posibilidad de unirse a esquemas regionales existentes o nuevos. En caso de no ser viable un sistema regional es imprescindible construir un relleno sanitario municipal/local.
C14: Debe llenar los datos básicos antes de pasar al paso siguiente. Se analiza el escenario de contexto de su municipio para obtener unas primeras recomendaciones para reforzar la capacidad institucional.
H15: -
C18: Paso 2
C19: Es necesario completar este furmulario para evaluar económicamente cada tecnología según su escenario.
C23: Paso 3
C24: Solicitar el análisis de las tecnologías. En este paso 3 se muestran los resultados del análisis económico de las distintas opciones de plantas de tratamiento y valorización de los residuos.

Sheet Paso1 (hidden)
C3: SELECCIÓN DE ESCENARIO SEGÚN EL CONTEXTO
C5: En esta fase se llevará a cabo la identificación del escenario a partir de la evaluación de indicadores que permiten conocer la situación de la gestión de los residuos en materia de generación, recolección, transporte, tratamiento y disposición final, el potencial para adelantar proyectos regionales y la capacidad institucional del municipio o región donde se desea implementar el proyecto.
C10: Instrucciones
C11: Para iniciar, se debe calcular los indicadores propuestos para recolección y transporte de residuos, disposición final y capacidad institucional del municipio, según las indicaciones de la tabla, una vez calculados dichos indicadores se debe seleccionar la casilla de alta, media o baja según el resultado obtenido.
C15: 1. RECOLECCIÓN Y TRANSPORTE
C17: Indicador | M17: Descripción
C18: Cobertura del sistema de recolección de residuos (Cuantitativo/ %) | M18: Población que recibe el servicio de recolección de residuos / Población total) x 100
C20: Cumplimiento de las frecuencias de recolección establecidas por el prestador del servicio (Cuantitativo/ %) | M20: # Rutas efectivas realizadas / # Rutas programadas x 100
C23: Seleccione a continuación entre las casillas alta, media o baja de acuero con los indicadores de recolección y transporte.
C24: Alta: Cobertura del sistema y cumplimiento de las frecuencias, por encima del 85%. | J24: Media: Cobertura del sistema y cumplimiento de las frecuencias, por encima del 60%; y alguno de los dos criterios por debajo del 85%. | Q24: Baja: Cobertura del sistema o cumplimiento de las frecuencias por debajo del 60%.
C28: 2. DISPOSICIÓN FINAL
C30: Indicador | M30: Descripción
C31: Vida útil remanente del relleno sanitario (Cuantitativo/ Número) | M31: Número años de vida útil remanente
C33: Autorización ambiental del relleno sanitario (Cualitativo) | M33: Muestra si el municipio dispone los residuos en un sitio que cuenta con autorización ambiental para funcionar
C36: Seleccione a continuación entre las casillas alta, media o baja de acuero con los indicadores de disposición final.
C37: Alta: Vida útil superior a 5 años y el relleno cuenta con autorización ambiental. | J37: Media: Vida útil inferior a 5 años y el relleno cuenta con autorización ambiental. | Q37: Baja: El relleno no cuenta con autorización ambiental, no se tiene en cuenta la vida útil en este caso.
C41: 3. CAPACIDAD INSTITUCIONAL
C43: Indicador | M43: Descripción
C44: Capacidad institucional del municipio (Cualitativo) | M44: Indicador de desarrollo municipal que considere conceptos tales como dinámica económica, desarrollo institucional, calidad de vida de la población, aspectos ambientales, seguridad, entre otros
C49: Seleccione a continuación entre las casillas alta, media o baja de acuero con los indicadores de capacidad institucional.
C50: Alta: Alta capacidad de recaudo económico, desarrollo urbano, calidad de vida asociada a niveles de pobreza bajos, inversión para el desarrollo ambiental y alto desempeño fiscal. | J50: Media: capacidad de recaudo económico medio, desarrollo urbano medio, niveles de pobreza en rango medio, existe inversión para el desarrollo ambiental y existe desempeño fiscal. | Q50: Baja: bajos niveles de recaudo económico, alta pobreza, bajo desarrollo urbano, baja o inexistente inversión para el desarrollo ambiental y bajo desempeño fiscal.
C54: DIAGNÓSTICO DEL ESCENARIO Y RECOMENDACIONES
C55: ESCENARIO | E55: MEDIDAS DE GESTIÓN INTEGRAL DE RESIDUOS RECOMENDADAS
C56: =Auxiliar!B6 -> 4 | E56: =Menú!J13 -> --> Escenario 4. • Mejorar la calidad y continuidad de la recolección y transporte de residuos. • Mejorar condiciones de disposición final, a partir de la construcción o ampliación de un relleno sanitario local, implementar alternativas de tratamiento de bajo nivel de complejidad. • Si no existe un relleno sanitario con autorización ambiental vigente se recomienda mejorar las condiciones de disposición final a partir de la construcción o ampliación de un relleno sanitario, analizando la posibilidad de unirse a esquemas regionales existentes o nuevos. En caso de no ser viable un sistema regional es imprescindible construir un relleno sanitario municipal/local.

Sheet Paso2 (hidden)
C3: Instrucciones generales
C5: Completar el siguente formulario. Los asteriscos indican que esa celda es obligatoria. Hay celdas con listas desplegables para responderlas. Cuando te posicionas sobre la celda se le indica en qué unidades debe de estar el valor numérico a ingresar. Intenta llenar la mayor cantidad de celdas posibles para tener los mejores resultados.
C11: Instrucciones para verificar
C13: Es necesario presionar "verificar" en el menú de la izquierda para hacer una verificación automática de su avance, podrá visualizarlo porque las celdas se pintarán del color según el código de colores a continuación. Cuando se no haya celdas en color rojo al verificar, aparecerá una ventana con la cual podrá acceder al "Paso 3".
C18: CÓDIGO DE COLORES AL VERIFICAR:
C20: Completadas Obligatorias
C21: Completadas No Obligatorias
C22: No Completadas No Obligatorias
C23: No Completadas Obligatorias
C25: DATOS GEOGRÁFICOS Y DEMOGRÁFICOS
C27: País | D27: Costa Rica | E27: *
C29: Estado/Departamento/Región | D29: San José | E29: *
C31: Municipio | D31: San José | E31: *
C33: Localidad | D33: San José
C35: Población | D35: 200000 | E35: *
C38: PREGUNTAS CONDICIONALES
C40: ¿Existen industrias cementeras que incluya horno en su proceso y que puedan aceptar CDR? | D40: Si | E40: *
C41: En un radio menor a 100 Km
C42: ¿Existe un mercado local de composta par uso agrícola y/o jardinería? | D42: Si | E42: * | F42: El compost generado a partir de RSU tiene una calidad apta para cultivos arboreos, para jardinería y para restauración paisajistica; pero no para su uso generalizado en otro tipo de cultivos (o según indique la normativa de cada país).
C43: En un radio menor a 50 Km
C44: ¿Existe alguna industria que consuma CO2? | D44: Si | E44: *
C45: En un radio menor a 50 Km
C46: ¿Existe industria que consuma gas natural para procesos térmicos? | D46: Si | E46: *
C47: En un radio menor a 50 Km
C48: ¿El parque vehicular municipal tiene vehículos que funcionen con GN? | D48: Si | E48: *
C49: En un radio menor a 50 Km
C51: DATOS GENERALES DE LOS RESIDUOS
C53: Debe aportar los datos fundamentales de los residuos para realizar el cálculo de la valorización material y de la energía que se podría obtener. Como más precisos sean los datos los resultados de esta herramienta serán más útiles para la toma de decisiones.
C57: Cantidad de residuos sólidos urbanos | D57: 227505 | E57: *
C58: Toneladas de residuos generados anuales.
C59: ¿Hay un análisis de composición/caracterización de estos residuos totales? | D59: No | E59: *
C60: Si existe, favor de aportar los porcentajes manualmente a continuación.
C61: ¿Hay selección informal de valorizables durante la recolección y transporte? | E61: *
C62: Considerarlo si se ingresa la composición manualmente.
C63: Fracción Orgánica | D63: 0.5 | E63: *
C65: Fracción Inorgánica (CDR/rechazo) | D65: 0.38 | E65: *
C67: Fracción valorizable (plásticos, papel, cartón metales) | D67: 0.12 | E67: *
C69: ¿Hay separación? | D69: Si
C71: Tarifa de disposición final en relleno sanitario actual | D71: 15 | E71: *
C73: Tarifa de tratamiento en la nueva instalación | D73: 24 | E73: *
C74: (Máxima asumible)
C76: PRECIOS DE MERCADO
C78: Si no se cuenta con el dato, es posible utilizar el precio base como un aproximado, más no es recomendable. Si no se venderá, colocar "0". | G78: PRECIOS BASE
C80: Energía eléctrica | D80: 0 | E80: * | G80: 0.12
C81: Se recomienda utilizar la tarifa actual que se paga para el suministro de alumbrado público o de edificios municipales.
C82: Gas natural | D82: 0.01 | E82: * | G82: 10
C83: Se recomienda utilizar el precio del gas natural suministrado por red (si existe).
C84: CO2 licuado industrial | D84: 0 | E84: * | G84: 0.05
C86: Composta | D86: 10 | E86: * | G86: 20
C87: Es el precio medio que un productor agrícola puede pagar.
C88: Materiales reciclables (plásticos, papel, cartón, metales) | D88: 170 | E88: * | G88: 80
C89: Se recomienda utilizar el precio de estos materiales en el mercado local de reciclaje.
C90: CDR (Combustible Derivado de Residuos) utilizable por una industria cementera | D90: 0 | E90: * | G90: 30
C91: Es el precio que una cementera situada en un radio menor a 100Km podría pagar.
C93: DATOS FINANCIEROS
C95: Tasa anual de inflación de los últimos 3 años | D95: 0.02 | E95: *
C96: Porcentaje de inflación anual.
C97: Incremento anual precio energéticos | D97: 0.04 | E97: *
C98: Media de los últimos cinco años del incremento del precio de la energía eléctrica.
C99: Tasa de descuento | D99: 0.0831 | E99: *
C101: Cash flow | D101: 20 | E101: *
C103: Porcentaje de financiamiento | D103: 0
C105: Plazo del financimiento | D105: 15
C107: Tasa de interés bancaria | D107: 0.05
C110: Es necesario que verifique para corroborar que completó el formulario de manera satisfactoria y poder acceder al "Paso 3"

Sheet Paso3 (hidden)
C3: Da click para ver tecnología: | D3: Ver T1 | E3: Ver T2 | F3: Ver T3 | G3: Ver T4 | H3: Ver T5 | I3: Ver T6 | J3: Ver T7 | K3: Ver T8 | L3: Ver T9 | M3: Ver T10 | N3: Ver T11
C6: =COMPARATIVA!B2 -> COMPARACIÓN DE RESULTADOS
C7: =COMPARATIVA!B3 -> Módulo | D7: =COMPARATIVA!C3 -> T1 | E7: =COMPARATIVA!D3 -> T2 | F7: =COMPARATIVA!E3 -> T3 | G7: =COMPARATIVA!F3 -> T4 | H7: =COMPARATIVA!G3 -> T5 | I7: =COMPARATIVA!H3 -> T6 | J7: =COMPARATIVA!I3 -> T7 | K7: =COMPARATIVA!J3 -> T8 | L7: =COMPARATIVA!K3 -> T9 | M7: =COMPARATIVA!L3 -> T10 | N7: =COMPARATIVA!N3 -> T11
C8: =COMPARATIVA!B4 -> Tecnología | D8: =COMPARATIVA!C4 -> Relleno sanitario | E8: =COMPARATIVA!D4 -> Relleno sanitario + desgasificación + generación eléctrica | F8: =COMPARATIVA!E4 -> Desgasificación de relleno sanitario existente + generación eléctrica | G8: =COMPARATIVA!F4 -> Planta de clasificación manual | H8: =COMPARATIVA!G4 -> Planta de clasificación automática (CDR) | I8: =COMPARATIVA!H4 -> Planta de clasificación automática + compostaje (TMB Simple) | J8: =COMPARATIVA!I4 -> Planta de clasificación automática + Digestión Anaerobia (electricidad) + compostaje (TMB Completa) | K8: =COMPARATIVA!J4 -> Planta de clasificación automática + Digestión Anaerobia (biometano/CO2) + compostaje (TMB Completa) | L8: =COMPARATIVA!K4 -> Planta de clasificación automática + Digestión Anaerobia (electricidad) + compostaje (TMB Completa) + Termovalorización | M8: =COMPARATIVA!L4 -> Planta de clasificación automática + Digestión Anaerobia (biometano/CO2) + compostaje (TMB Completa) + Termovalorización | N8: =COMPARATIVA!N4 -> Planta de clasificación automática + Pretratamiento + Termovalorización
C9: =COMPARATIVA!B5 -> CAPEX | D9: =COMPARATIVA!C5 -> 3315881.583 | E9: =COMPARATIVA!D5 -> 5365313.611 | F9: =COMPARATIVA!E5 -> 1936623.041 | G9: =COMPARATIVA!F5 -> 3748610.226 | H9: =COMPARATIVA!G5 -> 7274637.5 | I9: =COMPARATIVA!H5 -> 11142222.5 | J9: =COMPARATIVA!I5 -> 32237322 | K9: =COMPARATIVA!J5 -> 32237322 | L9: =COMPARATIVA!K5 -> 211351690 | M9: =COMPARATIVA!L5 -> 211351690 | N9: =COMPARATIVA!N5 -> 164158934.4
C10: =COMPARATIVA!B6 -> OPEX (anual) | D10: =COMPARATIVA!C6 -> 2504442.028 | E10: =COMPARATIVA!D6 -> 2210587.722 | F10: =COMPARATIVA!E6 -> 1316683.292 | G10: =COMPARATIVA!F6 -> 4509521.381 | H10: =COMPARATIVA!G6 -> 5235088.2 | I10: =COMPARATIVA!H6 -> 3983810.7 | J10: =COMPARATIVA!I6 -> 3953151.699 | K10: =COMPARATIVA!J6 -> 3953151.699 | L10: =COMPARATIVA!K6 -> 24704048.47 | M10: =COMPARATIVA!L6 -> 24704048.47 | N10: =COMPARATIVA!N6 -> 17491215.73
C11: Ingresos por tarifa/tasa y venta de outputs (anual) | D11: =COMPARATIVA!C7 -> 5460120 | E11: =COMPARATIVA!D7 -> 5460120 | F11: =COMPARATIVA!E7 -> 5460120 | G11: =COMPARATIVA!F7 -> 6388340.4 | H11: =COMPARATIVA!G7 -> 7316560.8 | I11: =COMPARATIVA!H7 -> 7771570.8 | J11: =COMPARATIVA!I7 -> 7771570.8 | K11: =COMPARATIVA!J7 -> 7774920.695 | L11: =COMPARATIVA!K7 -> 7771570.8 | M11: =COMPARATIVA!L7 -> 7774920.695 | N11: =COMPARATIVA!N7 -> 7316560.8
C12: =COMPARATIVA!B8 -> Payback | D12: =COMPARATIVA!C8 -> 1.364576818 | E12: =COMPARATIVA!D8 -> 1.883434651 | F12: =COMPARATIVA!E8 -> 0.4673953478 | G12: =COMPARATIVA!F8 -> 0.9594307387 | H12: =COMPARATIVA!G8 -> 2.026419518 | I12: =COMPARATIVA!H8 -> 2.944950676 | J12: =COMPARATIVA!I8 -> 8.733670746 | K12: =COMPARATIVA!J8 -> 8 | L12: =COMPARATIVA!K8 -> > 25 años | M12: =COMPARATIVA!L8 -> > 25 años | N12: =COMPARATIVA!N8 -> > 25 años
C13: =COMPARATIVA!B9 -> Payback descontado | D13: =COMPARATIVA!C9 -> 1.493867706 | E13: =COMPARATIVA!D9 -> 2.108886316 | F13: =COMPARATIVA!E9 -> 0.5062359012 | G13: =COMPARATIVA!F9 -> 1.031186457 | H13: =COMPARATIVA!G9 -> 2.287657501 | I13: =COMPARATIVA!H9 -> 3.482865767 | J13: =COMPARATIVA!I9 -> 14.89677917 | K13: =COMPARATIVA!J9 -> 14 | L13: =COMPARATIVA!K9 -> > 25 años | M13: =COMPARATIVA!L9 -> > 25 años | N13: =COMPARATIVA!N9 -> > 25 años
C14: =COMPARATIVA!B10 -> TIR (CF 15 años) | D14: =COMPARATIVA!C10 -> 0.8138331155 | E14: =COMPARATIVA!D10 -> 0.5723594244 | F14: =COMPARATIVA!E10 -> 2.159516374 | G14: =COMPARATIVA!F10 -> 1.221785396 | H14: =COMPARATIVA!G10 -> 0.5298147886 | I14: =COMPARATIVA!H10 -> 0.3593902384 | J14: =COMPARATIVA!I10 -> 0.1056608728 | K14: =COMPARATIVA!J10 -> 0.1057913028 | L14: =COMPARATIVA!K10 -> ≤ 0% | M14: =COMPARATIVA!L10 -> ≤ 0% | N14: =COMPARATIVA!N10 -> ≤ 0%
C15: =COMPARATIVA!B11 -> VAN (CF 15 años) | D15: =COMPARATIVA!C11 -> 28741734.31 | E15: =COMPARATIVA!D11 -> 29879479.14 | F15: =COMPARATIVA!E11 -> 43959941.45 | G15: =COMPARATIVA!F11 -> 52754128.6 | H15: =COMPARATIVA!G11 -> 36620835.89 | I15: =COMPARATIVA!H11 -> 32753250.89 | J15: =COMPARATIVA!I11 -> 6533601.002 | K15: =COMPARATIVA!J11 -> 6573719.331 | L15: =COMPARATIVA!K11 -> -383278238.2 | M15: =COMPARATIVA!L11 -> -382381106.3 | N15: =COMPARATIVA!N11 -> -267468877.3
C16: =COMPARATIVA!B12 -> LCOE (USD/kWh) | D16: =COMPARATIVA!C12 -> - | E16: =COMPARATIVA!D12 -> 0.2594342066 | F16: =COMPARATIVA!E12 -> 0.07789672368 | G16: =COMPARATIVA!F12 -> - | H16: =COMPARATIVA!G12 -> - | I16: =COMPARATIVA!H12 -> - | J16: =COMPARATIVA!I12 -> 0.119655251 | K16: =COMPARATIVA!J12 -> - | L16: =COMPARATIVA!K12 -> 0.2451953445 | M16: =COMPARATIVA!L12 -> 0.2932941363 | N16: =COMPARATIVA!N12 -> 0.1269676098
C17: Tarifa de instalación para lograr cierre financiero (VAN=0)
C19: =COMPARATIVA!B14 -> OUTPUTS | D19: =D7 -> T1 | E19: =E7 -> T2 | F19: T3 | G19: T4 | H19: T5 | I19: T6 | J19: T7 | K19: T8 | L19: T9 | M19: T10 | N19: T11
C20: =COMPARATIVA!B15 -> Valorizables (ton/año) | G20: =COMPARATIVA!F15 -> 5460.12 | H20: =COMPARATIVA!G15 -> 10920.24 | I20: =COMPARATIVA!H15 -> 10920.24 | J20: =COMPARATIVA!I15 -> 10920.24 | K20: =COMPARATIVA!J15 -> 10920.24 | L20: =COMPARATIVA!K15 -> 10920.24 | M20: =COMPARATIVA!L15 -> 10920.24 | N20: =COMPARATIVA!N15 -> 10920.24
C21: =COMPARATIVA!B16 -> Composta (ton/año) | I21: =COMPARATIVA!H16 -> 45501 | J21: =COMPARATIVA!I16 -> 45501 | K21: =COMPARATIVA!J16 -> 45501 | L21: =COMPARATIVA!K16 -> 45501 | M21: =COMPARATIVA!L16 -> 45501
C22: =COMPARATIVA!B17 -> CDR (ton/año) | H22: =COMPARATIVA!G17 -> 85541.88 | I22: =COMPARATIVA!H17 -> 85541.88 | J22: =COMPARATIVA!I17 -> 85541.88 | K22: =COMPARATIVA!J17 -> 85541.88
C23: =COMPARATIVA!B18 -> Biogas (Nm3/año) | E23: =COMPARATIVA!D18 -> 5118862.5 | F23: =COMPARATIVA!E18 -> 5118862.5 | J23: =COMPARATIVA!I18 -> 14787825 | L23: =COMPARATIVA!K18 -> 14787825
C24: =COMPARATIVA!B19 -> Biometano (Nm3/año) | K24: =COMPARATIVA!J19 -> 9053770.408 | M24: =COMPARATIVA!L19 -> 9053770.408
C25: =COMPARATIVA!B20 -> CO2 (Nm3/año) | K25: =COMPARATIVA!J20 -> 5915130 | M25: =COMPARATIVA!L20 -> 5915130
C26: =COMPARATIVA!B21 -> Electricidad libre (kWh/año) | E26: =COMPARATIVA!D21 -> 12382528.39 | F26: =COMPARATIVA!E21 -> 14194605.71 | J26: =COMPARATIVA!I21 -> 29515361.17 | L26: =COMPARATIVA!K21 -> 104447545.5 | M26: =COMPARATIVA!L21 -> 86292646.5 | N26: =COMPARATIVA!N21 -> 155941027.2

Sheet Explicación T1 (hidden)
C2: Descripción de tecnología
C4: T1. Relleno Sanitario: técnica de disposición de residuos sólidos de una ciudad. Los rellenos se conforman de módulos donde se depositan los desechos, se esparcen y se compactan para reducirlos al menor volumen posible. Se protegen los suelos con una geomembrana hecha de hule donde se canalizan los lixiviados por medio de un sistema de drenaje para evitar contaminar el subsuelo.
C17: Diagrama de flujo
K19: T1 | O19: ='T1'!F2 -> CAPEX
K20: ='T1'!B3 -> BASES & SUPUESTOS | O20: ='T1'!F3 -> Concepto | P20: ='T1'!G3 -> USD
C21: ='T1'!I15 -> Residuos sólidos urbanos | H21: ='T1'!N15 -> Relleno sanitario | K21: ='T1'!B4 -> Vida útil | L21: ='T1'!C4 -> 25 | M21: ='T1'!D4 -> años | O21: ='T1'!F4 -> Relleno sanitario
C22: ='T1'!I16 -> 227505 | D22: ='T1'!J16 -> ton/año | K22: ='T1'!B5 -> CapEx | L22: ='T1'!C5 -> 14.57498333 | M22: ='T1'!D5 -> USD/tpa | O22: ='T1'!F5 -> Total | P22: ='T1'!G5 -> 3315881.583
K23: ='T1'!B6 -> OpEx | L23: ='T1'!C6 -> 11.00829444 | M23: ='T1'!D6 -> USD/tpa
K24: ='T1'!B7 -> Tiempo de construcción | L24: ='T1'!C7 -> 15 | M24: ='T1'!D7 -> meses | O24: ='T1'!F7 -> OPEX / año
K25: ='T1'!B8 -> SUPUESTOS DE INGRESOS | O25: ='T1'!F8 -> Concepto | P25: ='T1'!G8 -> USD
K26: ='T1'!B9 -> Tarifa de disposición final | L26: ='T1'!C9 -> 15 | M26: ='T1'!D9 -> USD/ton | O26: ='T1'!F9 -> Mantenimiento Maquinaria & Eq. Auxiliares
K27: ='T1'!B10 -> Tarifa de tratamiento | L27: ='T1'!C10 -> 24 | M27: ='T1'!D10 -> USD/ton | O27: ='T1'!F10 -> Consumibles
K28: ='T1'!B11 -> SUPUESTOS FINANCIEROS | O28: ='T1'!F11 -> Administración & Operación
K29: ='T1'!B12 -> Inflación | L29: ='T1'!C12 -> 0.02 | O29: ='T1'!F12 -> Subtotal OPEX | P29: ='T1'!G12 -> 2504442.028
K30: ='T1'!B13 -> Tasa de Descuento | L30: ='T1'!C13 -> 0.0831 | O30: ='T1'!F13 -> Total | P30: ='T1'!G13 -> 2504442.028
K31: ='T1'!B14 -> Incremento Anual Energéticos | L31: ='T1'!C14 -> 0.04
K32: ='T1'!B15 -> Cash Flow | L32: ='T1'!C15 -> 20 | M32: ='T1'!D15 -> años | O32: ='T1'!F15 -> Ingresos / año
O33: ='T1'!F16 -> Concepto | P33: ='T1'!G16 -> USD
K34: ='T1'!B17 -> DIMENSIONAMIENTO | O34: ='T1'!F17 -> Tarifa de Tratamiento | P34: ='T1'!G17 -> 5460120
K35: ='T1'!B18 -> INPUT | O35: ='T1'!F18 -> Total | P35: ='T1'!G18 -> 5460120
K36: ='T1'!B19 -> Residuos sólidos urbanos | L36: ='T1'!C19 -> 227505 | M36: ='T1'!D19 -> ton/año
K37: ='T1'!B20 -> COMPOSICIÓN | O37: ='T1'!F20 -> RESULTADOS FINANCIEROS
K38: ='T1'!B21 -> Fracción orgánica | L38: ='T1'!C21 -> 113752.5 | M38: ='T1'!D21 -> ton/año | O38: ='T1'!F21 -> CAPEX | P38: ='T1'!G21 -> 3315881.583
K39: ='T1'!B22 -> Fracción inorgánica | L39: ='T1'!C22 -> 86451.9 | M39: ='T1'!D22 -> ton/año | O39: ='T1'!F22 -> OPEX (anual) | P39: ='T1'!G22 -> 2504442.028
K40: ='T1'!B23 -> Valorizables | L40: ='T1'!C23 -> 27300.6 | M40: ='T1'!D23 -> ton/año | O40: ='T1'!F23 -> INGRESOS (anual) | P40: ='T1'!G23 -> 5460120
O42: ='T1'!F25 -> FINANCIAMIENTO
O43: ='T1'!F26 -> Capital aportado | P43: ='T1'!G26 -> 3315881.583
O44: ='T1'!F27 -> Deuda adquirida | P44: ='T1'!G27 -> 0
O45: ='T1'!F28 -> Plazo | P45: ='T1'!G28 -> 15
O46: ='T1'!F29 -> Pago anual del crédito con intereses | P46: ='T1'!G29 -> 0
O48: ='T1'!F31 -> ANÁLISIS - CASH FLOW 15 AÑOS EBDTA
O49: ='T1'!F32 -> Payback | P49: ='T1'!G32 -> 1.364576818
O50: ='T1'!F33 -> Payback descontado | P50: ='T1'!G33 -> 1.493867706
O51: ='T1'!F34 -> TIR (CF 15 años) | P51: ='T1'!G34 -> 0.8138331155
O52: ='T1'!F35 -> VAN (CF 15 años) | P52: ='T1'!G35 -> 28741734.31

Sheet Explicación T2 (hidden)
C2: Descripción de tecnología
C4: T2. Relleno sanitario + desgasificación: Cuando se descompone la fracción orgánica de los RSU depositados en el relleno sanitario se generan biogases, estos biogases tienen un alto contenido de metano que se puede separar y aprovechar como fuente de energía. Al proceso de extracción, tratamiento, enriquecimiento y aprovechamiento del biogás se le conoce como desgasificación. | O4: T2 | S4: ='T2'!F2 -> CAPEX
O5: ='T2'!B3 -> BASES & SUPUESTOS | S5: ='T2'!F3 -> Concepto | T5: ='T2'!G3 -> USD
O6: ='T2'!B4 -> Vida útil | P6: ='T2'!C4 -> 25 | Q6: ='T2'!D4 -> años | S6: ='T2'!F4 -> Relleno sanitario
O7: ='T2'!B5 -> CapEx | P7: ='T2'!C5 -> 23.58327778 | Q7: ='T2'!D5 -> USD/tpa | S7: ='T2'!F5 -> Sistema de desgasificación
O8: ='T2'!B6 -> OpEx | P8: ='T2'!C6 -> 9.716655556 | Q8: ='T2'!D6 -> USD/tpa | S8: ='T2'!F6 -> Motogeneradores
O9: ='T2'!B7 -> Producción de Biogás | P9: ='T2'!C7 -> 0.1 | Q9: ='T2'!D7 -> ton/ton de residuo orgánico | S9: ='T2'!F7 -> Total | T9: ='T2'!G7 -> 5365313.611
O10: ='T2'!B8 -> Generación de electricidad | P10: ='T2'!C8 -> 250 | Q10: ='T2'!D8 -> kWh/ton de residuo orgánico
O11: ='T2'!B9 -> Ajuste de eficiencia desgasificación | P11: ='T2'!C9 -> 0.7 | S11: ='T2'!F9 -> OPEX / año
O12: ='T2'!B10 -> Tiempo de espera para extracción de biogas | P12: ='T2'!C10 -> 10 | Q12: ='T2'!D10 -> años | S12: ='T2'!F10 -> Concepto | T12: ='T2'!G10 -> USD
O13: ='T2'!B11 -> Rendimiento Biogas - FO | P13: ='T2'!C11 -> 45 | Q13: ='T2'!D11 -> Nm3/ton | S13: ='T2'!F11 -> Mantenimiento Maquinaria & Eq. Auxiliares
O14: ='T2'!B12 -> Contenido de Dióxido de Carbono (CH4) | P14: ='T2'!C12 -> 0.4 | S14: ='T2'!F12 -> Consumibles
O15: ='T2'!B13 -> Contenido de Metano (CH4) | P15: ='T2'!C13 -> 0.57 | S15: ='T2'!F13 -> Administración & Operación
O16: ='T2'!B14 -> Tiempo de construcción | P16: ='T2'!C14 -> 15 | Q16: ='T2'!D14 -> meses | S16: ='T2'!F14 -> Mantenimiento motogeneradores
C17: Diagrama de flujo | O17: ='T2'!B15 -> SUPUESTOS DE INGRESOS | S17: ='T2'!F15 -> Subtotal OPEX | T17: ='T2'!G15 -> 2210587.722
O18: ='T2'!B16 -> Tarifa de disposición final | P18: ='T2'!C16 -> 15 | Q18: ='T2'!D16 -> USD/ton | S18: ='T2'!F16 -> Total | T18: ='T2'!G16 -> 2210587.722
O19: ='T2'!B17 -> Tarifa de tratamiento | P19: ='T2'!C17 -> 24 | Q19: ='T2'!D17 -> USD/ton
C20: ='T2'!I15 -> Residuos sólidos urbanos | F20: ='T2'!L15 -> Relleno sanitario | H20: ='T2'!N15 -> Producción de Biogas | K20: ='T2'!Q15 -> Generación de electricidad | O20: ='T2'!B18 -> Precio electricidad | P20: ='T2'!C18 -> 0 | Q20: ='T2'!D18 -> USD/kWh | S20: ='T2'!F18 -> Ingresos / año
C21: ='T2'!I16 -> 227505 | D21: ='T2'!J16 -> ton/año | H21: ='T2'!N16 -> 5118862.5 | I21: ='T2'!O16 -> Nm3/año | K21: ='T2'!Q16 -> 12382528.39 | L21: ='T2'!R16 -> kWh/año | O21: ='T2'!B19 -> SUPUESTOS FINANCIEROS | S21: ='T2'!F19 -> Concepto | T21: ='T2'!G19 -> USD
O22: ='T2'!B20 -> Inflación | P22: ='T2'!C20 -> 0.02 | S22: ='T2'!F20 -> Tarifa de Tratamiento | T22: ='T2'!G20 -> 5460120
O23: ='T2'!B21 -> Tasa de Descuento | P23: ='T2'!C21 -> 0.0831 | S23: ='T2'!F21 -> Venta de electricidad | T23: ='T2'!G21 -> 0
O24: ='T2'!B22 -> Incremento Anual Energéticos | P24: ='T2'!C22 -> 0.04 | S24: ='T2'!F22 -> Total | T24: ='T2'!G22 -> 5460120
O25: ='T2'!B23 -> Cash Flow | P25: ='T2'!C23 -> 20 | Q25: ='T2'!D23 -> años
S26: ='T2'!F24 -> RESULTADOS FINANCIEROS
O27: ='T2'!B25 -> DIMENSIONAMIENTO | S27: ='T2'!F25 -> CAPEX | T27: ='T2'!G25 -> 5365313.611
O28: ='T2'!B26 -> INPUT | S28: ='T2'!F26 -> OPEX (anual) | T28: ='T2'!G26 -> 2210587.722
O29: ='T2'!B27 -> Residuos sólidos urbanos | P29: ='T2'!C27 -> 227505 | Q29: ='T2'!D27 -> ton/año | S29: ='T2'!F27 -> INGRESOS (anual) | T29: ='T2'!G27 -> 5460120
O30: ='T2'!B28 -> COMPOSICIÓN
O31: ='T2'!B29 -> Fracción orgánica | P31: ='T2'!C29 -> 113752.5 | Q31: ='T2'!D29 -> ton/año | S31: ='T2'!F29 -> FINANCIAMIENTO
O32: ='T2'!B30 -> Fracción inorgánica | P32: ='T2'!C30 -> 86451.9 | Q32: ='T2'!D30 -> ton/año | S32: ='T2'!F30 -> Capital aportado | T32: ='T2'!G30 -> 5365313.611
O33: ='T2'!B31 -> Valorizables | P33: ='T2'!C31 -> 27300.6 | Q33: ='T2'!D31 -> ton/año | S33: ='T2'!F31 -> Deuda adquirida | T33: ='T2'!G31 -> 0
O34: ='T2'!B32 -> OUTPUT | S34: ='T2'!F32 -> Plazo | T34: ='T2'!G32 -> 15
O35: ='T2'!B33 -> Producción de Biogas | P35: ='T2'!C33 -> 5118862.5 | Q35: ='T2'!D33 -> Nm3/año | S35: ='T2'!F33 -> Pago anual del crédito con intereses | T35: ='T2'!G33 -> 0
O36: ='T2'!B34 -> ENERGÍA
O37: ='T2'!B35 -> Generación de electricidad | P37: ='T2'!C35 -> 12382528.39 | Q37: ='T2'!D35 -> kWh/año | S37: ='T2'!F35 -> ANÁLISIS - CASH FLOW 15 AÑOS EBDTA
S38: ='T2'!F36 -> Payback | T38: ='T2'!G36 -> 1.883434651
S39: ='T2'!F37 -> Payback descontado | T39: ='T2'!G37 -> 2.108886316
S40: ='T2'!F38 -> TIR (CF 15 años) | T40: ='T2'!G38 -> 0.5723594244
S41: ='T2'!F39 -> VAN (CF 15 años) | T41: ='T2'!G39 -> 29879479.14
S43: ='T2'!F41 -> LCOE
S44: ='T2'!F42 -> Generación vida útil (kWh) | T44: ='T2'!G42 -> 185737925.8
S45: ='T2'!F43 -> Costos Vida Útil | T45: ='T2'!G43 -> 70253140.37
S46: ='T2'!F44 -> Costos Valor Presente | T46: ='T2'!G44 -> 42821457.81
S47: ='T2'!F45 -> Costo Total Vida Útil | T47: ='T2'!G45 -> 48186771.42
S48: ='T2'!F46 -> LCOE (USD/kWh) | T48: ='T2'!G46 -> 0.2594342066

Sheet Explicación T3 (hidden)
C2: Descripción de tecnología
C4: T3. Desgasificación de relleno sanitario existente: Cuando se descompone la fracción orgánica de los RSU depositados en el relleno sanitario se generan biogases, estos biogases tienen un alto contenido de metano que se puede separar y aprovechar como fuente de energía. Al proceso de extracción, tratamiento, enriquecimiento y aprovechamiento del biogás se le conoce como desgasificación. | O4: T3 | S4: ='T3'!F2 -> CAPEX
O5: ='T3'!B3 -> BASES & SUPUESTOS | S5: ='T3'!F3 -> Concepto | T5: ='T3'!G3 -> USD
O6: ='T3'!B4 -> Vida útil | P6: ='T3'!C4 -> 25 | Q6: ='T3'!D4 -> años | S6: ='T3'!F4 -> Relleno sanitario
O7: ='T3'!B5 -> CapEx | P7: ='T3'!C5 -> 8.512441667 | Q7: ='T3'!D5 -> USD/tpa | S7: ='T3'!F5 -> Sistema de desgasificación
O8: ='T3'!B6 -> OpEx | P8: ='T3'!C6 -> 5.787491667 | Q8: ='T3'!D6 -> USD/tpa | S8: ='T3'!F6 -> Motogeneradores
O9: ='T3'!B7 -> Producción de Biogás | P9: ='T3'!C7 -> 0.1 | Q9: ='T3'!D7 -> ton/ton de residuo orgánico | S9: ='T3'!F7 -> Total | T9: ='T3'!G7 -> 1936623.041
O10: ='T3'!B8 -> Generación de electricidad | P10: ='T3'!C8 -> 250 | Q10: ='T3'!D8 -> kWh/ton de residuo orgánico
O11: ='T3'!B9 -> Ajuste de eficiencia desgasificación | P11: ='T3'!C9 -> 0.7 | S11: ='T3'!F9 -> OPEX / año
O12: ='T3'!B10 -> Rendimiento Biogas - FO | P12: ='T3'!C10 -> 45 | Q12: ='T3'!D10 -> Nm3/ton | S12: ='T3'!F10 -> Concepto | T12: ='T3'!G10 -> USD
O13: ='T3'!B11 -> Contenido de Dióxido de Carbono (CH4) | P13: ='T3'!C11 -> 0.4 | S13: ='T3'!F11 -> Mantenimiento Maquinaria & Eq. Auxiliares
O14: ='T3'!B12 -> Contenido de Metano (CH4) | P14: ='T3'!C12 -> 0.57 | S14: ='T3'!F12 -> Consumibles
O15: ='T3'!B13 -> Tiempo de construcción | P15: ='T3'!C13 -> 12 | Q15: ='T3'!D13 -> meses | S15: ='T3'!F13 -> Administración & Operación
O16: ='T3'!B14 -> SUPUESTOS DE INGRESOS | S16: ='T3'!F14 -> Mantenimiento motogeneradores
C17: Diagrama de flujo | O17: ='T3'!B15 -> Tarifa de disposición final | P17: ='T3'!C15 -> 15 | Q17: ='T3'!D15 -> USD/ton | S17: ='T3'!F15 -> Subtotal OPEX | T17: ='T3'!G15 -> 1316683.292
O18: ='T3'!B16 -> Tarifa de tratamiento | P18: ='T3'!C16 -> 24 | Q18: ='T3'!D16 -> USD/ton | S18: ='T3'!F16 -> Total | T18: ='T3'!G16 -> 1316683.292
O19: ='T3'!B17 -> Precio electricidad | P19: ='T3'!C17 -> 0 | Q19: ='T3'!D17 -> USD/kWh
C20: ='T2'!I15 -> Residuos sólidos urbanos | F20: ='T2'!L15 -> Relleno sanitario | H20: ='T2'!N15 -> Producción de Biogas | K20: ='T2'!Q15 -> Generación de electricidad | O20: ='T3'!B18 -> SUPUESTOS FINANCIEROS | S20: ='T3'!F18 -> Ingresos / año
C21: ='T3'!I16 -> 227505 | D21: ='T2'!J16 -> ton/año | H21: ='T3'!N16 -> 5118862.5 | I21: ='T2'!O16 -> Nm3/año | K21: ='T3'!Q16 -> 14194605.71 | L21: ='T2'!R16 -> kWh/año | O21: ='T3'!B19 -> Inflación | P21: ='T3'!C19 -> 0.02 | S21: ='T3'!F19 -> Concepto | T21: ='T3'!G19 -> USD
O22: ='T3'!B20 -> Tasa de Descuento | P22: ='T3'!C20 -> 0.0831 | S22: ='T3'!F20 -> Tarifa de Tratamiento | T22: ='T3'!G20 -> 5460120
O23: ='T3'!B21 -> Incremento Anual Energéticos | P23: ='T3'!C21 -> 0.04 | S23: ='T3'!F21 -> Venta de electricidad | T23: ='T3'!G21 -> 0
O24: ='T3'!B22 -> Cash Flow | P24: ='T3'!C22 -> 20 | Q24: ='T3'!D22 -> años | S24: ='T3'!F22 -> Total | T24: ='T3'!G22 -> 5460120
O26: ='T3'!B24 -> DIMENSIONAMIENTO | S26: ='T3'!F24 -> RESULTADOS FINANCIEROS
O27: ='T3'!B25 -> INPUT | S27: ='T3'!F25 -> CAPEX | T27: ='T3'!G25 -> 1936623.041
O28: ='T3'!B26 -> Residuos sólidos urbanos | P28: ='T3'!C26 -> 227505 | Q28: ='T3'!D26 -> ton/año | S28: ='T3'!F26 -> OPEX (anual) | T28: ='T3'!G26 -> 1316683.292
O29: ='T3'!B27 -> COMPOSICIÓN | S29: ='T3'!F27 -> INGRESOS (anual) | T29: ='T3'!G27 -> 5460120
O30: ='T3'!B28 -> Fracción orgánica | P30: ='T3'!C28 -> 113752.5 | Q30: ='T3'!D28 -> ton/año
O31: ='T3'!B29 -> Fracción inorgánica | P31: ='T3'!C29 -> 86451.9 | Q31: ='T3'!D29 -> ton/año | S31: ='T3'!F29 -> FINANCIAMIENTO
O32: ='T3'!B30 -> Valorizables | P32: ='T3'!C30 -> 27300.6 | Q32: ='T3'!D30 -> ton/año | S32: ='T3'!F30 -> Capital aportado | T32: ='T3'!G30 -> 1936623.041
O33: ='T3'!B31 -> OUTPUT | S33: ='T3'!F31 -> Deuda adquirida | T33: ='T3'!G31 -> 0
O34: ='T3'!B32 -> Producción de Biogas | P34: ='T3'!C32 -> 5118862.5 | Q34: ='T3'!D32 -> Nm3/año | S34: ='T3'!F32 -> Plazo | T34: ='T3'!G32 -> 15
O35: ='T3'!B33 -> ENERGÍA | S35: ='T3'!F33 -> Pago anual del crédito con intereses | T35: ='T3'!G33 -> 0
O36: ='T3'!B34 -> Generación de electricidad | P36: ='T3'!C34 -> 14194605.71 | Q36: ='T3'!D34 -> kWh/año
S37: ='T3'!F35 -> ANÁLISIS - CASH FLOW 15 AÑOS EBDTA
S38: ='T3'!F36 -> Payback | T38: ='T3'!G36 -> 0.4673953478
S39: ='T3'!F37 -> Payback descontado | T39: ='T3'!G37 -> 0.5062359012
S40: ='T3'!F38 -> TIR (CF 15 años) | T40: ='T3'!G38 -> 2.159516374
S41: ='T3'!F39 -> VAN (CF 15 años) | T41: ='T3'!G39 -> 43959941.45
S43: ='T3'!F41 -> LCOE
S44: ='T3'!F42 -> Generación vida útil (kWh) | T44: ='T3'!G42 -> 354865142.8
S45: ='T3'!F43 -> Costos Vida Útil | T45: ='T3'!G43 -> 42173760.47
S46: ='T3'!F44 -> Costos Valor Presente | T46: ='T3'!G44 -> 25706208.93
S47: ='T3'!F45 -> Costo Total Vida Útil | T47: ='T3'!G45 -> 27642831.97
S48: ='T3'!F46 -> LCOE (USD/kWh) | T48: ='T3'!G46 -> 0.07789672368

Sheet Explicación T4 (hidden)
C2: Descripción de tecnología
C4: T4. Planta de clasificación manual: la función de esta planta es seleccionar el contenido del material entrante mediante una combinación de procesos de separación manuales con el fin de recuperar las fracciones valorizables y prepararlas para su posterior comercialización. | O4: T4 | S4: ='T4'!F2 -> CAPEX
O5: ='T4'!B3 -> BASES & SUPUESTOS | S5: ='T4'!F3 -> Concepto | T5: ='T4'!G3 -> USD
O6: ='T4'!B4 -> Vida útil | P6: ='T4'!C4 -> 25 | Q6: ='T4'!D4 -> años | S6: ='T4'!F4 -> Planta de clasificación manual
O7: ='T4'!B5 -> CapEx | P7: ='T4'!C5 -> 16.47704545 | Q7: ='T4'!D5 -> USD/tpa | S7: ='T4'!F5 -> Total | T7: ='T4'!G5 -> 3748610.226
O8: ='T4'!B6 -> OpEx | P8: ='T4'!C6 -> 5.181636364 | Q8: ='T4'!D6 -> USD/tpa
O9: ='T4'!B7 -> Factor de eficiencia de separación | P9: ='T4'!C7 -> 0.2 | S9: ='T4'!F7 -> OPEX / año
O10: ='T4'!B8 -> Tiempo de construcción | P10: ='T4'!C8 -> 15 | Q10: ='T4'!D8 -> meses | S10: ='T4'!F8 -> Concepto | T10: ='T4'!G8 -> USD
O11: ='T4'!B9 -> Supuestos de Ingresos | S11: ='T4'!F9 -> Mantenimiento Maquinaria & Eq. Auxiliares
O12: ='T4'!B10 -> Tarifa de disposición final | P12: ='T4'!C10 -> 15 | Q12: ='T4'!D10 -> USD/ton | S12: ='T4'!F10 -> Consumibles
O13: ='T4'!B11 -> Tarifa de tratamiento | P13: ='T4'!C11 -> 24 | Q13: ='T4'!D11 -> USD/ton | S13: ='T4'!F11 -> Administración & Operación
O14: ='T4'!B12 -> Precio valorizables | P14: ='T4'!C12 -> 170 | Q14: ='T4'!D12 -> USD/ton | S14: ='T4'!F12 -> Subtotal OPEX | T14: ='T4'!G12 -> 1178848.181
O15: ='T4'!B13 -> Supuestos Financieros | S15: ='T4'!F13 -> Costo envío de rechazo a relleno sanitario | T15: ='T4'!G13 -> 3330673.2
O16: ='T4'!B14 -> Inflación | P16: ='T4'!C14 -> 0.02 | S16: ='T4'!F14 -> Total | T16: ='T4'!G14 -> 4509521.381
C17: Diagrama de flujo | O17: ='T4'!B15 -> Tasa de Descuento | P17: ='T4'!C15 -> 0.0831
O18: ='T4'!B16 -> Incremento Anual Energéticos | P18: ='T4'!C16 -> 0.04 | S18: ='T4'!F16 -> Ingresos / año
O19: ='T4'!B17 -> Cash Flow | P19: ='T4'!C17 -> 20 | Q19: ='T4'!D17 -> años | S19: ='T4'!F17 -> Concepto | T19: ='T4'!G17 -> USD
S20: ='T4'!F18 -> Tarifa de Tratamiento | T20: ='T4'!G18 -> 5460120
C21: ='T4'!I18 -> Residuos sólidos urbanos | F21: ='T4'!L18 -> Planta de clasificación manual | I21: ='T4'!O18 -> Valorizables | O21: ='T4'!B19 -> DIMENSIONAMIENTO | S21: ='T4'!F19 -> Venta de valorizables | T21: ='T4'!G19 -> 928220.4
C22: ='T4'!I19 -> 227505 | D22: ='T4'!J19 -> ton/año | I22: ='T4'!O19 -> 5460.12 | J22: ='T4'!P19 -> ton/año | O22: ='T4'!B20 -> INPUT | S22: ='T4'!F20 -> Total | T22: ='T4'!G20 -> 6388340.4
O23: ='T4'!B21 -> Residuos sólidos urbanos | P23: ='T4'!C21 -> 227505 | Q23: ='T4'!D21 -> ton/año
O24: ='T4'!B22 -> COMPOSICIÓN | S24: ='T4'!F22 -> RESULTADOS FINANCIEROS
O25: ='T4'!B23 -> Fracción orgánica | P25: ='T4'!C23 -> 113752.5 | Q25: ='T4'!D23 -> ton/año | S25: ='T4'!F23 -> CAPEX | T25: ='T4'!G23 -> 3748610.226
O26: ='T4'!B24 -> Fracción inorgánica | P26: ='T4'!C24 -> 86451.9 | Q26: ='T4'!D24 -> ton/año | S26: ='T4'!F24 -> OPEX (anual) | T26: ='T4'!G24 -> 4509521.381
O27: ='T4'!B25 -> Valorizables | P27: ='T4'!C25 -> 27300.6 | Q27: ='T4'!D25 -> ton/año | S27: ='T4'!F25 -> INGRESOS (anual) | T27: ='T4'!G25 -> 6388340.4
O28: ='T4'!B26 -> OUTPUT
O29: ='T4'!B27 -> Valorizables | P29: ='T4'!C27 -> 5460.12 | Q29: ='T4'!D27 -> ton/año | S29: ='T4'!F27 -> FINANCIAMIENTO
O30: ='T4'!B28 -> Rechazo | P30: ='T4'!C28 -> 222044.88 | Q30: ='T4'!D28 -> ton/año | S30: ='T4'!F28 -> Capital aportado | T30: ='T4'!G28 -> 3748610.226
S31: ='T4'!F29 -> Deuda adquirida | T31: ='T4'!G29 -> 0
S32: ='T4'!F30 -> Plazo | T32: ='T4'!G30 -> 15
I33: ='T4'!O30 -> Rechazo | L33: ='T4'!R30 -> Relleno sanitario | S33: ='T4'!F31 -> Pago anual del crédito con intereses | T33: ='T4'!G31 -> 0
I34: ='T4'!O31 -> 222044.88 | J34: ='T4'!P31 -> ton/año
S35: ='T4'!F33 -> ANÁLISIS - CASH FLOW 15 AÑOS EBDTA
S36: ='T4'!F34 -> Payback | T36: ='T4'!G34 -> 0.9594307387
S37: ='T4'!F35 -> Payback descontado | T37: ='T4'!G35 -> 1.031186457
S38: ='T4'!F36 -> TIR (CF 15 años) | T38: ='T4'!G36 -> 1.221785396
S39: ='T4'!F37 -> VAN (CF 15 años) | T39: ='T4'!G37 -> 52754128.6
H43: *En caso de no utilizar un subproducto, se incorporaría al rechazo.

Sheet Explicación T5 (hidden)
C2: Descripción de tecnología
C4: T5. Planta de clasificación automática: la función de esta planta es seleccionar el contenido del material entrante mediante una combinación de procesos de separación mecánicos o automatizados con el fin de recuperar las fracciones valorizables y prepararlas para su posterior comercialización. | O4: T5 | S4: ='T5'!F2 -> CAPEX
O5: ='T5'!B3 -> BASES & SUPUESTOS | S5: ='T5'!F3 -> Concepto | T5: ='T5'!G3 -> USD
O6: ='T5'!B4 -> Vida útil | P6: ='T5'!C4 -> 25 | Q6: ='T5'!D4 -> años | S6: ='T5'!F4 -> Planta de clasificación automática
O7: ='T5'!B5 -> CapEx | P7: ='T5'!C5 -> 31.97572581 | Q7: ='T5'!D5 -> USD/tpa | S7: ='T5'!F5 -> Total | T7: ='T5'!G5 -> 7274637.5
O8: ='T5'!B6 -> OpEx | P8: ='T5'!C6 -> 14.37087097 | Q8: ='T5'!D6 -> USD/tpa
O9: ='T5'!B7 -> Proporción CDR | P9: ='T5'!C7 -> 0.8 | Q9: ='T5'!D7 -> ton/ton de inorgánico | S9: ='T5'!F7 -> OPEX / año
O10: ='T5'!B8 -> Factor de eficiencia de separación | P10: ='T5'!C8 -> 0.4 | S10: ='T5'!F8 -> Concepto | T10: ='T5'!G8 -> USD
O11: ='T5'!B9 -> Tiempo de construcción | P11: ='T5'!C9 -> 15 | Q11: ='T5'!D9 -> meses | S11: ='T5'!F9 -> Mantenimiento Maquinaria & Eq. Auxiliares
O12: ='T5'!B10 -> SUPUESTOS DE INGRESOS | S12: ='T5'!F10 -> Consumibles
O13: ='T5'!B11 -> Tarifa de disposición final | P13: ='T5'!C11 -> 15 | Q13: ='T5'!D11 -> USD/ton | S13: ='T5'!F11 -> Administración & Operación
O14: ='T5'!B12 -> Tarifa de tratamiento | P14: ='T5'!C12 -> 24 | Q14: ='T5'!D12 -> USD/ton | S14: ='T5'!F12 -> Subtotal OPEX | T14: ='T5'!G12 -> 3269445
O15: ='T5'!B13 -> Precio valorizables | P15: ='T5'!C13 -> 170 | Q15: ='T5'!D13 -> USD/ton | S15: ='T5'!F13 -> Costo envío de rechazo a relleno sanitario | T15: ='T5'!G13 -> 1965643.2
O16: ='T5'!B14 -> Precio CDR | P16: ='T5'!C14 -> 0 | Q16: ='T5'!D14 -> USD/ton | S16: ='T5'!F14 -> Total | T16: ='T5'!G14 -> 5235088.2
C17: Diagrama de flujo | O17: ='T5'!B15 -> SUPUESTOS FINANCIEROS
O18: ='T5'!B16 -> Inflación | P18: ='T5'!C16 -> 0.02 | S18: ='T5'!F16 -> Ingresos / año
O19: ='T5'!B17 -> Tasa de Descuento | P19: ='T5'!C17 -> 0.0831 | S19: ='T5'!F17 -> Concepto | T19: ='T5'!G17 -> USD
J20: ='T5'!P7 -> CDR | O20: ='T5'!B18 -> Incremento Anual Energéticos | P20: ='T5'!C18 -> 0.04 | S20: ='T5'!F18 -> Tarifa de Tratamiento | T20: ='T5'!G18 -> 5460120
J21: ='T5'!P8 -> 85541.88 | K21: ='T5'!Q8 -> ton/año | O21: ='T5'!B19 -> Cash Flow | P21: ='T5'!C19 -> 20 | Q21: ='T5'!D19 -> años | S21: ='T5'!F19 -> Venta de valorizables | T21: ='T5'!G19 -> 1856440.8
S22: ='T5'!F20 -> Venta de CDR | T22: ='T5'!G20 -> 0
O23: ='T5'!B21 -> DIMENSIONAMIENTO | S23: ='T5'!F21 -> Total | T23: ='T5'!G21 -> 7316560.8
O24: ='T5'!B22 -> INPUT
O25: ='T5'!B23 -> Residuos sólidos urbanos | P25: ='T5'!C23 -> 227505 | Q25: ='T5'!D23 -> ton/año | S25: ='T5'!F23 -> RESULTADOS FINANCIEROS
O26: ='T5'!B24 -> COMPOSICIÓN | S26: ='T5'!F24 -> CAPEX | T26: ='T5'!G24 -> 7274637.5
O27: ='T5'!B25 -> Fracción orgánica | P27: ='T5'!C25 -> 113752.5 | Q27: ='T5'!D25 -> ton/año | S27: ='T5'!F25 -> OPEX (anual) | T27: ='T5'!G25 -> 5235088.2
C28: ='T5'!I15 -> Residuos sólidos urbanos | E28: ='T5'!K15 -> Planta de clasificación automática | O28: ='T5'!B26 -> Fracción inorgánica | P28: ='T5'!C26 -> 86451.9 | Q28: ='T5'!D26 -> ton/año | S28: ='T5'!F26 -> INGRESOS (anual) | T28: ='T5'!G26 -> 7316560.8
C29: ='T5'!I16 -> 227505 | D29: ='T5'!J16 -> ton/año | O29: ='T5'!B27 -> Valorizables | P29: ='T5'!C27 -> 27300.6 | Q29: ='T5'!D27 -> ton/año
O30: ='T5'!B28 -> OUTPUT | S30: ='T5'!F28 -> FINANCIAMIENTO
J31: ='T5'!P18 -> Valorizables | O31: ='T5'!B29 -> Valorizables | P31: ='T5'!C29 -> 10920.24 | Q31: ='T5'!D29 -> ton/año | S31: ='T5'!F29 -> Capital aportado | T31: ='T5'!G29 -> 7274637.5
J32: ='T5'!P19 -> 10920.24 | K32: ='T5'!Q19 -> ton/año | O32: ='T5'!B30 -> CDR | P32: ='T5'!C30 -> 85541.88 | Q32: ='T5'!D30 -> ton/año | S32: ='T5'!F30 -> Deuda adquirida | T32: ='T5'!G30 -> 0
O33: ='T5'!B31 -> Rechazo | P33: ='T5'!C31 -> 131042.88 | Q33: ='T5'!D31 -> ton/año | S33: ='T5'!F31 -> Plazo | T33: ='T5'!G31 -> 15
S34: ='T5'!F32 -> Pago anual del crédito con intereses | T34: ='T5'!G32 -> 0
S36: ='T5'!F34 -> ANÁLISIS - CASH FLOW 15 AÑOS EBDTA
S37: ='T5'!F35 -> Payback | T37: ='T5'!G35 -> 2.026419518
S38: ='T5'!F36 -> Payback descontado | T38: ='T5'!G36 -> 2.287657501
I39: ='T5'!O26 -> Rechazo | L39: ='T5'!R26 -> Relleno sanitario | S39: ='T5'!F37 -> TIR (CF 15 años) | T39: ='T5'!G37 -> 0.5298147886
I40: ='T5'!O27 -> 131042.88 | J40: ='T5'!P27 -> ton/año | S40: ='T5'!F38 -> VAN (CF 15 años) | T40: ='T5'!G38 -> 36620835.89
I50: ='Explicación T4'!H43 -> *En caso de no utilizar un subproducto, se incorporaría al rechazo.

Sheet Explicación T6 (hidden)
C2: Descripción de tecnología
C4: T6. Planta de clasificación automática + compostaje (TMB Simple): la función de esta planta es seleccionar el contenido del material entrante mediante una combinación de procesos de separación mecánicos o automatizados con el fin de recuperar las fracciones valorizables y prepararlas para su posterior comercialización. | O4: T6 | S4: ='T6'!F2 -> CAPEX
O5: ='T6'!B3 -> BASES & SUPUESTOS | S5: ='T6'!F3 -> Concepto | T5: ='T6'!G3 -> USD
O6: ='T6'!B4 -> Vida útil | P6: ='T6'!C4 -> 25 | Q6: ='T6'!D4 -> años | S6: ='T6'!F4 -> Planta de clasificación automática
O7: ='T6'!B5 -> CapEx | P7: ='T6'!C5 -> 48.97572581 | Q7: ='T6'!D5 -> USD/tpa | S7: ='T6'!F5 -> Total | T7: ='T6'!G5 -> 11142222.5
O8: ='T6'!B6 -> OpEx | P8: ='T6'!C6 -> 16.37087097 | Q8: ='T6'!D6 -> USD/tpa
O9: ='T6'!B7 -> Proporción CDR | P9: ='T6'!C7 -> 0.8 | Q9: ='T6'!D7 -> ton/ton de inorgánico | S9: ='T6'!F7 -> OPEX / año
O10: ='T6'!B8 -> Factor de eficiencia de separación | P10: ='T6'!C8 -> 0.4 | S10: ='T6'!F8 -> Concepto | T10: ='T6'!G8 -> USD
O11: ='T6'!B9 -> Generación de Composta | P11: ='T6'!C9 -> 0.4 | Q11: ='T6'!D9 -> ton/ton de residuo orgánico | S11: ='T6'!F9 -> Mantenimiento Maquinaria & Eq. Auxiliares
O12: ='T6'!B10 -> Tiempo de construcción | P12: ='T6'!C10 -> 15 | Q12: ='T6'!D10 -> meses | S12: ='T6'!F10 -> Consumibles
O13: ='T6'!B11 -> SUPUESTOS DE INGRESOS | S13: ='T6'!F11 -> Administración & Operación
O14: ='T6'!B12 -> Tarifa de disposición final | P14: ='T6'!C12 -> 15 | Q14: ='T6'!D12 -> USD/ton | S14: ='T6'!F12 -> Subtotal OPEX | T14: ='T6'!G12 -> 3724455
O15: ='T6'!B13 -> Tarifa de tratamiento | P15: ='T6'!C13 -> 24 | Q15: ='T6'!D13 -> USD/ton | S15: ='T6'!F13 -> Costo envío de rechazo a relleno sanitario | T15: ='T6'!G13 -> 259355.7
O16: ='T6'!B14 -> Precio valorizables | P16: ='T6'!C14 -> 170 | Q16: ='T6'!D14 -> USD/ton | S16: ='T6'!F14 -> Total | T16: ='T6'!G14 -> 3983810.7
C17: Diagrama de flujo | O17: ='T6'!B15 -> Precio CDR | P17: ='T6'!C15 -> 0 | Q17: ='T6'!D15 -> USD/ton | S17: ='T6'!F15 -> 0 | T17: ='T6'!G15 -> 0
O18: ='T6'!B16 -> Precio composta | P18: ='T6'!C16 -> 10 | Q18: ='T6'!D16 -> USD/ton | S18: ='T6'!F16 -> Ingresos / año
O19: ='T6'!B17 -> SUPUESTOS FINANCIEROS | S19: ='T6'!F17 -> Concepto | T19: ='T6'!G17 -> USD
H20: ='T6'!N5 -> CDR | O20: ='T6'!B18 -> Inflación | P20: ='T6'!C18 -> 0.02 | S20: ='T6'!F18 -> Tarifa de Tratamiento | T20: ='T6'!G18 -> 5460120
H21: ='T6'!N6 -> 85541.88 | I21: ='T6'!O6 -> ton/año | O21: ='T6'!B19 -> Tasa de Descuento | P21: ='T6'!C19 -> 0.0831 | S21: ='T6'!F19 -> Venta de valorizables | T21: ='T6'!G19 -> 1856440.8
O22: ='T6'!B20 -> Incremento Anual Energéticos | P22: ='T6'!C20 -> 0.04 | S22: ='T6'!F20 -> Venta de CDR | T22: ='T6'!G20 -> 0
O23: ='T6'!B21 -> Cash Flow | P23: ='T6'!C21 -> 20 | Q23: ='T6'!D21 -> años | S23: ='T6'!F21 -> Venta de composta | T23: ='T6'!G21 -> 455010
S24: ='T6'!F22 -> Total | T24: ='T6'!G22 -> 7771570.8
O25: ='T6'!B23 -> DIMENSIONAMIENTO
O26: ='T6'!B24 -> INPUT | S26: ='T6'!F24 -> RESULTADOS FINANCIEROS
O27: ='T6'!B25 -> Residuos sólidos urbanos | P27: ='T6'!C25 -> 227505 | Q27: ='T6'!D25 -> ton/año | S27: ='T6'!F25 -> CAPEX | T27: ='T6'!G25 -> 11142222.5
O28: ='T6'!B26 -> COMPOSICIÓN | S28: ='T6'!F26 -> OPEX (anual) | T28: ='T6'!G26 -> 3983810.7
O29: ='T6'!B27 -> Fracción orgánica | P29: ='T6'!C27 -> 113752.5 | Q29: ='T6'!D27 -> ton/año | S29: ='T6'!F27 -> INGRESOS (anual) | T29: ='T6'!G27 -> 7771570.8
C30: ='T6'!I15 -> Residuos sólidos urbanos | E30: ='T6'!K15 -> Planta de selección automática | H30: ='T6'!N15 -> Valorizables | O30: ='T6'!B28 -> Fracción inorgánica | P30: ='T6'!C28 -> 86451.9 | Q30: ='T6'!D28 -> ton/año
C31: ='T6'!I16 -> 227505 | D31: ='T6'!J16 -> ton/año | H31: ='T6'!N16 -> 10920.24 | I31: ='T6'!O16 -> ton/año | O31: ='T6'!B29 -> Valorizables | P31: ='T6'!C29 -> 27300.6 | Q31: ='T6'!D29 -> ton/año | S31: ='T6'!F29 -> FINANCIAMIENTO
O32: ='T6'!B30 -> OUTPUT | S32: ='T6'!F30 -> Capital aportado | T32: ='T6'!G30 -> 11142222.5
O33: ='T6'!B31 -> Valorizables | P33: ='T6'!C31 -> 10920.24 | Q33: ='T6'!D31 -> ton/año | S33: ='T6'!F31 -> Deuda adquirida | T33: ='T6'!G31 -> 0
O34: ='T6'!B32 -> CDR | P34: ='T6'!C32 -> 85541.88 | Q34: ='T6'!D32 -> ton/año | S34: ='T6'!F32 -> Plazo | T34: ='T6'!G32 -> 15
O35: ='T6'!B33 -> Composta | P35: ='T6'!C33 -> 45501 | Q35: ='T6'!D33 -> ton/año | S35: ='T6'!F33 -> Pago anual del crédito con intereses | T35: ='T6'!G33 -> 0
O36: ='T6'!B34 -> Rechazo | P36: ='T6'!C34 -> 17290.38 | Q36: ='T6'!D34 -> ton/año
S37: ='T6'!F35 -> ANÁLISIS - CASH FLOW 15 AÑOS EBDTA
S38: ='T6'!F36 -> Payback | T38: ='T6'!G36 -> 2.944950676
H39: ='T6'!N24 -> Fracción orgánica | J39: ='T6'!P24 -> Planta de Compostaje | L39: ='T6'!R24 -> Composta | S39: ='T6'!F37 -> Payback descontado | T39: ='T6'!G37 -> 3.482865767
H40: ='T6'!N25 -> 113752.5 | I40: ='T6'!O25 -> ton/año | L40: ='T6'!R25 -> 45501 | M40: ='T6'!S25 -> ton/año | S40: ='T6'!F38 -> TIR (CF 15 años) | T40: ='T6'!G38 -> 0.3593902384
S41: ='T6'!F39 -> VAN (CF 15 años) | T41: ='T6'!G39 -> 32753250.89
H49: ='T6'!N34 -> Rechazo | J49: ='T6'!P34 -> Relleno sanitario
H50: ='T6'!N35 -> 17290.38 | I50: ='T6'!O35 -> ton/año
H59: ='Explicación T4'!H43 -> *En caso de no utilizar un subproducto, se incorporaría al rechazo.

Sheet Explicación T7 (hidden)
C2: Descripción de tecnología
C4: T7. Planta de clasificación automática + Digestión Anaerobia (electricidad) + compostaje (TMB Completa): la función de esta planta es seleccionar el contenido del material entrante mediante una combinación de procesos de separación mecánicos o automatizados con el fin de recuperar las fracciones valorizables y CDR se preparan para su posterior comercialización o tratamiento. A la fracción orgánica de los residuos clasificados se les da un tratamiento de biometanización, después de varias etapas se consigue transformar esta fracción orgánica en biogás, a este proceso se le conoce como digestión anaerobia. El biogás que se obtiene en el proceso se utiliza para generar electricidad. | Q4: T7 | U4: ='T7'!F2 -> CAPEX
Q5: ='T7'!B3 -> BASES & SUPUESTOS | U5: ='T7'!F3 -> Concepto | V5: ='T7'!G3 -> USD
Q6: ='T7'!B4 -> Vida útil | R6: ='T7'!C4 -> 25 | S6: ='T7'!D4 -> años | U6: ='T7'!F4 -> Planta de selección
Q7: ='T7'!B5 -> CapEx | R7: ='T7'!C5 -> 141.6994 | S7: ='T7'!D5 -> USD/tpa | U7: ='T7'!F5 -> Planta de biogas
Q8: ='T7'!B6 -> OpEx | R8: ='T7'!C6 -> 16.23610909 | S8: ='T7'!D6 -> USD/tpa | U8: ='T7'!F6 -> Sistema de CHP
Q9: ='T7'!B7 -> Agua de entrada | R9: ='T7'!C7 -> 0.1 | S9: ='T7'!D7 -> ton/ton de residuo orgánico | U9: ='T7'!F7 -> Sistema de compostaje
Q10: ='T7'!B8 -> Generación de Composta | R10: ='T7'!C8 -> 0.4 | S10: ='T7'!D8 -> ton/ton de residuo orgánico | U10: ='T7'!F8 -> Obra Civil, Otros Equipos y Obras Auxiliares
Q11: ='T7'!B9 -> Agua residual | R11: ='T7'!C9 -> 0.4 | S11: ='T7'!D9 -> ton/ton de residuo orgánico | U11: ='T7'!F9 -> Estudios de Factibilidad, Gestión, Permisos & Otros
Q12: ='T7'!B10 -> Proporción CDR | R12: ='T7'!C10 -> 0.8 | S12: ='T7'!D10 -> ton/ton de inorgánico | U12: ='T7'!F10 -> Total | V12: ='T7'!G10 -> 32237322
Q13: ='T7'!B11 -> Factor de eficiencia de separación | R13: ='T7'!C11 -> 0.4
Q14: ='T7'!B12 -> Rendimiento Biogas - FO | R14: ='T7'!C12 -> 130 | S14: ='T7'!D12 -> Nm3/ton | U14: ='T7'!F12 -> OPEX / año
Q15: ='T7'!B13 -> Contenido de Dióxido de Carbono (CO2) | R15: ='T7'!C13 -> 0.4 | U15: ='T7'!F13 -> Concepto | V15: ='T7'!G13 -> USD
Q16: ='T7'!B14 -> Contenido de Metano (CH4) | R16: ='T7'!C14 -> 0.57 | U16: ='T7'!F14 -> Mantenimiento de planta de biogas
C17: Diagrama de flujo | Q17: ='T7'!B15 -> Densidad biogas | R17: ='T7'!C15 -> 1.2 | S17: ='T7'!D15 -> kg/Nm3 | U17: ='T7'!F15 -> Mantenimiento CHP
Q18: ='T7'!B16 -> Consumo energía eléctrica | R18: ='T7'!C16 -> 55 | S18: ='T7'!D16 -> kWh/ton de residuo orgánico | U18: ='T7'!F16 -> Mantemimiento Compostaje
Q19: ='T7'!B17 -> Generación de electricidad | R19: ='T7'!C17 -> 250 | S19: ='T7'!D17 -> kWh/ton de residuo orgánico | U19: ='T7'!F17 -> Mantenimiento Obra Civil
H20: ='T7'!N7 -> CDR | Q20: ='T7'!B18 -> Tiempo de construcción | R20: ='T7'!C18 -> 24 | S20: ='T7'!D18 -> meses | U20: ='T7'!F18 -> Mantenimiento Maquinaria & Eq. Auxiliares
H21: ='T7'!N8 -> 85541.88 | I21: ='T7'!O8 -> ton/año | Q21: ='T7'!B19 -> SUPUESTOS DE INGRESOS | U21: ='T7'!F19 -> Consumibles
Q22: ='T7'!B20 -> Tarifa de disposición final | R22: ='T7'!C20 -> 15 | S22: ='T7'!D20 -> USD/ton | U22: ='T7'!F20 -> Administración & Operación
Q23: ='T7'!B21 -> Tarifa de tratamiento | R23: ='T7'!C21 -> 24 | S23: ='T7'!D21 -> USD/ton | U23: ='T7'!F21 -> Subtotal OPEX | V23: ='T7'!G21 -> 3693795.999
Q24: ='T7'!B22 -> Precio electricidad | R24: ='T7'!C22 -> 0 | S24: ='T7'!D22 -> USD/kWh | U24: ='T7'!F22 -> Costo envío de rechazo a relleno sanitario | V24: ='T7'!G22 -> 259355.7
Q25: ='T7'!B23 -> Precio CDR | R25: ='T7'!C23 -> 0 | S25: ='T7'!D23 -> USD/ton | U25: ='T7'!F23 -> Total | V25: ='T7'!G23 -> 3953151.699
Q26: ='T7'!B24 -> Precio valorizables | R26: ='T7'!C24 -> 170 | S26: ='T7'!D24 -> USD/ton
Q27: ='T7'!B25 -> Precio composta | R27: ='T7'!C25 -> 10 | S27: ='T7'!D25 -> USD/ton | U27: ='T7'!F25 -> Ingresos / año
C28: ='T7'!I15 -> Residuos sólidos urbanos | E28: ='T7'!K15 -> Planta de selección automática | H28: ='T7'!N15 -> Valorizables | Q28: ='T7'!B26 -> SUPUESTOS FINANCIEROS | U28: ='T7'!F26 -> Concepto | V28: ='T7'!G26 -> USD
C29: ='T7'!I16 -> 227505 | D29: ='T7'!J16 -> ton/año | H29: ='T7'!N16 -> 10920.24 | I29: ='T7'!O16 -> ton/año | Q29: ='T7'!B27 -> Inflación | R29: ='T7'!C27 -> 0.02 | U29: ='T7'!F27 -> Tarifa de Tratamiento | V29: ='T7'!G27 -> 5460120
M30: ='T7'!S17 -> Generación de electricidad | Q30: ='T7'!B28 -> Tasa de Descuento | R30: ='T7'!C28 -> 0.0831 | U30: ='T7'!F28 -> Venta de electricidad | V30: ='T7'!G28 -> 0
M31: ='T7'!S18 -> 35771748.67 | N31: ='T7'!T18 -> kWh/año | Q31: ='T7'!B29 -> Incremento Anual Energéticos | R31: ='T7'!C29 -> 0.04 | U31: ='T7'!F29 -> Venta de composta | V31: ='T7'!G29 -> 455010
Q32: ='T7'!B30 -> Cash Flow | R32: ='T7'!C30 -> 20 | S32: ='T7'!D30 -> años | U32: ='T7'!F30 -> Venta de valorizables | V32: ='T7'!G30 -> 1856440.8
U33: ='T7'!F31 -> Venta de CDR | V33: ='T7'!G31 -> 0
Q34: ='T7'!B32 -> DIMENSIONAMIENTO | U34: ='T7'!F32 -> Total | V34: ='T7'!G32 -> 7771570.8
Q35: ='T7'!B33 -> INPUT
Q36: ='T7'!B34 -> Residuos sólidos urbanos | R36: ='T7'!C34 -> 227505 | S36: ='T7'!D34 -> ton/año | U36: ='T7'!F34 -> RESULTADOS FINANCIEROS
H37: ='T7'!N24 -> Fracción orgánica | J37: ='T7'!P24 -> Digestor Anaerobio | Q37: ='T7'!B35 -> COMPOSICIÓN | U37: ='T7'!F35 -> CAPEX | V37: ='T7'!G35 -> 32237322
H38: ='T7'!N25 -> 113752.5 | I38: ='T7'!O25 -> ton/año | Q38: ='T7'!B36 -> Fracción orgánica | R38: ='T7'!C36 -> 113752.5 | S38: ='T7'!D36 -> ton/año | U38: ='T7'!F36 -> OPEX (anual) | V38: ='T7'!G36 -> 3953151.699
Q39: ='T7'!B37 -> Fracción inorgánica | R39: ='T7'!C37 -> 86451.9 | S39: ='T7'!D37 -> ton/año | U39: ='T7'!F37 -> INGRESOS (anual) | V39: ='T7'!G37 -> 7771570.8
L40: ='T7'!R27 -> Planta de Compostaje | N40: ='T7'!T27 -> Composta | Q40: ='T7'!B38 -> Valorizables | R40: ='T7'!C38 -> 27300.6 | S40: ='T7'!D38 -> ton/año
N41: ='T7'!T28 -> 45501 | O41: ='T7'!U28 -> ton/año | Q41: ='T7'!B39 -> Agua | R41: ='T7'!C39 -> 11375.25 | S41: ='T7'!D39 -> m3/año | U41: ='T7'!F39 -> FINANCIAMIENTO
Q42: ='T7'!B40 -> OUTPUT | U42: ='T7'!F40 -> Capital aportado | V42: ='T7'!G40 -> 32237322
Q43: ='T7'!B41 -> Valorizables | R43: ='T7'!C41 -> 10920.24 | S43: ='T7'!D41 -> ton/año | U43: ='T7'!F41 -> Deuda adquirida | V43: ='T7'!G41 -> 0
Q44: ='T7'!B42 -> CDR | R44: ='T7'!C42 -> 85541.88 | S44: ='T7'!D42 -> ton/año | U44: ='T7'!F42 -> Plazo | V44: ='T7'!G42 -> 15
Q45: ='T7'!B43 -> Biogas | R45: ='T7'!C43 -> 14787825 | S45: ='T7'!D43 -> Nm3/año | U45: ='T7'!F43 -> Pago anual del crédito con intereses | V45: ='T7'!G43 -> 0
Q46: ='T7'!B44 -> Composta | R46: ='T7'!C44 -> 45501 | S46: ='T7'!D44 -> ton/año
H47: ='T7'!N34 -> Rechazo | J47: ='T7'!P34 -> Relleno sanitario | Q47: ='T7'!B45 -> Agua residual | R47: ='T7'!C45 -> 45501 | S47: ='T7'!D45 -> m3/año | U47: ='T7'!F45 -> ANÁLISIS - CASH FLOW 15 AÑOS EBDTA
H48: ='T7'!N35 -> 17290.38 | I48: ='T7'!O35 -> ton/año | Q48: ='T7'!B46 -> Rechazo | R48: ='T7'!C46 -> 17290.38 | S48: ='T7'!D46 -> ton/año | U48: ='T7'!F46 -> Payback | V48: ='T7'!G46 -> 8.733670746
Q49: ='T7'!B47 -> ENERGÍA | U49: ='T7'!F47 -> Payback descontado | V49: ='T7'!G47 -> 14.89677917
Q50: ='T7'!B48 -> Consumo energía eléctrica | R50: ='T7'!C48 -> 6256387.5 | S50: ='T7'!D48 -> kWh/año | U50: ='T7'!F48 -> TIR (CF 15 años) | V50: ='T7'!G48 -> 0.1056608728
Q51: ='T7'!B49 -> Generación de electricidad | R51: ='T7'!C49 -> 35771748.67 | S51: ='T7'!D49 -> kWh/año | U51: ='T7'!F49 -> VAN (CF 15 años) | V51: ='T7'!G49 -> 6533601.002
Q52: ='T7'!B50 -> Energía libre | R52: ='T7'!C50 -> 29515361.17 | S52: ='T7'!D50 -> kWh/año
U53: ='T7'!F51 -> LCOE
U54: ='T7'!F52 -> Generación vida útil (kWh) | V54: ='T7'!G52 -> 894293716.9
U55: ='T7'!F53 -> Costos Vida Útil | V55: ='T7'!G53 -> 122667482.1
U56: ='T7'!F54 -> Costos Valor Presente | V56: ='T7'!G54 -> 74769617.13
J57: ='Explicación T4'!H43 -> *En caso de no utilizar un subproducto, se incorporaría al rechazo. | U57: ='T7'!F55 -> Costo Total Vida Útil | V57: ='T7'!G55 -> 107006939.1
U58: ='T7'!F56 -> LCOE (USD/kWh) | V58: ='T7'!G56 -> 0.119655251

Sheet Explicación T8 (hidden)
C2: Descripción de tecnología
C4: T6. Planta de clasificación automática + compostaje (TMB Simple): la función de esta planta es seleccionar el contenido del material entrante mediante una combinación de procesos de separación mecánicos o automatizados con el fin de recuperar las fracciones valorizables y prepararlas para su posterior comercialización. | R4: T8 | V4: ='T8'!F2 -> CAPEX
R5: ='T8'!B3 -> BASES & SUPUESTOS | V5: ='T8'!F3 -> Concepto | W5: ='T8'!G3 -> USD
R6: ='T8'!B4 -> Vida útil | S6: ='T8'!C4 -> 25 | T6: ='T8'!D4 -> años | V6: ='T8'!F4 -> Planta de selección
R7: ='T8'!B5 -> CapEx | S7: ='T8'!C5 -> 141.6994 | T7: ='T8'!D5 -> USD/tpa | V7: ='T8'!F5 -> Planta de biogas
R8: ='T8'!B6 -> OpEx | S8: ='T8'!C6 -> 16.23610909 | T8: ='T8'!D6 -> USD/tpa | V8: ='T8'!F6 -> Sistema de upgrading biogás a biometano
R9: ='T8'!B7 -> Agua de entrada | S9: ='T8'!C7 -> 0.1 | T9: ='T8'!D7 -> ton/ton de residuo orgánico | V9: ='T8'!F7 -> Sistema de recuperación de CO2
R10: ='T8'!B8 -> Generación de Composta | S10: ='T8'!C8 -> 0.4 | T10: ='T8'!D8 -> ton/ton de residuo orgánico | V10: ='T8'!F8 -> Sistema de compostaje
R11: ='T8'!B9 -> Agua residual | S11: ='T8'!C9 -> 0.4 | T11: ='T8'!D9 -> ton/ton de residuo orgánico | V11: ='T8'!F9 -> Obra Civil, Otros Equipos y Obras Auxiliares
R12: ='T8'!B10 -> Proporción CDR | S12: ='T8'!C10 -> 0.8 | T12: ='T8'!D10 -> ton/ton de inorgánico | V12: ='T8'!F10 -> Estudios de Factibilidad, Gestión, Permisos & Otros
R13: ='T8'!B11 -> Factor de eficiencia de separación | S13: ='T8'!C11 -> 0.4 | V13: ='T8'!F11 -> Total | W13: ='T8'!G11 -> 32237322
R14: ='T8'!B12 -> Rendimiento Biogas - FO | S14: ='T8'!C12 -> 130 | T14: ='T8'!D12 -> Nm3/ton
R15: ='T8'!B13 -> Contenido de Dióxido de Carbono (CO2) | S15: ='T8'!C13 -> 0.4 | V15: ='T8'!F13 -> OPEX / año
R16: ='T8'!B14 -> Contenido de Metano (CH4) | S16: ='T8'!C14 -> 0.6 | V16: ='T8'!F14 -> Concepto | W16: ='T8'!G14 -> USD
C17: Diagrama de flujo | R17: ='T8'!B15 -> Densidad biogas | S17: ='T8'!C15 -> 1.2 | T17: ='T8'!D15 -> kg/Nm3 | V17: ='T8'!F15 -> Mantenimiento de planta de biogas
R18: ='T8'!B16 -> Potencial energético biometano | S18: ='T8'!C16 -> 37 | T18: ='T8'!D16 -> MJ/Nm3 | V18: ='T8'!F16 -> Mantenimiento Upgrading Biometano + CO2
R19: ='T8'!B17 -> Consumo energía eléctrica | S19: ='T8'!C17 -> 55 | T19: ='T8'!D17 -> kWh/ton de residuo orgánico | V19: ='T8'!F17 -> Mantemimiento Compostaje
H20: ='T8'!N7 -> CDR | R20: ='T8'!B18 -> Generación de electricidad | S20: ='T8'!C18 -> 250 | T20: ='T8'!D18 -> kWh/ton de residuo orgánico | V20: ='T8'!F18 -> Mantenimiento Obra Civil
H21: ='T8'!N8 -> 85541.88 | I21: ='T8'!O8 -> ton/año | R21: ='T8'!B19 -> Tiempo de construcción | S21: ='T8'!C19 -> 24 | T21: ='T8'!D19 -> meses | V21: ='T8'!F19 -> Mantenimiento Maquinaria & Eq. Auxiliares
O22: ='T8'!U9 -> Biometano (98% CH4) | R22: ='T8'!B20 -> SUPUESTOS DE INGRESOS | V22: ='T8'!F20 -> Administración & Operación
K23: ='T8'!R10 -> Sistema de upgrading biogás a biometano | O23: ='T8'!U10 -> 9053770.408 | P23: ='T8'!V10 -> Nm3/año | R23: ='T8'!B21 -> Tarifa de disposición final | S23: ='T8'!C21 -> 15 | T23: ='T8'!D21 -> USD/ton | V23: ='T8'!F21 -> Subtotal OPEX | W23: ='T8'!G21 -> 3693795.999
R24: ='T8'!B22 -> Tarifa de tratamiento | S24: ='T8'!C22 -> 24 | T24: ='T8'!D22 -> USD/ton | V24: ='T8'!F22 -> Costo autoconsumo eléctrico | W24: ='T8'!G22 -> 0
R25: ='T8'!B23 -> Precio biometano | S25: ='T8'!C23 -> 0.01 | T25: ='T8'!D23 -> USD/GJ | V25: ='T8'!F23 -> Costo envío de rechazo a relleno sanitario | W25: ='T8'!G23 -> 259355.7
R26: ='T8'!B24 -> Precio electricidad | S26: ='T8'!C24 -> 0 | T26: ='T8'!D24 -> USD/kWh | V26: ='T8'!F24 -> Total | W26: ='T8'!G24 -> 3953151.699
R27: ='T8'!B25 -> Precio CO2 | S27: ='T8'!C25 -> 0 | T27: ='T8'!D25 -> USD/KG
C28: ='T8'!I15 -> Residuos sólidos urbanos | E28: ='T8'!K15 -> Planta de selección automática | R28: ='T8'!B26 -> Precio CDR | S28: ='T8'!C26 -> 0 | T28: ='T8'!D26 -> USD/ton | V28: ='T8'!F26 -> Ingresos / año
C29: ='T8'!I16 -> 227505 | D29: ='T8'!J16 -> ton/año | H29: ='T8'!N16 -> Valorizables | R29: ='T8'!B27 -> Precio valorizables | S29: ='T8'!C27 -> 170 | T29: ='T8'!D27 -> USD/ton | V29: ='T8'!F27 -> Concepto | W29: ='T8'!G27 -> USD
H30: ='T8'!N17 -> 10920.24 | I30: ='T8'!O17 -> ton/año | R30: ='T8'!B28 -> Precio composta | S30: ='T8'!C28 -> 10 | T30: ='T8'!D28 -> USD/ton | V30: ='T8'!F28 -> Tarifa de Tratamiento | W30: ='T8'!G28 -> 5460120
O31: ='T8'!U18 -> CO2 | R31: ='T8'!B29 -> SUPUESTOS FINANCIEROS | V31: ='T8'!F29 -> Venta/Ahorro Biometano | W31: ='T8'!G29 -> 3349.895051
O32: ='T8'!U19 -> 5915130 | P32: ='T8'!V19 -> Nm3/año | R32: ='T8'!B30 -> Inflación | S32: ='T8'!C30 -> 0.02 | V32: ='T8'!F30 -> Venta CO2 | W32: ='T8'!G30 -> 0
L33: ='T8'!R20 -> Sistema de recuperación de CO2 | R33: ='T8'!B31 -> Tasa de Descuento | S33: ='T8'!C31 -> 0.0831 | V33: ='T8'!F31 -> Venta de composta | W33: ='T8'!G31 -> 455010
R34: ='T8'!B32 -> Incremento Anual Energéticos | S34: ='T8'!C32 -> 0.04 | V34: ='T8'!F32 -> Venta de valorizables | W34: ='T8'!G32 -> 1856440.8
R35: ='T8'!B33 -> Cash Flow | S35: ='T8'!C33 -> 20 | T35: ='T8'!D33 -> años | V35: ='T8'!F33 -> Venta de CDR | W35: ='T8'!G33 -> 0
V36: ='T8'!F34 -> Total | W36: ='T8'!G34 -> 7774920.695
H37: ='T8'!N24 -> Fracción orgánica | J37: ='T8'!P24 -> Digestor Anaerobio | R37: ='T8'!B35 -> DIMENSIONAMIENTO
H38: ='T8'!N25 -> 113752.5 | I38: ='T8'!O25 -> ton/año | R38: ='T8'!B36 -> INPUT | V38: ='T8'!F36 -> RESULTADOS FINANCIEROS
R39: ='T8'!B37 -> Residuos sólidos urbanos | S39: ='T8'!C37 -> 227505 | T39: ='T8'!D37 -> ton/año | V39: ='T8'!F37 -> CAPEX | W39: ='T8'!G37 -> 32237322
O40: ='T8'!U27 -> Composta | R40: ='T8'!B38 -> COMPOSICIÓN | V40: ='T8'!F38 -> OPEX (anual) | W40: ='T8'!G38 -> 3953151.699
O41: ='T8'!U28 -> 14787825 | P41: ='T8'!V28 -> Nm3/año | R41: ='T8'!B39 -> Fracción orgánica | S41: ='T8'!C39 -> 113752.5 | T41: ='T8'!D39 -> ton/año | V41: ='T8'!F39 -> INGRESOS (anual) | W41: ='T8'!G39 -> 7774920.695
M42: ='T8'!S29 -> Planta de Compostaje | R42: ='T8'!B40 -> Fracción inorgánica | S42: ='T8'!C40 -> 86451.9 | T42: ='T8'!D40 -> ton/año
R43: ='T8'!B41 -> Valorizables | S43: ='T8'!C41 -> 27300.6 | T43: ='T8'!D41 -> ton/año | V43: ='T8'!F41 -> FINANCIAMIENTO
R44: ='T8'!B42 -> Agua | S44: ='T8'!C42 -> 11375.25 | T44: ='T8'!D42 -> m3/año | V44: ='T8'!F42 -> Capital aportado | W44: ='T8'!G42 -> 32237322
R45: ='T8'!B43 -> OUTPUT | V45: ='T8'!F43 -> Deuda adquirida | W45: ='T8'!G43 -> 0
R46: ='T8'!B44 -> Biogas | S46: ='T8'!C44 -> 14787825 | T46: ='T8'!D44 -> Nm3/año | V46: ='T8'!F44 -> Plazo | W46: ='T8'!G44 -> 15
H47: ='T8'!N34 -> Rechazo | J47: ='T8'!P34 -> Relleno sanitario | R47: ='T8'!B45 -> Biometano (98% CH4) | S47: ='T8'!C45 -> 9053770.408 | T47: ='T8'!D45 -> Nm3/año | V47: ='T8'!F45 -> Pago anual del crédito con intereses | W47: ='T8'!G45 -> 0
H48: ='T8'!N35 -> 17290.38 | I48: ='T8'!O35 -> ton/año | R48: ='T8'!B46 -> CO2 | S48: ='T8'!C46 -> 5915130 | T48: ='T8'!D46 -> Nm3/año
S49: ='T8'!C47 -> 11695395.04 | T49: ='T8'!D47 -> kg/año | V49: ='T8'!F47 -> ANÁLISIS - CASH FLOW 15 AÑOS EBDTA
R50: ='T8'!B48 -> Valorizables | S50: ='T8'!C48 -> 10920.24 | T50: ='T8'!D48 -> ton/año | V50: ='T8'!F48 -> Payback | W50: ='T8'!G48 -> 8
R51: ='T8'!B49 -> CDR | S51: ='T8'!C49 -> 85541.88 | T51: ='T8'!D49 -> ton/año | V51: ='T8'!F49 -> Payback descontado | W51: ='T8'!G49 -> 14
R52: ='T8'!B50 -> Composta | S52: ='T8'!C50 -> 45501 | T52: ='T8'!D50 -> ton/año | V52: ='T8'!F50 -> TIR (CF 15 años) | W52: ='T8'!G50 -> 0.1057913028
R53: ='T8'!B51 -> Agua residual | S53: ='T8'!C51 -> 45501 | T53: ='T8'!D51 -> m3/año | V53: ='T8'!F51 -> VAN (CF 15 años) | W53: ='T8'!G51 -> 6573719.331
R54: ='T8'!B52 -> Rechazo | S54: ='T8'!C52 -> 17290.38 | T54: ='T8'!D52 -> ton/año
R55: ='T8'!B53 -> ENERGÍA
R56: ='T8'!B54 -> Consumo energía eléctrica | S56: ='T8'!C54 -> 6256387.5 | T56: ='T8'!D54 -> kWh/año
L57: ='Explicación T4'!H43 -> *En caso de no utilizar un subproducto, se incorporaría al rechazo. | R57: ='T8'!B55 -> Producción energética Biometano | S57: ='T8'!C55 -> 334989.5051 | T57: ='T8'!D55 -> GJ/año

Sheet Explicación T9 (hidden)
C2: Descripción de tecnología
C4: T9. Planta de clasificación automática + Digestión Anaerobia (electricidad) + compostaje (TMB Completa) + Termovalorización de CDR: la función de esta planta es seleccionar el contenido del material entrante mediante una combinación de procesos de separación mecánicos o automatizados con el fin de recuperar las fracciones valorizables y prepararlas para su posterior comercialización o tratamiento. A la fracción orgánica de los residuos clasificados se les da un tratamiento de biometanización, después de varias etapas se transforma la fracción orgánica en biogás, a este proceso se le conoce como digestión anaerobia. El biogás que se obtiene en el proceso se utiliza para generar electricidad. La fracción inorgánica (CDR) se transforma en energía por medio de un tratamiento térmico. | R4: T9 | V4: ='T9'!F2 -> CAPEX
R5: ='T9'!B3 -> BASES & SUPUESTOS | V5: ='T9'!F3 -> Concepto | W5: ='T9'!G3 -> USD
R6: ='T9'!B4 -> Vida útil | S6: ='T9'!C4 -> 25 | T6: ='T9'!D4 -> años | V6: ='T9'!F4 -> Planta de selección
R7: ='T9'!B5 -> CapEx | S7: ='T9'!C5 -> 928.998 | T7: ='T9'!D5 -> USD/tpa | V7: ='T9'!F5 -> Planta de biogas
R8: ='T9'!B6 -> OpEx | S8: ='T9'!C6 -> 107.2308375 | T8: ='T9'!D6 -> USD/tpa | V8: ='T9'!F6 -> Sistema de CHP
R9: ='T9'!B7 -> Agua de entrada | S9: ='T9'!C7 -> 0.1 | T9: ='T9'!D7 -> ton/ton de residuo orgánico | V9: ='T9'!F7 -> Sistema de compostaje
R10: ='T9'!B8 -> Composta | S10: ='T9'!C8 -> 0.4 | T10: ='T9'!D8 -> ton/ton de residuo orgánico | V10: ='T9'!F8 -> Planta de termovalorización
R11: ='T9'!B9 -> Agua residual | S11: ='T9'!C9 -> 0.4 | T11: ='T9'!D9 -> ton/ton de residuo orgánico | V11: ='T9'!F9 -> Obra Civil, Otros Equipos y Obras Auxiliares
R12: ='T9'!B10 -> Proporción CDR | S12: ='T9'!C10 -> 0.8 | T12: ='T9'!D10 -> ton/ton de inorgánico | V12: ='T9'!F10 -> Estudios de Factibilidad, Gestión, Permisos & Otros
R13: ='T9'!B11 -> Factor de eficiencia de separación | S13: ='T9'!C11 -> 0.4 | V13: ='T9'!F11 -> Total | W13: ='T9'!G11 -> 211351690
R14: ='T9'!B12 -> Densidad biogas | S14: ='T9'!C12 -> 1.2 | T14: ='T9'!D12 -> kg/Nm3
R15: ='T9'!B13 -> Rendimiento Biogas - FO | S15: ='T9'!C13 -> 130 | T15: ='T9'!D13 -> Nm3/ton | V15: ='T9'!F13 -> OPEX / año
R16: ='T9'!B14 -> Contenido de Dióxido de Carbono (CO2) | S16: ='T9'!C14 -> 0.4 | V16: ='T9'!F14 -> Concepto | W16: ='T9'!G14 -> USD
C17: Diagrama de flujo | R17: ='T9'!B15 -> Contenido de Metano (CH4) | S17: ='T9'!C15 -> 0.57 | V17: ='T9'!F15 -> Mantenimiento de planta de biogas
R18: ='T9'!B16 -> Cenizas | S18: ='T9'!C16 -> 0.2 | T18: ='T9'!D16 -> ton/ton de residuo incinerado | V18: ='T9'!F16 -> Mantenimiento CHP
R19: ='T9'!B17 -> Consumo energía eléctrica | S19: ='T9'!C17 -> 55 | T19: ='T9'!D17 -> kWh/ton de residuo orgánico | V19: ='T9'!F17 -> Mantemimiento Compostaje
H20: ='T9'!N8 -> Valorizables | R20: ='T9'!B18 -> Generación de electricidad | S20: ='T9'!C18 -> 250 | T20: ='T9'!D18 -> kWh/ton de residuo orgánico | V20: ='T9'!F18 -> Mantenimiento Obra Civil
H21: ='T9'!N9 -> 10920.24 | I21: ='T9'!O9 -> ton/año | R21: ='T9'!B19 -> Generación eléctric termo cdr | S21: ='T9'!C19 -> 800 | T21: ='T9'!D19 -> kWh/ton de residuo incinerado | V21: ='T9'!F19 -> Mantenimiento Maquinaria & Eq. Auxiliares
R22: ='T9'!B20 -> Tiempo de construcción | S22: ='T9'!C20 -> 24 | T22: ='T9'!D20 -> meses | V22: ='T9'!F20 -> Administración & Operación
R23: ='T9'!B21 -> SUPUESTOS DE INGRESOS | V23: ='T9'!F21 -> Subtotal OPEX | W23: ='T9'!G21 -> 24395551.69
R24: ='T9'!B22 -> Tarifa de disposición final | S24: ='T9'!C22 -> 15 | T24: ='T9'!D22 -> USD/ton | V24: ='T9'!F22 -> Costo envío de rechazo a relleno sanitario | W24: ='T9'!G22 -> 308496.78
R25: ='T9'!B23 -> Tarifa de tratamiento | S25: ='T9'!C23 -> 24 | T25: ='T9'!D23 -> USD/ton | V25: ='T9'!F23 -> Total | W25: ='T9'!G23 -> 24704048.47
M26: ='T9'!S14 -> Generación de electricidad | R26: ='T9'!B24 -> Precio electricidad | S26: ='T9'!C24 -> 0 | T26: ='T9'!D24 -> USD/kWh
C27: ='T9'!I15 -> Residuos sólidos urbanos | E27: ='T9'!K15 -> Planta de selección automática | J27: ='T9'!P15 -> Termovalorización | M27: ='T9'!S15 -> 110703933 | N27: ='T9'!T15 -> kWh/año | R27: ='T9'!B25 -> Precio valorizables | S27: ='T9'!C25 -> 170 | T27: ='T9'!D25 -> USD/ton | V27: ='T9'!F25 -> Ingresos / año
C28: ='T9'!I16 -> 227505 | D28: ='T9'!J16 -> ton/año | H28: ='T9'!N16 -> 102832.26 | I28: ='T9'!O16 -> ton/año | R28: ='T9'!B26 -> Precio composta | S28: ='T9'!C26 -> 10 | T28: ='T9'!D26 -> USD/ton | V28: ='T9'!F26 -> Concepto | W28: ='T9'!G26 -> USD
R29: ='T9'!B27 -> SUPUESTOS FINANCIEROS | V29: ='T9'!F27 -> Tarifa de Tratamiento | W29: ='T9'!G27 -> 5460120
R30: ='T9'!B28 -> Inflación | S30: ='T9'!C28 -> 0.02 | V30: ='T9'!F28 -> Venta de electricidad | W30: ='T9'!G28 -> 0
R31: ='T9'!B29 -> Tasa de Descuento | S31: ='T9'!C29 -> 0.0831 | V31: ='T9'!F29 -> Venta de composta | W31: ='T9'!G29 -> 455010
R32: ='T9'!B30 -> Incremento Anual Energéticos | S32: ='T9'!C30 -> 0.04 | V32: ='T9'!F30 -> Venta de valorizables | W32: ='T9'!G30 -> 1856440.8
R33: ='T9'!B31 -> Cash Flow | S33: ='T9'!C31 -> 20 | T33: ='T9'!D31 -> años | V33: ='T9'!F31 -> Total | W33: ='T9'!G31 -> 7771570.8
R35: ='T9'!B33 -> DIMENSIONAMIENTO | V35: ='T9'!F33 -> RESULTADOS FINANCIEROS
H36: ='T9'!N24 -> Fracción orgánica | O36: ='T9'!U24 -> Composta | R36: ='T9'!B34 -> INPUT | V36: ='T9'!F34 -> CAPEX | W36: ='T9'!G34 -> 211351690
H37: ='T9'!N25 -> 113752.5 | I37: ='T9'!O25 -> ton/año | J37: ='T9'!P25 -> Digestor Anaerobio | M37: ='T9'!S25 -> Planta de Compostaje | O37: ='T9'!U25 -> 45501 | P37: ='T9'!V25 -> ton/año | R37: ='T9'!B35 -> Residuos sólidos urbanos | S37: ='T9'!C35 -> 227505 | T37: ='T9'!D35 -> ton/año | V37: ='T9'!F35 -> OPEX (anual) | W37: ='T9'!G35 -> 24704048.47
R38: ='T9'!B36 -> COMPOSICIÓN | V38: ='T9'!F36 -> INGRESOS (anual) | W38: ='T9'!G36 -> 7771570.8
R39: ='T9'!B37 -> Fracción orgánica | S39: ='T9'!C37 -> 113752.5 | T39: ='T9'!D37 -> ton/año
R40: ='T9'!B38 -> Fracción inorgánica | S40: ='T9'!C38 -> 86451.9 | T40: ='T9'!D38 -> ton/año | V40: ='T9'!F38 -> FINANCIAMIENTO
R41: ='T9'!B39 -> Valorizables | S41: ='T9'!C39 -> 27300.6 | T41: ='T9'!D39 -> ton/año | V41: ='T9'!F39 -> Capital aportado | W41: ='T9'!G39 -> 211351690
R42: ='T9'!B40 -> Agua | S42: ='T9'!C40 -> 11375.25 | T42: ='T9'!D40 -> m3/año | V42: ='T9'!F40 -> Deuda adquirida | W42: ='T9'!G40 -> 0
R43: ='T9'!B41 -> OUTPUT | V43: ='T9'!F41 -> Plazo | W43: ='T9'!G41 -> 15
R44: ='T9'!B42 -> Producción de Biogas | S44: ='T9'!C42 -> 14787825 | T44: ='T9'!D42 -> Nm3/año | V44: ='T9'!F42 -> Pago anual del crédito con intereses | W44: ='T9'!G42 -> 0
R45: ='T9'!B43 -> Valorizables | S45: ='T9'!C43 -> 10920.24 | T45: ='T9'!D43 -> ton/año
H46: ='T9'!N34 -> Cenizas / rechazo | J46: ='T9'!P34 -> Relleno sanitario | R46: ='T9'!B44 -> CDR/rechazo para termovalorización | S46: ='T9'!C44 -> 102832.26 | T46: ='T9'!D44 -> ton/año | V46: ='T9'!F44 -> ANÁLISIS - CASH FLOW 15 AÑOS EBDTA
H47: ='T9'!N35 -> 20566.452 | I47: ='T9'!O35 -> ton/año | R47: ='T9'!B45 -> Composta | S47: ='T9'!C45 -> 45501 | T47: ='T9'!D45 -> ton/año | V47: ='T9'!F45 -> Payback | W47: ='T9'!G45 -> 25
R48: ='T9'!B46 -> Agua residual | S48: ='T9'!C46 -> 45501 | T48: ='T9'!D46 -> m3/año | V48: ='T9'!F46 -> Payback descontado | W48: ='T9'!G46 -> 25
R49: ='T9'!B47 -> Cenizas / rechazo | S49: ='T9'!C47 -> 20566.452 | T49: ='T9'!D47 -> ton/año | V49: ='T9'!F47 -> TIR (CF 15 años) | W49: ='T9'!G47 -> 0
R50: ='T9'!B48 -> ENERGÍA | V50: ='T9'!F48 -> VAN (CF 15 años) | W50: ='T9'!G48 -> -383278238.2
R51: ='T9'!B49 -> Consumo energía eléctrica | S51: ='T9'!C49 -> 6256387.5 | T51: ='T9'!D49 -> kWh/año
R52: ='T9'!B50 -> Generación de electricidad | S52: ='T9'!C50 -> 110703933 | T52: ='T9'!D50 -> kWh/año | V52: ='T9'!F50 -> LCOE
R53: ='T9'!B51 -> Energía libre | S53: ='T9'!C51 -> 104447545.5 | T53: ='T9'!D51 -> kWh/año | V53: ='T9'!F51 -> Generación vida útil (kWh) | W53: ='T9'!G51 -> 2767598325
V54: ='T9'!F52 -> Costos Vida Útil | W54: ='T9'!G52 -> 766574028.3
V55: ='T9'!F53 -> Costos Valor Presente | W55: ='T9'!G53 -> 467250534.8
K56: ='Explicación T4'!H43 -> *En caso de no utilizar un subproducto, se incorporaría al rechazo. | V56: ='T9'!F54 -> Costo Total Vida Útil | W56: ='T9'!G54 -> 678602224.8
V57: ='T9'!F55 -> LCOE (USD/kWh) | W57: ='T9'!G55 -> 0.2451953445

Sheet Explicación T10 (hidden)
C2: Descripción de tecnología
C4: T10. Planta de clasificación automática + Digestión Anaerobia (biometano/CO2) + compostaje (TMB Completa) + Termovalorización de CDR: la función de esta planta es seleccionar el contenido del material entrante mediante una combinación de procesos de separación mecánicos o automatizados con el fin de recuperar las fracciones valorizables y prepararlas para su posterior comercialización o tratamiento. A la fracción orgánica de los residuos clasificados se les da un tratamiento de biometanización, después de varias etapas se transforma la fracción orgánica en biogás, a este proceso se le conoce como digestión anaerobia. El biogás que se obtiene en el proceso se adecúa para su comercialización. La fracción inorgánica (CDR) se transforma en energía por medio de un tratamiento térmico. | T4: T10 | X4: ='T10'!F2 -> CAPEX
T5: ='T10'!B3 -> BASES & SUPUESTOS | X5: ='T10'!F3 -> Concepto | Y5: ='T10'!G3 -> USD
T6: ='T10'!B4 -> Vida útil | U6: ='T10'!C4 -> 25 | V6: ='T10'!D4 -> años | X6: ='T10'!F4 -> Planta de selección
T7: ='T10'!B5 -> CapEx | U7: ='T10'!C5 -> 928.998 | V7: ='T10'!D5 -> USD/tpa | X7: ='T10'!F5 -> Planta de biogas
T8: ='T10'!B6 -> OpEx | U8: ='T10'!C6 -> 107.2308375 | V8: ='T10'!D6 -> USD/tpa | X8: ='T10'!F6 -> Sistema de upgrading biogás a biometano
T9: ='T10'!B7 -> Agua de entrada | U9: ='T10'!C7 -> 0.1 | V9: ='T10'!D7 -> ton/ton de residuo orgánico | X9: ='T10'!F7 -> Sistema de recuperación de CO2
T10: ='T10'!B8 -> Composta | U10: ='T10'!C8 -> 0.4 | V10: ='T10'!D8 -> ton/ton de residuo orgánico | X10: ='T10'!F8 -> Sistema de compostaje
T11: ='T10'!B9 -> Agua residual | U11: ='T10'!C9 -> 0.4 | V11: ='T10'!D9 -> ton/ton de residuo orgánico | X11: ='T10'!F9 -> Planta de termovalorización
T12: ='T10'!B10 -> Proporción CDR | U12: ='T10'!C10 -> 0.8 | V12: ='T10'!D10 -> ton/ton de inorgánico | X12: ='T10'!F10 -> Obra Civil, Otros Equipos y Obras Auxiliares
T13: ='T10'!B11 -> Factor de eficiencia de separación | U13: ='T10'!C11 -> 0.4 | X13: ='T10'!F11 -> Estudios de Factibilidad, Gestión, Permisos & Otros
T14: ='T10'!B12 -> Densidad biogas | U14: ='T10'!C12 -> 1.2 | V14: ='T10'!D12 -> kg/Nm3 | X14: ='T10'!F12 -> Total | Y14: ='T10'!G12 -> 211351690
T15: ='T10'!B13 -> Rendimiento Biogas - FO | U15: ='T10'!C13 -> 130 | V15: ='T10'!D13 -> Nm3/ton
T16: ='T10'!B14 -> Contenido de Dióxido de Carbono (CH4) | U16: ='T10'!C14 -> 0.4 | X16: ='T10'!F14 -> OPEX / año
C17: Diagrama de flujo | T17: ='T10'!B15 -> Contenido de Metano (CH4) | U17: ='T10'!C15 -> 0.6 | X17: ='T10'!F15 -> Concepto | Y17: ='T10'!G15 -> USD
T18: ='T10'!B16 -> Potencial energético biometano | U18: ='T10'!C16 -> 37 | V18: ='T10'!D16 -> MJ/Nm3 | X18: ='T10'!F16 -> Mantenimiento de planta de biogas
T19: ='T10'!B17 -> Cenizas | U19: ='T10'!C17 -> 0.2 | V19: ='T10'!D17 -> ton/ton de residuo incinerado | X19: ='T10'!F17 -> Mantenimiento Upgrading Biometano + CO2
M20: ='T10'!S5 -> Generación de electricidad | T20: ='T10'!B18 -> Consumo energía eléctrica | U20: ='T10'!C18 -> 55 | V20: ='T10'!D18 -> kWh/ton de residuo orgánico | X20: ='T10'!F18 -> Mantemimiento Compostaje
H21: ='T10'!N6 -> Valorizables | M21: ='T10'!S6 -> 102832.26 | N21: ='T10'!T6 -> ton/año | T21: ='T10'!B19 -> Generación de electricidad | U21: ='T10'!C19 -> 250 | V21: ='T10'!D19 -> kWh/ton de residuo orgánico | X21: ='T10'!F19 -> Mantenimiento Obra Civil
H22: ='T10'!N7 -> 10920.24 | I22: ='T10'!O7 -> ton/año | T22: ='T10'!B20 -> Generación eléctric termo cdr | U22: ='T10'!C20 -> 900 | V22: ='T10'!D20 -> kWh/ton de residuo incinerado | X22: ='T10'!F20 -> Mantenimiento Maquinaria & Eq. Auxiliares
T23: ='T10'!B21 -> Tiempo de construcción | U23: ='T10'!C21 -> 24 | V23: ='T10'!D21 -> meses | X23: ='T10'!F21 -> Administración & Operación
T24: ='T10'!B22 -> SUPUESTOS DE INGRESOS | X24: ='T10'!F22 -> Subtotal OPEX | Y24: ='T10'!G22 -> 24395551.69
T25: ='T10'!B23 -> Tarifa de disposición final | U25: ='T10'!C23 -> 15 | V25: ='T10'!D23 -> USD/ton | X25: ='T10'!F23 -> Costo envío de rechazo a relleno sanitario | Y25: ='T10'!G23 -> 308496.78
T26: ='T10'!B24 -> Tarifa de tratamiento | U26: ='T10'!C24 -> 24 | V26: ='T10'!D24 -> USD/ton | X26: ='T10'!F24 -> Total | Y26: ='T10'!G24 -> 24704048.47
T27: ='T10'!B25 -> Precio electricidad | U27: ='T10'!C25 -> 0 | V27: ='T10'!D25 -> USD/kWh
T28: ='T10'!B26 -> Precio biometano | U28: ='T10'!C26 -> 0.01 | V28: ='T10'!D26 -> USD/GJ | X28: ='T10'!F26 -> Ingresos / año
T29: ='T10'!B27 -> Precio CO2 | U29: ='T10'!C27 -> 0 | V29: ='T10'!D27 -> USD/KG | X29: ='T10'!F27 -> Concepto | Y29: ='T10'!G27 -> USD
C30: ='T10'!I15 -> Residuos sólidos urbanos | E30: ='T10'!K15 -> Planta de selección automática | H30: ='T10'!N15 -> CDR | J30: ='T10'!P15 -> Termovalorización | P30: ='T10'!V15 -> CO2 | T30: ='T10'!B28 -> Precio valorizables | U30: ='T10'!C28 -> 170 | V30: ='T10'!D28 -> USD/ton | X30: ='T10'!F28 -> Tarifa de Tratamiento | Y30: ='T10'!G28 -> 5460120
C31: ='T10'!I16 -> 227505 | D31: ='T10'!J16 -> ton/año | H31: ='T10'!N16 -> 102832.26 | I31: ='T10'!O16 -> ton/año | M31: ='T10'!S16 -> Sistema de recuperación de CO2 | P31: ='T10'!V16 -> 5915130 | Q31: ='T10'!W16 -> Nm3/año | T31: ='T10'!B29 -> Precio composta | U31: ='T10'!C29 -> 10 | V31: ='T10'!D29 -> USD/ton | X31: ='T10'!F29 -> Venta de electricidad | Y31: ='T10'!G29 -> 0
T32: ='T10'!B30 -> SUPUESTOS FINANCIEROS | X32: ='T10'!F30 -> Venta/Ahorro Biometano | Y32: ='T10'!G30 -> 3349.895051
T33: ='T10'!B31 -> Inflación | U33: ='T10'!C31 -> 0.02 | X33: ='T10'!F31 -> Venta CO2 | Y33: ='T10'!G31 -> 0
T34: ='T10'!B32 -> Tasa de Descuento | U34: ='T10'!C32 -> 0.0831 | X34: ='T10'!F32 -> Venta de composta | Y34: ='T10'!G32 -> 455010
T35: ='T10'!B33 -> Incremento Anual Energéticos | U35: ='T10'!C33 -> 0.04 | X35: ='T10'!F33 -> Venta de valorizables | Y35: ='T10'!G33 -> 1856440.8
T36: ='T10'!B34 -> Cash Flow | U36: ='T10'!C34 -> 20 | V36: ='T10'!D34 -> años | X36: ='T10'!F34 -> Total | Y36: ='T10'!G34 -> 7774920.695
T38: ='T10'!B36 -> DIMENSIONAMIENTO | X38: ='T10'!F36 -> RESULTADOS FINANCIEROS
H39: ='T10'!N24 -> Fracción orgánica | J39: ='T10'!P24 -> Digestor Anaerobio | P39: ='T10'!V24 -> Biometano (98% CH4) | T39: ='T10'!B37 -> INPUT | X39: ='T10'!F37 -> CAPEX | Y39: ='T10'!G37 -> 211351690
H40: ='T10'!N25 -> 113752.5 | I40: ='T10'!O25 -> ton/año | M40: ='T10'!S25 -> Sistema de upgrading biogás a biometano | P40: ='T10'!V25 -> 9053770.408 | Q40: ='T10'!W25 -> Nm3/año | T40: ='T10'!B38 -> Residuos sólidos urbanos | U40: ='T10'!C38 -> 227505 | V40: ='T10'!D38 -> ton/año | X40: ='T10'!F38 -> OPEX (anual) | Y40: ='T10'!G38 -> 24704048.47
T41: ='T10'!B39 -> COMPOSICIÓN | X41: ='T10'!F39 -> INGRESOS (anual) | Y41: ='T10'!G39 -> 7774920.695
T42: ='T10'!B40 -> Fracción orgánica | U42: ='T10'!C40 -> 113752.5 | V42: ='T10'!D40 -> ton/año
T43: ='T10'!B41 -> Fracción inorgánica | U43: ='T10'!C41 -> 86451.9 | V43: ='T10'!D41 -> ton/año | X43: ='T10'!F41 -> FINANCIAMIENTO
T44: ='T10'!B42 -> Valorizables | U44: ='T10'!C42 -> 27300.6 | V44: ='T10'!D42 -> ton/año | X44: ='T10'!F42 -> Capital aportado | Y44: ='T10'!G42 -> 211351690
T45: ='T10'!B43 -> Agua | U45: ='T10'!C43 -> 11375.25 | V45: ='T10'!D43 -> m3/año | X45: ='T10'!F43 -> Deuda adquirida | Y45: ='T10'!G43 -> 0
T46: ='T10'!B44 -> OUTPUT | X46: ='T10'!F44 -> Plazo | Y46: ='T10'!G44 -> 15
T47: ='T10'!B45 -> Producción de Biogas | U47: ='T10'!C45 -> 14787825 | V47: ='T10'!D45 -> Nm3/año | X47: ='T10'!F45 -> Pago anual del crédito con intereses | Y47: ='T10'!G45 -> 0
N48: ='T10'!T33 -> Planta de Compostaje | P48: ='T10'!V33 -> Composta | T48: ='T10'!B46 -> Producción de Biometano (98% CH4) | U48: ='T10'!C46 -> 9053770.408 | V48: ='T10'!D46 -> Nm3/año
H49: ='T10'!N34 -> Cenizas / rechazo | J49: ='T10'!P34 -> Relleno sanitario | P49: ='T10'!V34 -> 14787825 | Q49: ='T10'!W34 -> Nm3/año | T49: ='T10'!B47 -> Producción de CO2 | U49: ='T10'!C47 -> 5915130 | V49: ='T10'!D47 -> Nm3/año | X49: ='T10'!F47 -> ANÁLISIS - CASH FLOW 15 AÑOS EBDTA
H50: ='T10'!N35 -> 20566.452 | I50: ='T10'!O35 -> ton/año | U50: ='T10'!C48 -> 11695395.04 | V50: ='T10'!D48 -> kg/año | X50: ='T10'!F48 -> Payback | Y50: ='T10'!G48 -> 25
T51: ='T10'!B49 -> Valorizables | U51: ='T10'!C49 -> 10920.24 | V51: ='T10'!D49 -> ton/año | X51: ='T10'!F49 -> Payback descontado | Y51: ='T10'!G49 -> 25
T52: ='T10'!B50 -> CDR/rechazo para termovalorización | U52: ='T10'!C50 -> 102832.26 | V52: ='T10'!D50 -> ton/año | X52: ='T10'!F50 -> TIR (CF 15 años) | Y52: ='T10'!G50 -> 0
T53: ='T10'!B51 -> Composta | U53: ='T10'!C51 -> 45501 | V53: ='T10'!D51 -> ton/año | X53: ='T10'!F51 -> VAN (CF 15 años) | Y53: ='T10'!G51 -> -382381106.3
T54: ='T10'!B52 -> Agua residual | U54: ='T10'!C52 -> 45501 | V54: ='T10'!D52 -> m3/año
T55: ='T10'!B53 -> Cenizas / rechazo | U55: ='T10'!C53 -> 20566.452 | V55: ='T10'!D53 -> ton/año | X55: ='T10'!F53 -> LCOE
T56: ='T10'!B54 -> ENERGÍA | X56: ='T10'!F54 -> Generación vida útil (kWh) | Y56: ='T10'!G54 -> 2313725850
T57: ='T10'!B55 -> Producción energética Biometano | U57: ='T10'!C55 -> 334989.5051 | V57: ='T10'!D55 -> GJ/año | X57: ='T10'!F55 -> Costos Vida Útil | Y57: ='T10'!G55 -> 766574028.3
T58: ='T10'!B56 -> Consumo energía eléctrica | U58: ='T10'!C56 -> 6256387.5 | V58: ='T10'!D56 -> kWh/año | X58: ='T10'!F56 -> Costos Valor Presente | Y58: ='T10'!G56 -> 467250534.8
T59: ='T10'!B57 -> Generación de electricidad | U59: ='T10'!C57 -> 92549034 | V59: ='T10'!D57 -> kWh/año | X59: ='T10'!F57 -> Costo Total Vida Útil | Y59: ='T10'!G57 -> 678602224.8
T60: ='T10'!B58 -> Energía libre | U60: ='T10'!C58 -> 86292646.5 | V60: ='T10'!D58 -> kWh/año | X60: ='T10'!F58 -> LCOE (USD/kWh) | Y60: ='T10'!G58 -> 0.2932941363
M61: ='Explicación T4'!H43 -> *En caso de no utilizar un subproducto, se incorporaría al rechazo.

Sheet Explicación T11 (hidden)
C2: Descripción de tecnología
C4: T11. Planta de clasificación automática + Pretratamiento + Termovalorización: la función de esta planta es seleccionar el contenido del material entrante mediante una combinación de procesos de separación mecánicos o automatizados con el fin de recuperar las fracciones valorizables y preparar el resto para generar energía por medio de un tratamiento térmico. | R4: T11 | V4: ='T11'!F2 -> CAPEX
R5: ='T11'!B3 -> BASES & SUPUESTOS | V5: ='T11'!F3 -> Concepto | W5: ='T11'!G3 -> USD
R6: ='T11'!B4 -> Vida útil | S6: ='T11'!C4 -> 25 | T6: ='T11'!D4 -> años | V6: ='T11'!F4 -> Planta de selección
R7: ='T11'!B5 -> CapEx | S7: ='T11'!C5 -> 721.561875 | T7: ='T11'!D5 -> USD/tpa | V7: ='T11'!F5 -> Planta de termovalorización
R8: ='T11'!B6 -> OpEx | S8: ='T11'!C6 -> 74.312375 | T8: ='T11'!D6 -> USD/tpa | V8: ='T11'!F6 -> Obra Civil, Otros Equipos y Obras Auxiliares
R9: ='T11'!B7 -> Factor de eficiencia de separación | S9: ='T11'!C7 -> 0.4 | V9: ='T11'!F7 -> Estudios de Factibilidad, Gestión, Permisos & Otros
R10: ='T11'!B8 -> Cenizas | S10: ='T11'!C8 -> 0.2 | T10: ='T11'!D8 -> ton/ton de residuo incinerado | V10: ='T11'!F8 -> Total | W10: ='T11'!G8 -> 164158934.4
R11: ='T11'!B9 -> Eficiencia pretratamiento (bio-secado) | S11: ='T11'!C9 -> 0.9 | T11: ='T11'!D9 -> ton/ton de RSM
R12: ='T11'!B10 -> Generación eléctric termo cdr | S12: ='T11'!C10 -> 800 | T12: ='T11'!D10 -> kWh/ton de residuo incinerado | V12: ='T11'!F10 -> OPEX / año
R13: ='T11'!B11 -> Tiempo de construcción | S13: ='T11'!C11 -> 24 | T13: ='T11'!D11 -> meses | V13: ='T11'!F11 -> Concepto | W13: ='T11'!G11 -> USD
R14: ='T11'!B12 -> SUPUESTOS DE INGRESOS | V14: ='T11'!F12 -> Mantenimiento planta
R15: ='T11'!B13 -> Tarifa de disposición final | S15: ='T11'!C13 -> 15 | T15: ='T11'!D13 -> USD/ton | V15: ='T11'!F13 -> Mantenimiento Obra Civil
R16: ='T11'!B14 -> Tarifa de tratamiento | S16: ='T11'!C14 -> 24 | T16: ='T11'!D14 -> USD/ton | V16: ='T11'!F14 -> Mantenimiento Maquinaria & Eq. Auxiliares
C17: Diagrama de flujo | R17: ='T11'!B15 -> Precio electricidad | S17: ='T11'!C15 -> 0 | T17: ='T11'!D15 -> USD/kWh | V17: ='T11'!F15 -> Administración & Operación
R18: ='T11'!B16 -> Precio valorizables | S18: ='T11'!C16 -> 170 | T18: ='T11'!D16 -> USD/ton | V18: ='T11'!F16 -> Subtotal OPEX | W18: ='T11'!G16 -> 16906436.87
R19: ='T11'!B17 -> SUPUESTOS FINANCIEROS | V19: ='T11'!F17 -> Costo envío de rechazo a relleno sanitario | W19: ='T11'!G17 -> 584778.852
R20: ='T11'!B18 -> Inflación | S20: ='T11'!C18 -> 0.02 | V20: ='T11'!F18 -> Total | W20: ='T11'!G18 -> 17491215.73
H21: ='T11'!N8 -> Valorizables | R21: ='T11'!B19 -> Tasa de Descuento | S21: ='T11'!C19 -> 0.0831
H22: ='T11'!N9 -> 10920.24 | I22: ='T11'!O9 -> ton/año | R22: ='T11'!B20 -> Incremento Anual Energéticos | S22: ='T11'!C20 -> 0.04 | V22: ='T11'!F20 -> Ingresos / año
R23: ='T11'!B21 -> Cash Flow | S23: ='T11'!C21 -> 20 | T23: ='T11'!D21 -> años | V23: ='T11'!F21 -> Concepto | W23: ='T11'!G21 -> USD
V24: ='T11'!F22 -> Tarifa de Tratamiento | W24: ='T11'!G22 -> 5460120
R25: ='T11'!B23 -> DIMENSIONAMIENTO | V25: ='T11'!F23 -> Venta de electricidad | W25: ='T11'!G23 -> 0
R26: ='T11'!B24 -> INPUT | V26: ='T11'!F24 -> Venta de valorizables | W26: ='T11'!G24 -> 1856440.8
R27: ='T11'!B25 -> Residuos sólidos urbanos | S27: ='T11'!C25 -> 227505 | T27: ='T11'!D25 -> ton/año | V27: ='T11'!F25 -> Total | W27: ='T11'!G25 -> 7316560.8
R28: ='T11'!B26 -> COMPOSICIÓN
R29: ='T11'!B27 -> Fracción orgánica | S29: ='T11'!C27 -> 113752.5 | T29: ='T11'!D27 -> ton/año | V29: ='T11'!F27 -> RESULTADOS FINANCIEROS
N30: ='T11'!T17 -> Generación de electricidad | R30: ='T11'!B28 -> Fracción inorgánica | S30: ='T11'!C28 -> 86451.9 | T30: ='T11'!D28 -> ton/año | V30: ='T11'!F28 -> CAPEX | W30: ='T11'!G28 -> 164158934.4
C31: ='T11'!I18 -> Residuos sólidos urbanos | E31: ='T11'!K18 -> Planta de selección automática | H31: ='T11'!N18 -> CDR | J31: ='T11'!P18 -> Planta de pretratamiento | L31: ='T11'!R18 -> Termovalorización | N31: ='T11'!T18 -> 155941027.2 | O31: ='T11'!U18 -> kWh/año | R31: ='T11'!B29 -> Valorizables | S31: ='T11'!C29 -> 27300.6 | T31: ='T11'!D29 -> ton/año | V31: ='T11'!F29 -> OPEX (anual) | W31: ='T11'!G29 -> 17491215.73
C32: ='T11'!I19 -> 227505 | D32: ='T11'!J19 -> ton/año | H32: ='T11'!N19 -> 194926.284 | I32: ='T11'!O19 -> ton/año | R32: ='T11'!B30 -> OUTPUT | V32: ='T11'!F30 -> INGRESOS (anual) | W32: ='T11'!G30 -> 7316560.8
R33: ='T11'!B31 -> Valorizables | S33: ='T11'!C31 -> 10920.24 | T33: ='T11'!D31 -> ton/año
R34: ='T11'!B32 -> Fracción CDR/rechazo a termovalorización | S34: ='T11'!C32 -> 194926.284 | T34: ='T11'!D32 -> ton/año | V34: ='T11'!F32 -> FINANCIAMIENTO
R35: ='T11'!B33 -> Cenizas / rechazo | S35: ='T11'!C33 -> 38985.2568 | T35: ='T11'!D33 -> ton/año | V35: ='T11'!F33 -> Capital aportado | W35: ='T11'!G33 -> 164158934.4
R36: ='T11'!B34 -> ENERGÍA | V36: ='T11'!F34 -> Deuda adquirida | W36: ='T11'!G34 -> 0
R37: ='T11'!B35 -> Generación de electricidad | S37: ='T11'!C35 -> 155941027.2 | T37: ='T11'!D35 -> kWh/año | V37: ='T11'!F35 -> Plazo | W37: ='T11'!G35 -> 15
V38: ='T11'!F36 -> Pago anual del crédito con intereses | W38: ='T11'!G36 -> 0
V40: ='T11'!F38 -> ANÁLISIS - CASH FLOW 15 AÑOS EBDTA
L41: ='T11'!R28 -> Cenizas / rechazo | N41: ='T11'!T28 -> Relleno sanitario | V41: ='T11'!F39 -> Payback | W41: ='T11'!G39 -> 25
L42: ='T11'!R29 -> 38985.2568 | M42: ='T11'!S29 -> ton/año | V42: ='T11'!F40 -> Payback descontado | W42: ='T11'!G40 -> 25
V43: ='T11'!F41 -> TIR (CF 15 años) | W43: ='T11'!G41 -> 0
V44: ='T11'!F42 -> VAN (CF 15 años) | W44: ='T11'!G42 -> -267468877.3
V46: ='T11'!F44 -> LCOE
V47: ='T11'!F45 -> Generación vida útil | W47: ='T11'!G45 -> 3898525680
V48: ='T11'!F46 -> Costos Vida Útil | W48: ='T11'!G46 -> 542757666.5
V49: ='T11'!F47 -> Costos Valor Presente | W49: ='T11'!G47 -> 330827553
V50: ='T11'!F48 -> Costo Total Vida Útil | W50: ='T11'!G48 -> 494986487.3
V51: ='T11'!F49 -> LCOE | W51: ='T11'!G49 -> 0.1269676098
K54: ='Explicación T4'!H43 -> *En caso de no utilizar un subproducto, se incorporaría al rechazo.

Sheet Input intermedio (hidden)
C3: Instrucciones
C5: Completar el siguente formulario. Los asteriscos indican que esa celda es obligatoria. Hay celdas con listas desplegables para responderlas. Cuando te posicionas sobre la celda se le indica en qué unidades debe de estar el valor numérico a ingresar. Tratar de llenar la mayor cantidad de celdas posibles para tener los mejores resultados.
C11: CÓDIGO DE COLORES AL VERIFICAR:
C13: Completadas Obligatorias
C14: Completadas No Obligatorias | E14: =Paso2!D27 -> Costa Rica
C15: No Completadas No Obligatorias
C16: No Completadas Obligatorias
C18: DATOS GEOGRÁFICOS Y DEMOGRÁFICOS
C20: País | D20: =IF(Paso2!D27="","",Paso2!D27) -> Costa Rica | E20: * | F20: =IF(D20="","",D20) -> Costa Rica
F21: =IF(D22="","",D22) -> San José
C22: Estado/Departamento/Región | D22: =IF(Paso2!D29="","",Paso2!D29) -> San José | E22: * | F22: =IF(D24="","",D24) -> San José
F23: =IF(D26="","",D26) -> San José
C24: Municipio | D24: =IF(Paso2!D31="","",Paso2!D31) -> San José | E24: * | F24: =IF(D28="","",D28) -> 200000
F25: =IF(D29="","",D29) -> 
C26: Localidad | D26: =IF(Paso2!D33="","",Paso2!D33) -> San José
C28: Población | D28: =IF(Paso2!D35="",0,Paso2!D35) -> 200000 | E28: *
F30: =IF(D30="","",D30) -> 
C31: DATOS GENERALES DE LOS RESIDUOS | F31: =IF(D31="","",D31) -> 
F32: =IF(D32="","",D32) -> 
C33: Cantidad de residuos | D33: =IF(Paso2!D57="",0,Paso2!D57) -> 227505 | E33: * | F33: =IF(D33="","",D33) -> 227505
C34: Toneladas de residuos generados de residuos anuales | F34: =IF(D35="","",D35) -> No
C35: ¿Hay un análisis de composición/caracterización? | D35: =IF(Paso2!D59="","",Paso2!D59) -> No | F35: =IF(D37="","",D37) -> 0.5
C36: Pepena | F36: =IF(D39="","",D39) -> 0.38
C37: Fracción Orgánica | D37: =IF(Paso2!D63="",0,Paso2!D63) -> 0.5 | F37: =IF(D41="","",D41) -> 0.12
C38: Porcentaje de residuos orgánicos de los residuos | F38: =IF(D43="","",D43) -> Si
C39: Fracción Inorgánica (CDR/rechazo) | D39: =IF(Paso2!D65="",0,Paso2!D65) -> 0.38 | F39: =IF(D45="","",D45) -> 
C40: Porcentaje de residuios inorgánicos de los residuos | F40: =IF(D47="","",D47) -> 15
C41: Valorizables | D41: =IF(Paso2!D67="",0,Paso2!D67) -> 0.12 | F41: =IF(D49="","",D49) -> 24
F42: =IF(D50="","",D50) -> 
C43: ¿Hay separación? | D43: =IF(Paso2!D69="","",Paso2!D69) -> Si
C45: ¿Hay selección (pepena) | D45: =IF(Paso2!D61="","",Paso2!D61) -> 
C47: Tarifa de disposición final en relleno sanitario | D47: =IF(Paso2!D71="",0,Paso2!D71) -> 15 | E47: *
C49: Tarifa de manejo (Tipping Fee) | D49: =IF(Paso2!D73="",0,Paso2!D73) -> 24 | E49: *
F51: =IF(D51="","",D51) -> 
C52: PRECIOS DE MERCADO
C54: Si no se cuenta con el dato, es posible utilizar el precio base como un aproximado, más no es recomendable. Si no se venderá, colocar "0".
C56: Electricidad | D56: =IF(Paso2!D80="",0,Paso2!D80) -> 0 | E56: * | F56: 0
F57: =IF(D58="","",D58) -> 0.01
C58: Gas natural | D58: =IF(Paso2!D82="",0,Paso2!D82) -> 0.01 | E58: * | F58: =IF(D60="","",D60) -> 0
F59: =IF(D62="","",D62) -> 10
C60: CO2 licuado industrial | D60: =IF(Paso2!D84="",0,Paso2!D84) -> 0 | E60: * | F60: =IF(D64="","",D64) -> 170
F61: =IF(D66="","",D66) -> 0
C62: Composta | D62: =IF(Paso2!D86="",0,Paso2!D86) -> 10 | E62: * | F62: =IF(D67="","",D67) -> 
C64: Valorizables | D64: =IF(Paso2!D88="",0,Paso2!D88) -> 170 | E64: *
C66: CDR | D66: =IF(Paso2!D90="",0,Paso2!D90) -> 0 | E66: *
C69: DATOS FINANCIEROS | F69: =IF(D68="","",D68) -> 
F70: =IF(D69="","",D69) -> 
C71: Inflación | D71: =IF(Paso2!D95="",0,Paso2!D95) -> 0.02 | E71: * | F71: =IF(D71="","",D71) -> 0.02
C72: Porcentaje de inflación anual | F72: =IF(D73="","",D73) -> 0.04
C73: Incremento anual precio energéticos | D73: =IF(Paso2!D97="",0,Paso2!D97) -> 0.04 | E73: * | F73: =IF(D75="","",D75) -> 0.0831
F74: =IF(D77="","",D77) -> 20
C75: Tasa de descuento | D75: =IF(Paso2!D99="",0,Paso2!D99) -> 0.0831 | E75: * | F75: =IF(D79="","",D79) -> 0
F76: =IF(D81="","",D81) -> 15
C77: Cash flox | D77: =IF(Paso2!D101="",,Paso2!D101) -> 20 | E77: * | F77: =IF(D83="","",D83) -> 0.05
F78: =IF(D84="","",D84) -> 
C79: Porcentaje de financiamiento | D79: =IF(Paso2!D103="",0,Paso2!D103) -> 0
C80: Si no hay financiamiento, colocar 0% o nada.
C81: Plazo del financimiento | D81: =IF(Paso2!D105="",0,Paso2!D105) -> 15
C82: Si no hay financimiento, se puede dejar esta casilla vacía
C83: Tasa de interés bancaria | D83: =IF(Paso2!D107="",0,Paso2!D107) -> 0.05
F85: =IF(D85="","",D85) -> 
C86: PREGUNTAS CONDICIONALES | F86: =IF(D86="","",D86) -> 
F87: =IF(D87="","",D87) -> 
C88: ¿Hay cementeras? | D88: =IF(Paso2!D40="","",Paso2!D40) -> Si | E88: * | F88: =IF(D88="","",D88) -> Si
C89: En un radio menor a 100 Km | F89: =IF(D90="","",D90) -> 
C90: ¿Hay actividades agrícolas? | D90: =IF(Paso2!#REF!="","",Paso2!#REF!) ->  | E90: * | F90: =IF(D92="","",D92) -> 
C91: En un radio menor a 50 Km | F91: =IF(D94="","",D94) -> Si
C92: ¿Hay cultivos leñosos? | D92: =IF(Paso2!#REF!="","",Paso2!#REF!) ->  | E92: * | F92: =IF(D96="","",D96) -> Si
C93: En un radio menor a 50 Km | F93: =IF(D98="","",D98) -> Si
C94: ¿Hay mercado para la composta? | D94: =IF(Paso2!D42="","",Paso2!D42) -> Si | E94: * | F94: =IF(D100="","",D100) -> Si
C95: En un radio menor a 50 Km | F95: =IF(D102="","",D102) -> 
C96: ¿Hay industria con consumos térmicos? | D96: =IF(Paso2!D44="","",Paso2!D44) -> Si | E96: * | F96: =IF(D103="","",D103) -> 
C97: En un radio menor a 50 Km
C98: ¿Consumos de CO2? | D98: =IF(Paso2!D46="","",Paso2!D46) -> Si | E98: *
C99: En un radio menor a 50 Km
C100: ¿Hay vehículos que funcionen con GN? | D100: =IF(Paso2!D48="","",Paso2!D48) -> Si | E100: *
C101: En un radio menor a 50 Km
C102: ¿Hay consumos de energía térmica? | D102: =IF(Paso2!#REF!="","",Paso2!#REF!) ->  | E102: *
C103: En un radio menor a 50 Km

Sheet INPUT DE DATOS (hidden)
B2: DATOS GEOGRÁFICOS & DEMOGRÁFICOS
B3: País | C3: ='Input intermedio'!F20 -> Costa Rica
B4: Estado/Región | C4: ='Input intermedio'!F21 -> San José
B5: Municipio | C5: ='Input intermedio'!F22 -> San José
B6: Localidad | C6: ='Input intermedio'!F23 -> San José
B7: Población | C7: ='Input intermedio'!F24 -> 200000
A9: Debe aportar los datos fundamentales de los residuos para realizar el cálculo de la valorización material y de la energía que se podría obtener. Como más precisos sean los datos los resultados de esta herramienta serán más útiles para la toma de decisiones. | B9: DATOS GENERALES DE LOS RESIDUOS
B10: Cantidad de residuos sólidos urbanos producidos anualmente | C10: ='Input intermedio'!F33 -> 227505 | D10: ton/año
B11: ¿Hay algún análisis de composición/caracterización? | C11: Sí | D11: No | F11: Ajuste por pepena
A12: Si existe un análisis de la composición de los RSU, aporte los porcentajes de las tres fraciones principales que se describen a continuación. | B12: Fracción Orgánica | C12: ='Input intermedio'!F35 -> 0.5 | F12: =1-F14-C13 -> 0.56
B13: Fracción Inorgánica | C13: ='Input intermedio'!F36 -> 0.38 | F13: =1-F12-F14 -> 0.38
B14: Fracción valorizable (plásticos, papel, cartón, metales) | C14: ='Input intermedio'!F37 -> 0.12 | F14: =C14/2 -> 0.06
B15: ¿Hay separación? | C15: Sí | D15: No
B16: ¿Hay selección (pepena)? | C16: Sí | D16: No
B17: Tarifa de disposición final en relleno sanitario actual | C17: ='Input intermedio'!F40 -> 15 | D17: USD/ton
B18: Tarifa de tratamiento en la nueva instalación | C18: ='Input intermedio'!F41 -> 24 | D18: USD/ton
B20: PRECIOS DE MERCADO | F20: PRECIOS BASE
B21: Electricidad | C21: ='Input intermedio'!F56 -> 0 | D21: USD/kWh | F21: 0.12 | G21: USD/kWh
B22: Gas natural | C22: ='Input intermedio'!F57 -> 0.01 | D22: USD/GJ | F22: 10 | G22: USD/GJ
B23: CO2 licuado industrial | C23: ='Input intermedio'!F58 -> 0 | D23: USD/kg | F23: 0.05 | G23: USD/kg
B24: Composta | C24: ='Input intermedio'!F59 -> 10 | D24: USD/ton | F24: 20 | G24: USD/ton
B25: Fertilizante líquido | C25: 50 | D25: USD/ton | F25: 50 | G25: USD/ton
B26: PET | C26: 25 | D26: USD/ton | F26: 25 | G26: USD/ton
B27: Metales no ferrosos / latas de aluminio | C27: 50 | D27: USD/ton | F27: 50 | G27: USD/ton
B28: Metales ferrosos | C28: 15 | D28: USD/ton | F28: 15 | G28: USD/ton
B29: Cartón/papel | C29: 15 | D29: USD/ton | F29: 15 | G29: USD/ton
B30: Valorizables | C30: ='Input intermedio'!F60 -> 170 | D30: USD/ton | F30: 80 | G30: USD/ton
B31: CDR | C31: ='Input intermedio'!F61 -> 0 | D31: USD/ton | F31: 30 | G31: USD/ton
B33: SUELDOS | F33: SUELDOS BASE
B34: Sueldo de personal administrativo | C34: 10 | D34: USD/hora | F34: 10 | G34: USD/hora
B35: Sueldo de operarios del sector de recolección y tratamiento de residuos | C35: 5 | D35: USD/hora | F35: 5 | G35: USD/hora
B37: DATOS FINANCIEROS
B38: Inflación | C38: ='Input intermedio'!F71 -> 0.02
B39: Incremento anual precio energéticos | C39: ='Input intermedio'!F72 -> 0.04
B40: Tasa de descuento | C40: ='Input intermedio'!F73 -> 0.0831
B41: Cash flow | C41: ='Input intermedio'!F74 -> 20 | D41: años
B42: Financiamiento | C42: Sí | D42: No
B43: Porcentaje de financiamiento | C43: ='Input intermedio'!F75 -> 0
B44: Plazo de financiamiento | C44: ='Input intermedio'!F76 -> 15 | D44: años
B45: Tasa de interés bancaria | C45: ='Input intermedio'!F77 -> 0.05
B47: PREGUNTAS CONDICIONALES
B48: ¿Hay cementeras con horno? (<100 km a la redonda) | C48: Sí | D48: No
B49: ¿Existe un mercado local de composta para uso agrícola y/o jardinería? (<50 km a la redonda) | C49: Sí | D49: No
B50: ¿Consumos de CO2? (<50 km a la redonda) | C50: Sí | D50: No
B51: ¿Existe industria que consuma gas natural para procesos térmicos? (<50km a la redonda) | C51: Sí | D51: No
B52: ¿El parque vehicular municipal tiene vehículos que funcionen con GN? (<50 km a la redonda) | C52: Sí | D52: No

Sheet TECNOLOGIAS (hidden)
B2: TECNOLOGÍAS | E2: CAPACIDAD (ton/año) | G2: CAPEX (USD/ton) | I2: Regresión Lineal y=mx+b | L2: OPEX (USD/ton/año) | N2: Regresión Lineal y=mx+b
B3: Módulo | C3: Descripción | E3: MIN | F3: MAX | G3: MIN | H3: MAX | I3: m | J3: b | K3: y-capex | L3: MIN | M3: MAX | N3: m | O3: b | P3: y-opex
B4: T1 | C4: Relleno sanitario | E4: 100000 | F4: 1000000 | G4: 15 | H4: 12 | I4: =((G4-H4)/(E4-F4)) -> -3.333333333e-06 | J4: =G4-(I4*E4) -> 15.33333333 | K4: =F$16*I4+J4 -> 14.57498333 | L4: 12 | M4: 5 | N4: =((L4-M4)/(E4-F4)) -> -7.777777778e-06 | O4: =L4-(N4*E4) -> 12.77777778 | P4: =F$16*N4+O4 -> 11.00829444
B5: T2 | C5: Relleno sanitario + desgasificación + generación eléctrica | E5: 100000 | F5: 1000000 | G5: 25 | H5: 15 | I5: =((G5-H5)/(E5-F5)) -> -1.111111111e-05 | J5: =G5-(I5*E5) -> 26.11111111 | K5: =F$16*I5+J5 -> 23.58327778 | L5: 10 | M5: 8 | N5: =((L5-M5)/(E5-F5)) -> -2.222222222e-06 | O5: =L5-(N5*E5) -> 10.22222222 | P5: =F$16*N5+O5 -> 9.716655556
B6: T3 | C6: Desgasificación de relleno sanitario existente + generación eléctrica | E6: 100000 | F6: 700000 | G6: =G5-G4 -> 10 | H6: =H5-H4 -> 3 | I6: =((G6-H6)/(E6-F6)) -> -1.166666667e-05 | J6: =G6-(I6*E6) -> 11.16666667 | K6: =F$16*I6+J6 -> 8.512441667 | L6: 6 | M6: 5 | N6: =((L6-M6)/(E6-F6)) -> -1.666666667e-06 | O6: =L6-(N6*E6) -> 6.166666667 | P6: 5.787491667
B7: T4 | C7: Planta de clasificación manual | E7: 40000 | F7: 150000 | G7: 25 | H7: 20 | I7: =((G7-H7)/(E7-F7)) -> -4.545454545e-05 | J7: 26.81818182 | K7: =F$16*I7+J7 -> 16.47704545 | L7: 12 | M7: 8 | N7: -3.636363636e-05 | O7: 13.45454545 | P7: 5.181636364
B8: T5 | C8: Planta de clasificación automática (CDR) | E8: 40000 | F8: 350000 | G8: 35 | H8: 30 | I8: -1.612903226e-05 | J8: 35.64516129 | K8: 31.97572581 | L8: 18 | M8: 12 | N8: -1.935483871e-05 | O8: 18.77419355 | P8: 14.37087097
B9: T6 | C9: Planta de clasificación automática + compostaje (TMB Simple) | E9: 40000 | F9: 350000 | G9: 52 | H9: 47 | I9: -1.612903226e-05 | J9: 52.64516129 | K9: 48.97572581 | L9: 20 | M9: 14 | N9: -1.935483871e-05 | O9: 20.77419355 | P9: 16.37087097
B10: T7 | C10: Planta de clasificación automática + Digestión Anaerobia (electricidad) + compostaje (TMB Completa) | E10: 75000 | F10: 350000 | G10: 160 | H10: 127 | I10: -0.00012 | J10: 169 | K10: 141.6994 | L10: 24 | M10: 10 | N10: -5.090909091e-05 | O10: 27.81818182 | P10: 16.23610909
B11: T8 | C11: Planta de clasificación automática + Digestión Anaerobia (biometano/CO2) + compostaje (TMB Completa) | E11: 75000 | F11: 350000 | G11: 160 | H11: 127 | I11: -0.00012 | J11: 169 | K11: 141.6994 | L11: 24 | M11: 10 | N11: -5.090909091e-05 | O11: 27.81818182 | P11: 16.23610909
B12: T9 | C12: Planta de clasificación automática + Digestión Anaerobia (electricidad) + compostaje (TMB Completa) + Termovalorización | E12: 400000 | F12: 800000 | G12: 860 | H12: 700 | I12: -0.0004 | J12: 1020 | K12: 928.998 | L12: 93 | M12: 60 | N12: -8.25e-05 | O12: 126 | P12: 107.2308375
B13: T10 | C13: Planta de clasificación automática + Digestión Anaerobia (biometano/CO2) + compostaje (TMB Completa) + Termovalorización | E13: 400000 | F13: 800000 | G13: 860 | H13: 700 | I13: -0.0004 | J13: 1020 | K13: 928.998 | L13: 93 | M13: 60 | N13: -8.25e-05 | O13: 126 | P13: 107.2308375
B14: T11 | C14: Planta de clasificación automática + Pretratamiento + Termovalorización | E14: 400000 | F14: 800000 | G14: 700 | H14: 650 | I14: -0.000125 | J14: 750 | K14: 721.561875 | L14: 70 | M14: 60 | N14: -2.5e-05 | O14: 80 | P14: 74.312375
E16: Capacidad | F16: ='INPUT DE DATOS'!C10 -> 227505

Sheet COMPARATIVA (hidden)
B2: COMPARACIÓN DE RESULTADOS
B3: Módulo | C3: T1 | D3: T2 | E3: T3 | F3: T4 | G3: T5 | H3: T6 | I3: T7 | J3: T8 | K3: T9 | L3: T10 | M3: T10 | N3: T11
B4: Tecnología | C4: Relleno sanitario | D4: Relleno sanitario + desgasificación + generación eléctrica | E4: Desgasificación de relleno sanitario existente + generación eléctrica | F4: Planta de clasificación manual | G4: Planta de clasificación automática (CDR) | H4: Planta de clasificación automática + compostaje (TMB Simple) | I4: Planta de clasificación automática + Digestión Anaerobia (electricidad) + compostaje (TMB Completa) | J4: Planta de clasificación automática + Digestión Anaerobia (biometano/CO2) + compostaje (TMB Completa) | K4: Planta de clasificación automática + Digestión Anaerobia (electricidad) + compostaje (TMB Completa) + Termovalorización | L4: Planta de clasificación automática + Digestión Anaerobia (biometano/CO2) + compostaje (TMB Completa) + Termovalorización | M4: Planta de clasificación automática + Pretratamiento + Termovalorización | N4: Planta de clasificación automática + Pretratamiento + Termovalorización
B5: CAPEX | C5: ='T1'!G21 -> 3315881.583 | D5: ='T2'!G25 -> 5365313.611 | E5: ='T3'!G7 -> 1936623.041 | F5: ='T4'!G23 -> 3748610.226 | G5: ='T5'!G24 -> 7274637.5 | H5: ='T6'!G25 -> 11142222.5 | I5: ='T7'!G35 -> 32237322 | J5: ='T8'!G37 -> 32237322 | K5: ='T9'!G34 -> 211351690 | L5: ='T10'!G37 -> 211351690 | N5: ='T11'!G28 -> 164158934.4
B6: OPEX (anual) | C6: ='T1'!G22 -> 2504442.028 | D6: ='T2'!G26 -> 2210587.722 | E6: ='T3'!G16 -> 1316683.292 | F6: ='T4'!G24 -> 4509521.381 | G6: ='T5'!G25 -> 5235088.2 | H6: ='T6'!G26 -> 3983810.7 | I6: ='T7'!G36 -> 3953151.699 | J6: ='T8'!G38 -> 3953151.699 | K6: ='T9'!G35 -> 24704048.47 | L6: ='T10'!G38 -> 24704048.47 | N6: ='T11'!G29 -> 17491215.73
B7: INGRESOS (anual) | C7: ='T1'!G23 -> 5460120 | D7: ='T2'!G27 -> 5460120 | E7: ='T3'!G22 -> 5460120 | F7: ='T4'!G25 -> 6388340.4 | G7: ='T5'!G26 -> 7316560.8 | H7: ='T6'!G27 -> 7771570.8 | I7: ='T7'!G37 -> 7771570.8 | J7: ='T8'!G39 -> 7774920.695 | K7: ='T9'!G36 -> 7771570.8 | L7: ='T10'!G39 -> 7774920.695 | N7: ='T11'!G30 -> 7316560.8
B8: Payback | C8: =IF('T1'!G32=25,"> 25 años",'T1'!G32) -> 1.364576818 | D8: =IF('T2'!G36=25,"> 25 años",'T2'!G36) -> 1.883434651 | E8: ='T3'!G36 -> 0.4673953478 | F8: =IF('T4'!G34=25,"> 25 años",'T4'!G34) -> 0.9594307387 | G8: =IF('T5'!G35=25,"> 25 años",'T5'!G35) -> 2.026419518 | H8: =IF('T6'!G36=25,"> 25 años",'T6'!G36) -> 2.944950676 | I8: =IF('T7'!G46=25,"> 25 años",'T7'!G46) -> 8.733670746 | J8: =IF('T8'!G48=25,"> 25 años",'T8'!G48) -> 8 | K8: =IF('T9'!G45=25,"> 25 años",'T9'!G45) -> > 25 años | L8: =IF('T10'!G48=25,"> 25 años",'T10'!G48) -> > 25 años | N8: =IF('T11'!G39=25,"> 25 años",'T11'!G39) -> > 25 años
B9: Payback descontado | C9: =IF('T1'!G33=25,"> 25 años",'T1'!G33) -> 1.493867706 | D9: =IF('T2'!G37=25,"> 25 años",'T2'!G37) -> 2.108886316 | E9: ='T3'!G37 -> 0.5062359012 | F9: =IF('T4'!G35=25,"> 25 años",'T4'!G35) -> 1.031186457 | G9: =IF('T5'!G36=25,"> 25 años",'T5'!G36) -> 2.287657501 | H9: =IF('T6'!G37=25,"> 25 años",'T6'!G37) -> 3.482865767 | I9: =IF('T7'!G47=25,"> 25 años",'T7'!G47) -> 14.89677917 | J9: =IF('T8'!G49=25,"> 25 años",'T8'!G49) -> 14 | K9: =IF('T9'!G46=25,"> 25 años",'T9'!G46) -> > 25 años | L9: =IF('T10'!G49=25,"> 25 años",'T10'!G49) -> > 25 años | N9: =IF('T11'!G40=25,"> 25 años",'T11'!G40) -> > 25 años
B10: TIR (CF 15 años) | C10: =IF('T1'!G34<=0,"≤ 0%",'T1'!G34) -> 0.8138331155 | D10: =IF('T2'!G38<=0,"≤ 0%",'T2'!G38) -> 0.5723594244 | E10: =IF('T3'!G38<=0,"≤ 0%",'T3'!G38) -> 2.159516374 | F10: =IF('T4'!G36<=0,"≤ 0%",'T4'!G36) -> 1.221785396 | G10: =IF('T5'!G37<=0,"≤ 0%",'T5'!G37) -> 0.5298147886 | H10: =IF('T6'!G38<=0,"≤ 0%",'T6'!G38) -> 0.3593902384 | I10: =IF('T7'!G48<=0,"≤ 0%",'T7'!G48) -> 0.1056608728 | J10: =IF('T8'!G50<=0,"≤ 0%",'T8'!G50) -> 0.1057913028 | K10: =IF('T9'!G47<=0,"≤ 0%",'T9'!G47) -> ≤ 0% | L10: =IF('T10'!G50<=0,"≤ 0%",'T10'!G50) -> ≤ 0% | N10: =IF('T11'!G41<=0,"≤ 0%",'T11'!G41) -> ≤ 0%
B11: VAN (CF 15 años) | C11: ='T1'!G35 -> 28741734.31 | D11: ='T2'!G39 -> 29879479.14 | E11: ='T3'!G39 -> 43959941.45 | F11: ='T4'!G37 -> 52754128.6 | G11: ='T5'!G38 -> 36620835.89 | H11: ='T6'!G39 -> 32753250.89 | I11: ='T7'!G49 -> 6533601.002 | J11: ='T8'!G51 -> 6573719.331 | K11: ='T9'!G48 -> -383278238.2 | L11: ='T10'!G51 -> -382381106.3 | N11: ='T11'!G42 -> -267468877.3
B12: LCOE (USD/kWh) | C12: - | D12: ='T2'!G46 -> 0.2594342066 | E12: ='T3'!G46 -> 0.07789672368 | F12: - | G12: - | H12: - | I12: ='T7'!G56 -> 0.119655251 | J12: - | K12: ='T9'!G55 -> 0.2451953445 | L12: ='T10'!G58 -> 0.2932941363 | N12: ='T11'!G49 -> 0.1269676098
B14: OUTPUTS
B15: Valorizables (ton/año) | C15: - | D15: - | E15: - | F15: ='T4'!C27 -> 5460.12 | G15: ='T5'!C29 -> 10920.24 | H15: ='T6'!C31 -> 10920.24 | I15: ='T7'!C41 -> 10920.24 | J15: ='T8'!C48 -> 10920.24 | K15: ='T9'!C43 -> 10920.24 | L15: ='T10'!C49 -> 10920.24 | N15: ='T11'!C31 -> 10920.24
B16: Composta (ton/año) | C16: - | D16: - | E16: - | F16: - | G16: - | H16: ='T6'!C33 -> 45501 | I16: ='T7'!C44 -> 45501 | J16: ='T8'!C50 -> 45501 | K16: ='T9'!C45 -> 45501 | L16: ='T10'!C51 -> 45501 | N16: -
B17: CDR (ton/año) | C17: - | D17: - | E17: - | F17: - | G17: ='T5'!C30 -> 85541.88 | H17: ='T6'!C32 -> 85541.88 | I17: ='T7'!C42 -> 85541.88 | J17: ='T8'!C49 -> 85541.88 | K17: - | L17: - | N17: -
B18: Biogas (Nm3/año) | C18: - | D18: ='T2'!C33 -> 5118862.5 | E18: ='T3'!C32 -> 5118862.5 | F18: - | G18: - | H18: - | I18: ='T7'!C43 -> 14787825 | J18: - | K18: ='T9'!C42 -> 14787825 | L18: - | N18: -
B19: Biometano (Nm3/año) | C19: - | D19: - | E19: - | F19: - | G19: - | H19: - | I19: - | J19: ='T8'!C45 -> 9053770.408 | K19: - | L19: ='T10'!C46 -> 9053770.408 | N19: -
B20: CO2 (Nm3/año) | C20: - | D20: - | E20: - | F20: - | G20: - | H20: - | I20: - | J20: ='T8'!C46 -> 5915130 | K20: - | L20: ='T10'!C47 -> 5915130 | N20: -
B21: Electricidad libre (kWh/año) | C21: - | D21: ='T2'!C35 -> 12382528.39 | E21: ='T3'!C34 -> 14194605.71 | F21: - | G21: - | H21: - | I21: ='T7'!C50 -> 29515361.17 | J21: - | K21: ='T9'!C51 -> 104447545.5 | L21: ='T10'!C58 -> 86292646.5 | N21: ='T11'!C35 -> 155941027.2

Sheet T1 (hidden)
B2: =TECNOLOGIAS!C4 -> Relleno sanitario | F2: CAPEX | I2: DIAGRAMA DE PROCESO
B3: BASES & SUPUESTOS | F3: Concepto | G3: USD
B4: Vida útil | C4: 25 | D4: años | F4: Relleno sanitario
B5: CapEx | C5: =TECNOLOGIAS!K4 -> 14.57498333 | D5: USD/tpa | F5: Total | G5: =C5*C19 -> 3315881.583
B6: OpEx | C6: =TECNOLOGIAS!P4 -> 11.00829444 | D6: USD/tpa
B7: Tiempo de construcción | C7: 15 | D7: meses | F7: OPEX / año
B8: SUPUESTOS DE INGRESOS | F8: Concepto | G8: USD
B9: Tarifa de disposición final | C9: ='INPUT DE DATOS'!C17 -> 15 | D9: ='INPUT DE DATOS'!D17 -> USD/ton | F9: Mantenimiento Maquinaria & Eq. Auxiliares
B10: Tarifa de tratamiento | C10: ='INPUT DE DATOS'!C18 -> 24 | D10: ='INPUT DE DATOS'!D18 -> USD/ton | F10: Consumibles
B11: SUPUESTOS FINANCIEROS | F11: Administración & Operación
B12: Inflación | C12: ='INPUT DE DATOS'!C38 -> 0.02 | F12: Subtotal OPEX | G12: =C6*C19 -> 2504442.028
B13: Tasa de Descuento | C13: ='INPUT DE DATOS'!C40 -> 0.0831 | F13: Total | G13: =G12 -> 2504442.028
B14: Incremento Anual Energéticos | C14: ='INPUT DE DATOS'!C39 -> 0.04
B15: Cash Flow | C15: ='INPUT DE DATOS'!C41 -> 20 | D15: años | F15: Ingresos / año | I15: =$B$19 -> Residuos sólidos urbanos | N15: =$B$2 -> Relleno sanitario
F16: Concepto | G16: USD | I16: =$C$19 -> 227505 | J16: =$D$19 -> ton/año
B17: DIMENSIONAMIENTO | F17: Tarifa de Tratamiento | G17: =C10*C19 -> 5460120
B18: INPUT | F18: Total | G18: =SUM(G17:G17) -> 5460120
B19: Residuos sólidos urbanos | C19: ='INPUT DE DATOS'!C10 -> 227505 | D19: ton/año
B20: COMPOSICIÓN | F20: RESULTADOS FINANCIEROS
B21: Fracción orgánica | C21: =C19*'INPUT DE DATOS'!C12 -> 113752.5 | D21: ton/año | F21: CAPEX | G21: =G5 -> 3315881.583
B22: Fracción inorgánica | C22: =C19*'INPUT DE DATOS'!C13 -> 86451.9 | D22: ton/año | F22: OPEX (anual) | G22: =G13 -> 2504442.028
B23: Valorizables | C23: =C19*'INPUT DE DATOS'!C14 -> 27300.6 | D23: ton/año | F23: INGRESOS (anual) | G23: =G18 -> 5460120
F25: FINANCIAMIENTO
F26: Capital aportado | G26: =G21-G27 -> 3315881.583
F27: Deuda adquirida | G27: =G21*'INPUT DE DATOS'!C43 -> 0
F28: Plazo | G28: ='INPUT DE DATOS'!C44 -> 15
F29: Pago anual del crédito con intereses | G29: =IF(AND('INPUT DE DATOS'!C44=0,'INPUT DE DATOS'!C45=0),0,PMT(('INPUT DE DATOS'!C45/12),('INPUT DE DATOS'!C44*12),'T1'!G27)*12*-1) -> 0
F31: ANÁLISIS - CASH FLOW 15 AÑOS EBDTA
F32: Payback | G32: ='T1 CF'!I3 -> 1.364576818
F33: Payback descontado | G33: ='T1 CF'!I4 -> 1.493867706
F34: TIR (CF 15 años) | G34: ='T1 CF'!I5 -> 0.8138331155
F35: VAN (CF 15 años) | G35: ='T1 CF'!I6 -> 28741734.31
I42: DESCRIPCIÓN DE TECNOLOGÍA
I43: T1. Relleno Sanitario: técnica de disposición de residuos sólidos de una ciudad. Los rellenos se conforman de módulos donde se depositan los desechos, se esparcen y se compactan para reducirlos al menor volumen posible. Se protegen los suelos con una geomembrana hecha de hule donde se canalizan los lixiviados por medio de un sistema de drenaje para evitar contaminar el subsuelo.

Sheet T1 CF (hidden)
B2: SUPUESTOS FINANCIEROS | D2: DATOS DE FINANCIAMIENTO | H2: RESULTADOS (EBTDA)
B3: Vida útil del proyecto (años) | C3: ='T1'!C4 -> 25 | D3: ='INPUT DE DATOS'!B43 -> Porcentaje de financiamiento | E3: ='INPUT DE DATOS'!C43 -> 0 | H3: Payback | I3: =Q21 -> 1.364576818
B4: Cash flow (años) | C4: ='T1'!C15 -> 20 | D4: ='INPUT DE DATOS'!B44 -> Plazo de financiamiento | E4: ='INPUT DE DATOS'!C44 -> 15 | H4: Payback descontado | I4: =R21 -> 1.493867706
B5: Inflación | C5: ='T1'!C12 -> 0.02 | D5: ='INPUT DE DATOS'!B45 -> Tasa de interés bancaria | E5: ='INPUT DE DATOS'!C45 -> 0.05 | H5: TIR | I5: =Q22 -> 0.8138331155
B6: Tasa de Descuento | C6: ='T1'!C13 -> 0.0831 | D6: ='T7'!F40 -> Capital aportado | E6: ='T1'!G26 -> 3315881.583 | H6: VAN | I6: =Q23 -> 28741734.31
B7: Incentivo Fiscal | C7: No | D7: ='T7'!F41 -> Deuda adquirida | E7: ='T1'!G27 -> 0
B8: Impuestos | C8: - | D8: ='T7'!F43 -> Pago anual del crédito con intereses | E8: ='T1'!G29 -> 0
B9: Incremento anual energéticos | C9: ='T1'!C14 -> 0.04
B11: Ingresos / año | D11: OPEX / año
B12: Concepto | C12: MXN | D12: Concepto | E12: MXN
B13: ='T7'!F27 -> Tarifa de Tratamiento | C13: ='T1'!G17 -> 5460120 | D13: ='T7'!F21 -> Subtotal OPEX | E13: ='T1'!G12 -> 2504442.028
P17: PROYECTO: EBTDA
Q18: Payback | R18: Payback Descont.
Q19: =IF(VLOOKUP(LOOKUP(0,P28:P53),P28:S53,COUNT(P28:S28),FALSE)>50,"Mas de 50",VLOOKUP(LOOKUP(0,P28:P53),P28:S53,4,FALSE)) -> 1 | R19: =IF(VLOOKUP(LOOKUP(0,R28:R53),R28:S53,2,FALSE)>50,"Mas de 50",VLOOKUP(LOOKUP(0,R28:R53),R28:S53,2,FALSE)) -> 1
B20: Ingresos Totales | C20: =SUM(C13:C19) -> 5460120 | D20: Costos Totales | E20: =SUM(E13:E19) -> 2504442.028 | Q20: =IF(Q19>C4,0,-VLOOKUP(Q19,B28:P53,COUNT(B28:P28),FALSE)/(-VLOOKUP(Q19,B28:P53,COUNT(B28:P28),FALSE)+VLOOKUP(Q19+1,B28:P53,COUNT(B28:P28),FALSE))) -> 0.3645768181 | R20: =IF(R19>C4,0,-VLOOKUP(R19,B28:R53,COUNT(B28:R28),FALSE)/(-VLOOKUP(R19,B28:R53,COUNT(B28:R28),FALSE)+VLOOKUP(R19+1,B28:R53,COUNT(B28:R28),FALSE))) -> 0.4938677062
P21: Payback | Q21: =Q19+Q20 -> 1.364576818 | R21: =IF(VLOOKUP(LOOKUP(0,R28:R53),R28:S53,2,FALSE)>50,"Mas de 50",R19+R20) -> 1.493867706
P22: TIR | Q22: =IFERROR(VLOOKUP(C4,S28:V53,2,0),0) -> 0.8138331155
P23: VAN | Q23: =VLOOKUP(C4,S28:V53,3,0) -> 28741734.31
B24: Año | C24: Manejo de residuos | D24: INGRESOS | H24: Ingresos totales | I24: COSTOS / OPEX | L24: Egresos Totales | M24: Utilidad Bruta | N24: CAPEX | O24: Cálculo TIR | P24: Flujo Acumulado | Q24: Utilidad Neta Valor del Tiempo | R24: Flujo Acumulado Descontado | S24: Año | T24: TIR | U24: VAN | V24: VAN
D25: =B13 -> Tarifa de Tratamiento | E25: =B14 -> 0 | F25: =B15 -> 0 | G25: =B16 -> 0 | I25: =D13 -> Subtotal OPEX | J25: =D14 -> 0 | K25: Financiamiento
M26: EBTDA | P26: Cáclulo Payback | Q26: Tasa Descuento | T26: Nominal | U26: Tasa de Descuento | V26: TIR Nominal
C27: (ton/año) | D27: =C5 -> 0.02 | E27: =C9 -> 0.04 | F27: =C5 -> 0.02 | G27: =C5 -> 0.02 | I27: =$C$5 -> 0.02 | J27: =C5 -> 0.02 | O27: Cálculo TIR | Q27: =C6 -> 0.0831
B28: 0 | C28: 0 | D28: 0 | E28: 0 | F28: 0 | G28: 0 | H28: =SUM(D28:G28) -> 0 | I28: 0 | J28: 0 | K28: 0 | L28: =SUM(I28:K28) -> 0 | M28: 0 | N28: =-'T1'!G5 -> -3315881.583 | O28: =M28+N28 -> -3315881.583 | P28: =O28 -> -3315881.583 | Q28: =O28*(1+$Q$27)^(-S28) -> -3315881.583 | R28: =Q28 -> -3315881.583 | S28: 0 | T28: 0 | U28: 0 | V28: 0
B29: 1 | C29: =C30*(24-('T1'!C7))/12 -> 170628.75 | D29: =C13*C29/C30 -> 4095090 | E29: =C14*C29/C30 -> 0 | F29: =C15*C29/C30 -> 0 | G29: =C16*C29/C30 -> 0 | H29: =SUM(D29:G29) -> 4095090 | I29: =E13*(C29/C30) -> 1878331.521 | J29: =E14*(C29/C30) -> 0 | K29: =IF(B29>E$4,0,E$8) -> 0 | L29: 1878331.521 | M29: =H29-L29 -> 2216758.479 | N29: 0 | O29: =M29+N29 -> 2216758.479 | P29: =P28+O29 -> -1099123.104 | Q29: =O29*(1+$Q$27)^(-S29) -> 2046679.42 | R29: =Q29+R28 -> -1269202.164 | S29: 1 | T29: =IRR($O$28:O29) -> -0.331472363 | U29: =NPV($Q$27,O29)+O28 -> -1269202.164 | V29: =NPV(T29,O29)+O28 -> 0
B30: 2 | C30: ='T7'!C34 -> 227505 | D30: =C13*(1+D27) -> 5569322.4 | F30: =C15*(1+F27) -> 0 | G30: =C16*(1+'T1 CF'!G27) -> 0 | H30: =SUM(D30:G30) -> 5569322.4 | I30: =E13*(1+I$27) -> 2554530.868 | J30: =E14*(1+J$27) -> 0 | K30: =IF(B30>E$4,0,E$8) -> 0 | L30: 2554530.868 | M30: 3014791.532 | N30: 0 | O30: =M30+N30 -> 3014791.532 | P30: =P29+O30 -> 1915668.428 | Q30: =O30*(1+$Q$27)^(-S30) -> 2569923.378 | R30: =Q30+R29 -> 1300721.214 | S30: 2 | T30: =IRR($O$28:O30) -> 0.3446745699 | U30: =NPV($Q$27,$O$29:O30)+$O$28 -> 1300721.214 | V30: =NPV(T30,$O$29:O30)+$O$28 -> 1.350417733e-08
B31: 3 | C31: =C30 -> 227505 | D31: =D30*(1+D$27) -> 5680708.848 | E31: =E30*(1+E$27) -> 0 | F31: =F30*(1+F$27) -> 0 | G31: =G30*(1+G$27) -> 0 | H31: 5680708.848 | I31: =I30*(1+I$27) -> 2605621.485 | J31: 0 | K31: 0 | L31: 2605621.485 | M31: 3075087.363 | N31: 0 | O31: =M31+N31 -> 3075087.363 | P31: =P30+O31 -> 4990755.79 | Q31: =O31*(1+$Q$27)^(-S31) -> 2420202.978 | R31: =Q31+R30 -> 3720924.192 | S31: 3 | T31: =IRR(O$28:$O31) -> 0.5994661031 | U31: =NPV($Q$27,$O$29:O31)+$O$28 -> 3720924.192 | V31: 0
B32: 4 | C32: =C31 -> 227505 | D32: =D31*(1+D$27) -> 5794323.025 | E32: =E31*(1+E$27) -> 0 | F32: =F31*(1+F$27) -> 0 | G32: 0 | H32: =SUM(D32:G32) -> 5794323.025 | I32: 2657733.915 | J32: 0 | K32: 0 | L32: 2657733.915 | M32: 3136589.11 | N32: 0 | O32: 3136589.11 | P32: 8127344.9 | Q32: 2279205.094 | R32: 6000129.286 | S32: 4 | T32: =IRR($O$28:O32) -> 0.7082886299 | U32: =NPV($Q$27,$O$29:O32)+$O$28 -> 6000129.286 | V32: 0
B33: 5 | C33: 227505 | D33: 5910209.485 | E33: 0 | F33: 0 | G33: 0 | H33: 5910209.485 | I33: 2710888.594 | J33: 0 | K33: 0 | L33: 2710888.594 | M33: 3199320.892 | N33: 0 | O33: 3199320.892 | P33: 11326665.79 | Q33: 2146421.564 | R33: 8146550.85 | S33: 5 | T33: =IRR($O$28:O33) -> 0.7593370113 | U33: =NPV($Q$27,$O$29:O33)+$O$28 -> 8146550.85 | V33: 0
B34: 6 | C34: 227505 | D34: 6028413.675 | E34: 0 | F34: 0 | G34: 0 | H34: 6028413.675 | I34: 2765106.365 | J34: 0 | K34: 0 | L34: 2765106.365 | M34: 3263307.31 | N34: 0 | O34: 3263307.31 | P34: 14589973.1 | Q34: 2021373.83 | R34: 10167924.68 | S34: 6 | T34: =IRR($O$28:O34) -> 0.7848270957 | U34: =NPV($Q$27,$O$29:O34)+$O$28 -> 10167924.68 | V34: 0
B35: 7 | C35: 227505 | D35: 6148981.949 | E35: 0 | F35: 0 | G35: 0 | H35: 6148981.949 | I35: 2820408.493 | J35: 0 | K35: 0 | L35: 2820408.493 | M35: 3328573.456 | N35: 0 | O35: 3328573.456 | P35: 17918546.56 | Q35: 1903611.215 | R35: 12071535.9 | S35: 7 | T35: =IRR($O$28:O35) -> 0.7980900146 | U35: 12071535.9 | V35: 6.472691894e-08
B36: 8 | C36: 227505 | D36: 6271961.588 | E36: 0 | F36: 0 | G36: 0 | H36: =SUM(D36:G36) -> 6271961.588 | I36: 2876816.663 | J36: 0 | K36: 0 | L36: 2876816.663 | M36: 3395144.925 | N36: 0 | O36: 3395144.925 | P36: 21313691.48 | Q36: 1792709.297 | R36: 13864245.19 | S36: 8 | T36: =IRR($O$28:O36) -> 0.8051808987 | U36: 13864245.19 | V36: =NPV(T36,$O$29:O36)+$O$28 -> 0
B37: 9 | C37: 227505 | D37: 6397400.819 | E37: 0 | F37: 0 | G37: 0 | H37: 6397400.819 | I37: 2934352.996 | J37: 0 | K37: 0 | L37: 2934352.996 | M37: 3463047.824 | N37: 0 | O37: 3463047.824 | P37: 24776739.31 | Q37: =O37*(1+$Q$27)^(-S37) -> 1688268.38 | R37: 15552513.57 | S37: 9 | T37: =IRR($O$28:O37) -> 0.8090403898 | U37: 15552513.57 | V37: 0
B38: 10 | C38: 227505 | D38: 6525348.836 | E38: 0 | F38: 0 | G38: 0 | H38: 6525348.836 | I38: 2993040.056 | J38: 0 | K38: 0 | L38: 2993040.056 | M38: 3532308.78 | N38: 0 | O38: 3532308.78 | P38: =P37+O38 -> 28309048.09 | Q38: 1589912.056 | R38: 17142425.63 | S38: 10 | T38: =IRR($O$28:O38) -> 0.8111658437 | U38: 17142425.63 | V38: 0
B39: 11 | C39: 227505 | D39: 6655855.813 | E39: 0 | F39: 0 | G39: 0 | H39: 6655855.813 | I39: 3052900.857 | J39: 0 | K39: 0 | L39: 3052900.857 | M39: 3602954.956 | N39: 0 | O39: 3602954.956 | P39: 31912003.04 | Q39: 1497285.843 | R39: 18639711.47 | S39: 11 | T39: =IRR($O$28:O39) -> 0.8123453112 | U39: 18639711.47 | V39: 6.98491931e-09
B40: 12 | C40: 227505 | D40: 6788972.929 | E40: 0 | F40: 0 | G40: 0 | H40: 6788972.929 | I40: 3113958.874 | J40: 0 | K40: 0 | L40: 3113958.874 | M40: 3675014.055 | N40: 0 | O40: 3675014.055 | P40: 35587017.1 | Q40: 1410055.914 | R40: =Q40+R39 -> 20049767.38 | S40: 12 | T40: =IRR($O$28:O40) -> 0.8130030538 | U40: 20049767.38 | V40: 8.242204785e-08
B41: 13 | C41: 227505 | D41: 6924752.387 | E41: 0 | F41: 0 | G41: 0 | H41: 6924752.387 | I41: 3176238.051 | J41: 0 | K41: 0 | L41: 3176238.051 | M41: 3748514.336 | N41: 0 | O41: 3748514.336 | P41: 39335531.43 | Q41: 1327907.887 | R41: =Q41+R40 -> 21377675.27 | S41: 13 | T41: =IRR($O$28:O41) -> 0.8133710046 | U41: 21377675.27 | V41: 0
B42: 14 | C42: 227505 | D42: 7063247.435 | E42: 0 | F42: 0 | G42: 0 | H42: 7063247.435 | I42: 3239762.812 | J42: 0 | K42: 0 | L42: 3239762.812 | M42: 3823484.623 | N42: 0 | O42: 3823484.623 | P42: 43159016.06 | Q42: 1250545.697 | R42: 22628220.97 | S42: 14 | T42: =IRR($O$28:O42) -> 0.8135772509 | U42: 22628220.97 | V42: 0
B43: 15 | C43: 227505 | D43: 7204512.384 | E43: 0 | F43: 0 | G43: 0 | H43: 7204512.384 | I43: 3304558.069 | J43: 0 | K43: 0 | L43: 3304558.069 | M43: 3899954.315 | N43: 0 | O43: 3899954.315 | P43: 47058970.37 | Q43: 1177690.528 | R43: 23805911.5 | S43: 15 | T43: =IRR($O$28:O43) -> 0.8136930014 | U43: 23805911.5 | V43: 0
B44: 16 | C44: 227505 | D44: 7348602.631 | E44: 0 | F44: 0 | G44: 0 | H44: 7348602.631 | I44: 3370649.23 | J44: 0 | K44: 0 | L44: 3370649.23 | M44: 3977953.401 | N44: 0 | O44: 3977953.401 | P44: 51036923.77 | Q44: 1109079.807 | R44: 24914991.3 | S44: 16 | T44: =IRR($O$28:O44) -> 0.8137580138 | U44: 24914991.3 | V44: 0
B45: 17 | C45: 227505 | D45: 7495574.684 | E45: 0 | F45: 0 | G45: 0 | H45: 7495574.684 | I45: 3438062.215 | J45: 0 | K45: 0 | L45: 3438062.215 | M45: 4057512.469 | N45: 0 | O45: 4057512.469 | P45: =P44+O45 -> 55094436.24 | Q45: 1044466.257 | R45: 25959457.56 | S45: 17 | T45: =IRR($O$28:O45) -> 0.813794546 | U45: 25959457.56 | V45: 0
B46: 18 | C46: 227505 | D46: 7645486.178 | E46: 0 | F46: 0 | G46: 0 | H46: 7645486.178 | I46: 3506823.459 | J46: 0 | K46: 0 | L46: 3506823.459 | M46: 4138662.719 | N46: 0 | O46: 4138662.719 | P46: 59233098.96 | Q46: 983617.0086 | R46: 26943074.57 | S46: 18 | T46: =IRR($O$28:O46) -> 0.8138150804 | U46: 26943074.57 | V46: =NPV(T46,$O$29:O46)+$O$28 -> 0
B47: 19 | C47: 227505 | D47: 7798395.901 | E47: 0 | F47: 0 | G47: 0 | H47: 7798395.901 | I47: =I46*(1+I$27) -> 3576959.928 | J47: 0 | K47: 0 | L47: 3576959.928 | M47: 4221435.973 | N47: 0 | O47: 4221435.973 | P47: 63454534.93 | Q47: =O47*(1+$Q$27)^(-S47) -> 926312.7585 | R47: 27869387.33 | S47: 19 | T47: =IRR($O$28:O47) -> 0.8138266247 | U47: 27869387.33 | V47: 0
B48: 20 | C48: 227505 | D48: =D47*(1+D$27) -> 7954363.819 | E48: 0 | F48: 0 | G48: 0 | H48: 7954363.819 | I48: 3648499.127 | J48: 0 | K48: 0 | L48: 3648499.127 | M48: 4305864.693 | N48: 0 | O48: 4305864.693 | P48: 67760399.63 | Q48: =O48*(1+$Q$27)^(-S48) -> 872346.9797 | R48: 28741734.31 | S48: 20 | T48: =IRR($O$28:O48) -> 0.8138331155 | U48: 28741734.31 | V48: 0
B49: 21 | C49: 227505 | D49: 8113451.096 | E49: 0 | F49: 0 | G49: 0 | H49: 8113451.096 | I49: 3721469.109 | J49: 0 | K49: 0 | L49: 3721469.109 | M49: 4391981.986 | N49: 0 | O49: 4391981.986 | P49: 72152381.61 | Q49: 821525.1771 | R49: 29563259.48 | S49: 21 | T49: =IRR($O$28:O49) -> 0.8138367652 | U49: 29563259.48 | V49: 0
B50: 22 | C50: 227505 | D50: 8275720.118 | E50: 0 | F50: 0 | G50: 0 | H50: 8275720.118 | I50: 3795898.491 | J50: 0 | K50: 0 | L50: 3795898.491 | M50: 4479821.626 | N50: 0 | O50: 4479821.626 | P50: 76632203.24 | Q50: 773664.1867 | R50: 30336923.67 | S50: 22 | T50: =IRR($O$28:O50) -> 0.8138388174 | U50: 30336923.67 | V50: 7.916241884e-09
B51: 23 | C51: 227505 | D51: 8441234.52 | E51: 0 | F51: 0 | G51: 0 | H51: 8441234.52 | I51: 3871816.461 | J51: 0 | K51: 0 | L51: 3871816.461 | M51: 4569418.059 | N51: 0 | O51: 4569418.059 | P51: 81201621.3 | Q51: 728591.5155 | R51: 31065515.19 | S51: 23 | T51: =IRR($O$28:O51) -> 0.8138399715 | U51: 31065515.19 | V51: 1.396983862e-08
B52: 24 | C52: 227505 | D52: 8610059.21 | E52: 0 | F52: 0 | G52: 0 | H52: 8610059.21 | I52: 3949252.791 | J52: 0 | K52: 0 | L52: 3949252.791 | M52: 4660806.42 | N52: 0 | O52: 4660806.42 | P52: 85862427.72 | Q52: 686144.7196 | R52: 31751659.91 | S52: 24 | T52: =IRR($O$28:O52) -> 0.8138406204 | U52: 31751659.91 | V52: 2.700835466e-08
B53: 25 | C53: 227505 | D53: 8782260.395 | E53: 0 | F53: 0 | G53: 0 | H53: =SUM(D53:G53) -> 8782260.395 | I53: 4028237.846 | J53: 0 | K53: 0 | L53: 4028237.846 | M53: 4754022.548 | N53: 0 | O53: 4754022.548 | P53: 90616450.27 | Q53: 646170.8189 | R53: 32397830.72 | S53: 25 | T53: =IRR($O$28:O53) -> 0.8138409854 | U53: 32397830.72 | V53: 5.261972547e-08

Sheet T2 (hidden)
B2: =TECNOLOGIAS!C5 -> Relleno sanitario + desgasificación + generación eléctrica | F2: CAPEX | I2: DIAGRAMA DE PROCESO
B3: BASES & SUPUESTOS | F3: Concepto | G3: USD
B4: Vida útil | C4: 25 | D4: años | F4: Relleno sanitario
B5: CapEx | C5: =TECNOLOGIAS!K5 -> 23.58327778 | D5: USD/tpa | F5: Sistema de desgasificación
B6: OpEx | C6: =TECNOLOGIAS!P5 -> 9.716655556 | D6: USD/tpa | F6: Motogeneradores
B7: Producción de Biogás | C7: 0.1 | D7: ton/ton de residuo orgánico | F7: Total | G7: =C5*C27 -> 5365313.611
B8: Generación de electricidad | C8: 250 | D8: kWh/ton de residuo orgánico
B9: Ajuste de eficiencia desgasificación | C9: 0.7 | F9: OPEX / año
B10: Tiempo de espera para extracción de biogas | C10: 10 | D10: años | F10: Concepto | G10: USD
B11: Rendimiento Biogas - FO | C11: 45 | D11: Nm3/ton | F11: Mantenimiento Maquinaria & Eq. Auxiliares
B12: Contenido de Dióxido de Carbono (CH4) | C12: 0.4 | F12: Consumibles
B13: Contenido de Metano (CH4) | C13: 0.57 | F13: Administración & Operación
B14: Tiempo de construcción | C14: 15 | D14: meses | F14: Mantenimiento motogeneradores
B15: SUPUESTOS DE INGRESOS | F15: Subtotal OPEX | G15: =C6*C27 -> 2210587.722 | I15: =$B$27 -> Residuos sólidos urbanos | L15: Relleno sanitario | N15: =$B$33 -> Producción de Biogas | Q15: =$B$35 -> Generación de electricidad
B16: Tarifa de disposición final | C16: ='INPUT DE DATOS'!C17 -> 15 | D16: ='INPUT DE DATOS'!D17 -> USD/ton | F16: Total | G16: =G15 -> 2210587.722 | I16: =$C$27 -> 227505 | J16: =$D$27 -> ton/año | N16: =$C$33 -> 5118862.5 | O16: =$D$33 -> Nm3/año | Q16: =$C$35 -> 12382528.39 | R16: =$D$35 -> kWh/año
B17: Tarifa de tratamiento | C17: ='INPUT DE DATOS'!C18 -> 24 | D17: ='INPUT DE DATOS'!D18 -> USD/ton
B18: Precio electricidad | C18: ='INPUT DE DATOS'!C21 -> 0 | D18: ='INPUT DE DATOS'!D21 -> USD/kWh | F18: Ingresos / año
B19: SUPUESTOS FINANCIEROS | F19: Concepto | G19: USD
B20: Inflación | C20: ='INPUT DE DATOS'!C38 -> 0.02 | F20: Tarifa de Tratamiento | G20: =C17*C27 -> 5460120
B21: Tasa de Descuento | C21: ='INPUT DE DATOS'!C40 -> 0.0831 | F21: Venta de electricidad | G21: =C35*C18 -> 0
B22: Incremento Anual Energéticos | C22: ='INPUT DE DATOS'!C39 -> 0.04 | F22: Total | G22: =SUM(G20:G21) -> 5460120
B23: Cash Flow | C23: ='INPUT DE DATOS'!C41 -> 20 | D23: años
F24: RESULTADOS FINANCIEROS
B25: DIMENSIONAMIENTO | F25: CAPEX | G25: =G7 -> 5365313.611
B26: INPUT | F26: OPEX (anual) | G26: =G16 -> 2210587.722
B27: Residuos sólidos urbanos | C27: ='INPUT DE DATOS'!C10 -> 227505 | D27: ton/año | F27: INGRESOS (anual) | G27: =G22 -> 5460120
B28: COMPOSICIÓN
B29: Fracción orgánica | C29: =C27*'INPUT DE DATOS'!C12 -> 113752.5 | D29: ton/año | F29: FINANCIAMIENTO
B30: Fracción inorgánica | C30: =C27*'INPUT DE DATOS'!C13 -> 86451.9 | D30: ton/año | F30: Capital aportado | G30: =G25-G31 -> 5365313.611
B31: Valorizables | C31: =C27*'INPUT DE DATOS'!C14 -> 27300.6 | D31: ton/año | F31: Deuda adquirida | G31: =G25*'INPUT DE DATOS'!C43 -> 0
B32: OUTPUT | F32: Plazo | G32: ='INPUT DE DATOS'!C44 -> 15
B33: Producción de Biogas | C33: =C29*C11 -> 5118862.5 | D33: Nm3/año | F33: Pago anual del crédito con intereses | G33: =IF(AND('INPUT DE DATOS'!C44=0,'INPUT DE DATOS'!C45=0),0,PMT(('INPUT DE DATOS'!C45/12),('INPUT DE DATOS'!C44*12),G31)*12*-1) -> 0
B34: ENERGÍA
B35: Generación de electricidad | C35: =C33*5.9*0.41 -> 12382528.39 | D35: kWh/año | F35: ANÁLISIS - CASH FLOW 15 AÑOS EBDTA
F36: Payback | G36: ='T2 CF'!I3 -> 1.883434651
F37: Payback descontado | G37: ='T2 CF'!I4 -> 2.108886316
F38: TIR (CF 15 años) | G38: ='T2 CF'!I5 -> 0.5723594244
F39: VAN (CF 15 años) | G39: ='T2 CF'!I6 -> 29879479.14
F41: LCOE
F42: Generación vida útil (kWh) | G42: =C35*(C4-C10) -> 185737925.8 | I42: DESCRIPCIÓN DE TECNOLOGÍA
F43: Costos Vida Útil | G43: =SUM('T2 CF'!L28:L53) -> 70253140.37 | I43: T2. Relleno sanitario + desgasificación: Cuando se descompone la fracción orgánica de los RSU depositados en el relleno sanitario se generan biogases, estos biogases tienen un alto contenido de metano que se puede separar y aprovechar como fuente de energía. Al proceso de extracción, tratamiento, enriquecimiento y aprovechamiento del biogás se le conoce como desgasificación.
F44: Costos Valor Presente | G44: =G43/((1+C20)^(C4)) -> 42821457.81
F45: Costo Total Vida Útil | G45: =G44+G25 -> 48186771.42
F46: LCOE (USD/kWh) | G46: =G45/G42 -> 0.2594342066

Sheet T2 CF (hidden)
B2: SUPUESTOS FINANCIEROS | D2: DATOS DE FINANCIAMIENTO | H2: RESULTADOS (EBTDA)
B3: Vida útil del proyecto (años) | C3: ='T2'!C4 -> 25 | D3: ='INPUT DE DATOS'!B43 -> Porcentaje de financiamiento | E3: ='INPUT DE DATOS'!C43 -> 0 | H3: Payback | I3: =Q21 -> 1.883434651
B4: Cash flow (años) | C4: ='T2'!C23 -> 20 | D4: ='INPUT DE DATOS'!B44 -> Plazo de financiamiento | E4: ='INPUT DE DATOS'!C44 -> 15 | H4: Payback descontado | I4: =R21 -> 2.108886316
B5: Inflación | C5: ='T2'!C20 -> 0.02 | D5: ='INPUT DE DATOS'!B45 -> Tasa de interés bancaria | E5: ='INPUT DE DATOS'!C45 -> 0.05 | H5: TIR | I5: =Q22 -> 0.5723594244
B6: Tasa de Descuento | C6: ='T2'!C21 -> 0.0831 | D6: ='T7'!F40 -> Capital aportado | E6: ='T2'!G30 -> 5365313.611 | H6: VAN | I6: =Q23 -> 29879479.14
B7: Incentivo Fiscal | C7: No | D7: ='T7'!F41 -> Deuda adquirida | E7: ='T2'!G31 -> 0
B8: Impuestos | C8: - | D8: ='T7'!F43 -> Pago anual del crédito con intereses | E8: ='T2'!G33 -> 0
B9: Incremento anual energéticos | C9: ='T2'!C22 -> 0.04
B11: Ingresos / año | D11: OPEX / año
B12: Concepto | C12: MXN | D12: Concepto | E12: MXN
B13: ='T2'!F20 -> Tarifa de Tratamiento | C13: ='T2'!G20 -> 5460120 | D13: ='T7'!F21 -> Subtotal OPEX | E13: ='T2'!G15 -> 2210587.722
B14: ='T2'!F21 -> Venta de electricidad | C14: ='T2'!G21 -> 0
P17: PROYECTO: EBTDA
Q18: Payback | R18: Payback Descont.
Q19: =IF(VLOOKUP(LOOKUP(0,P28:P53),P28:S53,COUNT(P28:S28),FALSE)>50,"Mas de 50",VLOOKUP(LOOKUP(0,P28:P53),P28:S53,4,FALSE)) -> 1 | R19: =IF(VLOOKUP(LOOKUP(0,R28:R53),R28:S53,2,FALSE)>50,"Mas de 50",VLOOKUP(LOOKUP(0,R28:R53),R28:S53,2,FALSE)) -> 2
B20: Ingresos Totales | C20: =SUM(C13:C19) -> 5460120 | D20: Costos Totales | E20: =SUM(E13:E19) -> 2210587.722 | Q20: =IF(Q19>C4,0,-VLOOKUP(Q19,B28:P53,COUNT(B28:P28),FALSE)/(-VLOOKUP(Q19,B28:P53,COUNT(B28:P28),FALSE)+VLOOKUP(Q19+1,B28:P53,COUNT(B28:P28),FALSE))) -> 0.8834346511 | R20: =IF(R19>C4,0,-VLOOKUP(R19,B28:R53,COUNT(B28:R28),FALSE)/(-VLOOKUP(R19,B28:R53,COUNT(B28:R28),FALSE)+VLOOKUP(R19+1,B28:R53,COUNT(B28:R28),FALSE))) -> 0.1088863163
P21: Payback | Q21: =Q19+Q20 -> 1.883434651 | R21: =IF(VLOOKUP(LOOKUP(0,R28:R53),R28:S53,2,FALSE)>50,"Mas de 50",R19+R20) -> 2.108886316
P22: TIR | Q22: =IFERROR(VLOOKUP(C4,S28:V53,2,0),0) -> 0.5723594244
P23: VAN | Q23: =VLOOKUP(C4,S28:V53,3,0) -> 29879479.14
B24: Año | C24: Manejo de residuos | D24: INGRESOS | H24: Ingresos totales | I24: COSTOS / OPEX | L24: Egresos Totales | M24: Utilidad Bruta | N24: CAPEX | O24: Cálculo TIR | P24: Flujo Acumulado | Q24: Utilidad Neta Valor del Tiempo | R24: Flujo Acumulado Descontado | S24: Año | T24: TIR | U24: VAN | V24: VAN
D25: =B13 -> Tarifa de Tratamiento | E25: =B14 -> Venta de electricidad | F25: =B15 -> 0 | G25: =B16 -> 0 | I25: =D13 -> Subtotal OPEX | J25: =D14 -> 0 | K25: Financiamiento
M26: EBTDA | P26: Cáclulo Payback | Q26: Tasa Descuento | T26: Nominal | U26: Tasa de Descuento | V26: TIR Nominal
C27: (ton/año) | D27: =C5 -> 0.02 | E27: =C9 -> 0.04 | F27: =C5 -> 0.02 | G27: =C5 -> 0.02 | I27: =$C$5 -> 0.02 | J27: =C5 -> 0.02 | O27: Cálculo TIR | Q27: =C6 -> 0.0831
B28: 0 | C28: 0 | D28: 0 | E28: 0 | F28: 0 | G28: 0 | H28: =SUM(D28:G28) -> 0 | I28: 0 | J28: 0 | K28: 0 | L28: =SUM(I28:K28) -> 0 | M28: 0 | N28: =-'T2'!G7 -> -5365313.611 | O28: =M28+N28 -> -5365313.611 | P28: =O28 -> -5365313.611 | Q28: =O28*(1+$Q$27)^(-S28) -> -5365313.611 | R28: =Q28 -> -5365313.611 | S28: 0 | T28: 0 | U28: 0 | V28: 0
B29: 1 | C29: =C30*(24-('T2'!C14))/12 -> 170628.75 | D29: =C13*C29/C30 -> 4095090 | E29: =C29/C30*C14 -> 0 | F29: =C15*C29/C30 -> 0 | G29: =C16*C29/C30 -> 0 | H29: =SUM(D29) -> 4095090 | I29: =E13*(C29/C30) -> 1657940.792 | J29: =E14*(C29/C30) -> 0 | K29: =IF(B29>E$4,0,E$8) -> 0 | L29: 1657940.792 | M29: =H29-L29 -> 2437149.208 | N29: 0 | O29: =M29+N29 -> 2437149.208 | P29: =P28+O29 -> -2928164.402 | Q29: =O29*(1+$Q$27)^(-S29) -> 2250160.842 | R29: =Q29+R28 -> -3115152.768 | S29: 1 | T29: =IRR($O$28:O29) -> -0.5457582939 | U29: =NPV($Q$27,O29)+O28 -> -3115152.768 | V29: =NPV(T29,O29)+O28 -> 0
B30: 2 | C30: ='T7'!C34 -> 227505 | D30: =C13*(1+D27) -> 5569322.4 | E30: =C14*(1+E27) -> 0 | F30: =C15*(1+F27) -> 0 | G30: =C16*(1+'T2 CF'!G27) -> 0 | H30: =SUM(D30) -> 5569322.4 | I30: =E13*(1+I$27) -> 2254799.477 | J30: =E14*(1+J$27) -> 0 | K30: =IF(B30>E$4,0,E$8) -> 0 | L30: 2254799.477 | M30: 3314522.923 | N30: 0 | O30: =M30+N30 -> 3314522.923 | P30: =P29+O30 -> 386358.5209 | Q30: =O30*(1+$Q$27)^(-S30) -> 2825425.857 | R30: =Q30+R29 -> -289726.9115 | S30: 2 | T30: =IRR($O$28:O30) -> 0.04526057351 | U30: =NPV($Q$27,$O$29:O30)+$O$28 -> -289726.9115 | V30: =NPV(T30,$O$29:O30)+$O$28 -> 0
B31: 3 | C31: =C30 -> 227505 | D31: =D30*(1+D$27) -> 5680708.848 | E31: =E30*(1+E$27) -> 0 | F31: =F30*(1+F$27) -> 0 | G31: =G30*(1+G$27) -> 0 | H31: 5680708.848 | I31: =I30*(1+I$27) -> 2299895.466 | J31: 0 | K31: 0 | L31: 2299895.466 | M31: 3380813.382 | N31: 0 | O31: =M31+N31 -> 3380813.382 | P31: =P30+O31 -> 3767171.903 | Q31: =O31*(1+$Q$27)^(-S31) -> 2660820.214 | R31: =Q31+R30 -> 2371093.303 | S31: 3 | T31: =IRR(O$28:$O31) -> 0.3011882624 | U31: =NPV($Q$27,$O$29:O31)+$O$28 -> 2371093.303 | V31: 0
B32: 4 | C32: =C31 -> 227505 | D32: =D31*(1+D$27) -> 5794323.025 | E32: 0 | F32: =F31*(1+F$27) -> 0 | G32: 0 | H32: 5794323.025 | I32: 2345893.375 | J32: 0 | K32: 0 | L32: 2345893.375 | M32: 3448429.649 | N32: 0 | O32: 3448429.649 | P32: 7215601.552 | Q32: 2505804.283 | R32: 4876897.585 | S32: 4 | T32: =IRR($O$28:O32) -> 0.4228242226 | U32: =NPV($Q$27,$O$29:O32)+$O$28 -> 4876897.585 | V32: 0
B33: 5 | C33: 227505 | D33: 5910209.485 | E33: 0 | F33: 0 | G33: 0 | H33: 5910209.485 | I33: 2392811.243 | J33: 0 | K33: 0 | L33: 2392811.243 | M33: 3517398.242 | N33: 0 | O33: 3517398.242 | P33: 10732999.79 | Q33: 2359819.378 | R33: 7236716.963 | S33: 5 | T33: =IRR($O$28:O33) -> 0.4858523466 | U33: =NPV($Q$27,$O$29:O33)+$O$28 -> 7236716.963 | V33: 0
B34: 6 | C34: 227505 | D34: 6028413.675 | E34: 0 | F34: 0 | G34: 0 | H34: 6028413.675 | I34: 2440667.468 | J34: 0 | K34: 0 | L34: 2440667.468 | M34: 3587746.207 | N34: 0 | O34: 3587746.207 | P34: 14320746 | Q34: 2222339.364 | R34: 9459056.328 | S34: 6 | T34: =IRR($O$28:O34) -> 0.520640052 | U34: =NPV($Q$27,$O$29:O34)+$O$28 -> 9459056.328 | V34: 0
B35: 7 | C35: 227505 | D35: 6148981.949 | E35: 0 | F35: 0 | G35: 0 | H35: 6148981.949 | I35: 2489480.817 | J35: 0 | K35: 0 | L35: 2489480.817 | M35: 3659501.131 | N35: 0 | O35: 3659501.131 | P35: 17980247.13 | Q35: 2092868.758 | R35: 11551925.09 | S35: 7 | T35: =IRR($O$28:O35) -> 0.5407257025 | U35: 11551925.09 | V35: 0
B36: 8 | C36: 227505 | D36: 6271961.588 | E36: 0 | F36: 0 | G36: 0 | H36: 6271961.588 | I36: 2539270.434 | J36: 0 | K36: 0 | L36: 2539270.434 | M36: 3732691.154 | N36: 0 | O36: 3732691.154 | P36: 21712938.29 | Q36: 1970940.941 | R36: 13522866.03 | S36: 8 | T36: =IRR($O$28:O36) -> 0.552703519 | U36: 13522866.03 | V36: =NPV(T36,$O$29:O36)+$O$28 -> 0
B37: 9 | C37: 227505 | D37: 6397400.819 | E37: 0 | F37: 0 | G37: 0 | H37: 6397400.819 | I37: 2590055.842 | J37: 0 | K37: 0 | L37: 2590055.842 | M37: 3807344.977 | N37: 0 | O37: 3807344.977 | P37: 25520283.26 | Q37: =O37*(1+$Q$27)^(-S37) -> 1856116.48 | R37: 15378982.51 | S37: 9 | T37: =IRR($O$28:O37) -> 0.5600149387 | U37: 15378982.51 | V37: 1.583248377e-08
B38: 10 | C38: 227505 | D38: 6525348.836 | E38: 0 | F38: 0 | G38: 0 | H38: =SUM(D38) -> 6525348.836 | I38: 2641856.959 | J38: 0 | K38: 0 | L38: 2641856.959 | M38: 3883491.877 | N38: 0 | O38: 3883491.877 | P38: =P37+O38 -> 29403775.14 | Q38: 1747981.544 | R38: 17126964.05 | S38: 10 | T38: =IRR($O$28:O38) -> 0.5645541118 | U38: 17126964.05 | V38: 0
B39: 11 | C39: 227505 | D39: 6655855.813 | E39: 0 | F39: 0 | G39: 0 | H39: =SUM(D39:G39) -> 6655855.813 | I39: 2694694.098 | J39: 0 | K39: 0 | L39: 2694694.098 | M39: 3961161.714 | N39: 0 | O39: 3961161.714 | P39: 33364936.86 | Q39: 1646146.408 | R39: 18773110.46 | S39: 11 | T39: =IRR($O$28:O39) -> 0.5674070652 | U39: 18773110.46 | V39: 0
B40: 12 | C40: 227505 | D40: 6788972.929 | E40: 0 | F40: 0 | G40: 0 | H40: =SUM(D40:G40) -> 6788972.929 | I40: 2748587.98 | J40: 0 | K40: 0 | L40: 2748587.98 | M40: 4040384.949 | N40: 0 | O40: 4040384.949 | P40: 37405321.8 | Q40: 1550244.055 | R40: =Q40+R39 -> 20323354.51 | S40: 12 | T40: =IRR($O$28:O40) -> 0.5692162943 | U40: 20323354.51 | V40: 0
B41: 13 | C41: 227505 | D41: 6924752.387 | E41: 0 | F41: 0 | G41: 0 | H41: 6924752.387 | I41: 2803559.74 | J41: 0 | K41: 0 | L41: 2803559.74 | M41: 4121192.648 | N41: 0 | O41: 4121192.648 | P41: 41526514.45 | Q41: 1459928.849 | R41: =Q41+R40 -> 21783283.36 | S41: 13 | T41: =IRR($O$28:O41) -> 0.5703710886 | U41: 21783283.36 | V41: 0
B42: 14 | C42: 227505 | D42: 7063247.435 | E42: 0 | F42: 0 | G42: 0 | H42: 7063247.435 | I42: 2859630.935 | J42: 0 | K42: 0 | L42: 2859630.935 | M42: 4203616.5 | N42: 0 | O42: 4203616.5 | P42: 45730130.95 | Q42: 1374875.289 | R42: 23158158.65 | S42: 14 | T42: =IRR($O$28:O42) -> 0.5711116238 | U42: 23158158.65 | V42: 0
B43: 15 | C43: 227505 | D43: 7204512.384 | E43: 0 | F43: 0 | G43: 0 | H43: 7204512.384 | I43: 2916823.553 | J43: 0 | K43: 0 | L43: 2916823.553 | M43: 4287688.83 | N43: 0 | O43: 4287688.83 | P43: 50017819.78 | Q43: 1294776.84 | R43: 24452935.49 | S43: 15 | T43: =IRR($O$28:O43) -> 0.5715881049 | U43: 24452935.49 | V43: 0
B44: 16 | C44: 227505 | D44: 7348602.631 | E44: 0 | F44: 0 | G44: 0 | H44: 7348602.631 | I44: 2975160.024 | J44: 0 | K44: 0 | L44: 2975160.024 | M44: 4373442.607 | N44: 0 | O44: 4373442.607 | P44: 54391262.39 | Q44: 1219344.822 | R44: 25672280.31 | S44: 16 | T44: =IRR($O$28:O44) -> 0.5718954233 | U44: 25672280.31 | V44: 1.11758709e-08
B45: 17 | C45: 227505 | D45: 7495574.684 | E45: 0 | F45: 0 | G45: 0 | H45: 7495574.684 | I45: 3034663.225 | J45: 0 | K45: 0 | L45: 3034663.225 | M45: 4460911.459 | N45: 0 | O45: 4460911.459 | P45: =P44+O45 -> 58852173.85 | Q45: 1148307.375 | R45: 26820587.69 | S45: 17 | T45: =IRR($O$28:O45) -> 0.5720939749 | U45: 26820587.69 | V45: 4.749745131e-08
B46: 18 | C46: 227505 | D46: 7645486.178 | E46: 0 | F46: 0 | G46: 0 | H46: 7645486.178 | I46: 3095356.489 | J46: 0 | K46: 0 | L46: 3095356.489 | M46: 4550129.688 | N46: 0 | O46: 4550129.688 | P46: 63402303.54 | Q46: 1081408.478 | R46: 27901996.17 | S46: 18 | T46: =IRR($O$28:O46) -> 0.5722224099 | U46: 27901996.17 | V46: =NPV(T46,$O$29:O46)+$O$28 -> 0
B47: 19 | C47: 227505 | D47: 7798395.901 | E47: 0 | F47: 0 | G47: 0 | H47: 7798395.901 | I47: =I46*(1+I$27) -> 3157263.619 | J47: 0 | K47: 0 | L47: 3157263.619 | M47: 4641132.282 | N47: 0 | O47: 4641132.282 | P47: 68043435.82 | Q47: =O47*(1+$Q$27)^(-S47) -> 1018407.024 | R47: 28920403.19 | S47: 19 | T47: =IRR($O$28:O47) -> 0.57230556 | U47: 28920403.19 | V47: 0
B48: 20 | C48: 227505 | D48: =D47*(1+D$27) -> 7954363.819 | E48: 0 | F48: 0 | G48: 0 | H48: 7954363.819 | I48: 3220408.892 | J48: 0 | K48: 0 | L48: 3220408.892 | M48: 4733954.928 | N48: 0 | O48: 4733954.928 | P48: 72777390.75 | Q48: =O48*(1+$Q$27)^(-S48) -> 959075.9529 | R48: 29879479.14 | S48: 20 | T48: =IRR($O$28:O48) -> 0.5723594244 | U48: 29879479.14 | V48: 0
B49: 21 | C49: 227505 | D49: 8113451.096 | E49: 0 | F49: 0 | G49: 0 | H49: 8113451.096 | I49: 3284817.069 | J49: 0 | K49: 0 | L49: 3284817.069 | M49: 4828634.026 | N49: 0 | O49: 4828634.026 | P49: 77606024.77 | Q49: 903201.4329 | R49: 30782680.58 | S49: 21 | T49: =IRR($O$28:O49) -> 0.572394332 | U49: 30782680.58 | V49: 0
B50: 22 | C50: 227505 | D50: 8275720.118 | E50: 0 | F50: 0 | G50: 0 | H50: 8275720.118 | I50: 3350513.411 | J50: 0 | K50: 0 | L50: 3350513.411 | M50: 4925206.707 | N50: 0 | O50: 4925206.707 | P50: 82531231.48 | Q50: 850582.0899 | R50: 31633262.67 | S50: 22 | T50: =IRR($O$28:O50) -> 0.572416961 | U50: 31633262.67 | V50: 0
B51: 23 | C51: 227505 | D51: 8441234.52 | E51: 0 | F51: 0 | G51: 0 | H51: 8441234.52 | I51: 3417523.679 | J51: 0 | K51: 0 | L51: 3417523.679 | M51: 5023710.841 | N51: 0 | O51: 5023710.841 | P51: 87554942.32 | Q51: 801028.2815 | R51: 32434290.95 | S51: 23 | T51: =IRR($O$28:O51) -> 0.5724316333 | U51: 32434290.95 | V51: 0
B52: 24 | C52: 227505 | D52: 8610059.21 | E52: 0 | F52: 0 | G52: 0 | H52: 8610059.21 | I52: 3485874.153 | J52: 0 | K52: 0 | L52: 3485874.153 | M52: 5124185.058 | N52: 0 | O52: 5124185.058 | P52: 92679127.38 | Q52: 754361.4137 | R52: 33188652.36 | S52: 24 | T52: =IRR($O$28:O52) -> 0.5724411478 | U52: 33188652.36 | V52: 0
B53: 25 | C53: 227505 | D53: 8782260.395 | E53: 0 | F53: 0 | G53: 0 | H53: =SUM(D53:G53) -> 8782260.395 | I53: 3555591.636 | J53: 0 | K53: 0 | L53: 3555591.636 | M53: 5226668.759 | N53: 0 | O53: 5226668.759 | P53: 97905796.14 | Q53: 710413.297 | R53: 33899065.66 | S53: 25 | T53: =IRR($O$28:O53) -> 0.5724473183 | U53: 33899065.66 | V53: 0

Sheet T3 (hidden)
B2: =COMPARATIVA!E4 -> Desgasificación de relleno sanitario existente + generación eléctrica | F2: CAPEX | I2: DIAGRAMA DE PROCESO
B3: BASES & SUPUESTOS | F3: Concepto | G3: USD
B4: Vida útil | C4: 25 | D4: años | F4: Relleno sanitario
B5: CapEx | C5: =TECNOLOGIAS!K6 -> 8.512441667 | D5: USD/tpa | F5: Sistema de desgasificación
B6: OpEx | C6: =TECNOLOGIAS!P6 -> 5.787491667 | D6: USD/tpa | F6: Motogeneradores
B7: Producción de Biogás | C7: 0.1 | D7: ton/ton de residuo orgánico | F7: Total | G7: =C5*C26 -> 1936623.041
B8: Generación de electricidad | C8: 250 | D8: kWh/ton de residuo orgánico
B9: Ajuste de eficiencia desgasificación | C9: 0.7 | F9: OPEX / año
B10: Rendimiento Biogas - FO | C10: 45 | D10: Nm3/ton | F10: Concepto | G10: USD
B11: Contenido de Dióxido de Carbono (CH4) | C11: 0.4 | F11: Mantenimiento Maquinaria & Eq. Auxiliares
B12: Contenido de Metano (CH4) | C12: 0.57 | F12: Consumibles
B13: Tiempo de construcción | C13: 12 | D13: meses | F13: Administración & Operación
B14: SUPUESTOS DE INGRESOS | F14: Mantenimiento motogeneradores
B15: Tarifa de disposición final | C15: ='INPUT DE DATOS'!C17 -> 15 | D15: ='INPUT DE DATOS'!D17 -> USD/ton | F15: Subtotal OPEX | G15: =C6*C26 -> 1316683.292 | I15: =$B$26 -> Residuos sólidos urbanos | L15: Relleno sanitario | N15: =$B$32 -> Producción de Biogas | Q15: =$B$34 -> Generación de electricidad
B16: Tarifa de tratamiento | C16: ='INPUT DE DATOS'!C18 -> 24 | D16: ='INPUT DE DATOS'!D18 -> USD/ton | F16: Total | G16: =G15 -> 1316683.292 | I16: =$C$26 -> 227505 | J16: =$D$26 -> ton/año | N16: =$C$32 -> 5118862.5 | O16: =$D$32 -> Nm3/año | Q16: =$C$34 -> 14194605.71 | R16: =$D$34 -> kWh/año
B17: Precio electricidad | C17: ='INPUT DE DATOS'!C21 -> 0 | D17: ='INPUT DE DATOS'!D21 -> USD/kWh
B18: SUPUESTOS FINANCIEROS | F18: Ingresos / año
B19: Inflación | C19: ='INPUT DE DATOS'!C38 -> 0.02 | F19: Concepto | G19: USD
B20: Tasa de Descuento | C20: ='INPUT DE DATOS'!C40 -> 0.0831 | F20: Tarifa de Tratamiento | G20: =C16*C26 -> 5460120
B21: Incremento Anual Energéticos | C21: ='INPUT DE DATOS'!C39 -> 0.04 | F21: Venta de electricidad | G21: =C34*C17 -> 0
B22: Cash Flow | C22: ='INPUT DE DATOS'!C41 -> 20 | D22: años | F22: Total | G22: =SUM(G20:G21) -> 5460120
B24: DIMENSIONAMIENTO | F24: RESULTADOS FINANCIEROS
B25: INPUT | F25: CAPEX | G25: =G7 -> 1936623.041
B26: Residuos sólidos urbanos | C26: ='INPUT DE DATOS'!C10 -> 227505 | D26: ton/año | F26: OPEX (anual) | G26: =G16 -> 1316683.292
B27: COMPOSICIÓN | F27: INGRESOS (anual) | G27: =G22 -> 5460120
B28: Fracción orgánica | C28: =C26*'INPUT DE DATOS'!C12 -> 113752.5 | D28: ton/año
B29: Fracción inorgánica | C29: =C26*'INPUT DE DATOS'!C13 -> 86451.9 | D29: ton/año | F29: FINANCIAMIENTO
B30: Valorizables | C30: =C26*'INPUT DE DATOS'!C14 -> 27300.6 | D30: ton/año | F30: Capital aportado | G30: =G25-G31 -> 1936623.041
B31: OUTPUT | F31: Deuda adquirida | G31: =G25*'INPUT DE DATOS'!C43 -> 0
B32: Producción de Biogas | C32: =C28*C10 -> 5118862.5 | D32: Nm3/año | F32: Plazo | G32: ='INPUT DE DATOS'!C44 -> 15
B33: ENERGÍA | F33: Pago anual del crédito con intereses | G33: =IF(AND('INPUT DE DATOS'!C44=0,'INPUT DE DATOS'!C45=0),0,PMT(('INPUT DE DATOS'!C45/12),('INPUT DE DATOS'!C44*12),G31)*12*-1) -> 0
B34: Generación de electricidad | C34: =C32*5.9*0.47 -> 14194605.71 | D34: kWh/año
F35: ANÁLISIS - CASH FLOW 15 AÑOS EBDTA
F36: Payback | G36: ='T3 CF'!I3 -> 0.4673953478
F37: Payback descontado | G37: ='T3 CF'!I4 -> 0.5062359012
F38: TIR (CF 15 años) | G38: ='T3 CF'!I5 -> 2.159516374
F39: VAN (CF 15 años) | G39: ='T3 CF'!I6 -> 43959941.45
F41: LCOE
F42: Generación vida útil (kWh) | G42: =C34*(C4) -> 354865142.8 | I42: DESCRIPCIÓN DE TECNOLOGÍA
F43: Costos Vida Útil | G43: =SUM('T3 CF'!L28:L53) -> 42173760.47 | I43: T3. Desgasificación de relleno sanitario existente: Cuando se descompone la fracción orgánica de los RSU depositados en el relleno sanitario se generan biogases, estos biogases tienen un alto contenido de metano que se puede separar y aprovechar como fuente de energía. Al proceso de extracción, tratamiento, enriquecimiento y aprovechamiento del biogás se le conoce como desgasificación.
F44: Costos Valor Presente | G44: =G43/((1+C19)^(C4)) -> 25706208.93
F45: Costo Total Vida Útil | G45: =G44+G25 -> 27642831.97
F46: LCOE (USD/kWh) | G46: =G45/G42 -> 0.07789672368

Sheet T3 CF (hidden)
B2: SUPUESTOS FINANCIEROS | D2: DATOS DE FINANCIAMIENTO | H2: RESULTADOS (EBTDA)
B3: Vida útil del proyecto (años) | C3: ='T3'!C4 -> 25 | D3: ='INPUT DE DATOS'!B43 -> Porcentaje de financiamiento | E3: ='INPUT DE DATOS'!C43 -> 0 | H3: Payback | I3: =Q21 -> 0.4673953478
B4: Cash flow (años) | C4: ='T3'!C22 -> 20 | D4: ='INPUT DE DATOS'!B44 -> Plazo de financiamiento | E4: ='INPUT DE DATOS'!C44 -> 15 | H4: Payback descontado | I4: =R21 -> 0.5062359012
B5: Inflación | C5: ='T3'!C19 -> 0.02 | D5: ='INPUT DE DATOS'!B45 -> Tasa de interés bancaria | E5: ='INPUT DE DATOS'!C45 -> 0.05 | H5: TIR | I5: =Q22 -> 2.159516374
B6: Tasa de Descuento | C6: ='T3'!C20 -> 0.0831 | D6: ='T7'!F40 -> Capital aportado | E6: ='T3'!G30 -> 1936623.041 | H6: VAN | I6: =Q23 -> 43959941.45
B7: Incentivo Fiscal | C7: No | D7: ='T7'!F41 -> Deuda adquirida | E7: ='T3'!G31 -> 0
B8: Impuestos | C8: - | D8: ='T7'!F43 -> Pago anual del crédito con intereses | E8: ='T3'!G33 -> 0
B9: Incremento anual energéticos | C9: ='T3'!C21 -> 0.04
B11: Ingresos / año | D11: OPEX / año
B12: Concepto | C12: MXN | D12: Concepto | E12: MXN
B13: ='T3'!F20 -> Tarifa de Tratamiento | C13: ='T3'!G20 -> 5460120 | D13: ='T7'!F21 -> Subtotal OPEX | E13: ='T3'!G15 -> 1316683.292
B14: ='T3'!F21 -> Venta de electricidad | C14: ='T3'!G21 -> 0
P17: PROYECTO: EBTDA
Q18: Payback | R18: Payback Descont.
Q19: =IF(VLOOKUP(LOOKUP(0,P28:P53),P28:S53,COUNT(P28:S28),FALSE)>50,"Mas de 50",VLOOKUP(LOOKUP(0,P28:P53),P28:S53,4,FALSE)) -> 0 | R19: =IF(VLOOKUP(LOOKUP(0,R28:R53),R28:S53,2,FALSE)>50,"Mas de 50",VLOOKUP(LOOKUP(0,R28:R53),R28:S53,2,FALSE)) -> 0
B20: Ingresos Totales | C20: =SUM(C13:C19) -> 5460120 | D20: Costos Totales | E20: =SUM(E13:E19) -> 1316683.292 | Q20: =IF(Q19>C4,0,-VLOOKUP(Q19,B28:P53,COUNT(B28:P28),FALSE)/(-VLOOKUP(Q19,B28:P53,COUNT(B28:P28),FALSE)+VLOOKUP(Q19+1,B28:P53,COUNT(B28:P28),FALSE))) -> 0.4673953478 | R20: =IF(R19>C4,0,-VLOOKUP(R19,B28:R53,COUNT(B28:R28),FALSE)/(-VLOOKUP(R19,B28:R53,COUNT(B28:R28),FALSE)+VLOOKUP(R19+1,B28:R53,COUNT(B28:R28),FALSE))) -> 0.5062359012
P21: Payback | Q21: =Q19+Q20 -> 0.4673953478 | R21: =IF(VLOOKUP(LOOKUP(0,R28:R53),R28:S53,2,FALSE)>50,"Mas de 50",R19+R20) -> 0.5062359012
P22: TIR | Q22: =IFERROR(VLOOKUP(C4,S28:V53,2,0),0) -> 2.159516374
P23: VAN | Q23: =VLOOKUP(C4,S28:V53,3,0) -> 43959941.45
B24: Año | C24: Manejo de residuos | D24: INGRESOS | H24: Ingresos totales | I24: COSTOS / OPEX | L24: Egresos Totales | M24: Utilidad Bruta | N24: CAPEX | O24: Cálculo TIR | P24: Flujo Acumulado | Q24: Utilidad Neta Valor del Tiempo | R24: Flujo Acumulado Descontado | S24: Año | T24: TIR | U24: VAN | V24: VAN
D25: =B13 -> Tarifa de Tratamiento | E25: =B14 -> Venta de electricidad | F25: =B15 -> 0 | G25: =B16 -> 0 | I25: =D13 -> Subtotal OPEX | J25: =D14 -> 0 | K25: Financiamiento
M26: EBTDA | P26: Cáclulo Payback | Q26: Tasa Descuento | T26: Nominal | U26: Tasa de Descuento | V26: TIR Nominal
C27: (ton/año) | D27: =C5 -> 0.02 | E27: =C9 -> 0.04 | F27: =C5 -> 0.02 | G27: =C5 -> 0.02 | I27: =$C$5 -> 0.02 | J27: =C5 -> 0.02 | O27: Cálculo TIR | Q27: =C6 -> 0.0831
B28: 0 | C28: 0 | D28: 0 | E28: 0 | F28: 0 | G28: 0 | H28: =SUM(D28:G28) -> 0 | I28: 0 | J28: 0 | K28: 0 | L28: =SUM(I28:K28) -> 0 | M28: 0 | N28: =-'T3'!G7 -> -1936623.041 | O28: =M28+N28 -> -1936623.041 | P28: =O28 -> -1936623.041 | Q28: =O28*(1+$Q$27)^(-S28) -> -1936623.041 | R28: =Q28 -> -1936623.041 | S28: 0 | T28: 0 | U28: 0 | V28: 0
B29: 1 | C29: =C30 -> 227505 | D29: =C13*C29/C30 -> 5460120 | E29: =C14*C29/C30 -> 0 | F29: =C15*C29/C30 -> 0 | G29: =C16*C29/C30 -> 0 | H29: =D29 -> 5460120 | I29: =E13*(C29/C30) -> 1316683.292 | J29: =E14*(C29/C30) -> 0 | K29: =IF(B29>E$4,0,E$8) -> 0 | L29: 1316683.292 | M29: =H29-L29 -> 4143436.708 | N29: 0 | O29: =M29+N29 -> 4143436.708 | P29: =P28+O29 -> 2206813.667 | Q29: =O29*(1+$Q$27)^(-S29) -> 3825534.769 | R29: =Q29+R28 -> 1888911.728 | S29: 1 | T29: =IRR($O$28:O29) -> 1.139516375 | U29: =NPV($Q$27,O29)+O28 -> 1888911.728 | V29: =NPV(T29,O29)+O28 -> 0
B30: 2 | C30: ='T7'!C34 -> 227505 | D30: =C13*(1+D27) -> 5569322.4 | E30: =C14*(1+E27) -> 0 | F30: =C15*(1+F27) -> 0 | G30: =C16*(1+'T3 CF'!G27) -> 0 | H30: =SUM(D30:G30) -> 5569322.4 | I30: =E13*(1+I$27) -> 1343016.957 | J30: =E14*(1+J$27) -> 0 | K30: =IF(B30>E$4,0,E$8) -> 0 | L30: 1343016.957 | M30: 4226305.443 | N30: 0 | O30: =M30+N30 -> 4226305.443 | P30: =P29+O30 -> 6433119.11 | Q30: =O30*(1+$Q$27)^(-S30) -> 3602664.079 | R30: =Q30+R29 -> 5491575.807 | S30: 2 | T30: =IRR($O$28:O30) -> 1.893679589 | U30: =NPV($Q$27,$O$29:O30)+$O$28 -> 5491575.807 | V30: =NPV(T30,$O$29:O30)+$O$28 -> 0
B31: 3 | C31: =C30 -> 227505 | D31: =D30*(1+D$27) -> 5680708.848 | E31: =E30*(1+E$27) -> 0 | F31: =F30*(1+F$27) -> 0 | G31: =G30*(1+G$27) -> 0 | H31: =SUM(D31:G31) -> 5680708.848 | I31: =I30*(1+I$27) -> 1369877.297 | J31: 0 | K31: 0 | L31: 1369877.297 | M31: 4310831.551 | N31: 0 | O31: =M31+N31 -> 4310831.551 | P31: =P30+O31 -> 10743950.66 | Q31: =O31*(1+$Q$27)^(-S31) -> 3392777.547 | R31: =Q31+R30 -> 8884353.354 | S31: 3 | T31: =IRR(O$28:$O31) -> 2.081956593 | U31: =NPV($Q$27,$O$29:O31)+$O$28 -> 8884353.354 | V31: 0
B32: 4 | C32: =C31 -> 227505 | D32: =D31*(1+D$27) -> 5794323.025 | E32: 0 | F32: =F31*(1+F$27) -> 0 | G32: 0 | H32: 5794323.025 | I32: 1397274.843 | J32: 0 | K32: 0 | L32: 1397274.843 | M32: 4397048.182 | N32: 0 | O32: 4397048.182 | P32: 15140998.84 | Q32: 3195118.731 | R32: 12079472.09 | S32: 4 | T32: =IRR($O$28:O32) -> 2.135558023 | U32: =NPV($Q$27,$O$29:O32)+$O$28 -> 12079472.09 | V32: 2.468004823e-08
B33: 5 | C33: 227505 | D33: 5910209.485 | E33: 0 | F33: 0 | G33: 0 | H33: 5910209.485 | I33: 1425220.339 | J33: 0 | K33: 0 | L33: 1425220.339 | M33: 4484989.146 | N33: 0 | O33: 4484989.146 | P33: 19625987.99 | Q33: 3008975.262 | R33: 15088447.35 | S33: 5 | T33: =IRR($O$28:O33) -> 2.151922935 | U33: =NPV($Q$27,$O$29:O33)+$O$28 -> 15088447.35 | V33: 0
B34: 6 | C34: 227505 | D34: 6028413.675 | E34: 0 | F34: 0 | G34: 0 | H34: 6028413.675 | I34: 1453724.746 | J34: 0 | K34: 0 | L34: 1453724.746 | M34: 4574688.929 | N34: 0 | O34: 4574688.929 | P34: 24200676.92 | Q34: 2833676.269 | R34: 17922123.62 | S34: 6 | T34: =IRR($O$28:O34) -> 2.157083047 | U34: =NPV($Q$27,$O$29:O34)+$O$28 -> 17922123.62 | V34: 3.026798368e-09
B35: 7 | C35: 227505 | D35: 6148981.949 | E35: 0 | F35: 0 | G35: 0 | H35: 6148981.949 | I35: 1482799.241 | J35: 0 | K35: 0 | L35: 1482799.241 | M35: 4666182.708 | N35: 0 | O35: 4666182.708 | P35: 28866859.63 | Q35: 2668589.968 | R35: 20590713.58 | S35: 7 | T35: =IRR($O$28:O35) -> 2.158733078 | U35: 20590713.58 | V35: 0
B36: 8 | C36: 227505 | D36: 6271961.588 | E36: 0 | F36: 0 | G36: 0 | H36: 6271961.588 | I36: 1512455.226 | J36: 0 | K36: 0 | L36: 1512455.226 | M36: 4759506.362 | N36: 0 | O36: 4759506.362 | P36: 33626365.99 | Q36: 2513121.381 | R36: 23103834.96 | S36: 8 | T36: =IRR($O$28:O36) -> 2.159263777 | U36: 23103834.96 | V36: =NPV(T36,$O$29:O36)+$O$28 -> 0
B37: 9 | C37: 227505 | D37: 6397400.819 | E37: 0 | F37: 0 | G37: 0 | H37: 6397400.819 | I37: 1542704.33 | J37: 0 | K37: 0 | L37: 1542704.33 | M37: 4854696.489 | N37: 0 | O37: 4854696.489 | P37: 38481062.48 | Q37: =O37*(1+$Q$27)^(-S37) -> 2366710.191 | R37: 25470545.16 | S37: 9 | T37: =IRR($O$28:O37) -> 2.159434861 | U37: 25470545.16 | V37: 0
B38: 10 | C38: 227505 | D38: 6525348.836 | E38: 0 | F38: 0 | G38: 0 | H38: 6525348.836 | I38: 1573558.417 | J38: 0 | K38: 0 | L38: 1573558.417 | M38: 4951790.419 | N38: 0 | O38: 4951790.419 | P38: =P37+O38 -> 43432852.9 | Q38: 2228828.728 | R38: 27699373.88 | S38: 10 | T38: =IRR($O$28:O38) -> 2.159490063 | U38: 27699373.88 | V38: 0
B39: 11 | C39: 227505 | D39: 6655855.813 | E39: 0 | F39: 0 | G39: 0 | H39: =SUM(D39:G39) -> 6655855.813 | I39: 1605029.585 | J39: 0 | K39: 0 | L39: 1605029.585 | M39: 5050826.227 | N39: 0 | O39: 5050826.227 | P39: 48483679.12 | Q39: 2098980.059 | R39: 29798353.94 | S39: 11 | T39: =IRR($O$28:O39) -> 2.159507881 | U39: 29798353.94 | V39: 7.450580597e-09
B40: 12 | C40: 227505 | D40: 6788972.929 | E40: 0 | F40: 0 | G40: 0 | H40: =SUM(D40:G40) -> 6788972.929 | I40: 1637130.177 | J40: 0 | K40: 0 | L40: 1637130.177 | M40: 5151842.752 | N40: 0 | O40: 5151842.752 | P40: 53635521.87 | Q40: 1976696.206 | R40: =Q40+R39 -> 31775050.15 | S40: 12 | T40: =IRR($O$28:O40) -> 2.159513633 | U40: 31775050.15 | V40: 6.332993507e-08
B41: 13 | C41: 227505 | D41: 6924752.387 | E41: 0 | F41: 0 | G41: 0 | H41: 6924752.387 | I41: 1669872.781 | J41: 0 | K41: 0 | L41: 1669872.781 | M41: 5254879.607 | N41: 0 | O41: 5254879.607 | P41: 58890401.48 | Q41: 1861536.451 | R41: =Q41+R40 -> 33636586.6 | S41: 13 | T41: =IRR($O$28:O41) -> 2.159515489 | U41: 33636586.6 | V41: 0
B42: 14 | C42: 227505 | D42: 7063247.435 | E42: 0 | F42: 0 | G42: 0 | H42: 7063247.435 | I42: 1703270.236 | J42: 0 | K42: 0 | L42: 1703270.236 | M42: 5359977.199 | N42: 0 | O42: 5359977.199 | P42: 64250378.68 | Q42: 1753085.754 | R42: 35389672.35 | S42: 14 | T42: =IRR($O$28:O42) -> 2.159516089 | U42: 35389672.35 | V42: 0
B43: 15 | C43: 227505 | D43: 7204512.384 | E43: 0 | F43: 0 | G43: 0 | H43: 7204512.384 | I43: 1737335.641 | J43: 0 | K43: 0 | L43: 1737335.641 | M43: 5467176.743 | N43: 0 | O43: 5467176.743 | P43: 69717555.42 | Q43: 1650953.254 | R43: 37040625.61 | S43: 15 | T43: =IRR($O$28:O43) -> 2.159516282 | U43: 37040625.61 | V43: 0
B44: 16 | C44: 227505 | D44: 7348602.631 | E44: 0 | F44: 0 | G44: 0 | H44: 7348602.631 | I44: 1772082.354 | J44: 0 | K44: 0 | L44: 1772082.354 | M44: 5576520.278 | N44: 0 | O44: 5576520.278 | P44: 75294075.7 | Q44: 1554770.86 | R44: 38595396.47 | S44: 16 | T44: =IRR($O$28:O44) -> 2.159516345 | U44: 38595396.47 | V44: 0
B45: 17 | C45: 227505 | D45: 7495574.684 | E45: 0 | F45: 0 | G45: 0 | H45: 7495574.684 | I45: 1807524.001 | J45: 0 | K45: 0 | L45: 1807524.001 | M45: 5688050.683 | N45: 0 | O45: 5688050.683 | P45: =P44+O45 -> 80982126.38 | Q45: 1464191.928 | R45: 40059588.4 | S45: 17 | T45: =IRR($O$28:O45) -> 2.159516365 | U45: 40059588.4 | V45: 0
B46: 18 | C46: 227505 | D46: 7645486.178 | E46: 0 | F46: 0 | G46: 0 | H46: 7645486.178 | I46: 1843674.481 | J46: 0 | K46: 0 | L46: 1843674.481 | M46: 5801811.697 | N46: 0 | O46: 5801811.697 | P46: 86783938.08 | Q46: 1378890.007 | R46: 41438478.4 | S46: 18 | T46: =IRR($O$28:O46) -> 2.159516371 | U46: 41438478.4 | V46: =NPV(T46,$O$29:O46)+$O$28 -> 0
B47: 19 | C47: 227505 | D47: 7798395.901 | E47: 0 | F47: 0 | G47: 0 | H47: 7798395.901 | I47: =I46*(1+I$27) -> 1880547.971 | J47: 0 | K47: 0 | L47: 1880547.971 | M47: 5917847.931 | N47: 0 | O47: 5917847.931 | P47: 92701786.01 | Q47: =O47*(1+$Q$27)^(-S47) -> 1298557.665 | R47: 42737036.07 | S47: 19 | T47: =IRR($O$28:O47) -> 2.159516374 | U47: 42737036.07 | V47: 0
B48: 20 | C48: 227505 | D48: =D47*(1+D$27) -> 7954363.819 | E48: 0 | F48: 0 | G48: 0 | H48: 7954363.819 | I48: 1918158.93 | J48: 0 | K48: 0 | L48: 1918158.93 | M48: 6036204.889 | N48: 0 | O48: 6036204.889 | P48: 98737990.9 | Q48: =O48*(1+$Q$27)^(-S48) -> 1222905.381 | R48: 43959941.45 | S48: 20 | T48: =IRR($O$28:O48) -> 2.159516374 | U48: 43959941.45 | V48: 0
B49: 21 | C49: 227505 | D49: 8113451.096 | E49: 0 | F49: 0 | G49: 0 | H49: 8113451.096 | I49: 1956522.109 | J49: 0 | K49: 0 | L49: 1956522.109 | M49: 6156928.987 | N49: 0 | O49: 6156928.987 | P49: 104894919.9 | Q49: 1151660.501 | R49: 45111601.95 | S49: 21 | T49: =IRR($O$28:O49) -> 2.159516374 | U49: 45111601.95 | V49: 0
B50: 22 | C50: 227505 | D50: 8275720.118 | E50: 0 | F50: 0 | G50: 0 | H50: 8275720.118 | I50: 1995652.551 | J50: 0 | K50: 0 | L50: 1995652.551 | M50: 6280067.567 | N50: 0 | O50: 6280067.567 | P50: 111174987.5 | Q50: 1084566.256 | R50: 46196168.21 | S50: 22 | T50: =IRR($O$28:O50) -> 2.159516375 | U50: 46196168.21 | V50: 0
B51: 23 | C51: 227505 | D51: 8441234.52 | E51: 0 | F51: 0 | G51: 0 | H51: 8441234.52 | I51: 2035565.602 | J51: 0 | K51: 0 | L51: 2035565.602 | M51: 6405668.918 | N51: 0 | O51: 6405668.918 | P51: 117580656.4 | Q51: 1021380.833 | R51: 47217549.04 | S51: 23 | T51: =IRR($O$28:O51) -> 2.159516375 | U51: 47217549.04 | V51: 3.259629011e-09
B52: 24 | C52: 227505 | D52: 8610059.21 | E52: 0 | F52: 0 | G52: 0 | H52: 8610059.21 | I52: 2076276.914 | J52: 0 | K52: 0 | L52: 2076276.914 | M52: 6533782.297 | N52: 0 | O52: 6533782.297 | P52: 124114438.7 | Q52: 961876.5119 | R52: 48179425.55 | S52: 24 | T52: =IRR($O$28:O52) -> 2.159516375 | U52: 48179425.55 | V52: 6.286427379e-09
B53: 25 | C53: 227505 | D53: 8782260.395 | E53: 0 | F53: 0 | G53: 0 | H53: =SUM(D53:G53) -> 8782260.395 | I53: 2117802.452 | J53: 0 | K53: 0 | L53: 2117802.452 | M53: 6664457.943 | N53: 0 | O53: 6664457.943 | P53: 130778896.6 | Q53: 905838.835 | R53: 49085264.39 | S53: 25 | T53: =IRR($O$28:O53) -> 2.159516375 | U53: 49085264.39 | V53: 1.28056854e-08

Sheet T4 (hidden)
B2: =TECNOLOGIAS!C7 -> Planta de clasificación manual | F2: CAPEX | I2: DIAGRAMA DE PROCESO
B3: BASES & SUPUESTOS | F3: Concepto | G3: USD
B4: Vida útil | C4: 25 | D4: años | F4: Planta de clasificación manual
B5: CapEx | C5: =TECNOLOGIAS!K7 -> 16.47704545 | D5: USD/tpa | F5: Total | G5: =C5*C21 -> 3748610.226
B6: OpEx | C6: =TECNOLOGIAS!P7 -> 5.181636364 | D6: USD/tpa
B7: Factor de eficiencia de separación | C7: 0.2 | F7: OPEX / año
B8: Tiempo de construcción | C8: 15 | D8: meses | F8: Concepto | G8: USD
B9: Supuestos de Ingresos | F9: Mantenimiento Maquinaria & Eq. Auxiliares
B10: Tarifa de disposición final | C10: ='INPUT DE DATOS'!C17 -> 15 | D10: ='INPUT DE DATOS'!D17 -> USD/ton | F10: Consumibles
B11: Tarifa de tratamiento | C11: ='INPUT DE DATOS'!C18 -> 24 | D11: ='INPUT DE DATOS'!D18 -> USD/ton | F11: Administración & Operación
B12: Precio valorizables | C12: ='INPUT DE DATOS'!C30 -> 170 | D12: ='INPUT DE DATOS'!D30 -> USD/ton | F12: Subtotal OPEX | G12: =C6*C21 -> 1178848.181
B13: Supuestos Financieros | F13: Costo envío de rechazo a relleno sanitario | G13: =C10*C28 -> 3330673.2
B14: Inflación | C14: ='INPUT DE DATOS'!C38 -> 0.02 | F14: Total | G14: =G12+G13 -> 4509521.381
B15: Tasa de Descuento | C15: ='INPUT DE DATOS'!C40 -> 0.0831
B16: Incremento Anual Energéticos | C16: ='INPUT DE DATOS'!C39 -> 0.04 | F16: Ingresos / año
B17: Cash Flow | C17: ='INPUT DE DATOS'!C41 -> 20 | D17: años | F17: Concepto | G17: USD
F18: Tarifa de Tratamiento | G18: =C11*C21 -> 5460120 | I18: =$B$21 -> Residuos sólidos urbanos | L18: =$B$2 -> Planta de clasificación manual | O18: =$B$27 -> Valorizables
B19: DIMENSIONAMIENTO | F19: Venta de valorizables | G19: =C27*C12 -> 928220.4 | I19: =$C$21 -> 227505 | J19: =$D$21 -> ton/año | O19: =$C$27 -> 5460.12 | P19: =$D$27 -> ton/año
B20: INPUT | F20: Total | G20: =SUM(G18:G19) -> 6388340.4
B21: Residuos sólidos urbanos | C21: ='INPUT DE DATOS'!C10 -> 227505 | D21: ton/año
B22: COMPOSICIÓN | F22: RESULTADOS FINANCIEROS
B23: Fracción orgánica | C23: =C21*'INPUT DE DATOS'!C12 -> 113752.5 | D23: ton/año | F23: CAPEX | G23: =G5 -> 3748610.226
B24: Fracción inorgánica | C24: =C21*'INPUT DE DATOS'!C13 -> 86451.9 | D24: ton/año | F24: OPEX (anual) | G24: =G14 -> 4509521.381
B25: Valorizables | C25: =C21*'INPUT DE DATOS'!C14 -> 27300.6 | D25: ton/año | F25: INGRESOS (anual) | G25: =G20 -> 6388340.4
B26: OUTPUT
B27: Valorizables | C27: =C25*C7 -> 5460.12 | D27: ton/año | F27: FINANCIAMIENTO
B28: Rechazo | C28: =C21-C27 -> 222044.88 | D28: ton/año | F28: Capital aportado | G28: =G23-G29 -> 3748610.226
F29: Deuda adquirida | G29: =G23*'INPUT DE DATOS'!C43 -> 0
F30: Plazo | G30: ='INPUT DE DATOS'!C44 -> 15 | O30: =$B$28 -> Rechazo | R30: Relleno sanitario
F31: Pago anual del crédito con intereses | G31: =IF(AND('INPUT DE DATOS'!C44=0,'INPUT DE DATOS'!C45=0),0,PMT(('INPUT DE DATOS'!C45/12),('INPUT DE DATOS'!C44*12),G29)*12*-1) -> 0 | O31: =$C$28 -> 222044.88 | P31: =$D$28 -> ton/año
F33: ANÁLISIS - CASH FLOW 15 AÑOS EBDTA
F34: Payback | G34: ='T4 CF'!I3 -> 0.9594307387
F35: Payback descontado | G35: ='T4 CF'!I4 -> 1.031186457
F36: TIR (CF 15 años) | G36: ='T4 CF'!I5 -> 1.221785396
F37: VAN (CF 15 años) | G37: ='T4 CF'!I6 -> 52754128.6
I42: DESCRIPCIÓN DE TECNOLOGÍA
I43: T4. Planta de clasificación manual: la función de esta planta es seleccionar el contenido del material entrante mediante una combinación de procesos de separación manuales con el fin de recuperar las fracciones valorizables y prepararlas para su posterior comercialización.

Sheet T4 CF (hidden)
B2: SUPUESTOS FINANCIEROS | D2: DATOS DE FINANCIAMIENTO | H2: RESULTADOS (EBTDA)
B3: Vida útil del proyecto (años) | C3: ='T4'!C4 -> 25 | D3: ='INPUT DE DATOS'!B43 -> Porcentaje de financiamiento | E3: ='INPUT DE DATOS'!C43 -> 0 | H3: Payback | I3: =Q21 -> 0.9594307387
B4: Cash flow (años) | C4: ='T4'!C17 -> 20 | D4: ='INPUT DE DATOS'!B44 -> Plazo de financiamiento | E4: ='INPUT DE DATOS'!C44 -> 15 | H4: Payback descontado | I4: =R21 -> 1.031186457
B5: Inflación | C5: ='T4'!C14 -> 0.02 | D5: ='INPUT DE DATOS'!B45 -> Tasa de interés bancaria | E5: ='INPUT DE DATOS'!C45 -> 0.05 | H5: TIR | I5: =Q22 -> 1.221785396
B6: Tasa de Descuento | C6: ='T4'!C15 -> 0.0831 | D6: ='T7'!F40 -> Capital aportado | E6: ='T4'!G28 -> 3748610.226 | H6: VAN | I6: =Q23 -> 52754128.6
B7: Incentivo Fiscal | C7: No | D7: ='T7'!F41 -> Deuda adquirida | E7: ='T4'!G29 -> 0
B8: Impuestos | C8: - | D8: ='T7'!F43 -> Pago anual del crédito con intereses | E8: ='T4'!G31 -> 0
B9: Incremento anual energéticos | C9: ='T4'!C16 -> 0.04
B11: Ingresos / año | D11: OPEX / año
B12: Concepto | C12: MXN | D12: Concepto | E12: MXN
B13: ='T4'!F18 -> Tarifa de Tratamiento | C13: ='T4'!G18 -> 5460120 | D13: ='T7'!F21 -> Subtotal OPEX | E13: ='T4'!G12 -> 1178848.181
B14: ='T4'!F19 -> Venta de valorizables | C14: ='T4'!G19 -> 928220.4
P17: PROYECTO: EBTDA
Q18: Payback | R18: Payback Descont.
Q19: =IF(VLOOKUP(LOOKUP(0,P28:P53),P28:S53,COUNT(P28:S28),FALSE)>50,"Mas de 50",VLOOKUP(LOOKUP(0,P28:P53),P28:S53,4,FALSE)) -> 0 | R19: =IF(VLOOKUP(LOOKUP(0,R28:R53),R28:S53,2,FALSE)>50,"Mas de 50",VLOOKUP(LOOKUP(0,R28:R53),R28:S53,2,FALSE)) -> 1
B20: Ingresos Totales | C20: =SUM(C13:C19) -> 6388340.4 | D20: Costos Totales | E20: =SUM(E13:E19) -> 1178848.181 | Q20: =IF(Q19>C4,0,-VLOOKUP(Q19,B28:P53,COUNT(B28:P28),FALSE)/(-VLOOKUP(Q19,B28:P53,COUNT(B28:P28),FALSE)+VLOOKUP(Q19+1,B28:P53,COUNT(B28:P28),FALSE))) -> 0.9594307387 | R20: =IF(R19>C4,0,-VLOOKUP(R19,B28:R53,COUNT(B28:R28),FALSE)/(-VLOOKUP(R19,B28:R53,COUNT(B28:R28),FALSE)+VLOOKUP(R19+1,B28:R53,COUNT(B28:R28),FALSE))) -> 0.03118645736
P21: Payback | Q21: =Q19+Q20 -> 0.9594307387 | R21: =IF(VLOOKUP(LOOKUP(0,R28:R53),R28:S53,2,FALSE)>50,"Mas de 50",R19+R20) -> 1.031186457
P22: TIR | Q22: =IFERROR(VLOOKUP(C4,S28:V53,2,0),0) -> 1.221785396
P23: VAN | Q23: =VLOOKUP(C4,S28:V53,3,0) -> 52754128.6
B24: Año | C24: Manejo de residuos | D24: INGRESOS | H24: Ingresos totales | I24: COSTOS / OPEX | L24: Egresos Totales | M24: Utilidad Bruta | N24: CAPEX | O24: Cálculo TIR | P24: Flujo Acumulado | Q24: Utilidad Neta Valor del Tiempo | R24: Flujo Acumulado Descontado | S24: Año | T24: TIR | U24: VAN | V24: VAN
D25: =B13 -> Tarifa de Tratamiento | E25: =B14 -> Venta de valorizables | F25: =B15 -> 0 | G25: =B16 -> 0 | I25: =D13 -> Subtotal OPEX | J25: =D14 -> 0 | K25: Financiamiento
M26: EBTDA | P26: Cáclulo Payback | Q26: Tasa Descuento | T26: Nominal | U26: Tasa de Descuento | V26: TIR Nominal
C27: (ton/año) | D27: =C5 -> 0.02 | E27: =C5 -> 0.02 | F27: =C5 -> 0.02 | G27: =C5 -> 0.02 | I27: =$C$5 -> 0.02 | J27: =C5 -> 0.02 | O27: Cálculo TIR | Q27: =C6 -> 0.0831
B28: 0 | C28: 0 | D28: 0 | E28: 0 | F28: 0 | G28: 0 | H28: =SUM(D28:G28) -> 0 | I28: 0 | J28: 0 | K28: 0 | L28: =SUM(I28:K28) -> 0 | M28: 0 | N28: =-'T4'!G5 -> -3748610.226 | O28: =M28+N28 -> -3748610.226 | P28: =O28 -> -3748610.226 | Q28: =O28*(1+$Q$27)^(-S28) -> -3748610.226 | R28: =Q28 -> -3748610.226 | S28: 0 | T28: 0 | U28: 0 | V28: 0
B29: 1 | C29: =C30*(24-('T4'!C8))/12 -> 170628.75 | D29: =C13*C29/C30 -> 4095090 | E29: =C14*C29/C30 -> 696165.3 | F29: =C15*C29/C30 -> 0 | G29: =C16*C29/C30 -> 0 | H29: =SUM(D29:G29) -> 4791255.3 | I29: =E13*(C29/C30) -> 884136.1357 | J29: =E14*(C29/C30) -> 0 | K29: =IF(B29>E$4,0,E$8) -> 0 | L29: 884136.1357 | M29: =H29-L29 -> 3907119.164 | N29: 0 | O29: =M29+N29 -> 3907119.164 | P29: =P28+O29 -> 158508.9382 | Q29: =O29*(1+$Q$27)^(-S29) -> 3607348.504 | R29: =Q29+R28 -> -141261.7225 | S29: 1 | T29: =IRR($O$28:O29) -> 0.04228472117 | U29: =NPV($Q$27,O29)+O28 -> -141261.7225 | V29: =NPV(T29,O29)+O28 -> 0
B30: 2 | C30: ='T7'!C34 -> 227505 | D30: =C13*(1+D27) -> 5569322.4 | E30: =C14*(1+E27) -> 946784.808 | F30: =C15*(1+F27) -> 0 | G30: =C16*(1+'T4 CF'!G27) -> 0 | H30: =SUM(D30:G30) -> 6516107.208 | I30: =E13*(1+I$27) -> 1202425.145 | J30: =E14*(1+J$27) -> 0 | K30: =IF(B30>E$4,0,E$8) -> 0 | L30: 1202425.145 | M30: 5313682.063 | N30: 0 | O30: =M30+N30 -> 5313682.063 | P30: =P29+O30 -> 5472191.002 | Q30: =O30*(1+$Q$27)^(-S30) -> 4529585.417 | R30: =Q30+R29 -> 4388323.694 | S30: 2 | T30: =IRR($O$28:O30) -> 0.8207948452 | U30: =NPV($Q$27,$O$29:O30)+$O$28 -> 4388323.694 | V30: =NPV(T30,$O$29:O30)+$O$28 -> 0
B31: 3 | C31: =C30 -> 227505 | D31: =D30*(1+D$27) -> 5680708.848 | E31: =E30*(1+E$27) -> 965720.5042 | F31: =F30*(1+F$27) -> 0 | G31: =G30*(1+G$27) -> 0 | H31: 6646429.352 | I31: =I30*(1+I$27) -> 1226473.647 | J31: 0 | K31: 0 | L31: 1226473.647 | M31: 5419955.705 | N31: 0 | O31: =M31+N31 -> 5419955.705 | P31: =P30+O31 -> 10892146.71 | Q31: =O31*(1+$Q$27)^(-S31) -> 4265697.65 | R31: =Q31+R30 -> 8654021.345 | S31: 3 | T31: =IRR(O$28:$O31) -> 1.066684046 | U31: =NPV($Q$27,$O$29:O31)+$O$28 -> 8654021.345 | V31: 0
B32: 4 | C32: =C31 -> 227505 | D32: =D31*(1+D$27) -> 5794323.025 | E32: =E31*(1+E$27) -> 985034.9142 | F32: =F31*(1+F$27) -> 0 | G32: 0 | H32: =SUM(D32:G32) -> 6779357.939 | I32: 1251003.12 | J32: 0 | K32: 0 | L32: 1251003.12 | M32: 5528354.819 | N32: 0 | O32: 5528354.819 | P32: 16420501.53 | Q32: 4017183.643 | R32: 12671204.99 | S32: 4 | T32: =IRR($O$28:O32) -> 1.157090546 | U32: =NPV($Q$27,$O$29:O32)+$O$28 -> 12671204.99 | V32: 0
B33: 5 | C33: 227505 | D33: 5910209.485 | E33: 1004735.613 | F33: 0 | G33: 0 | H33: 6914945.098 | I33: 1276023.183 | J33: 0 | K33: 0 | L33: 1276023.183 | M33: 5638921.915 | N33: 0 | O33: 5638921.915 | P33: 22059423.44 | Q33: 3783147.739 | R33: 16454352.73 | S33: 5 | T33: =IRR($O$28:O33) -> 1.193625759 | U33: =NPV($Q$27,$O$29:O33)+$O$28 -> 16454352.73 | V33: 2.421438694e-08
B34: 6 | C34: 227505 | D34: 6028413.675 | E34: 1024830.325 | F34: 0 | G34: 0 | H34: 7053244 | I34: 1301543.646 | J34: 0 | K34: 0 | L34: 1301543.646 | M34: 5751700.354 | N34: 0 | O34: 5751700.354 | P34: 27811123.79 | Q34: 3562746.462 | R34: 20017099.19 | S34: 6 | T34: =IRR($O$28:O34) -> 1.20923097 | U34: =NPV($Q$27,$O$29:O34)+$O$28 -> 20017099.19 | V34: 0
B35: 7 | C35: 227505 | D35: 6148981.949 | E35: 1045326.931 | F35: 0 | G35: 0 | H35: =SUM(D35:G35) -> 7194308.88 | I35: 1327574.519 | J35: 0 | K35: 0 | L35: 1327574.519 | M35: 5866734.361 | N35: 0 | O35: 5866734.361 | P35: 33677858.15 | Q35: 3355185.478 | R35: 23372284.67 | S35: 7 | T35: =IRR($O$28:O35) -> 1.216112797 | U35: 23372284.67 | V35: 0
B36: 8 | C36: 227505 | D36: 6271961.588 | E36: 1066233.47 | F36: 0 | G36: 0 | H36: =SUM(D36:G36) -> 7338195.058 | I36: 1354126.01 | J36: 0 | K36: 0 | L36: 1354126.01 | M36: 5984069.048 | N36: 0 | O36: 5984069.048 | P36: 39661927.2 | Q36: 3159716.728 | R36: 26532001.39 | S36: 8 | T36: =IRR($O$28:O36) -> 1.219203323 | U36: 26532001.39 | V36: =NPV(T36,$O$29:O36)+$O$28 -> 1.629814506e-08
B37: 9 | C37: 227505 | D37: 6397400.819 | E37: 1087558.139 | F37: 0 | G37: 0 | H37: 7484958.959 | I37: 1381208.53 | J37: 0 | K37: 0 | L37: 1381208.53 | M37: 6103750.429 | N37: 0 | O37: 6103750.429 | P37: 45765677.63 | Q37: =O37*(1+$Q$27)^(-S37) -> 2975635.733 | R37: 29507637.13 | S37: 9 | T37: =IRR($O$28:O37) -> 1.220605411 | U37: 29507637.13 | V37: 0
B38: 10 | C38: 227505 | D38: 6525348.836 | E38: 1109309.302 | F38: 0 | G38: 0 | H38: 7634658.138 | I38: 1408832.701 | J38: 0 | K38: 0 | L38: 1408832.701 | M38: 6225825.437 | N38: 0 | O38: 6225825.437 | P38: =P37+O38 -> 51991503.07 | Q38: 2802279.058 | R38: 32309916.19 | S38: 10 | T38: =IRR($O$28:O38) -> 1.221245059 | U38: 32309916.19 | V38: 0
B39: 11 | C39: 227505 | D39: 6655855.813 | E39: 1131495.488 | F39: 0 | G39: 0 | H39: 7787351.301 | I39: 1437009.355 | J39: 0 | K39: 0 | L39: 1437009.355 | M39: 6350341.946 | N39: 0 | O39: 6350341.946 | P39: 58341845.01 | Q39: 2639021.918 | R39: 34948938.1 | S39: 11 | T39: =IRR($O$28:O39) -> 1.221537751 | U39: 34948938.1 | V39: 0
B40: 12 | C40: 227505 | D40: 6788972.929 | E40: 1154125.398 | F40: 0 | G40: 0 | H40: 7943098.327 | I40: 1465749.542 | J40: 0 | K40: 0 | L40: 1465749.542 | M40: 6477348.785 | N40: 0 | O40: 6477348.785 | P40: 64819193.8 | Q40: 2485275.927 | R40: =Q40+R39 -> 37434214.03 | S40: 12 | T40: =IRR($O$28:O40) -> 1.221671895 | U40: 37434214.03 | V40: 0
B41: 13 | C41: 227505 | D41: 6924752.387 | E41: 1177207.906 | F41: 0 | G41: 0 | H41: 8101960.293 | I41: 1495064.532 | J41: 0 | K41: 0 | L41: 1495064.532 | M41: 6606895.761 | N41: 0 | O41: 6606895.761 | P41: 71426089.56 | Q41: 2340486.977 | R41: =Q41+R40 -> 39774701.01 | S41: 13 | T41: =IRR($O$28:O41) -> 1.221733427 | U41: 39774701.01 | V41: 3.725290298e-09
B42: 14 | C42: 227505 | D42: 7063247.435 | E42: 1200752.064 | F42: 0 | G42: 0 | H42: 8263999.499 | I42: 1524965.823 | J42: 0 | K42: 0 | L42: 1524965.823 | M42: 6739033.676 | N42: 0 | O42: 6739033.676 | P42: 78165123.24 | Q42: 2204133.244 | R42: 41978834.25 | S42: 14 | T42: =IRR($O$28:O42) -> 1.221761663 | U42: 41978834.25 | V42: 6.053596735e-09
B43: 15 | C43: 227505 | D43: 7204512.384 | E43: 1224767.105 | F43: 0 | G43: 0 | H43: 8429279.489 | I43: 1555465.14 | J43: 0 | K43: 0 | L43: 1555465.14 | M43: 6873814.349 | N43: 0 | O43: 6873814.349 | P43: 85038937.59 | Q43: 2075723.303 | R43: 44054557.55 | S43: 15 | T43: =IRR($O$28:O43) -> 1.221774623 | U43: 44054557.55 | V43: 2.93366611e-08
B44: 16 | C44: 227505 | D44: 7348602.631 | E44: 1249262.447 | F44: 0 | G44: 0 | H44: 8597865.079 | I44: 1586574.442 | J44: 0 | K44: 0 | L44: 1586574.442 | M44: 7011290.636 | N44: 0 | O44: 7011290.636 | P44: 92050228.22 | Q44: 1954794.358 | R44: 46009351.91 | S44: 16 | T44: =IRR($O$28:O44) -> 1.221780572 | U44: 46009351.91 | V44: 0
B45: 17 | C45: 227505 | D45: 7495574.684 | E45: 1274247.696 | F45: 0 | G45: 0 | H45: 8769822.38 | I45: 1618305.931 | J45: 0 | K45: 0 | L45: 1618305.931 | M45: 7151516.449 | N45: 0 | O45: 7151516.449 | P45: =P44+O45 -> 99201744.67 | Q45: 1840910.576 | R45: 47850262.49 | S45: 17 | T45: =IRR($O$28:O45) -> 1.221783303 | U45: 47850262.49 | V45: 0
B46: 18 | C46: 227505 | D46: 7645486.178 | E46: 1299732.65 | F46: 0 | G46: 0 | H46: 8945218.828 | I46: 1650672.05 | J46: 0 | K46: 0 | L46: 1650672.05 | M46: 7294546.778 | N46: 0 | O46: 7294546.778 | P46: 106496291.4 | Q46: 1733661.515 | R46: 49583924 | S46: 18 | T46: =IRR($O$28:O46) -> 1.221784557 | U46: 49583924 | V46: =NPV(T46,$O$29:O46)+$O$28 -> 0
B47: 19 | C47: 227505 | D47: 7798395.901 | E47: 1325727.303 | F47: 0 | G47: 0 | H47: 9124123.205 | I47: =I46*(1+I$27) -> 1683685.491 | J47: 0 | K47: 0 | L47: 1683685.491 | M47: 7440437.714 | N47: 0 | O47: 7440437.714 | P47: 113936729.2 | Q47: =O47*(1+$Q$27)^(-S47) -> 1632660.646 | R47: 51216584.65 | S47: 19 | T47: =IRR($O$28:O47) -> 1.221785132 | U47: 51216584.65 | V47: 0
B48: 20 | C48: 227505 | D48: =D47*(1+D$27) -> 7954363.819 | E48: 1352241.849 | F48: 0 | G48: 0 | H48: 9306605.669 | I48: 1717359.201 | J48: 0 | K48: 0 | L48: 1717359.201 | M48: 7589246.468 | N48: 0 | O48: 7589246.468 | P48: 121525975.6 | Q48: =O48*(1+$Q$27)^(-S48) -> 1537543.956 | R48: 52754128.6 | S48: 20 | T48: =IRR($O$28:O48) -> 1.221785396 | U48: 52754128.6 | V48: 0
B49: 21 | C49: 227505 | D49: 8113451.096 | E49: 1379286.686 | F49: 0 | G49: 0 | H49: 9492737.782 | I49: 1751706.385 | J49: 0 | K49: 0 | L49: 1751706.385 | M49: 7741031.397 | N49: 0 | O49: 7741031.397 | P49: 129267007 | Q49: 1447968.641 | R49: 54202097.25 | S49: 21 | T49: =IRR($O$28:O49) -> 1.221785518 | U49: 54202097.25 | V49: 0
B50: 22 | C50: 227505 | D50: 8275720.118 | E50: 1406872.42 | F50: 0 | G50: 0 | H50: 9682592.538 | I50: 1786740.512 | J50: 0 | K50: 0 | L50: 1786740.512 | M50: 7895852.025 | N50: 0 | O50: 7895852.025 | P50: 137162859.1 | Q50: 1363611.868 | R50: 55565709.11 | S50: 22 | T50: =IRR($O$28:O50) -> 1.221785573 | U50: 55565709.11 | V50: 0
B51: 23 | C51: 227505 | D51: 8441234.52 | E51: 1435009.868 | F51: 0 | G51: 0 | H51: 9876244.388 | I51: 1822475.323 | J51: 0 | K51: 0 | L51: 1822475.323 | M51: 8053769.066 | N51: 0 | O51: 8053769.066 | P51: 145216628.1 | Q51: 1284169.611 | R51: 56849878.72 | S51: 23 | T51: =IRR($O$28:O51) -> 1.221785599 | U51: 56849878.72 | V51: 0
B52: 24 | C52: 227505 | D52: 8610059.21 | E52: 1463710.066 | F52: 0 | G52: 0 | H52: 10073769.28 | I52: 1858924.829 | J52: 0 | K52: 0 | L52: 1858924.829 | M52: 8214844.447 | N52: 0 | O52: 8214844.447 | P52: 153431472.6 | Q52: 1209355.556 | R52: 58059234.28 | S52: 24 | T52: =IRR($O$28:O52) -> 1.221785611 | U52: 58059234.28 | V52: 0
B53: 25 | C53: 227505 | D53: 8782260.395 | E53: 1492984.267 | F53: 0 | G53: 0 | H53: =SUM(D53:G53) -> 10275244.66 | I53: 1896103.326 | J53: 0 | K53: 0 | L53: 1896103.326 | M53: 8379141.336 | N53: 0 | O53: 8379141.336 | P53: 161810613.9 | Q53: 1138900.071 | R53: 59198134.35 | S53: 25 | T53: =IRR($O$28:O53) -> 1.221785616 | U53: 59198134.35 | V53: 0

Sheet T5 (hidden)
B2: =TECNOLOGIAS!C8 -> Planta de clasificación automática (CDR) | F2: CAPEX | I2: DIAGRAMA DE PROCESO
B3: BASES & SUPUESTOS | F3: Concepto | G3: USD
B4: Vida útil | C4: 25 | D4: años | F4: Planta de clasificación automática
B5: CapEx | C5: =TECNOLOGIAS!K8 -> 31.97572581 | D5: USD/tpa | F5: Total | G5: =C5*C23 -> 7274637.5
B6: OpEx | C6: =TECNOLOGIAS!P8 -> 14.37087097 | D6: USD/tpa
B7: Proporción CDR | C7: 0.8 | D7: ton/ton de inorgánico | F7: OPEX / año | P7: =$B$30 -> CDR
B8: Factor de eficiencia de separación | C8: 0.4 | F8: Concepto | G8: USD | P8: =$C$30 -> 85541.88 | Q8: =$D$30 -> ton/año
B9: Tiempo de construcción | C9: 15 | D9: meses | F9: Mantenimiento Maquinaria & Eq. Auxiliares
B10: SUPUESTOS DE INGRESOS | F10: Consumibles
B11: Tarifa de disposición final | C11: ='INPUT DE DATOS'!C17 -> 15 | D11: ='INPUT DE DATOS'!D17 -> USD/ton | F11: Administración & Operación
B12: Tarifa de tratamiento | C12: ='INPUT DE DATOS'!C18 -> 24 | D12: ='INPUT DE DATOS'!D18 -> USD/ton | F12: Subtotal OPEX | G12: =C6*C23 -> 3269445
B13: Precio valorizables | C13: ='INPUT DE DATOS'!C30 -> 170 | D13: USD/ton | F13: Costo envío de rechazo a relleno sanitario | G13: =C31*C11 -> 1965643.2
B14: Precio CDR | C14: ='INPUT DE DATOS'!C31 -> 0 | D14: USD/ton | F14: Total | G14: =G12+G13 -> 5235088.2
B15: SUPUESTOS FINANCIEROS | I15: =$B$23 -> Residuos sólidos urbanos | K15: Planta de clasificación automática
B16: Inflación | C16: ='INPUT DE DATOS'!C38 -> 0.02 | F16: Ingresos / año | I16: =$C$23 -> 227505 | J16: =$D$23 -> ton/año
B17: Tasa de Descuento | C17: ='INPUT DE DATOS'!C40 -> 0.0831 | F17: Concepto | G17: USD
B18: Incremento Anual Energéticos | C18: ='INPUT DE DATOS'!C39 -> 0.04 | F18: Tarifa de Tratamiento | G18: =C12*C23 -> 5460120 | P18: =$B$27 -> Valorizables
B19: Cash Flow | C19: ='INPUT DE DATOS'!C41 -> 20 | D19: años | F19: Venta de valorizables | G19: =C29*C13 -> 1856440.8 | P19: =$C$29 -> 10920.24 | Q19: =$D$29 -> ton/año
F20: Venta de CDR | G20: =C30*C14 -> 0
B21: DIMENSIONAMIENTO | F21: Total | G21: =SUM(G18:G20) -> 7316560.8
B22: INPUT
B23: Residuos sólidos urbanos | C23: ='INPUT DE DATOS'!C10 -> 227505 | D23: ton/año | F23: RESULTADOS FINANCIEROS
B24: COMPOSICIÓN | F24: CAPEX | G24: =G5 -> 7274637.5
B25: Fracción orgánica | C25: =C23*'INPUT DE DATOS'!C12 -> 113752.5 | D25: ton/año | F25: OPEX (anual) | G25: =G14 -> 5235088.2
B26: Fracción inorgánica | C26: =C23*'INPUT DE DATOS'!C13 -> 86451.9 | D26: ton/año | F26: INGRESOS (anual) | G26: =G21 -> 7316560.8 | O26: =$B$31 -> Rechazo | R26: Relleno sanitario
B27: Valorizables | C27: =C23*'INPUT DE DATOS'!C14 -> 27300.6 | D27: ton/año | O27: =$C$31 -> 131042.88 | P27: =$D$31 -> ton/año
B28: OUTPUT | F28: FINANCIAMIENTO
B29: Valorizables | C29: =C27*C8 -> 10920.24 | D29: ton/año | F29: Capital aportado | G29: =G24-G30 -> 7274637.5
B30: CDR | C30: =C26*C7+C27-C29 -> 85541.88 | D30: ton/año | F30: Deuda adquirida | G30: =G24*'INPUT DE DATOS'!C43 -> 0
B31: Rechazo | C31: =C26+C27-C29-C30+C25 -> 131042.88 | D31: ton/año | F31: Plazo | G31: ='INPUT DE DATOS'!C44 -> 15
F32: Pago anual del crédito con intereses | G32: =IF(AND('INPUT DE DATOS'!C44=0,'INPUT DE DATOS'!C45=0),0,PMT(('INPUT DE DATOS'!C45/12),('INPUT DE DATOS'!C44*12),G30)*12*-1) -> 0
F34: ANÁLISIS - CASH FLOW 15 AÑOS EBDTA
F35: Payback | G35: ='T5 CF'!I3 -> 2.026419518
F36: Payback descontado | G36: ='T5 CF'!I4 -> 2.287657501
F37: TIR (CF 15 años) | G37: ='T5 CF'!I5 -> 0.5298147886
F38: VAN (CF 15 años) | G38: ='T5 CF'!I6 -> 36620835.89
I42: DESCRIPCIÓN DE TECNOLOGÍA
I43: T5. Planta de clasificación automática: la función de esta planta es seleccionar el contenido del material entrante mediante una combinación de procesos de separación mecánicos o automatizados con el fin de recuperar las fracciones valorizables y prepararlas para su posterior comercialización.

Sheet T5 CF (hidden)
B2: SUPUESTOS FINANCIEROS | D2: DATOS DE FINANCIAMIENTO | H2: RESULTADOS (EBTDA)
B3: Vida útil del proyecto (años) | C3: ='T5'!C4 -> 25 | D3: ='INPUT DE DATOS'!B43 -> Porcentaje de financiamiento | E3: ='INPUT DE DATOS'!C43 -> 0 | H3: Payback | I3: =Q21 -> 2.026419518
B4: Cash flow (años) | C4: ='T5'!C19 -> 20 | D4: ='INPUT DE DATOS'!B44 -> Plazo de financiamiento | E4: ='INPUT DE DATOS'!C44 -> 15 | H4: Payback descontado | I4: =R21 -> 2.287657501
B5: Inflación | C5: ='T5'!C16 -> 0.02 | D5: ='INPUT DE DATOS'!B45 -> Tasa de interés bancaria | E5: ='INPUT DE DATOS'!C45 -> 0.05 | H5: TIR | I5: =Q22 -> 0.5298147886
B6: Tasa de Descuento | C6: ='T5'!C17 -> 0.0831 | D6: ='T7'!F40 -> Capital aportado | E6: ='T5'!G29 -> 7274637.5 | H6: VAN | I6: =Q23 -> 36620835.89
B7: Incentivo Fiscal | C7: No | D7: ='T7'!F41 -> Deuda adquirida | E7: ='T5'!G30 -> 0
B8: Impuestos | C8: - | D8: ='T7'!F43 -> Pago anual del crédito con intereses | E8: ='T5'!G32 -> 0
B9: Incremento anual energéticos | C9: ='T5'!C18 -> 0.04
B11: Ingresos / año | D11: OPEX / año
B12: Concepto | C12: MXN | D12: Concepto | E12: MXN
B13: ='T5'!F18 -> Tarifa de Tratamiento | C13: ='T5'!G18 -> 5460120 | D13: ='T7'!F21 -> Subtotal OPEX | E13: ='T5'!G12 -> 3269445
B14: ='T5'!F19 -> Venta de valorizables | C14: ='T5'!G19 -> 1856440.8
B15: ='T5'!F20 -> Venta de CDR | C15: ='T5'!G20 -> 0
P17: PROYECTO: EBTDA
Q18: Payback | R18: Payback Descont.
Q19: =IF(VLOOKUP(LOOKUP(0,P28:P53),P28:S53,COUNT(P28:S28),FALSE)>50,"Mas de 50",VLOOKUP(LOOKUP(0,P28:P53),P28:S53,4,FALSE)) -> 2 | R19: =IF(VLOOKUP(LOOKUP(0,R28:R53),R28:S53,2,FALSE)>50,"Mas de 50",VLOOKUP(LOOKUP(0,R28:R53),R28:S53,2,FALSE)) -> 2
B20: Ingresos Totales | C20: =SUM(C13:C19) -> 7316560.8 | D20: Costos Totales | E20: =SUM(E13:E19) -> 3269445 | Q20: =IF(Q19>C4,0,-VLOOKUP(Q19,B28:P53,COUNT(B28:P28),FALSE)/(-VLOOKUP(Q19,B28:P53,COUNT(B28:P28),FALSE)+VLOOKUP(Q19+1,B28:P53,COUNT(B28:P28),FALSE))) -> 0.02641951822 | R20: =IF(R19>C4,0,-VLOOKUP(R19,B28:R53,COUNT(B28:R28),FALSE)/(-VLOOKUP(R19,B28:R53,COUNT(B28:R28),FALSE)+VLOOKUP(R19+1,B28:R53,COUNT(B28:R28),FALSE))) -> 0.2876575009
P21: Payback | Q21: =Q19+Q20 -> 2.026419518 | R21: =IF(VLOOKUP(LOOKUP(0,R28:R53),R28:S53,2,FALSE)>50,"Mas de 50",R19+R20) -> 2.287657501
P22: TIR | Q22: =IFERROR(VLOOKUP(C4,S28:V53,2,0),0) -> 0.5298147886
P23: VAN | Q23: =VLOOKUP(C4,S28:V53,3,0) -> 36620835.89
B24: Año | C24: Manejo de residuos | D24: INGRESOS | H24: Ingresos totales | I24: COSTOS / OPEX | L24: Egresos Totales | M24: Utilidad Bruta | N24: CAPEX | O24: Cálculo TIR | P24: Flujo Acumulado | Q24: Utilidad Neta Valor del Tiempo | R24: Flujo Acumulado Descontado | S24: Año | T24: TIR | U24: VAN | V24: VAN
D25: =B13 -> Tarifa de Tratamiento | E25: =B14 -> Venta de valorizables | F25: =B15 -> Venta de CDR | G25: =B16 -> 0 | I25: =D13 -> Subtotal OPEX | J25: =D14 -> 0 | K25: Financiamiento
M26: EBTDA | P26: Cáclulo Payback | Q26: Tasa Descuento | T26: Nominal | U26: Tasa de Descuento | V26: TIR Nominal
C27: (ton/año) | D27: =C5 -> 0.02 | E27: =C5 -> 0.02 | F27: =C5 -> 0.02 | G27: =C5 -> 0.02 | I27: =$C$5 -> 0.02 | J27: =C5 -> 0.02 | O27: Cálculo TIR | Q27: =C6 -> 0.0831
B28: 0 | C28: 0 | D28: 0 | E28: 0 | F28: 0 | G28: 0 | H28: =SUM(D28:G28) -> 0 | I28: 0 | J28: 0 | K28: 0 | L28: =SUM(I28:K28) -> 0 | M28: 0 | N28: =-'T5'!G5 -> -7274637.5 | O28: =M28+N28 -> -7274637.5 | P28: =O28 -> -7274637.5 | Q28: =O28*(1+$Q$27)^(-S28) -> -7274637.5 | R28: =Q28 -> -7274637.5 | S28: 0 | T28: 0 | U28: 0 | V28: 0
B29: 1 | C29: =C30*(24-('T5'!C9))/12 -> 170628.75 | D29: =C13*C29/C30 -> 4095090 | E29: =C14*C29/C30 -> 1392330.6 | F29: =C15*C29/C30 -> 0 | G29: =C16*C29/C30 -> 0 | H29: =SUM(D29:G29) -> 5487420.6 | I29: =E13*(C29/C30) -> 2452083.75 | J29: =E14*(C29/C30) -> 0 | K29: =IF(B29>E$4,0,E$8) -> 0 | L29: 2452083.75 | M29: =H29-L29 -> 3035336.85 | N29: 0 | O29: =M29+N29 -> 3035336.85 | P29: =P28+O29 -> -4239300.649 | Q29: =O29*(1+$Q$27)^(-S29) -> 2802453.006 | R29: =Q29+R28 -> -4472184.494 | S29: 1 | T29: =IRR($O$28:O29) -> -0.5827507762 | U29: =NPV($Q$27,O29)+O28 -> -4472184.494 | V29: =NPV(T29,O29)+O28 -> 0
B30: 2 | C30: ='T7'!C34 -> 227505 | D30: =C13*(1+D27) -> 5569322.4 | E30: =C14*(1+E27) -> 1893569.616 | F30: =C15*(1+F27) -> 0 | G30: =C16*(1+'T5 CF'!G27) -> 0 | H30: =SUM(D30:G30) -> 7462892.016 | I30: =E13*(1+I$27) -> 3334833.9 | J30: =E14*(1+J$27) -> 0 | K30: =IF(B30>E$4,0,E$8) -> 0 | L30: 3334833.9 | M30: 4128058.116 | N30: 0 | O30: =M30+N30 -> 4128058.116 | P30: =P29+O30 -> -111242.5327 | Q30: =O30*(1+$Q$27)^(-S30) -> 3518914.309 | R30: =Q30+R29 -> -953270.1854 | S30: 2 | T30: =IRR($O$28:O30) -> -0.009721261819 | U30: =NPV($Q$27,$O$29:O30)+$O$28 -> -953270.1854 | V30: =NPV(T30,$O$29:O30)+$O$28 -> 0
B31: 3 | C31: =C30 -> 227505 | D31: =D30*(1+D$27) -> 5680708.848 | E31: =E30*(1+E$27) -> 1931441.008 | F31: =F30*(1+F$27) -> 0 | G31: =G30*(1+G$27) -> 0 | H31: =SUM(D31:G31) -> 7612149.856 | I31: =I30*(1+I$27) -> 3401530.577 | J31: 0 | K31: 0 | L31: 3401530.577 | M31: 4210619.279 | N31: 0 | O31: =M31+N31 -> 4210619.279 | P31: =P30+O31 -> 4099376.746 | Q31: =O31*(1+$Q$27)^(-S31) -> 3313906.929 | R31: =Q31+R30 -> 2360636.744 | S31: 3 | T31: =IRR(O$28:$O31) -> 0.2457419624 | U31: =NPV($Q$27,$O$29:O31)+$O$28 -> 2360636.744 | V31: 0
B32: 4 | C32: =C31 -> 227505 | D32: =D31*(1+D$27) -> 5794323.025 | E32: =E31*(1+E$27) -> 1970069.828 | F32: =F31*(1+F$27) -> 0 | G32: 0 | H32: =SUM(D32:G32) -> 7764392.853 | I32: 3469561.189 | J32: 0 | K32: 0 | L32: 3469561.189 | M32: 4294831.664 | N32: 0 | O32: 4294831.664 | P32: 8394208.41 | Q32: 3120843.013 | R32: 5481479.757 | S32: 4 | T32: =IRR($O$28:O32) -> 0.3697511332 | U32: =NPV($Q$27,$O$29:O32)+$O$28 -> 5481479.757 | V32: 2.235174179e-08
B33: 5 | C33: 227505 | D33: 5910209.485 | E33: 2009471.225 | F33: 0 | G33: 0 | H33: 7919680.711 | I33: 3538952.413 | J33: 0 | K33: 0 | L33: 3538952.413 | M33: 4380728.298 | N33: 0 | O33: 4380728.298 | P33: 12774936.71 | Q33: 2939026.75 | R33: 8420506.507 | S33: 5 | T33: =IRR($O$28:O33) -> 0.4352325302 | U33: =NPV($Q$27,$O$29:O33)+$O$28 -> 8420506.507 | V33: 0
B34: 6 | C34: 227505 | D34: 6028413.675 | E34: 2049660.65 | F34: 0 | G34: 0 | H34: 8078074.325 | I34: 3609731.461 | J34: 0 | K34: 0 | L34: 3609731.461 | M34: 4468342.864 | N34: 0 | O34: 4468342.864 | P34: 17243279.57 | Q34: 2767802.867 | R34: 11188309.37 | S34: 6 | T34: =IRR($O$28:O34) -> 0.4720464227 | U34: =NPV($Q$27,$O$29:O34)+$O$28 -> 11188309.37 | V34: 1.583248377e-08
B35: 7 | C35: 227505 | D35: 6148981.949 | E35: 2090653.863 | F35: 0 | G35: 0 | H35: =SUM(D35:G35) -> 8239635.811 | I35: 3681926.09 | J35: 0 | K35: 0 | L35: 3681926.09 | M35: 4557709.721 | N35: 0 | O35: 4557709.721 | P35: 21800989.29 | Q35: 2606554.265 | R35: 13794863.64 | S35: 7 | T35: =IRR($O$28:O35) -> 0.4937046663 | U35: 13794863.64 | V35: 0
B36: 8 | C36: 227505 | D36: 6271961.588 | E36: 2132466.94 | F36: 0 | G36: 0 | H36: =SUM(D36:G36) -> 8404428.527 | I36: 3755564.612 | J36: 0 | K36: 0 | L36: 3755564.612 | M36: 4648863.915 | N36: 0 | O36: 4648863.915 | P36: 26449853.21 | Q36: 2454699.797 | R36: 16249563.44 | S36: 8 | T36: =IRR($O$28:O36) -> 0.5068743196 | U36: 16249563.44 | V36: =NPV(T36,$O$29:O36)+$O$28 -> 0
B37: 9 | C37: 227505 | D37: 6397400.819 | E37: 2175116.279 | F37: 0 | G37: 0 | H37: 8572517.098 | I37: 3830675.904 | J37: 0 | K37: 0 | L37: 3830675.904 | M37: 4741841.194 | N37: 0 | O37: 4741841.194 | P37: 31191694.4 | Q37: =O37*(1+$Q$27)^(-S37) -> 2311692.174 | R37: 18561255.61 | S37: 9 | T37: =IRR($O$28:O37) -> 0.51507855 | U37: 18561255.61 | V37: 0
B38: 10 | C38: 227505 | D38: 6525348.836 | E38: 2218618.604 | F38: 0 | G38: 0 | H38: 8743967.44 | I38: 3907289.422 | J38: 0 | K38: 0 | L38: 3907289.422 | M38: 4836678.018 | N38: 0 | O38: 4836678.018 | P38: =P37+O38 -> 36028372.42 | Q38: 2177015.988 | R38: 20738271.6 | S38: 10 | T38: =IRR($O$28:O38) -> 0.5202815729 | U38: 20738271.6 | V38: 3.259629011e-08
B39: 11 | C39: 227505 | D39: 6655855.813 | E39: 2262990.976 | F39: 0 | G39: 0 | H39: 8918846.789 | I39: 3985435.211 | J39: 0 | K39: 0 | L39: 3985435.211 | M39: 4933411.578 | N39: 0 | O39: 4933411.578 | P39: 40961784 | Q39: 2050185.863 | R39: 22788457.46 | S39: 11 | T39: =IRR($O$28:O39) -> 0.5236251669 | U39: 22788457.46 | V39: 0
B40: 12 | C40: 227505 | D40: 6788972.929 | E40: 2308250.796 | F40: 0 | G40: 0 | H40: 9097223.725 | I40: 4065143.915 | J40: 0 | K40: 0 | L40: 4065143.915 | M40: 5032079.809 | N40: 0 | O40: 5032079.809 | P40: 45993863.81 | Q40: 1930744.696 | R40: =Q40+R39 -> 24719202.16 | S40: 12 | T40: =IRR($O$28:O40) -> 0.5257949905 | U40: 24719202.16 | V40: 0
B41: 13 | C41: 227505 | D41: 6924752.387 | E41: 2354415.812 | F41: 0 | G41: 0 | H41: 9279168.199 | I41: 4146446.793 | J41: 0 | K41: 0 | L41: 4146446.793 | M41: 5132721.406 | N41: 0 | O41: 5132721.406 | P41: 51126585.21 | Q41: 1818262.016 | R41: =Q41+R40 -> 26537464.17 | S41: 13 | T41: =IRR($O$28:O41) -> 0.5272133422 | U41: 26537464.17 | V41: 0
B42: 14 | C42: 227505 | D42: 7063247.435 | E42: 2401504.128 | F42: 0 | G42: 0 | H42: 9464751.563 | I42: 4229375.729 | J42: 0 | K42: 0 | L42: 4229375.729 | M42: 5235375.834 | N42: 0 | O42: 5235375.834 | P42: 56361961.05 | Q42: 1712332.432 | R42: 28249796.61 | S42: 14 | T42: =IRR($O$28:O42) -> 0.5281454558 | U42: 28249796.61 | V42: 0
B43: 15 | C43: 227505 | D43: 7204512.384 | E43: 2449534.21 | F43: 0 | G43: 0 | H43: 9654046.594 | I43: 4313963.244 | J43: 0 | K43: 0 | L43: 4313963.244 | M43: 5340083.35 | N43: 0 | O43: 5340083.35 | P43: 61702044.4 | Q43: 1612574.167 | R43: 29862370.77 | S43: 15 | T43: =IRR($O$28:O43) -> 0.5287604421 | U43: 29862370.77 | V43: 0
B44: 16 | C44: 227505 | D44: 7348602.631 | E44: 2498524.895 | F44: 0 | G44: 0 | H44: 9847127.526 | I44: 4400242.509 | J44: 0 | K44: 0 | L44: 4400242.509 | M44: 5446885.017 | N44: 0 | O44: 5446885.017 | P44: 67148929.41 | Q44: 1518627.689 | R44: 31380998.46 | S44: 16 | T44: =IRR($O$28:O44) -> 0.5291673696 | U44: 31380998.46 | V44: 0
B45: 17 | C45: 227505 | D45: 7495574.684 | E45: 2548495.393 | F45: 0 | G45: 0 | H45: 10044070.08 | I45: 4488247.359 | J45: 0 | K45: 0 | L45: 4488247.359 | M45: 5555822.718 | N45: 0 | O45: 5555822.718 | P45: =P44+O45 -> 72704752.13 | Q45: 1430154.412 | R45: 32811152.87 | S45: 17 | T45: =IRR($O$28:O45) -> 0.5294371962 | U45: 32811152.87 | V45: 0
B46: 18 | C46: 227505 | D46: 7645486.178 | E46: 2599465.3 | F46: 0 | G46: 0 | H46: 10244951.48 | I46: 4578012.306 | J46: 0 | K46: 0 | L46: 4578012.306 | M46: 5666939.172 | N46: 0 | O46: 5666939.172 | P46: 78371691.3 | Q46: 1346835.472 | R46: 34157988.35 | S46: 18 | T46: =IRR($O$28:O46) -> 0.529616388 | U46: 34157988.35 | V46: =NPV(T46,$O$29:O46)+$O$28 -> 2.700835466e-08
B47: 19 | C47: 227505 | D47: 7798395.901 | E47: 2651454.606 | F47: 0 | G47: 0 | H47: 10449850.51 | I47: =I46*(1+I$27) -> 4669572.552 | J47: 0 | K47: 0 | L47: 4669572.552 | M47: 5780277.956 | N47: 0 | O47: 5780277.956 | P47: 84151969.26 | Q47: =O47*(1+$Q$27)^(-S47) -> 1268370.586 | R47: 35426358.93 | S47: 19 | T47: =IRR($O$28:O47) -> 0.5297355212 | U47: 35426358.93 | V47: 7.264316082e-08
B48: 20 | C48: 227505 | D48: =D47*(1+D$27) -> 7954363.819 | E48: 2704483.699 | F48: 0 | G48: 0 | H48: 10658847.52 | I48: 4762964.003 | J48: 0 | K48: 0 | L48: 4762964.003 | M48: 5895883.515 | N48: 0 | O48: 5895883.515 | P48: 90047852.77 | Q48: =O48*(1+$Q$27)^(-S48) -> 1194476.962 | R48: 36620835.89 | S48: 20 | T48: =IRR($O$28:O48) -> 0.5298147886 | U48: 36620835.89 | V48: 0
B49: 21 | C49: 227505 | D49: 8113451.096 | E49: 2758573.373 | F49: 0 | G49: 0 | H49: 10872024.47 | I49: 4858223.283 | J49: 0 | K49: 0 | L49: 4858223.283 | M49: 6013801.185 | N49: 0 | O49: 6013801.185 | P49: 96061653.96 | Q49: 1124888.285 | R49: 37745724.18 | S49: 21 | T49: =IRR($O$28:O49) -> 0.5298675608 | U49: 37745724.18 | V49: 0
B50: 22 | C50: 227505 | D50: 8275720.118 | E50: 2813744.84 | F50: 0 | G50: 0 | H50: 11089464.96 | I50: 4955387.749 | J50: 0 | K50: 0 | L50: 4955387.749 | M50: 6134077.209 | N50: 0 | O50: 6134077.209 | P50: 102195731.2 | Q50: 1059353.754 | R50: 38805077.93 | S50: 22 | T50: =IRR($O$28:O50) -> 0.5299027082 | U50: 38805077.93 | V50: 0
B51: 23 | C51: 227505 | D51: 8441234.52 | E51: 2870019.737 | F51: 0 | G51: 0 | H51: 11311254.26 | I51: 5054495.504 | J51: 0 | K51: 0 | L51: 5054495.504 | M51: 6256758.753 | N51: 0 | O51: 6256758.753 | P51: 108452489.9 | Q51: 997637.179 | R51: 39802715.11 | S51: 23 | T51: =IRR($O$28:O51) -> 0.5299261239 | U51: 39802715.11 | V51: 0
B52: 24 | C52: 227505 | D52: 8610059.21 | E52: 2927420.132 | F52: 0 | G52: 0 | H52: 11537479.34 | I52: 5155585.414 | J52: 0 | K52: 0 | L52: 5155585.414 | M52: 6381893.928 | N52: 0 | O52: 6381893.928 | P52: 114834383.8 | Q52: 939516.132 | R52: 40742231.24 | S52: 24 | T52: =IRR($O$28:O52) -> 0.5299417271 | U52: 40742231.24 | V52: 0
B53: 25 | C53: 227505 | D53: 8782260.395 | E53: 2985968.534 | F53: 0 | G53: 0 | H53: =SUM(D53:G53) -> 11768228.93 | I53: 5258697.122 | J53: 0 | K53: 0 | L53: 5258697.122 | M53: 6509531.806 | N53: 0 | O53: 6509531.806 | P53: 121343915.7 | Q53: 884781.1418 | R53: 41627012.38 | S53: 25 | T53: =IRR($O$28:O53) -> 0.5299521258 | U53: 41627012.38 | V53: 0

Sheet T6 (hidden)
B2: =TECNOLOGIAS!C9 -> Planta de clasificación automática + compostaje (TMB Simple) | F2: CAPEX | I2: DIAGRAMA DE PROCESO
B3: BASES & SUPUESTOS | F3: Concepto | G3: USD
B4: Vida útil | C4: 25 | D4: años | F4: Planta de clasificación automática
B5: CapEx | C5: =TECNOLOGIAS!K9 -> 48.97572581 | D5: USD/tpa | F5: Total | G5: =C5*C25 -> 11142222.5 | N5: CDR
B6: OpEx | C6: =TECNOLOGIAS!P9 -> 16.37087097 | D6: USD/tpa | N6: =$C$32 -> 85541.88 | O6: =$D$32 -> ton/año
B7: Proporción CDR | C7: 0.8 | D7: ton/ton de inorgánico | F7: OPEX / año
B8: Factor de eficiencia de separación | C8: 0.4 | F8: Concepto | G8: USD
B9: Generación de Composta | C9: 0.4 | D9: ton/ton de residuo orgánico | F9: Mantenimiento Maquinaria & Eq. Auxiliares
B10: Tiempo de construcción | C10: 15 | D10: meses | F10: Consumibles
B11: SUPUESTOS DE INGRESOS | F11: Administración & Operación
B12: Tarifa de disposición final | C12: ='INPUT DE DATOS'!C17 -> 15 | D12: ='INPUT DE DATOS'!D17 -> USD/ton | F12: Subtotal OPEX | G12: =C6*C25 -> 3724455
B13: Tarifa de tratamiento | C13: ='INPUT DE DATOS'!C18 -> 24 | D13: ='INPUT DE DATOS'!D18 -> USD/ton | F13: Costo envío de rechazo a relleno sanitario | G13: =C34*C12 -> 259355.7
B14: Precio valorizables | C14: ='INPUT DE DATOS'!C30 -> 170 | D14: USD/ton | F14: Total | G14: =G12+G13 -> 3983810.7
B15: Precio CDR | C15: ='INPUT DE DATOS'!C31 -> 0 | D15: USD/ton | I15: =$B$25 -> Residuos sólidos urbanos | K15: Planta de selección automática | N15: =$B$31 -> Valorizables
B16: Precio composta | C16: ='INPUT DE DATOS'!C24 -> 10 | D16: =D15 -> USD/ton | F16: Ingresos / año | I16: =$C$25 -> 227505 | J16: =$D$25 -> ton/año | N16: =$C$31 -> 10920.24 | O16: =$D$31 -> ton/año
B17: SUPUESTOS FINANCIEROS | F17: Concepto | G17: USD
B18: Inflación | C18: ='INPUT DE DATOS'!C38 -> 0.02 | F18: Tarifa de Tratamiento | G18: =C25*C13 -> 5460120
B19: Tasa de Descuento | C19: ='INPUT DE DATOS'!C40 -> 0.0831 | F19: Venta de valorizables | G19: =C31*C14 -> 1856440.8
B20: Incremento Anual Energéticos | C20: ='INPUT DE DATOS'!C39 -> 0.04 | F20: Venta de CDR | G20: =C32*C15 -> 0
B21: Cash Flow | C21: ='INPUT DE DATOS'!C41 -> 20 | D21: años | F21: Venta de composta | G21: =C33*C16 -> 455010
F22: Total | G22: =SUM(G18:G21) -> 7771570.8
B23: DIMENSIONAMIENTO
B24: INPUT | F24: RESULTADOS FINANCIEROS | N24: =$B$27 -> Fracción orgánica | P24: Planta de Compostaje | R24: Composta
B25: Residuos sólidos urbanos | C25: ='INPUT DE DATOS'!C10 -> 227505 | D25: ton/año | F25: CAPEX | G25: =G5 -> 11142222.5 | N25: =$C$27 -> 113752.5 | O25: =$D$27 -> ton/año | R25: =$C$33 -> 45501 | S25: =$D$33 -> ton/año
B26: COMPOSICIÓN | F26: OPEX (anual) | G26: =G14 -> 3983810.7
B27: Fracción orgánica | C27: =C25*'INPUT DE DATOS'!C12 -> 113752.5 | D27: ton/año | F27: INGRESOS (anual) | G27: =G22 -> 7771570.8
B28: Fracción inorgánica | C28: =C25*'INPUT DE DATOS'!C13 -> 86451.9 | D28: ton/año
B29: Valorizables | C29: =C25*'INPUT DE DATOS'!C14 -> 27300.6 | D29: ton/año | F29: FINANCIAMIENTO
B30: OUTPUT | F30: Capital aportado | G30: =G25-G31 -> 11142222.5
B31: Valorizables | C31: =C29*C8 -> 10920.24 | D31: ton/año | F31: Deuda adquirida | G31: =G25*'INPUT DE DATOS'!C43 -> 0
B32: CDR | C32: =C28*C7+C29-C31 -> 85541.88 | D32: ton/año | F32: Plazo | G32: ='INPUT DE DATOS'!C44 -> 15
B33: Composta | C33: =C27*C9 -> 45501 | D33: ton/año | F33: Pago anual del crédito con intereses | G33: =IF(AND('INPUT DE DATOS'!C44=0,'INPUT DE DATOS'!C45=0),0,PMT(('INPUT DE DATOS'!C45/12),('INPUT DE DATOS'!C44*12),G31)*12*-1) -> 0
B34: Rechazo | C34: =C28+C29-C31-C32 -> 17290.38 | D34: ton/año | N34: Rechazo | P34: Relleno sanitario
F35: ANÁLISIS - CASH FLOW 15 AÑOS EBDTA | N35: =$C$34 -> 17290.38 | O35: =$D$34 -> ton/año
F36: Payback | G36: ='T6 CF'!I3 -> 2.944950676
F37: Payback descontado | G37: ='T6 CF'!I4 -> 3.482865767
F38: TIR (CF 15 años) | G38: ='T6 CF'!I5 -> 0.3593902384
F39: VAN (CF 15 años) | G39: ='T6 CF'!I6 -> 32753250.89
I42: DESCRIPCIÓN DE TECNOLOGÍA
I43: T6. Planta de clasificación automática + compostaje (TMB Simple): la función de esta planta es seleccionar el contenido del material entrante mediante una combinación de procesos de separación mecánicos o automatizados con el fin de recuperar las fracciones valorizables y prepararlas para su posterior comercialización.

Sheet T6 CF (hidden)
B2: SUPUESTOS FINANCIEROS | D2: DATOS DE FINANCIAMIENTO | H2: RESULTADOS (EBTDA)
B3: Vida útil del proyecto (años) | C3: ='T6'!C4 -> 25 | D3: ='INPUT DE DATOS'!B43 -> Porcentaje de financiamiento | E3: ='INPUT DE DATOS'!C43 -> 0 | H3: Payback | I3: =Q21 -> 2.944950676
B4: Cash flow (años) | C4: ='T6'!C21 -> 20 | D4: ='INPUT DE DATOS'!B44 -> Plazo de financiamiento | E4: ='INPUT DE DATOS'!C44 -> 15 | H4: Payback descontado | I4: =R21 -> 3.482865767
B5: Inflación | C5: ='T6'!C18 -> 0.02 | D5: ='INPUT DE DATOS'!B45 -> Tasa de interés bancaria | E5: ='INPUT DE DATOS'!C45 -> 0.05 | H5: TIR | I5: =Q22 -> 0.3593902384
B6: Tasa de Descuento | C6: ='T6'!C19 -> 0.0831 | D6: ='T7'!F40 -> Capital aportado | E6: ='T6'!G30 -> 11142222.5 | H6: VAN | I6: =Q23 -> 32753250.89
B7: Incentivo Fiscal | C7: No | D7: ='T7'!F41 -> Deuda adquirida | E7: ='T6'!G31 -> 0
B8: Impuestos | C8: - | D8: ='T7'!F43 -> Pago anual del crédito con intereses | E8: ='T6'!G33 -> 0
B9: Incremento anual energéticos | C9: ='T6'!C20 -> 0.04
B11: Ingresos / año | D11: OPEX / año
B12: Concepto | C12: MXN | D12: Concepto | E12: MXN
B13: ='T6'!F18 -> Tarifa de Tratamiento | C13: ='T6'!G18 -> 5460120 | D13: ='T7'!F21 -> Subtotal OPEX | E13: ='T6'!G12 -> 3724455
B14: ='T6'!F19 -> Venta de valorizables | C14: ='T6'!G19 -> 1856440.8
B15: ='T6'!F20 -> Venta de CDR | C15: ='T6'!G20 -> 0
B16: ='T6'!F21 -> Venta de composta | C16: ='T6'!G21 -> 455010
P17: PROYECTO: EBTDA
Q18: Payback | R18: Payback Descont.
Q19: =IF(VLOOKUP(LOOKUP(0,P28:P53),P28:S53,COUNT(P28:S28),FALSE)>50,"Mas de 50",VLOOKUP(LOOKUP(0,P28:P53),P28:S53,4,FALSE)) -> 2 | R19: =IF(VLOOKUP(LOOKUP(0,R28:R53),R28:S53,2,FALSE)>50,"Mas de 50",VLOOKUP(LOOKUP(0,R28:R53),R28:S53,2,FALSE)) -> 3
B20: Ingresos Totales | C20: =SUM(C13:C19) -> 7771570.8 | D20: Costos Totales | E20: =SUM(E13:E19) -> 3724455 | Q20: =IF(Q19>C4,0,-VLOOKUP(Q19,B28:P53,COUNT(B28:P28),FALSE)/(-VLOOKUP(Q19,B28:P53,COUNT(B28:P28),FALSE)+VLOOKUP(Q19+1,B28:P53,COUNT(B28:P28),FALSE))) -> 0.9449506757 | R20: =IF(R19>C4,0,-VLOOKUP(R19,B28:R53,COUNT(B28:R28),FALSE)/(-VLOOKUP(R19,B28:R53,COUNT(B28:R28),FALSE)+VLOOKUP(R19+1,B28:R53,COUNT(B28:R28),FALSE))) -> 0.4828657674
P21: Payback | Q21: =Q19+Q20 -> 2.944950676 | R21: =IF(VLOOKUP(LOOKUP(0,R28:R53),R28:S53,2,FALSE)>50,"Mas de 50",R19+R20) -> 3.482865767
P22: TIR | Q22: =IFERROR(VLOOKUP(C4,S28:V53,2,0),0) -> 0.3593902384
P23: VAN | Q23: =VLOOKUP(C4,S28:V53,3,0) -> 32753250.89
B24: Año | C24: Manejo de residuos | D24: INGRESOS | H24: Ingresos totales | I24: COSTOS / OPEX | L24: Egresos Totales | M24: Utilidad Bruta | N24: CAPEX | O24: Cálculo TIR | P24: Flujo Acumulado | Q24: Utilidad Neta Valor del Tiempo | R24: Flujo Acumulado Descontado | S24: Año | T24: TIR | U24: VAN | V24: VAN
D25: =B13 -> Tarifa de Tratamiento | E25: =B14 -> Venta de valorizables | F25: =B15 -> Venta de CDR | G25: =B16 -> Venta de composta | I25: =D13 -> Subtotal OPEX | J25: =D14 -> 0 | K25: Financiamiento
M26: EBTDA | P26: Cáclulo Payback | Q26: Tasa Descuento | T26: Nominal | U26: Tasa de Descuento | V26: TIR Nominal
C27: (ton/año) | D27: =C5 -> 0.02 | E27: =C5 -> 0.02 | F27: =C5 -> 0.02 | G27: =C5 -> 0.02 | I27: =$C$5 -> 0.02 | J27: =C5 -> 0.02 | O27: Cálculo TIR | Q27: =C6 -> 0.0831
B28: 0 | C28: 0 | D28: 0 | E28: 0 | F28: 0 | G28: 0 | H28: =SUM(D28:G28) -> 0 | I28: 0 | J28: 0 | K28: 0 | L28: =SUM(I28:K28) -> 0 | M28: 0 | N28: =-'T6'!G5 -> -11142222.5 | O28: =M28+N28 -> -11142222.5 | P28: =O28 -> -11142222.5 | Q28: =O28*(1+$Q$27)^(-S28) -> -11142222.5 | R28: =Q28 -> -11142222.5 | S28: 0 | T28: 0 | U28: 0 | V28: 0
B29: 1 | C29: =C30*(24-('T6'!C10))/12 -> 170628.75 | D29: =C13*C29/C30 -> 4095090 | E29: =C14*C29/C30 -> 1392330.6 | F29: =C15*C29/C30 -> 0 | G29: =C16*C29/C30 -> 341257.5 | H29: =SUM(D29:G29) -> 5828678.1 | I29: =E13*(C29/C30) -> 2793341.25 | J29: =E14*(C29/C30) -> 0 | K29: =IF(B29>E$4,0,E$8) -> 0 | L29: 2793341.25 | M29: =H29-L29 -> 3035336.85 | N29: 0 | O29: =M29+N29 -> 3035336.85 | P29: =P28+O29 -> -8106885.649 | Q29: =O29*(1+$Q$27)^(-S29) -> 2802453.006 | R29: =Q29+R28 -> -8339769.494 | S29: 1 | T29: =IRR($O$28:O29) -> -0.7275824594 | U29: =NPV($Q$27,O29)+O28 -> -8339769.494 | V29: =NPV(T29,O29)+O28 -> 0
B30: 2 | C30: ='T7'!C34 -> 227505 | D30: =C13*(1+D27) -> 5569322.4 | E30: =C14*(1+E27) -> 1893569.616 | F30: =C15*(1+F27) -> 0 | G30: =C16*(1+'T6 CF'!G27) -> 464110.2 | H30: =SUM(D30:G30) -> 7927002.216 | I30: =E13*(1+I$27) -> 3798944.1 | J30: =E14*(1+J$27) -> 0 | K30: =IF(B30>E$4,0,E$8) -> 0 | L30: 3798944.1 | M30: 4128058.116 | N30: 0 | O30: =M30+N30 -> 4128058.116 | P30: =P29+O30 -> -3978827.533 | Q30: =O30*(1+$Q$27)^(-S30) -> 3518914.309 | R30: =Q30+R29 -> -4820855.185 | S30: 2 | T30: =IRR($O$28:O30) -> -0.24005997 | U30: =NPV($Q$27,$O$29:O30)+$O$28 -> -4820855.185 | V30: =NPV(T30,$O$29:O30)+$O$28 -> 0
B31: 3 | C31: =C30 -> 227505 | D31: =D30*(1+D$27) -> 5680708.848 | E31: =E30*(1+E$27) -> 1931441.008 | F31: =F30*(1+F$27) -> 0 | G31: =G30*(1+G$27) -> 473392.404 | H31: =SUM(D31:G31) -> 8085542.26 | I31: =I30*(1+I$27) -> 3874922.981 | J31: 0 | K31: 0 | L31: 3874922.981 | M31: 4210619.279 | N31: 0 | O31: =M31+N31 -> 4210619.279 | P31: =P30+O31 -> 231791.7461 | Q31: =O31*(1+$Q$27)^(-S31) -> 3313906.929 | R31: =Q31+R30 -> -1506948.256 | S31: 3 | T31: =IRR(O$28:$O31) -> 0.009851564773 | U31: =NPV($Q$27,$O$29:O31)+$O$28 -> -1506948.256 | V31: 0
B32: 4 | C32: =C31 -> 227505 | D32: =D31*(1+D$27) -> 5794323.025 | E32: =E31*(1+E$27) -> 1970069.828 | F32: =F31*(1+F$27) -> 0 | G32: 482860.2521 | H32: =SUM(D32:G32) -> 8247253.106 | I32: 3952421.441 | J32: 0 | K32: 0 | L32: 3952421.441 | M32: 4294831.664 | N32: 0 | O32: 4294831.664 | P32: 4526623.41 | Q32: 3120843.013 | R32: 1613894.757 | S32: 4 | T32: =IRR($O$28:O32) -> 0.1433802034 | U32: =NPV($Q$27,$O$29:O32)+$O$28 -> 1613894.757 | V32: 0
B33: 5 | C33: 227505 | D33: 5910209.485 | E33: 2009471.225 | F33: 0 | G33: 492517.4571 | H33: 8412198.168 | I33: 4031469.87 | J33: 0 | K33: 0 | L33: 4031469.87 | M33: 4380728.298 | N33: 0 | O33: 4380728.298 | P33: 8907351.708 | Q33: 2939026.75 | R33: 4552921.507 | S33: 5 | T33: =IRR($O$28:O33) -> 0.2199055773 | U33: =NPV($Q$27,$O$29:O33)+$O$28 -> 4552921.507 | V33: 0
B34: 6 | C34: 227505 | D34: 6028413.675 | E34: 2049660.65 | F34: 0 | G34: 502367.8063 | H34: 8580442.131 | I34: 4112099.267 | J34: 0 | K34: 0 | L34: 4112099.267 | M34: 4468342.864 | N34: 0 | O34: 4468342.864 | P34: 13375694.57 | Q34: 2767802.867 | R34: 7320724.374 | S34: 6 | T34: =IRR($O$28:O34) -> 0.2663874036 | U34: =NPV($Q$27,$O$29:O34)+$O$28 -> 7320724.374 | V34: 5.215406418e-08
B35: 7 | C35: 227505 | D35: 6148981.949 | E35: 2090653.863 | F35: 0 | G35: 512415.1624 | H35: =SUM(D35:G35) -> 8752050.974 | I35: 4194341.253 | J35: 0 | K35: 0 | L35: 4194341.253 | M35: 4557709.721 | N35: 0 | O35: 4557709.721 | P35: 17933404.29 | Q35: 2606554.265 | R35: 9927278.639 | S35: 7 | T35: =IRR($O$28:O35) -> 0.2959169346 | U35: 9927278.639 | V35: 0
B36: 8 | C36: 227505 | D36: 6271961.588 | E36: 2132466.94 | F36: 0 | G36: 522663.4656 | H36: =SUM(D36:G36) -> 8927091.993 | I36: 4278228.078 | J36: 0 | K36: 0 | L36: 4278228.078 | M36: 4648863.915 | N36: 0 | O36: 4648863.915 | P36: 22582268.21 | Q36: 2454699.797 | R36: 12381978.44 | S36: 8 | T36: =IRR($O$28:O36) -> 0.3153357689 | U36: 12381978.44 | V36: =NPV(T36,$O$29:O36)+$O$28 -> 0
B37: 9 | C37: 227505 | D37: 6397400.819 | E37: 2175116.279 | F37: 0 | G37: 533116.7349 | H37: 9105633.833 | I37: 4363792.639 | J37: 0 | K37: 0 | L37: 4363792.639 | M37: 4741841.194 | N37: 0 | O37: 4741841.194 | P37: 27324109.4 | Q37: =O37*(1+$Q$27)^(-S37) -> 2311692.174 | R37: 14693670.61 | S37: 9 | T37: =IRR($O$28:O37) -> 0.3284523013 | U37: 14693670.61 | V37: 2.048909664e-08
B38: 10 | C38: 227505 | D38: 6525348.836 | E38: 2218618.604 | F38: 0 | G38: 543779.0696 | H38: 9287746.51 | I38: 4451068.492 | J38: 0 | K38: 0 | L38: 4451068.492 | M38: 4836678.018 | N38: 0 | O38: 4836678.018 | P38: =P37+O38 -> 32160787.42 | Q38: 2177015.988 | R38: 16870686.6 | S38: 10 | T38: =IRR($O$28:O38) -> 0.3374997467 | U38: 16870686.6 | V38: 0
B39: 11 | C39: 227505 | D39: 6655855.813 | E39: 2262990.976 | F39: 0 | G39: 554654.651 | H39: 9473501.44 | I39: 4540089.862 | J39: 0 | K39: 0 | L39: 4540089.862 | M39: 4933411.578 | N39: 0 | O39: 4933411.578 | P39: 37094199 | Q39: 2050185.863 | R39: 18920872.46 | S39: 11 | T39: =IRR($O$28:O39) -> 0.3438447845 | U39: 18920872.46 | V39: 0
B40: 12 | C40: 227505 | D40: 6788972.929 | E40: 2308250.796 | F40: 0 | G40: 565747.7441 | H40: 9662971.469 | I40: 4630891.659 | J40: 0 | K40: 0 | L40: 4630891.659 | M40: 5032079.809 | N40: 0 | O40: 5032079.809 | P40: 42126278.81 | Q40: 1930744.696 | R40: =Q40+R39 -> 20851617.16 | S40: 12 | T40: =IRR($O$28:O40) -> 0.3483537217 | U40: 20851617.16 | V40: 0
B41: 13 | C41: 227505 | D41: 6924752.387 | E41: 2354415.812 | F41: 0 | G41: 577062.6989 | H41: 9856230.898 | I41: 4723509.492 | J41: 0 | K41: 0 | L41: 4723509.492 | M41: 5132721.406 | N41: 0 | O41: 5132721.406 | P41: 47259000.21 | Q41: 1818262.016 | R41: =Q41+R40 -> 22669879.17 | S41: 13 | T41: =IRR($O$28:O41) -> 0.351591894 | U41: 22669879.17 | V41: 0
B42: 14 | C42: 227505 | D42: 7063247.435 | E42: 2401504.128 | F42: 0 | G42: 588603.9529 | H42: 10053355.52 | I42: 4817979.682 | J42: 0 | K42: 0 | L42: 4817979.682 | M42: 5235375.834 | N42: 0 | O42: 5235375.834 | P42: 52494376.05 | Q42: 1712332.432 | R42: 24382211.61 | S42: 14 | T42: =IRR($O$28:O42) -> 0.3539372454 | U42: 24382211.61 | V42: 0
B43: 15 | C43: 227505 | D43: 7204512.384 | E43: 2449534.21 | F43: 0 | G43: 600376.032 | H43: 10254422.63 | I43: 4914339.276 | J43: 0 | K43: 0 | L43: 4914339.276 | M43: 5340083.35 | N43: 0 | O43: 5340083.35 | P43: 57834459.4 | Q43: 1612574.167 | R43: 25994785.77 | S43: 15 | T43: =IRR($O$28:O43) -> 0.3556475728 | U43: 25994785.77 | V43: 0
B44: 16 | C44: 227505 | D44: 7348602.631 | E44: 2498524.895 | F44: 0 | G44: 612383.5526 | H44: 10459511.08 | I44: 5012626.061 | J44: 0 | K44: 0 | L44: 5012626.061 | M44: 5446885.017 | N44: 0 | O44: 5446885.017 | P44: 63281344.41 | Q44: 1518627.689 | R44: 27513413.46 | S44: 16 | T44: =IRR($O$28:O44) -> 0.3569016904 | U44: 27513413.46 | V44: 4.842877388e-08
B45: 17 | C45: 227505 | D45: 7495574.684 | E45: 2548495.393 | F45: 0 | G45: 624631.2237 | H45: 10668701.3 | I45: 5112878.583 | J45: 0 | K45: 0 | L45: 5112878.583 | M45: 5555822.718 | N45: 0 | O45: 5555822.718 | P45: =P44+O45 -> 68837167.13 | Q45: 1430154.412 | R45: 28943567.87 | S45: 17 | T45: =IRR($O$28:O45) -> 0.3578253705 | U45: 28943567.87 | V45: 0
B46: 18 | C46: 227505 | D46: 7645486.178 | E46: 2599465.3 | F46: 0 | G46: 637123.8481 | H46: 10882075.33 | I46: 5215136.154 | J46: 0 | K46: 0 | L46: 5215136.154 | M46: 5666939.172 | N46: 0 | O46: 5666939.172 | P46: 74504106.3 | Q46: 1346835.472 | R46: 30290403.35 | S46: 18 | T46: =IRR($O$28:O46) -> 0.3585081102 | U46: 30290403.35 | V46: =NPV(T46,$O$29:O46)+$O$28 -> 0
B47: 19 | C47: 227505 | D47: 7798395.901 | E47: 2651454.606 | F47: 0 | G47: 649866.3251 | H47: 11099716.83 | I47: =I46*(1+I$27) -> 5319438.877 | J47: 0 | K47: 0 | L47: 5319438.877 | M47: 5780277.956 | N47: 0 | O47: 5780277.956 | P47: 80284384.26 | Q47: =O47*(1+$Q$27)^(-S47) -> 1268370.586 | R47: 31558773.93 | S47: 19 | T47: =IRR($O$28:O47) -> 0.3590142102 | U47: 31558773.93 | V47: 0
B48: 20 | C48: 227505 | D48: =D47*(1+D$27) -> 7954363.819 | E48: 2704483.699 | F48: 0 | G48: 662863.6516 | H48: 11321711.17 | I48: 5425827.655 | J48: 0 | K48: 0 | L48: 5425827.655 | M48: 5895883.515 | N48: 0 | O48: 5895883.515 | P48: 86180267.77 | Q48: =O48*(1+$Q$27)^(-S48) -> 1194476.962 | R48: 32753250.89 | S48: 20 | T48: =IRR($O$28:O48) -> 0.3593902384 | U48: 32753250.89 | V48: 0
B49: 21 | C49: 227505 | D49: 8113451.096 | E49: 2758573.373 | F49: 0 | G49: 676120.9246 | H49: 11548145.39 | I49: 5534344.208 | J49: 0 | K49: 0 | L49: 5534344.208 | M49: 6013801.185 | N49: 0 | O49: 6013801.185 | P49: 92194068.96 | Q49: 1124888.285 | R49: 33878139.18 | S49: 21 | T49: =IRR($O$28:O49) -> 0.3596701423 | U49: 33878139.18 | V49: 0
B50: 22 | C50: 227505 | D50: 8275720.118 | E50: 2813744.84 | F50: 0 | G50: 689643.3431 | H50: 11779108.3 | I50: 5645031.092 | J50: 0 | K50: 0 | L50: 5645031.092 | M50: 6134077.209 | N50: 0 | O50: 6134077.209 | P50: 98328146.17 | Q50: 1059353.754 | R50: 34937492.93 | S50: 22 | T50: =IRR($O$28:O50) -> 0.3598788036 | U50: 34937492.93 | V50: 0
B51: 23 | C51: 227505 | D51: 8441234.52 | E51: 2870019.737 | F51: 0 | G51: 703436.21 | H51: 12014690.47 | I51: 5757931.714 | J51: 0 | K51: 0 | L51: 5757931.714 | M51: 6256758.753 | N51: 0 | O51: 6256758.753 | P51: 104584904.9 | Q51: 997637.179 | R51: 35935130.11 | S51: 23 | T51: =IRR($O$28:O51) -> 0.3600345397 | U51: 35935130.11 | V51: 0
B52: 24 | C52: 227505 | D52: 8610059.21 | E52: 2927420.132 | F52: 0 | G52: 717504.9342 | H52: 12254984.28 | I52: 5873090.348 | J52: 0 | K52: 0 | L52: 5873090.348 | M52: 6381893.928 | N52: 0 | O52: 6381893.928 | P52: 110966798.8 | Q52: 939516.132 | R52: 36874646.24 | S52: 24 | T52: =IRR($O$28:O52) -> 0.3601508847 | U52: 36874646.24 | V52: 0
B53: 25 | C53: 227505 | D53: 8782260.395 | E53: 2985968.534 | F53: 0 | G53: 731855.0329 | H53: =SUM(D53:G53) -> 12500083.96 | I53: 5990552.155 | J53: 0 | K53: 0 | L53: 5990552.155 | M53: 6509531.806 | N53: 0 | O53: 6509531.806 | P53: 117476330.7 | Q53: 884781.1418 | R53: 37759427.38 | S53: 25 | T53: =IRR($O$28:O53) -> 0.3602378673 | U53: 37759427.38 | V53: 0

Sheet T7 (hidden)
B2: =TECNOLOGIAS!C10 -> Planta de clasificación automática + Digestión Anaerobia (electricidad) + compostaje (TMB Completa) | F2: CAPEX | I2: DIAGRAMA DE PROCESO
B3: BASES & SUPUESTOS | F3: Concepto | G3: USD
B4: Vida útil | C4: 25 | D4: años | F4: Planta de selección
B5: CapEx | C5: =TECNOLOGIAS!K10 -> 141.6994 | D5: USD/tpa | F5: Planta de biogas
B6: OpEx | C6: =TECNOLOGIAS!P10 -> 16.23610909 | D6: USD/tpa | F6: Sistema de CHP
B7: Agua de entrada | C7: 0.1 | D7: ton/ton de residuo orgánico | F7: Sistema de compostaje | N7: CDR
B8: Generación de Composta | C8: 0.4 | D8: ton/ton de residuo orgánico | F8: Obra Civil, Otros Equipos y Obras Auxiliares | N8: =$C$42 -> 85541.88 | O8: =$D$42 -> ton/año
B9: Agua residual | C9: 0.4 | D9: ton/ton de residuo orgánico | F9: Estudios de Factibilidad, Gestión, Permisos & Otros
B10: Proporción CDR | C10: 0.8 | D10: ton/ton de inorgánico | F10: Total | G10: =C5*C34 -> 32237322
B11: Factor de eficiencia de separación | C11: 0.4
B12: Rendimiento Biogas - FO | C12: 130 | D12: Nm3/ton | F12: OPEX / año
B13: Contenido de Dióxido de Carbono (CO2) | C13: 0.4 | F13: Concepto | G13: USD
B14: Contenido de Metano (CH4) | C14: 0.57 | F14: Mantenimiento de planta de biogas
B15: Densidad biogas | C15: 1.2 | D15: kg/Nm3 | F15: Mantenimiento CHP | I15: =$B$34 -> Residuos sólidos urbanos | K15: Planta de selección automática | N15: =$B$41 -> Valorizables
B16: Consumo energía eléctrica | C16: 55 | D16: kWh/ton de residuo orgánico | F16: Mantemimiento Compostaje | I16: =$C$34 -> 227505 | J16: =$D$34 -> ton/año | N16: =$C$41 -> 10920.24 | O16: =$D$41 -> ton/año
B17: Generación de electricidad | C17: 250 | D17: kWh/ton de residuo orgánico | F17: Mantenimiento Obra Civil | S17: Generación de electricidad
B18: Tiempo de construcción | C18: 24 | D18: meses | F18: Mantenimiento Maquinaria & Eq. Auxiliares | S18: =$C$49 -> 35771748.67 | T18: =$D$49 -> kWh/año
B19: SUPUESTOS DE INGRESOS | F19: Consumibles
B20: Tarifa de disposición final | C20: ='INPUT DE DATOS'!C17 -> 15 | D20: ='INPUT DE DATOS'!D17 -> USD/ton | F20: Administración & Operación
B21: Tarifa de tratamiento | C21: ='INPUT DE DATOS'!C18 -> 24 | D21: ='INPUT DE DATOS'!D18 -> USD/ton | F21: Subtotal OPEX | G21: =C6*C34 -> 3693795.999
B22: Precio electricidad | C22: ='INPUT DE DATOS'!C21 -> 0 | D22: ='INPUT DE DATOS'!D21 -> USD/kWh | F22: Costo envío de rechazo a relleno sanitario | G22: =C46*C20 -> 259355.7
B23: Precio CDR | C23: ='INPUT DE DATOS'!C31 -> 0 | D23: ='INPUT DE DATOS'!D29 -> USD/ton | F23: Total | G23: =G21+G22 -> 3953151.699
B24: Precio valorizables | C24: ='INPUT DE DATOS'!C30 -> 170 | D24: ='INPUT DE DATOS'!D30 -> USD/ton | N24: =$B$36 -> Fracción orgánica | P24: Digestor Anaerobio
B25: Precio composta | C25: ='INPUT DE DATOS'!C24 -> 10 | D25: USD/ton | F25: Ingresos / año | N25: =$C$36 -> 113752.5 | O25: =$D$36 -> ton/año
B26: SUPUESTOS FINANCIEROS | F26: Concepto | G26: USD
B27: Inflación | C27: ='INPUT DE DATOS'!C38 -> 0.02 | F27: Tarifa de Tratamiento | G27: =C21*C34 -> 5460120 | R27: Planta de Compostaje | T27: Composta
B28: Tasa de Descuento | C28: ='INPUT DE DATOS'!C40 -> 0.0831 | F28: Venta de electricidad | G28: =(C49-C48)*C22 -> 0 | T28: =$C$44 -> 45501 | U28: =$D$44 -> ton/año
B29: Incremento Anual Energéticos | C29: ='INPUT DE DATOS'!C39 -> 0.04 | F29: Venta de composta | G29: ='T7'!C25*C44 -> 455010
B30: Cash Flow | C30: ='INPUT DE DATOS'!C41 -> 20 | D30: años | F30: Venta de valorizables | G30: =C41*C24 -> 1856440.8
F31: Venta de CDR | G31: =C23*C42 -> 0
B32: DIMENSIONAMIENTO | F32: Total | G32: =SUM(G27:G31) -> 7771570.8
B33: INPUT
B34: Residuos sólidos urbanos | C34: ='INPUT DE DATOS'!C10 -> 227505 | D34: ton/año | F34: RESULTADOS FINANCIEROS | N34: Rechazo | P34: Relleno sanitario
B35: COMPOSICIÓN | F35: CAPEX | G35: =G10 -> 32237322 | N35: =$C$46 -> 17290.38 | O35: =$D$46 -> ton/año
B36: Fracción orgánica | C36: =C34*'INPUT DE DATOS'!C12 -> 113752.5 | D36: ton/año | F36: OPEX (anual) | G36: =G23 -> 3953151.699
B37: Fracción inorgánica | C37: =C34*'INPUT DE DATOS'!C13 -> 86451.9 | D37: ton/año | F37: INGRESOS (anual) | G37: =G32 -> 7771570.8
B38: Valorizables | C38: =C34*'INPUT DE DATOS'!C14 -> 27300.6 | D38: ton/año
B39: Agua | C39: =C7*C36 -> 11375.25 | D39: m3/año | F39: FINANCIAMIENTO
B40: OUTPUT | F40: Capital aportado | G40: =G35-G41 -> 32237322
B41: Valorizables | C41: =C38*C11 -> 10920.24 | D41: ton/año | F41: Deuda adquirida | G41: =G35*'INPUT DE DATOS'!C43 -> 0
B42: CDR | C42: =C37*C10+C38-C41 -> 85541.88 | D42: ton/año | F42: Plazo | G42: ='INPUT DE DATOS'!C44 -> 15
B43: Biogas | C43: =C36*C12 -> 14787825 | D43: Nm3/año | F43: Pago anual del crédito con intereses | G43: =IF(AND('INPUT DE DATOS'!C44=0,'INPUT DE DATOS'!C45=0),0,PMT(('INPUT DE DATOS'!C45/12),('INPUT DE DATOS'!C44*12),G41)*12*-1) -> 0 | Q43: * AVISO: Si este material no logra colocarse en el mercado deberá ir a rechazo.
B44: Composta | C44: =C36*C8 -> 45501 | D44: ton/año
B45: Agua residual | C45: =C9*C36 -> 45501 | D45: m3/año | F45: ANÁLISIS - CASH FLOW 15 AÑOS EBDTA
B46: Rechazo | C46: =C37+C38-C41-C42 -> 17290.38 | D46: ton/año | E46: =C46/C34 -> 0.076 | F46: Payback | G46: ='T7 CF'!J3 -> 8.733670746 | I46: DESCRIPCIÓN DE TECNOLOGÍA
B47: ENERGÍA | F47: Payback descontado | G47: ='T7 CF'!J4 -> 14.89677917 | I47: T7. Planta de clasificación automática + Digestión Anaerobia (electricidad) + compostaje (TMB Completa): la función de esta planta es seleccionar el contenido del material entrante mediante una combinación de procesos de separación mecánicos o automatizados con el fin de recuperar las fracciones valorizables y CDR se preparan para su posterior comercialización o tratamiento. A la fracción orgánica de los residuos clasificados se les da un tratamiento de biometanización, después de varias etapas se consigue transformar esta fracción orgánica en biogás, a este proceso se le conoce como digestión anaerobia. El biogás que se obtiene en el proceso se utiliza para generar electricidad.
B48: Consumo energía eléctrica | C48: =C16*C36 -> 6256387.5 | D48: kWh/año | F48: TIR (CF 15 años) | G48: ='T7 CF'!J5 -> 0.1056608728
B49: Generación de electricidad | C49: =C12*C36*5.9*0.41 -> 35771748.67 | D49: kWh/año | F49: VAN (CF 15 años) | G49: ='T7 CF'!J6 -> 6533601.002
B50: Energía libre | C50: =C49-C48 -> 29515361.17 | D50: kWh/año
F51: LCOE
F52: Generación vida útil (kWh) | G52: =C49*C4 -> 894293716.9
B53: AFINO COMPOST | F53: Costos Vida Útil | G53: =SUM('T7 CF'!M28:M53) -> 122667482.1
F54: Costos Valor Presente | G54: =G53/((1+C27)^(C4)) -> 74769617.13
F55: Costo Total Vida Útil | G55: =G54+G35 -> 107006939.1
F56: LCOE (USD/kWh) | G56: =G55/(G52) -> 0.119655251

Sheet T7 CF (hidden)
B2: SUPUESTOS FINANCIEROS | D2: DATOS DE FINANCIAMIENTO | I2: RESULTADOS (EBTDA)
B3: Vida útil del proyecto (años) | C3: ='T7'!C4 -> 25 | D3: ='INPUT DE DATOS'!B43 -> Porcentaje de financiamiento | E3: ='INPUT DE DATOS'!C43 -> 0 | I3: Payback | J3: =R21 -> 8.733670746
B4: Cash flow (años) | C4: ='T7'!C30 -> 20 | D4: ='INPUT DE DATOS'!B44 -> Plazo de financiamiento | E4: ='INPUT DE DATOS'!C44 -> 15 | I4: Payback descontado | J4: =S21 -> 14.89677917
B5: Inflación | C5: ='T7'!C27 -> 0.02 | D5: ='INPUT DE DATOS'!B45 -> Tasa de interés bancaria | E5: ='INPUT DE DATOS'!C45 -> 0.05 | I5: TIR | J5: =R22 -> 0.1056608728
B6: Tasa de Descuento | C6: ='T7'!C28 -> 0.0831 | D6: ='T7'!F40 -> Capital aportado | E6: ='T7'!G40 -> 32237322 | I6: VAN | J6: =R23 -> 6533601.002
B7: Incentivo Fiscal | C7: No | D7: ='T7'!F41 -> Deuda adquirida | E7: ='T7'!G41 -> 0
B8: Impuestos | C8: - | D8: ='T7'!F43 -> Pago anual del crédito con intereses | E8: ='T7'!G43 -> 0
B9: Incremento anual energéticos | C9: ='T7'!C29 -> 0.04
B11: Ingresos / año | D11: OPEX / año
B12: Concepto | C12: MXN | D12: Concepto | E12: MXN
B13: ='T7'!F27 -> Tarifa de Tratamiento | C13: ='T7'!G27 -> 5460120 | D13: ='T7'!F21 -> Subtotal OPEX | E13: ='T7'!G21 -> 3693795.999
B14: ='T7'!F28 -> Venta de electricidad | C14: ='T7'!G28 -> 0 | D14: ='T7'!F22 -> Costo envío de rechazo a relleno sanitario | E14: ='T7'!G22 -> 259355.7
B15: ='T7'!F29 -> Venta de composta | C15: ='T7'!G29 -> 455010
B16: ='T7'!F30 -> Venta de valorizables | C16: ='T7'!G30 -> 1856440.8
B17: ='T7'!F31 -> Venta de CDR | C17: ='T7'!G31 -> 0 | Q17: PROYECTO: EBTDA
R18: Payback | S18: Payback Descont.
R19: =IF(VLOOKUP(LOOKUP(0,Q28:Q53),Q28:T53,COUNT(Q28:T28),FALSE)>50,"Mas de 50",VLOOKUP(LOOKUP(0,Q28:Q53),Q28:T53,4,FALSE)) -> 8 | S19: =IF(VLOOKUP(LOOKUP(0,S28:S53),S28:T53,2,FALSE)>50,"Mas de 50",VLOOKUP(LOOKUP(0,S28:S53),S28:T53,2,FALSE)) -> 14
B20: Ingresos Totales | C20: =SUM(C13:C19) -> 7771570.8 | D20: Costos Totales | E20: =SUM(E13:E19) -> 3953151.699 | R20: =IF(R19>C4,0,-VLOOKUP(R19,B28:Q53,COUNT(B28:Q28),FALSE)/(-VLOOKUP(R19,B28:Q53,COUNT(B28:Q28),FALSE)+VLOOKUP(R19+1,B28:Q53,COUNT(B28:Q28),FALSE))) -> 0.7336707457 | S20: =IF(S19>C4,0,-VLOOKUP(S19,B28:S53,COUNT(B28:S28),FALSE)/(-VLOOKUP(S19,B28:S53,COUNT(B28:S28),FALSE)+VLOOKUP(S19+1,B28:S53,COUNT(B28:S28),FALSE))) -> 0.8967791696
Q21: Payback | R21: =R19+R20 -> 8.733670746 | S21: =IF(VLOOKUP(LOOKUP(0,S28:S53),S28:T53,2,FALSE)>50,"Mas de 50",S19+S20) -> 14.89677917
Q22: TIR | R22: =IFERROR(VLOOKUP(C4,T28:W53,2,0),0) -> 0.1056608728
Q23: VAN | R23: =VLOOKUP(C4,T28:W53,3,0) -> 6533601.002
B24: Año | C24: Manejo de residuos | D24: INGRESOS | I24: Ingresos totales | J24: COSTOS / OPEX | M24: Egresos Totales | N24: Utilidad Bruta | O24: CAPEX | P24: Cálculo TIR | Q24: Flujo Acumulado | R24: Utilidad Neta Valor del Tiempo | S24: Flujo Acumulado Descontado | T24: Año | U24: TIR | V24: VAN | W24: VAN
D25: =B13 -> Tarifa de Tratamiento | E25: =B14 -> Venta de electricidad | F25: =B15 -> Venta de composta | G25: =B16 -> Venta de valorizables | H25: =B17 -> Venta de CDR | J25: =D13 -> Subtotal OPEX | K25: =D14 -> Costo envío de rechazo a relleno sanitario | L25: Financiamiento
N26: EBTDA | Q26: Cáclulo Payback | R26: Tasa Descuento | U26: Nominal | V26: Tasa de Descuento | W26: TIR Nominal
C27: (ton/año) | D27: =C5 -> 0.02 | E27: =C9 -> 0.04 | F27: =C5 -> 0.02 | G27: =C5 -> 0.02 | H27: =C5 -> 0.02 | J27: =$C$5 -> 0.02 | K27: =C5 -> 0.02 | P27: Cálculo TIR | R27: =C6 -> 0.0831
B28: 0 | C28: 0 | D28: 0 | E28: 0 | F28: 0 | G28: 0 | H28: 0 | I28: =SUM(D28:H28) -> 0 | J28: 0 | K28: 0 | L28: 0 | M28: =SUM(J28:L28) -> 0 | N28: 0 | O28: =-'T7'!G10 -> -32237322 | P28: =N28+O28 -> -32237322 | Q28: =P28 -> -32237322 | R28: =P28*(1+$R$27)^(-T28) -> -32237322 | S28: =R28 -> -32237322 | T28: 0 | U28: 0 | V28: 0 | W28: 0
B29: 1 | C29: =C30*(24-('T7'!C18))/12 -> 0 | D29: =C13*C29/C30 -> 0 | E29: =C14*C29/C30 -> 0 | F29: =C15*C29/C30 -> 0 | G29: =C16*C29/C30 -> 0 | H29: =C17*C29/C30 -> 0 | I29: =SUM(D29:H29) -> 0 | J29: =E13*(C29/C30) -> 0 | K29: =E14*(C29/C30) -> 0 | L29: =IF(B29>E$4,0,E$8) -> 0 | M29: 0 | N29: =I29-M29 -> 0 | O29: 0 | P29: =N29+O29 -> 0 | Q29: =Q28+P29 -> -32237322 | R29: =P29*(1+$R$27)^(-T29) -> 0 | S29: =R29+S28 -> -32237322 | T29: 1 | U29: =IRR($P$28:P29) ->  | V29: =NPV($R$27,P29)+P28 -> -32237322 | W29: =NPV(U29,P29)+P28 -> 
B30: 2 | C30: ='T7'!C34 -> 227505 | D30: =C13*(1+D27) -> 5569322.4 | E30: =C14*(1+E27) -> 0 | F30: =C15*(1+F27) -> 464110.2 | G30: =C16*(1+'T7 CF'!G27) -> 1893569.616 | H30: =C17+(1+H27) -> 1.02 | I30: 7927003.236 | J30: =E13*(1+J$27) -> 3767671.919 | K30: =E14*(1+K$27) -> 264542.814 | L30: 0 | M30: 4032214.733 | N30: 3894788.503 | O30: 0 | P30: =N30+O30 -> 3894788.503 | Q30: =Q29+P30 -> -28342533.49 | R30: =P30*(1+$R$27)^(-T30) -> 3320066.386 | S30: =R30+S29 -> -28917255.61 | T30: 2 | U30: =IRR($P$28:P30) -> -0.6524138516 | V30: =NPV($R$27,$P$29:P30)+$P$28 -> -28917255.61 | W30: =NPV(U30,$P$29:P30)+$P$28 -> 0
B31: 3 | C31: =C30 -> 227505 | D31: =D30*(1+D$27) -> 5680708.848 | E31: =E30*(1+E$27) -> 0 | F31: =F30*(1+F$27) -> 473392.404 | G31: =G30*(1+G$27) -> 1931441.008 | H31: =H30*(1+H$27) -> 1.0404 | I31: 8085543.301 | J31: =J30*(1+J$27) -> 3843025.357 | K31: 269833.6703 | L31: 0 | M31: 4112859.027 | N31: 3972684.273 | O31: 0 | P31: =N31+O31 -> 3972684.273 | Q31: =Q30+P31 -> -24369849.22 | R31: =P31*(1+$R$27)^(-T31) -> 3126643.628 | S31: =R31+S30 -> -25790611.98 | T31: 3 | U31: =IRR(P$28:$P31) -> -0.4220412717 | V31: =NPV($R$27,$P$29:P31)+$P$28 -> -25790611.98 | W31: 0
B32: 4 | C32: =C31 -> 227505 | D32: =D31*(1+D$27) -> 5794323.025 | E32: =E31*(1+E$27) -> 0 | F32: =F31*(1+F$27) -> 482860.2521 | G32: 1970069.828 | H32: 1.061208 | I32: 8247254.167 | J32: 3919885.864 | K32: 275230.3437 | L32: 0 | M32: 4195116.208 | N32: 4052137.959 | O32: 0 | P32: 4052137.959 | Q32: -20317711.26 | R32: 2944489.429 | S32: -22846122.55 | T32: 4 | U32: =IRR($P$28:P32) -> -0.2731623987 | V32: =NPV($R$27,$P$29:P32)+$P$28 -> -22846122.55 | W32: 0
B33: 5 | C33: 227505 | D33: 5910209.485 | E33: 0 | F33: 492517.4571 | G33: 2009471.225 | H33: 1.08243216 | I33: 8412199.25 | J33: 3998283.582 | K33: 280734.9506 | L33: 0 | M33: 4279018.532 | N33: 4133180.718 | O33: 0 | P33: 4133180.718 | Q33: -16184530.54 | R33: 2772947.298 | S33: -20073175.26 | T33: 5 | U33: =IRR($P$28:P33) -> -0.1741719473 | V33: =NPV($R$27,$P$29:P33)+$P$28 -> -20073175.26 | W33: 0
B34: 6 | C34: 227505 | D34: 6028413.675 | E34: 0 | F34: 502367.8063 | G34: 2049660.65 | H34: 1.104080803 | I34: 8580443.235 | J34: 4078249.253 | K34: 286349.6496 | L34: 0 | M34: 4364598.903 | N34: 4215844.332 | O34: 0 | P34: 4215844.332 | Q34: -11968686.21 | R34: 2611398.988 | S34: -17461776.27 | T34: 6 | U34: =IRR($P$28:P34) -> -0.1057743135 | V34: =NPV($R$27,$P$29:P34)+$P$28 -> -17461776.27 | W34: 0
B35: 7 | C35: 227505 | D35: 6148981.949 | E35: 0 | F35: 512415.1624 | G35: 2090653.863 | H35: 1.126162419 | I35: 8752052.1 | J35: 4159814.238 | K35: 292076.6426 | L35: 0 | M35: 4451890.881 | N35: 4300161.219 | O35: 0 | P35: 4300161.219 | Q35: -7668524.992 | R35: 2459262.273 | S35: -15002513.99 | T35: 7 | U35: =IRR($P$28:P35) -> -0.05683069693 | V35: -15002513.99 | W35: 0
B36: 8 | C36: 227505 | D36: 6271961.588 | E36: 0 | F36: 522663.4656 | G36: 2132466.94 | H36: 1.148685668 | I36: 8927093.142 | J36: 4243010.523 | K36: 297918.1754 | L36: 0 | M36: 4540928.698 | N36: 4386164.443 | O36: 0 | P36: 4386164.443 | Q36: -3282360.549 | R36: 2315988.845 | S36: -12686525.15 | T36: 8 | U36: =IRR($P$28:P36) -> -0.02075069604 | V36: -12686525.15 | W36: =NPV(U36,$P$29:P36)+$P$28 -> 0
B37: 9 | C37: 227505 | D37: 6397400.819 | E37: 0 | F37: 533116.7349 | G37: 2175116.279 | H37: 1.171659381 | I37: 9105635.005 | J37: 4327870.733 | K37: 303876.5389 | L37: 0 | M37: 4631747.272 | N37: 4473887.732 | O37: 0 | P37: 4473887.732 | Q37: 1191527.184 | R37: =P37*(1+$R$27)^(-T37) -> 2181062.341 | S37: -10505462.81 | T37: 9 | U37: =IRR($P$28:P37) -> 0.006517509888 | V37: -10505462.81 | W37: 0
B38: 10 | C38: 227505 | D38: 6525348.836 | E38: 0 | F38: 543779.0696 | G38: 2218618.604 | H38: 1.195092569 | I38: 9287747.705 | J38: 4414428.148 | K38: 309954.0697 | L38: 0 | M38: 4724382.218 | N38: 4563365.487 | O38: 0 | P38: 4563365.487 | Q38: =Q37+P38 -> 5754892.67 | R38: 2053996.481 | S38: -8451466.328 | T38: 10 | U38: =IRR($P$28:P38) -> 0.02756155678 | V38: -8451466.328 | W38: 0
B39: 11 | C39: 227505 | D39: 6655855.813 | E39: 0 | F39: 554654.651 | G39: 2262990.976 | H39: 1.21899442 | I39: 9473502.659 | J39: 4502716.711 | K39: 316153.1511 | L39: 0 | M39: 4818869.862 | N39: 4654632.797 | O39: 0 | P39: 4654632.797 | Q39: 10409525.47 | R39: 1934333.312 | S39: -6517133.016 | T39: 11 | U39: =IRR($P$28:P39) -> 0.04409184061 | V39: -6517133.016 | W39: 0
B40: 12 | C40: 227505 | D40: 6788972.929 | E40: 0 | F40: 565747.7441 | G40: 2308250.796 | H40: 1.243374308 | I40: 9662972.712 | J40: 4592771.045 | K40: 322476.2141 | L40: 0 | M40: 4915247.259 | N40: 4747725.453 | O40: 0 | P40: 4747725.453 | Q40: 15157250.92 | R40: 1821641.564 | S40: =R40+S39 -> -4695491.452 | T40: 12 | U40: =IRR($P$28:P40) -> 0.05727370667 | V40: -4695491.452 | W40: 3.352761269e-08
B41: 13 | C41: 227505 | D41: 6924752.387 | E41: 0 | F41: 577062.6989 | G41: 2354415.812 | H41: 1.268241795 | I41: 9856232.166 | J41: 4684626.466 | K41: 328925.7384 | L41: 0 | M41: 5013552.205 | N41: 4842679.962 | O41: 0 | P41: 4842679.962 | Q41: 19999930.88 | R41: 1715515.091 | S41: =R41+S40 -> -2979976.36 | T41: 13 | U41: =IRR($P$28:P41) -> 0.06792249026 | V41: -2979976.36 | W41: 2.980232239e-08
B42: 14 | C42: 227505 | D42: 7063247.435 | E42: 0 | F42: 588603.9529 | G42: 2401504.128 | H42: 1.29360663 | I42: 10053356.81 | J42: 4778318.995 | K42: 335504.2532 | L42: 0 | M42: 5113823.249 | N42: 4939533.561 | O42: 0 | P42: 4939533.561 | Q42: 24939464.44 | R42: 1615571.409 | S42: -1364404.951 | T42: 14 | U42: =IRR($P$28:P42) -> 0.07662205781 | V42: -1364404.951 | W42: -3.725290298e-08
B43: 15 | C43: 227505 | D43: 7204512.384 | E43: 0 | F43: 600376.032 | G43: 2449534.21 | H43: 1.319478763 | I43: 10254423.95 | J43: 4873885.375 | K43: 342214.3382 | L43: 0 | M43: 5216099.714 | N43: 5038324.232 | O43: 0 | P43: 5038324.232 | Q43: 29977788.67 | R43: 1521450.316 | S43: 157045.365 | T43: 15 | U43: =IRR($P$28:P43) -> 0.08379915435 | V43: 157045.365 | W43: -3.352761269e-08
B44: 16 | C44: 227505 | D44: 7348602.631 | E44: 0 | F44: 612383.5526 | G44: 2498524.895 | H44: 1.345868338 | I44: 10459512.42 | J44: 4971363.083 | K44: 349058.625 | L44: 0 | M44: 5320421.708 | N44: 5139090.717 | O44: 0 | P44: 5139090.717 | Q44: 35116879.39 | R44: 1432812.596 | S44: 1589857.961 | T44: 16 | U44: =IRR($P$28:P44) -> 0.08977137082 | V44: 1589857.961 | W44: 0
B45: 17 | C45: 227505 | D45: 7495574.684 | E45: 0 | F45: 624631.2237 | G45: 2548495.393 | H45: 1.372785705 | I45: 10668702.67 | J45: 5070790.345 | K45: 356039.7975 | L45: 0 | M45: 5426830.142 | N45: 5241872.531 | O45: 0 | P45: 5241872.531 | Q45: =Q44+P45 -> 40358751.92 | R45: 1349338.794 | S45: 2939196.755 | T45: 17 | U45: =IRR($P$28:P45) -> 0.09477888637 | V45: 2939196.755 | W45: 0
B46: 18 | C46: 227505 | D46: 7645486.178 | E46: 0 | F46: 637123.8481 | G46: 2599465.3 | H46: 1.400241419 | I46: 10882076.73 | J46: 5172206.151 | K46: 363160.5934 | L46: 0 | M46: 5535366.745 | N46: 5346709.982 | O46: 0 | P46: 5346709.982 | Q46: 45705461.9 | R46: 1270728.067 | S46: 4209924.822 | T46: 18 | U46: =IRR($P$28:P46) -> 0.0990059574 | V46: 4209924.822 | W46: =NPV(U46,$P$29:P46)+$P$28 -> -4.842877388e-08
B47: 19 | C47: 227505 | D47: =D46*(1+D$27) -> 7798395.901 | E47: 0 | F47: 649866.3251 | G47: 2651454.606 | H47: 1.428246248 | I47: 11099718.26 | J47: =J46*(1+J$27) -> 5275650.274 | K47: 370423.8053 | L47: 0 | M47: 5646074.08 | N47: 5453644.181 | O47: 0 | P47: 5453644.181 | Q47: 51159106.09 | R47: =P47*(1+$R$27)^(-T47) -> 1196697.1 | S47: 5406621.922 | T47: 19 | U47: =IRR($P$28:P47) -> 0.1025957662 | V47: 5406621.922 | W47: 0
B48: 20 | C48: 227505 | D48: 7954363.819 | E48: 0 | F48: 662863.6516 | G48: 2704483.699 | H48: 1.456811173 | I48: 11321712.63 | J48: 5381163.28 | K48: 377832.2814 | L48: 0 | M48: 5758995.561 | N48: 5562717.065 | O48: 0 | P48: 5562717.065 | Q48: 56721823.15 | R48: =P48*(1+$R$27)^(-T48) -> 1126979.08 | S48: 6533601.002 | T48: 20 | U48: =IRR($P$28:P48) -> 0.1056608728 | V48: 6533601.002 | W48: -4.470348358e-08
B49: 21 | C49: 227505 | D49: 8113451.096 | E49: 0 | F49: 676120.9246 | G49: 2758573.373 | H49: 1.485947396 | I49: 11548146.88 | J49: 5488786.546 | K49: 385388.927 | L49: 0 | M49: 5874175.473 | N49: 5673971.406 | O49: 0 | P49: 5673971.406 | Q49: 62395794.56 | R49: 1061322.742 | S49: 7594923.744 | T49: 21 | U49: =IRR($P$28:P49) -> 0.1082906956 | V49: 7594923.744 | W49: 3.725290298e-08
B50: 22 | C50: 227505 | D50: 8275720.118 | E50: 0 | F50: 689643.3431 | G50: 2813744.84 | H50: 1.515666344 | I50: 11779109.82 | J50: 5598562.276 | K50: 393096.7056 | L50: 0 | M50: 5991658.982 | N50: 5787450.834 | O50: 0 | P50: 5787450.834 | Q50: 68183245.39 | R50: 999491.4567 | S50: 8594415.2 | T50: 22 | U50: =IRR($P$28:P50) -> 0.1105569488 | V50: 8594415.2 | W50: 0
B51: 23 | C51: 227505 | D51: 8441234.52 | E51: 0 | F51: 703436.21 | G51: 2870019.737 | H51: 1.545979671 | I51: 12014692.01 | J51: 5710533.522 | K51: 400958.6397 | L51: 0 | M51: 6111492.162 | N51: 5903199.851 | O51: 0 | P51: 5903199.851 | Q51: 74086445.24 | R51: 941262.3819 | S51: 9535677.582 | T51: 23 | U51: =IRR($P$28:P51) -> 0.112517648 | V51: 9535677.582 | W51: 4.470348358e-08
B52: 24 | C52: 227505 | D52: 8610059.21 | E52: 0 | F52: 717504.9342 | G52: 2927420.132 | H52: 1.576899264 | I52: 12254985.85 | J52: 5824744.192 | K52: 408977.8125 | L52: 0 | M52: 6233722.005 | N52: 6021263.848 | O52: 0 | P52: 6021263.848 | Q52: 80107709.09 | R52: 886425.6574 | S52: 10422103.24 | T52: 24 | U52: =IRR($P$28:P52) -> 0.1142201012 | V52: 10422103.24 | W52: 0
B53: 25 | C53: 227505 | D53: 8782260.395 | E53: 0 | F53: 731855.0329 | G53: 2985968.534 | H53: 1.608437249 | I53: 12500085.57 | J53: 5941239.076 | K53: 417157.3687 | L53: 0 | M53: 6358396.445 | N53: 6141689.125 | O53: 0 | P53: 6141689.125 | Q53: 86249398.21 | R53: 834783.6493 | S53: 11256886.89 | T53: 25 | U53: =IRR($P$28:P53) -> 0.1157031664 | V53: 11256886.89 | W53: 0

Sheet T8 (hidden)
B2: =TECNOLOGIAS!C11 -> Planta de clasificación automática + Digestión Anaerobia (biometano/CO2) + compostaje (TMB Completa) | F2: CAPEX | I2: DIAGRAMA DE PROCESO
B3: BASES & SUPUESTOS | F3: Concepto | G3: USD
B4: Vida útil | C4: 25 | D4: años | F4: Planta de selección
B5: CapEx | C5: =TECNOLOGIAS!K11 -> 141.6994 | D5: USD/tpa | F5: Planta de biogas
B6: OpEx | C6: =TECNOLOGIAS!P11 -> 16.23610909 | D6: USD/tpa | F6: Sistema de upgrading biogás a biometano
B7: Agua de entrada | C7: 0.1 | D7: ton/ton de residuo orgánico | F7: Sistema de recuperación de CO2 | N7: CDR
B8: Generación de Composta | C8: 0.4 | D8: ton/ton de residuo orgánico | F8: Sistema de compostaje | N8: =$C$49 -> 85541.88 | O8: =$D$49 -> ton/año
B9: Agua residual | C9: 0.4 | D9: ton/ton de residuo orgánico | F9: Obra Civil, Otros Equipos y Obras Auxiliares | U9: =$B$45 -> Biometano (98% CH4)
B10: Proporción CDR | C10: 0.8 | D10: ton/ton de inorgánico | F10: Estudios de Factibilidad, Gestión, Permisos & Otros | R10: =$F$6 -> Sistema de upgrading biogás a biometano | U10: =$C$45 -> 9053770.408 | V10: =$D$45 -> Nm3/año
B11: Factor de eficiencia de separación | C11: 0.4 | F11: Total | G11: =C5*C37 -> 32237322
B12: Rendimiento Biogas - FO | C12: ='T7'!C12 -> 130 | D12: Nm3/ton
B13: Contenido de Dióxido de Carbono (CO2) | C13: 0.4 | F13: OPEX / año
B14: Contenido de Metano (CH4) | C14: 0.6 | F14: Concepto | G14: USD
B15: Densidad biogas | C15: 1.2 | D15: kg/Nm3 | F15: Mantenimiento de planta de biogas | I15: =$B$37 -> Residuos sólidos urbanos | K15: Planta de selección automática
B16: Potencial energético biometano | C16: 37 | D16: MJ/Nm3 | F16: Mantenimiento Upgrading Biometano + CO2 | I16: =$C$37 -> 227505 | J16: =$D$37 -> ton/año | N16: =$B$41 -> Valorizables
B17: Consumo energía eléctrica | C17: 55 | D17: kWh/ton de residuo orgánico | F17: Mantemimiento Compostaje | N17: =$C$48 -> 10920.24 | O17: =$D$41 -> ton/año
B18: Generación de electricidad | C18: 250 | D18: kWh/ton de residuo orgánico | F18: Mantenimiento Obra Civil | U18: CO2
B19: Tiempo de construcción | C19: 24 | D19: meses | F19: Mantenimiento Maquinaria & Eq. Auxiliares | U19: =$C$46 -> 5915130 | V19: =$D$46 -> Nm3/año
B20: SUPUESTOS DE INGRESOS | F20: Administración & Operación | R20: =$F$7 -> Sistema de recuperación de CO2
B21: Tarifa de disposición final | C21: ='INPUT DE DATOS'!C17 -> 15 | D21: ='INPUT DE DATOS'!D17 -> USD/ton | F21: Subtotal OPEX | G21: =C37*C6 -> 3693795.999
B22: Tarifa de tratamiento | C22: ='INPUT DE DATOS'!C18 -> 24 | D22: ='INPUT DE DATOS'!D18 -> USD/ton | F22: Costo autoconsumo eléctrico | G22: =C54*C24 -> 0
B23: Precio biometano | C23: ='INPUT DE DATOS'!C22 -> 0.01 | D23: USD/GJ | F23: Costo envío de rechazo a relleno sanitario | G23: =C52*C21 -> 259355.7
B24: Precio electricidad | C24: ='INPUT DE DATOS'!C21 -> 0 | D24: ='INPUT DE DATOS'!D21 -> USD/kWh | F24: Total | G24: =G21+G23+G22 -> 3953151.699 | N24: =$B$39 -> Fracción orgánica | P24: Digestor Anaerobio
B25: Precio CO2 | C25: ='INPUT DE DATOS'!C23 -> 0 | D25: USD/KG | N25: =$C$39 -> 113752.5 | O25: =$D$39 -> ton/año
B26: Precio CDR | C26: ='INPUT DE DATOS'!C31 -> 0 | D26: ='INPUT DE DATOS'!D30 -> USD/ton | F26: Ingresos / año
B27: Precio valorizables | C27: ='INPUT DE DATOS'!C30 -> 170 | D27: ='INPUT DE DATOS'!D31 -> USD/ton | F27: Concepto | G27: USD | U27: Composta
B28: Precio composta | C28: ='INPUT DE DATOS'!C24 -> 10 | D28: USD/ton | F28: Tarifa de Tratamiento | G28: =C22*C37 -> 5460120 | U28: =$C$44 -> 14787825 | V28: =$D$44 -> Nm3/año
B29: SUPUESTOS FINANCIEROS | F29: Venta/Ahorro Biometano | G29: ='T8'!C55*'T8'!C23 -> 3349.895051 | S29: Planta de Compostaje
B30: Inflación | C30: ='INPUT DE DATOS'!C38 -> 0.02 | F30: Venta CO2 | G30: =C47*C25 -> 0
B31: Tasa de Descuento | C31: ='INPUT DE DATOS'!C40 -> 0.0831 | F31: Venta de composta | G31: =C50*C28 -> 455010
B32: Incremento Anual Energéticos | C32: ='INPUT DE DATOS'!C39 -> 0.04 | F32: Venta de valorizables | G32: =C48*C27 -> 1856440.8
B33: Cash Flow | C33: ='INPUT DE DATOS'!C41 -> 20 | D33: años | F33: Venta de CDR | G33: =C49*C26 -> 0
F34: Total | G34: =SUM(G28:G33) -> 7774920.695 | N34: Rechazo | P34: Relleno sanitario
B35: DIMENSIONAMIENTO | N35: =$C$52 -> 17290.38 | O35: =$D$52 -> ton/año
B36: INPUT | F36: RESULTADOS FINANCIEROS
B37: Residuos sólidos urbanos | C37: ='INPUT DE DATOS'!C10 -> 227505 | D37: ton/año | F37: CAPEX | G37: =G11 -> 32237322
B38: COMPOSICIÓN | F38: OPEX (anual) | G38: =G24 -> 3953151.699
B39: Fracción orgánica | C39: =C37*'INPUT DE DATOS'!C12 -> 113752.5 | D39: ton/año | F39: INGRESOS (anual) | G39: =G34 -> 7774920.695
B40: Fracción inorgánica | C40: =C37*'INPUT DE DATOS'!C13 -> 86451.9 | D40: ton/año
B41: Valorizables | C41: =C37*'INPUT DE DATOS'!C14 -> 27300.6 | D41: ton/año | F41: FINANCIAMIENTO
B42: Agua | C42: =C7*C39 -> 11375.25 | D42: m3/año | F42: Capital aportado | G42: =G37-G43 -> 32237322
B43: OUTPUT | F43: Deuda adquirida | G43: =G37*'INPUT DE DATOS'!C43 -> 0
B44: Biogas | C44: =C39*C12 -> 14787825 | D44: Nm3/año | F44: Plazo | G44: ='INPUT DE DATOS'!C44 -> 15
B45: Biometano (98% CH4) | C45: =C44*C14/0.98 -> 9053770.408 | D45: Nm3/año | F45: Pago anual del crédito con intereses | G45: =IF(AND('INPUT DE DATOS'!C44=0,'INPUT DE DATOS'!C45=0),0,PMT(('INPUT DE DATOS'!C45/12),('INPUT DE DATOS'!C44*12),G43)*12*-1) -> 0
B46: CO2 | C46: =C13*C44 -> 5915130 | D46: Nm3/año | I46: DESCRIPCIÓN DE TECNOLOGÍA
C47: =C46*1.9772 -> 11695395.04 | D47: kg/año | F47: ANÁLISIS - CASH FLOW 15 AÑOS EBDTA | I47: T8. Planta de clasificación automática + Digestión Anaerobia (biometano/CO2) + compostaje (TMB Completa): la función de esta planta es seleccionar el contenido del material entrante mediante una combinación de procesos de separación mecánicos o automatizados con el fin de recuperar las fracciones valorizables y CDR se preparan para su posterior comercialización o tratamiento. A la fracción orgánica de los residuos clasificados se les da un tratamiento de biometanización, después de varias etapas se transforma la fracción orgánica en biogás, a este proceso se le conoce como digestión anaerobia. El biogás que se obtiene en el proceso se adecúa para su comercialización.
B48: Valorizables | C48: =C41*C11 -> 10920.24 | D48: ton/año | F48: Payback | G48: ='T8 CF'!J3 -> 8
B49: CDR | C49: =C40*C10+C41-C48 -> 85541.88 | D49: ton/año | F49: Payback descontado | G49: ='T8 CF'!J4 -> 14
B50: Composta | C50: =C39*C8 -> 45501 | D50: ton/año | F50: TIR (CF 15 años) | G50: ='T8 CF'!J5 -> 0.1057913028
B51: Agua residual | C51: =C39*C9 -> 45501 | D51: m3/año | F51: VAN (CF 15 años) | G51: ='T8 CF'!J6 -> 6573719.331
B52: Rechazo | C52: =C40+C41-C48-C49 -> 17290.38 | D52: ton/año
B53: ENERGÍA
B54: Consumo energía eléctrica | C54: =C17*C39 -> 6256387.5 | D54: kWh/año
B55: Producción energética Biometano | C55: =C16*C45/1000 -> 334989.5051 | D55: GJ/año

Sheet T8 CF (hidden)
B2: SUPUESTOS FINANCIEROS | D2: DATOS DE FINANCIAMIENTO | H2: RESULTADOS (EBTDA)
B3: Vida útil del proyecto | C3: ='T8'!C4 -> 25 | D3: ='INPUT DE DATOS'!B43 -> Porcentaje de financiamiento | E3: ='INPUT DE DATOS'!C43 -> 0 | H3: Payback | J3: =T21 -> 8
B4: Cash flow | C4: ='T8'!C33 -> 20 | D4: ='INPUT DE DATOS'!B44 -> Plazo de financiamiento | E4: ='INPUT DE DATOS'!C44 -> 15 | H4: Payback Descontado | J4: =U21 -> 14
B5: Inflación | C5: ='T8'!C30 -> 0.02 | D5: ='INPUT DE DATOS'!B45 -> Tasa de interés bancaria | E5: ='INPUT DE DATOS'!C45 -> 0.05 | H5: TIR | J5: =T22 -> 0.1057913028
B6: Tasa de Descuento | C6: ='T8'!C31 -> 0.0831 | D6: ='T7'!F40 -> Capital aportado | E6: ='T8'!G42 -> 32237322 | H6: VAN | J6: =T23 -> 6573719.331
B7: Incentivo Fiscal | C7: No | D7: ='T7'!F41 -> Deuda adquirida | E7: ='T8'!G43 -> 0
B8: Impuesto (ISR) | C8: 0 | D8: ='T7'!F43 -> Pago anual del crédito con intereses | E8: ='T8'!G45 -> 0
B9: Incremento anual energéticos | C9: ='T8'!C32 -> 0.04
B11: Ingresos / año | D11: OPEX / año
B12: Concepto | C12: MXN | D12: Concepto | E12: MXN
B13: ='T8'!F28 -> Tarifa de Tratamiento | C13: ='T8'!G28 -> 5460120 | D13: ='T8'!F21 -> Subtotal OPEX | E13: ='T8'!G21 -> 3693795.999
B14: ='T8'!F29 -> Venta/Ahorro Biometano | C14: ='T8'!G29 -> 3349.895051 | D14: ='T8'!F22 -> Costo autoconsumo eléctrico | E14: ='T8'!G22 -> 0
B15: ='T8'!F30 -> Venta CO2 | C15: ='T8'!G30 -> 0 | D15: ='T8'!F23 -> Costo envío de rechazo a relleno sanitario | E15: ='T8'!G23 -> 259355.7
B16: ='T8'!F31 -> Venta de composta | C16: ='T8'!G31 -> 455010
B17: ='T8'!F32 -> Venta de valorizables | C17: ='T8'!G32 -> 1856440.8 | S17: PROYECTO: EBTDA
B18: ='T8'!F33 -> Venta de CDR | C18: ='T8'!G33 -> 0 | T18: Payback | U18: Payback Descont.
T19: =IF(VLOOKUP(LOOKUP(0,S28:S53),S28:V53,COUNT(S28:V28),FALSE)>50,"Mas de 50",VLOOKUP(LOOKUP(0,S28:S53),S28:V53,4,FALSE)) -> 8 | U19: =IF(VLOOKUP(LOOKUP(0,U28:U53),U28:V53,2,FALSE)>50,"Mas de 50",VLOOKUP(LOOKUP(0,U28:U53),U28:V53,2,FALSE)) -> 14
B20: Ingresos Totales | C20: =SUM(C13:C19) -> 7774920.695 | D20: Costos Totales | E20: =SUM(E13:E19) -> 3953151.699
S21: Payback | T21: =T19+T20 -> 8 | U21: =IF(VLOOKUP(LOOKUP(0,U28:U53),U28:V53,2,FALSE)>50,"Mas de 50",U19+U20) -> 14
S22: TIR | T22: =IFERROR(VLOOKUP(C4,V28:Y53,2,0),0) -> 0.1057913028
S23: VAN | T23: =VLOOKUP(C4,V28:Y53,3,0) -> 6573719.331
B24: Año | C24: Manejo de residuos | D24: INGRESOS | J24: Ingresos totales | K24: COSTOS / OPEX | O24: Egresos Totales | P24: Utilidad Bruta | Q24: CAPEX | R24: Cálculo TIR | S24: Flujo Acumulado | T24: Utilidad Neta Valor del Tiempo | U24: Flujo Acumulado Descontado | V24: Año | W24: TIR | X24: VAN | Y24: VAN
D25: =B13 -> Tarifa de Tratamiento | E25: =B14 -> Venta/Ahorro Biometano | F25: Venta composta | G25: =B17 -> Venta de valorizables | H25: =B15 -> Venta CO2 | I25: =B18 -> Venta de CDR | K25: =D13 -> Subtotal OPEX | L25: =D14 -> Costo autoconsumo eléctrico | M25: =D15 -> Costo envío de rechazo a relleno sanitario | N25: Financiamiento
P26: EBTDA | S26: Cáclulo Payback | T26: Tasa Descuento | W26: Nominal | X26: Tasa de Descuento | Y26: TIR Nominal
C27: (ton/año) | D27: =C5 -> 0.02 | E27: =C9 -> 0.04 | F27: =C5 -> 0.02 | G27: =C5 -> 0.02 | H27: =C5 -> 0.02 | I27: =C5 -> 0.02 | K27: =$C$5 -> 0.02 | L27: =C5 -> 0.02 | M27: =C5 -> 0.02 | R27: Cálculo TIR | T27: =C6 -> 0.0831
B28: 0 | C28: 0 | D28: 0 | E28: 0 | F28: 0 | G28: 0 | H28: 0 | J28: =SUM(D28:I28) -> 0 | K28: 0 | L28: 0 | N28: 0 | O28: =SUM(K28:N28) -> 0 | P28: 0 | Q28: =-'T8'!G11 -> -32237322 | R28: =P28+Q28 -> -32237322 | S28: =R28 -> -32237322 | T28: =R28*(1+$T$27)^(-V28) -> -32237322 | U28: =T28 -> -32237322 | V28: 0 | W28: 0 | X28: 0 | Y28: 0
B29: 1 | C29: =C30*(24-('T8'!C19))/12 -> 0 | D29: =C13*C29/C30 -> 0 | E29: =C14*C29/C30 -> 0 | F29: =C16*C29/C30 -> 0 | G29: =C17*C29/C30 -> 0 | H29: =C15*C29/C30 -> 0 | I29: =C18*C29/C30 -> 0 | J29: =SUM(D29:I29) -> 0 | K29: =E13*(C29/C30) -> 0 | L29: =E14*(C29/C30) -> 0 | M29: =E15*(C29/C30) -> 0 | N29: =IF(B29>E$4,0,E$8) -> 0 | O29: =SUM(K29:N29) -> 0 | P29: =J29-O29 -> 0 | Q29: 0 | R29: =P29+Q29 -> 0 | S29: =S28+R29 -> -32237322 | T29: =R29*(1+$T$27)^(-V29) -> 0 | U29: =T29+U28 -> -32237322 | V29: 1 | W29: =IRR($R$28:R29) ->  | X29: =NPV($T$27,R29)+R28 -> -32237322 | Y29: =NPV(W29,R29)+R28 -> 
B30: 2 | C30: ='T8'!C$37 -> 227505 | D30: =C13*(1+D$27) -> 5569322.4 | E30: =C14*(1+'T8 CF'!E27) -> 3483.890853 | F30: =C16*(1+'T8 CF'!F27) -> 464110.2 | G30: =C17*(1+G27) -> 1893569.616 | H30: =C15*(1+H27) -> 0 | I30: =C18*(1+I27) -> 0 | J30: 7930486.107 | K30: =E13*(1+K$27) -> 3767671.919 | L30: =E14*(1+L$27) -> 0 | M30: =E15*(1+M27) -> 264542.814 | N30: =IF(B30>E$4,0,E$8) -> 0 | O30: =SUM(K30:N30) -> 4032214.733 | P30: =J30-O30 -> 3898271.374 | Q30: 0 | R30: =P30+Q30 -> 3898271.374 | S30: =S29+R30 -> -28339050.62 | T30: =R30*(1+$T$27)^(-V30) -> 3323035.318 | U30: =T30+U29 -> -28914286.68 | V30: 2 | W30: =IRR($R$28:R30) -> -0.6522584738 | X30: =NPV($T$27,$R$29:R30)+$R$28 -> -28914286.68 | Y30: =NPV(W30,$R$29:R30)+$R$28 -> 0
B31: 3 | C31: ='T8'!C$37 -> 227505 | D31: =D30*(1+D$27) -> 5680708.848 | E31: 3623.246487 | F31: 473392.404 | G31: 1931441.008 | H31: 0 | I31: 0 | J31: =SUM(D31:I31) -> 8089165.507 | K31: =K30*(1+K$27) -> 3843025.357 | L31: 0 | M31: =M30*(1+M$27) -> 269833.6703 | N31: 0 | O31: =SUM(K31:N31) -> 4112859.027 | P31: =J31-O31 -> 3976306.479 | Q31: 0 | R31: =P31+Q31 -> 3976306.479 | S31: =S30+R31 -> -24362744.14 | T31: =R31*(1+$T$27)^(-V31) -> 3129494.433 | U31: =T31+U30 -> -25784792.25 | V31: 3 | W31: =IRR(R$28:$R31) -> -0.421842977 | X31: =NPV($T$27,$R$29:R31)+$R$28 -> -25784792.25 | Y31: 0
B32: 4 | C32: ='T8'!C$37 -> 227505 | D32: =D31*(1+D$27) -> 5794323.025 | E32: =E31*(1+E$27) -> 3768.176347 | F32: =F31*(1+F$27) -> 482860.2521 | G32: 1970069.828 | H32: 0 | I32: 0 | J32: 8251021.282 | K32: =K31*(1+K$27) -> 3919885.864 | L32: 0 | M32: 275230.3437 | N32: 0 | O32: 4195116.208 | P32: 4055905.074 | Q32: 0 | R32: 4055905.074 | S32: -20306839.07 | T32: 2947226.807 | U32: -22837565.44 | V32: 4 | W32: =IRR($R$28:R32) -> -0.2729558425 | X32: =NPV($T$27,$R$29:R32)+$R$28 -> -22837565.44 | Y32: 0
B33: 5 | C33: ='T8'!C$37 -> 227505 | D33: 5910209.485 | E33: 3918.903401 | F33: =F32*(1+F$27) -> 492517.4571 | G33: 2009471.225 | H33: 0 | I33: =I32*(1+I$27) -> 0 | J33: 8416117.071 | K33: =K32*(1+K$27) -> 3998283.582 | L33: 0 | M33: 280734.9506 | N33: 0 | O33: 4279018.532 | P33: 4137098.539 | Q33: 0 | R33: 4137098.539 | S33: -16169740.53 | T33: 2775575.76 | U33: -20061989.68 | V33: 5 | W33: =IRR($R$28:R33) -> -0.1739687612 | X33: =NPV($T$27,$R$29:R33)+$R$28 -> -20061989.68 | Y33: 0
B34: 6 | C34: ='T8'!C$37 -> 227505 | D34: 6028413.675 | E34: 4075.659537 | F34: =F33*(1+F$27) -> 502367.8063 | G34: 2049660.65 | H34: 0 | I34: 0 | J34: 8584517.791 | K34: =K33*(1+K$27) -> 4078249.253 | L34: 0 | M34: 286349.6496 | N34: 0 | O34: 4364598.903 | P34: 4219918.888 | Q34: 0 | R34: 4219918.888 | S34: -11949821.64 | T34: 2613922.869 | U34: -17448066.81 | V34: 6 | W34: =IRR($R$28:R34) -> -0.1055782206 | X34: =NPV($T$27,$R$29:R34)+$R$28 -> -17448066.81 | Y34: 0
B35: 7 | C35: ='T8'!C$37 -> 227505 | D35: 6148981.949 | E35: 4238.685918 | F35: =F34*(1+F$27) -> 512415.1624 | G35: 2090653.863 | H35: 0 | I35: 0 | J35: 8756289.66 | K35: =K34*(1+K$27) -> 4159814.238 | L35: 0 | M35: 292076.6426 | N35: 0 | O35: 4451890.881 | P35: 4304398.779 | Q35: 0 | R35: 4304398.779 | S35: -7645422.864 | T35: 2461685.733 | U35: -14986381.08 | V35: 7 | W35: =IRR($R$28:R35) -> -0.0566425439 | X35: -14986381.08 | Y35: 0
B36: 8 | C36: ='T8'!C$37 -> 227505 | D36: 6271961.588 | E36: 4408.233355 | F36: =F35*(1+F$27) -> 522663.4656 | G36: 2132466.94 | H36: 0 | I36: 0 | J36: 8931500.226 | K36: =K35*(1+K$27) -> 4243010.523 | L36: 0 | M36: 297918.1754 | N36: 0 | O36: 4540928.698 | P36: 4390571.528 | Q36: 0 | R36: 4390571.528 | S36: -3254851.336 | T36: 2318315.88 | U36: -12668065.2 | V36: 8 | W36: =IRR($R$28:R36) -> -0.02057026106 | X36: -12668065.2 | Y36: 0
B37: 9 | C37: ='T8'!C$37 -> 227505 | D37: 6397400.819 | E37: 4584.562689 | F37: =F36*(1+F$27) -> 533116.7349 | G37: 2175116.279 | H37: 0 | I37: 0 | J37: 9110218.396 | K37: =K36*(1+K$27) -> 4327870.733 | L37: 0 | M37: 303876.5389 | N37: 0 | O37: 4631747.272 | P37: 4478471.123 | Q37: 0 | R37: 4478471.123 | S37: 1223619.788 | T37: =R37*(1+$T$27)^(-V37) -> 2183296.788 | U37: -10484768.41 | V37: 9 | W37: =IRR($R$28:R37) -> 0.006690823043 | X37: -10484768.41 | Y37: 0
B38: 10 | C38: ='T8'!C$37 -> 227505 | D38: 6525348.836 | E38: 4767.945196 | F38: =F37*(1+F$27) -> 543779.0696 | G38: 2218618.604 | H38: 0 | I38: 0 | J38: 9292514.455 | K38: =K37*(1+K$27) -> 4414428.148 | L38: 0 | M38: 309954.0697 | N38: 0 | O38: 4724382.218 | P38: 4568132.237 | Q38: 0 | R38: 4568132.237 | S38: =S37+R38 -> 5791752.025 | T38: 2056142.022 | U38: -8428626.387 | V38: 10 | W38: =IRR($R$28:R38) -> 0.02772844174 | X38: -8428626.387 | Y38: 0
B39: 11 | C39: ='T8'!C$37 -> 227505 | D39: 6655855.813 | E39: 4958.663004 | F39: =F38*(1+F$27) -> 554654.651 | G39: 2262990.976 | H39: 0 | I39: 0 | J39: 9478460.103 | K39: =K38*(1+K$27) -> 4502716.711 | L39: 0 | M39: 316153.1511 | N39: 0 | O39: 4818869.862 | P39: 4659590.241 | Q39: 0 | R39: 4659590.241 | S39: 10451342.27 | T39: 1936393.485 | U39: -6492232.902 | V39: 11 | W39: =IRR($R$28:R39) -> 0.04425297782 | X39: -6492232.902 | Y39: 0
B40: 12 | C40: ='T8'!C$37 -> 227505 | D40: 6788972.929 | E40: 5157.009525 | F40: =F39*(1+F$27) -> 565747.7441 | G40: 2308250.796 | H40: 0 | I40: 0 | J40: 9668128.478 | K40: =K39*(1+K$27) -> 4592771.045 | L40: 0 | M40: 322476.2141 | N40: 0 | O40: 4915247.259 | P40: 4752881.219 | Q40: 0 | R40: 4752881.219 | S40: 15204223.48 | T40: 1823619.766 | U40: =T40+U39 -> -4668613.136 | V40: 12 | W40: =IRR($R$28:R40) -> 0.0574297221 | X40: -4668613.136 | Y40: 0
B41: 13 | C41: ='T8'!C$37 -> 227505 | D41: 6924752.387 | E41: 5363.289906 | F41: =F40*(1+F$27) -> 577062.6989 | G41: 2354415.812 | H41: 0 | I41: 0 | J41: 9861594.188 | K41: =K40*(1+K$27) -> 4684626.466 | L41: 0 | M41: 328925.7384 | N41: 0 | O41: 5013552.205 | P41: 4848041.983 | Q41: 0 | R41: 4848041.983 | S41: 20052265.47 | T41: 1717414.583 | U41: =T41+U40 -> -2951198.553 | V41: 13 | W41: =IRR($R$28:R41) -> 0.06807394357 | X41: -2951198.553 | Y41: 0
B42: 14 | C42: ='T8'!C$37 -> 227505 | D42: 7063247.435 | E42: 5577.821502 | F42: =F41*(1+F$27) -> 588603.9529 | G42: 2401504.128 | H42: 0 | I42: 0 | J42: 10058933.34 | K42: =K41*(1+K$27) -> 4778318.995 | L42: 0 | M42: 335504.2532 | N42: 0 | O42: 5113823.249 | P42: 4945110.089 | Q42: 0 | R42: 4945110.089 | S42: 24997375.56 | T42: 1617395.322 | U42: -1333803.231 | V42: 14 | W42: =IRR($R$28:R42) -> 0.07676944287 | X42: -1333803.231 | Y42: 0
B43: 15 | C43: ='T8'!C$37 -> 227505 | D43: 7204512.384 | E43: 5800.934362 | F43: =F42*(1+F$27) -> 600376.032 | G43: 2449534.21 | H43: 0 | I43: 0 | J43: 10260223.56 | K43: =K42*(1+K$27) -> 4873885.375 | L43: 0 | M43: 342214.3382 | N43: 0 | O43: 5216099.714 | P43: 5044123.847 | Q43: 0 | R43: 5044123.847 | S43: 30041499.4 | T43: 1523201.658 | U43: 189398.4264 | V43: 15 | W43: =IRR($R$28:R43) -> 0.08394290459 | X43: 189398.4264 | Y43: 4.842877388e-08
B44: 16 | C44: ='T8'!C$37 -> 227505 | D44: 7348602.631 | E44: 6032.971736 | F44: =F43*(1+F$27) -> 612383.5526 | G44: 2498524.895 | H44: 0 | I44: 0 | J44: 10465544.05 | K44: =K43*(1+K$27) -> 4971363.083 | L44: 0 | M44: 349058.625 | N44: 0 | O44: 5320421.708 | P44: 5145122.343 | Q44: 0 | R44: 5145122.343 | S44: 35186621.75 | T44: 1434494.253 | U44: 1623892.679 | V44: 16 | W44: =IRR($R$28:R44) -> 0.08991186609 | X44: 1623892.679 | Y44: 0
B45: 17 | C45: ='T8'!C$37 -> 227505 | D45: 7495574.684 | E45: 6274.290606 | F45: =F44*(1+F$27) -> 624631.2237 | G45: 2548495.393 | H45: 0 | I45: 0 | J45: 10674975.59 | K45: =K44*(1+K$27) -> 5070790.345 | L45: 0 | M45: 356039.7975 | N45: 0 | O45: 5426830.142 | P45: 5248145.449 | Q45: 0 | R45: 5248145.449 | S45: =S44+R45 -> 40434767.19 | T45: 1350953.54 | U45: 2974846.219 | V45: 17 | W45: =IRR($R$28:R45) -> 0.09491645981 | X45: 2974846.219 | Y45: 0
B46: 18 | C46: ='T8'!C$37 -> 227505 | D46: 7645486.178 | E46: 6525.26223 | F46: =F45*(1+F$27) -> 637123.8481 | G46: 2599465.3 | H46: 0 | I46: 0 | J46: 10888600.59 | K46: =K45*(1+K$27) -> 5172206.151 | L46: 0 | M46: 363160.5934 | N46: 0 | O46: 5535366.745 | P46: 5353233.844 | Q46: 0 | R46: 5353233.844 | S46: 45788001.04 | T46: 1272278.564 | U46: 4247124.783 | V46: 18 | W46: =IRR($R$28:R46) -> 0.09914090175 | X46: 4247124.783 | Y46: =NPV(W46,$R$29:R46)+$R$28 -> 2.980232239e-08
B47: 19 | C47: ='T8'!C$37 -> 227505 | D47: 7798395.901 | E47: 6786.272719 | F47: =F46*(1+F$27) -> 649866.3251 | G47: 2651454.606 | H47: 0 | I47: 0 | J47: 11106503.11 | K47: =K46*(1+K$27) -> 5275650.274 | L47: 0 | M47: 370423.8053 | N47: 0 | O47: 5646074.08 | P47: 5460429.026 | Q47: 0 | R47: 5460429.026 | S47: 51248430.06 | T47: =R47*(1+$T$27)^(-V47) -> 1198185.903 | U47: 5445310.686 | V47: 19 | W47: =IRR($R$28:R47) -> 0.1027283394 | X47: 5445310.686 | Y47: 0
B48: 20 | C48: ='T8'!C$37 -> 227505 | D48: 7954363.819 | E48: 7057.723628 | F48: =F47*(1+F$27) -> 662863.6516 | G48: 2704483.699 | H48: 0 | I48: 0 | J48: 11328768.89 | K48: =K47*(1+K$27) -> 5381163.28 | L48: 0 | M48: 377832.2814 | N48: 0 | O48: 5758995.561 | P48: 5569773.332 | Q48: 0 | R48: 5569773.332 | S48: 56818203.4 | T48: =R48*(1+$T$27)^(-V48) -> 1128408.645 | U48: 6573719.331 | V48: 20 | W48: =IRR($R$28:R48) -> 0.1057913028 | X48: 6573719.331 | Y48: 0
B49: 21 | C49: ='T8'!C$37 -> 227505 | D49: 8113451.096 | E49: 7340.032573 | F49: =F48*(1+F$27) -> 676120.9246 | G49: 2758573.373 | H49: 0 | I49: 0 | J49: 11555485.43 | K49: =K48*(1+K$27) -> 5488786.546 | L49: 0 | M49: 385388.927 | N49: 0 | O49: 5874175.473 | P49: 5681309.953 | Q49: 0 | R49: 5681309.953 | S49: 62499513.35 | T49: 1062695.425 | U49: 7636414.756 | V49: 21 | W49: =IRR($R$28:R49) -> 0.1084191845 | X49: 7636414.756 | Y49: 0
B50: 22 | C50: ='T8'!C$37 -> 227505 | D50: 8275720.118 | E50: 7633.633876 | F50: =F49*(1+F$27) -> 689643.3431 | G50: 2813744.84 | H50: 0 | I50: 0 | J50: 11786741.93 | K50: =K49*(1+K$27) -> 5598562.276 | L50: 0 | M50: 393096.7056 | N50: 0 | O50: 5991658.982 | P50: 5795082.953 | Q50: 0 | R50: 5795082.953 | S50: 68294596.3 | T50: 1000809.522 | U50: 8637224.278 | V50: 22 | W50: =IRR($R$28:R50) -> 0.1106836762 | X50: 8637224.278 | Y50: -3.725290298e-08
B51: 23 | C51: ='T8'!C$37 -> 227505 | D51: 8441234.52 | E51: 7938.979231 | F51: =F50*(1+F$27) -> 703436.21 | G51: 2870019.737 | H51: 0 | I51: 0 | J51: 12022629.45 | K51: =K50*(1+K$27) -> 5710533.522 | L51: 0 | M51: 400958.6397 | N51: 0 | O51: 6111492.162 | P51: 5911137.284 | Q51: 0 | R51: 5911137.284 | S51: 74205733.59 | T51: 942528.0018 | U51: 9579752.28 | V51: 23 | W51: =IRR($R$28:R51) -> 0.1126427743 | X51: 9579752.28 | Y51: 4.097819328e-08
B52: 24 | C52: ='T8'!C$37 -> 227505 | D52: 8610059.21 | E52: 8256.5384 | F52: =F51*(1+F$27) -> 717504.9342 | G52: 2927420.132 | H52: 0 | I52: 0 | J52: 12263240.81 | K52: =K51*(1+K$27) -> 5824744.192 | L52: 0 | M52: 408977.8125 | N52: 0 | O52: 6233722.005 | P52: 6029518.81 | Q52: 0 | R52: 6029518.81 | S52: 80235252.39 | T52: 887640.9188 | U52: 10467393.2 | V52: 24 | W52: =IRR($R$28:R52) -> 0.1143437697 | X52: 10467393.2 | Y52: -3.725290298e-08
B53: 25 | C53: ='T8'!C$37 -> 227505 | D53: 8782260.395 | E53: 8586.799936 | F53: =F52*(1+F$27) -> 731855.0329 | G53: 2985968.534 | H53: 0 | I53: 0 | J53: 12508670.76 | K53: =K52*(1+K$27) -> 5941239.076 | L53: 0 | M53: 417157.3687 | N53: =IF(B53>E$4,0,E$8) -> 0 | O53: 6358396.445 | P53: 6150274.317 | Q53: 0 | R53: 6150274.317 | S53: 86385526.71 | T53: 835950.5559 | U53: 11303343.75 | V53: 25 | W53: =IRR($R$28:R53) -> 0.1158255058 | X53: 11303343.75 | Y53: 0

Sheet T9 (hidden)
B2: =TECNOLOGIAS!C12 -> Planta de clasificación automática + Digestión Anaerobia (electricidad) + compostaje (TMB Completa) + Termovalorización | F2: CAPEX | I2: DIAGRAMA DE PROCESO
B3: BASES & SUPUESTOS | F3: Concepto | G3: USD
B4: Vida útil | C4: 25 | D4: años | F4: Planta de selección
B5: CapEx | C5: =TECNOLOGIAS!K12 -> 928.998 | D5: USD/tpa | F5: Planta de biogas
B6: OpEx | C6: =TECNOLOGIAS!P12 -> 107.2308375 | D6: USD/tpa | F6: Sistema de CHP
B7: Agua de entrada | C7: 0.1 | D7: ton/ton de residuo orgánico | F7: Sistema de compostaje
B8: Composta | C8: 0.4 | D8: ton/ton de residuo orgánico | F8: Planta de termovalorización | N8: =$B$39 -> Valorizables
B9: Agua residual | C9: 0.4 | D9: ton/ton de residuo orgánico | F9: Obra Civil, Otros Equipos y Obras Auxiliares | N9: =$C$43 -> 10920.24 | O9: =$D$39 -> ton/año
B10: Proporción CDR | C10: 0.8 | D10: ton/ton de inorgánico | F10: Estudios de Factibilidad, Gestión, Permisos & Otros
B11: Factor de eficiencia de separación | C11: 0.4 | F11: Total | G11: =C5*C35 -> 211351690
B12: Densidad biogas | C12: 1.2 | D12: kg/Nm3
B13: Rendimiento Biogas - FO | C13: 130 | D13: Nm3/ton | F13: OPEX / año
B14: Contenido de Dióxido de Carbono (CO2) | C14: 0.4 | F14: Concepto | G14: USD | S14: Generación de electricidad
B15: Contenido de Metano (CH4) | C15: 0.57 | F15: Mantenimiento de planta de biogas | I15: =$B$35 -> Residuos sólidos urbanos | K15: Planta de selección automática | N15: CDR | P15: Termovalorización | S15: =$C$50 -> 110703933 | T15: =$D$50 -> kWh/año
B16: Cenizas | C16: 0.2 | D16: ton/ton de residuo incinerado | F16: Mantenimiento CHP | I16: =$C$35 -> 227505 | J16: =$D$35 -> ton/año | N16: =$C$44 -> 102832.26 | O16: =$D$44 -> ton/año
B17: Consumo energía eléctrica | C17: 55 | D17: kWh/ton de residuo orgánico | F17: Mantemimiento Compostaje
B18: Generación de electricidad | C18: 250 | D18: kWh/ton de residuo orgánico | F18: Mantenimiento Obra Civil
B19: Generación eléctric termo cdr | C19: 800 | D19: kWh/ton de residuo incinerado | F19: Mantenimiento Maquinaria & Eq. Auxiliares
B20: Tiempo de construcción | C20: 24 | D20: meses | F20: Administración & Operación
B21: SUPUESTOS DE INGRESOS | F21: Subtotal OPEX | G21: =C6*C35 -> 24395551.69
B22: Tarifa de disposición final | C22: ='INPUT DE DATOS'!C17 -> 15 | D22: ='INPUT DE DATOS'!D17 -> USD/ton | F22: Costo envío de rechazo a relleno sanitario | G22: =C47*C22 -> 308496.78
B23: Tarifa de tratamiento | C23: ='INPUT DE DATOS'!C18 -> 24 | D23: ='INPUT DE DATOS'!D18 -> USD/ton | F23: Total | G23: =G21+G22 -> 24704048.47
B24: Precio electricidad | C24: ='INPUT DE DATOS'!C21 -> 0 | D24: ='INPUT DE DATOS'!D21 -> USD/kWh | N24: =$B$37 -> Fracción orgánica | U24: Composta
B25: Precio valorizables | C25: ='INPUT DE DATOS'!C30 -> 170 | D25: ='INPUT DE DATOS'!D30 -> USD/ton | F25: Ingresos / año | N25: =$C$37 -> 113752.5 | O25: =$D$37 -> ton/año | P25: Digestor Anaerobio | S25: Planta de Compostaje | U25: =$C$45 -> 45501 | V25: =$D$45 -> ton/año
B26: Precio composta | C26: ='INPUT DE DATOS'!C24 -> 10 | D26: USD/ton | F26: Concepto | G26: USD
B27: SUPUESTOS FINANCIEROS | F27: Tarifa de Tratamiento | G27: =C23*C35 -> 5460120
B28: Inflación | C28: ='INPUT DE DATOS'!C38 -> 0.02 | F28: Venta de electricidad | G28: =C51*C24 -> 0
B29: Tasa de Descuento | C29: ='INPUT DE DATOS'!C40 -> 0.0831 | F29: Venta de composta | G29: =C26*C45 -> 455010
B30: Incremento Anual Energéticos | C30: ='INPUT DE DATOS'!C39 -> 0.04 | F30: Venta de valorizables | G30: =C25*C43 -> 1856440.8
B31: Cash Flow | C31: ='INPUT DE DATOS'!C41 -> 20 | D31: años | F31: Total | G31: =SUM(G27:G30) -> 7771570.8
B33: DIMENSIONAMIENTO | F33: RESULTADOS FINANCIEROS
B34: INPUT | F34: CAPEX | G34: =G11 -> 211351690 | N34: =$B$47 -> Cenizas / rechazo | P34: Relleno sanitario
B35: Residuos sólidos urbanos | C35: ='INPUT DE DATOS'!C10 -> 227505 | D35: ton/año | F35: OPEX (anual) | G35: =G23 -> 24704048.47 | N35: =$C$47 -> 20566.452 | O35: =$D$47 -> ton/año
B36: COMPOSICIÓN | F36: INGRESOS (anual) | G36: =G31 -> 7771570.8
B37: Fracción orgánica | C37: =C35*'INPUT DE DATOS'!C12 -> 113752.5 | D37: ton/año
B38: Fracción inorgánica | C38: =C35*'INPUT DE DATOS'!C13 -> 86451.9 | D38: ton/año | F38: FINANCIAMIENTO
B39: Valorizables | C39: =C35*'INPUT DE DATOS'!C14 -> 27300.6 | D39: ton/año | F39: Capital aportado | G39: =G34-G40 -> 211351690
B40: Agua | C40: =C7*C37 -> 11375.25 | D40: m3/año | F40: Deuda adquirida | G40: =G34*'INPUT DE DATOS'!C43 -> 0
B41: OUTPUT | F41: Plazo | G41: ='INPUT DE DATOS'!C44 -> 15
B42: Producción de Biogas | C42: =C37*C13 -> 14787825 | D42: Nm3/año | F42: Pago anual del crédito con intereses | G42: =IF(AND('INPUT DE DATOS'!C44=0,'INPUT DE DATOS'!C45=0),0,PMT(('INPUT DE DATOS'!C45/12),('INPUT DE DATOS'!C44*12),G40)*12*-1) -> 0
B43: Valorizables | C43: =C39*C11 -> 10920.24 | D43: ton/año
B44: CDR/rechazo para termovalorización | C44: =C38+C39-C43 -> 102832.26 | D44: ton/año | F44: ANÁLISIS - CASH FLOW 15 AÑOS EBDTA
B45: Composta | C45: =C37*C8 -> 45501 | D45: ton/año | F45: Payback | G45: ='T9 CF'!I3 -> 25
B46: Agua residual | C46: =C37*C9 -> 45501 | D46: m3/año | F46: Payback descontado | G46: ='T9 CF'!I4 -> 25
B47: Cenizas / rechazo | C47: =C44*C16 -> 20566.452 | D47: ton/año | F47: TIR (CF 15 años) | G47: ='T9 CF'!I5 -> 0 | I47: DESCRIPCIÓN DE TECNOLOGÍA
B48: ENERGÍA | F48: VAN (CF 15 años) | G48: ='T9 CF'!I6 -> -383278238.2 | I48: T9. Planta de clasificación automática + Digestión Anaerobia (electricidad) + compostaje (TMB Completa) + Termovalorización de CDR: la función de esta planta es seleccionar el contenido del material entrante mediante una combinación de procesos de separación mecánicos o automatizados con el fin de recuperar las fracciones valorizables y prepararlas para su posterior comercialización o tratamiento. A la fracción orgánica de los residuos clasificados se les da un tratamiento de biometanización, después de varias etapas se transforma la fracción orgánica en biogás, a este proceso se le conoce como digestión anaerobia. El biogás que se obtiene en el proceso se utiliza para generar electricidad. La fracción inorgánica (CDR) se transforma en energía por medio de un tratamiento térmico.
B49: Consumo energía eléctrica | C49: =C17*C37 -> 6256387.5 | D49: kWh/año
B50: Generación de electricidad | C50: =C37*C18+C19*C44 -> 110703933 | D50: kWh/año | F50: LCOE
B51: Energía libre | C51: =C50-C49 -> 104447545.5 | D51: kWh/año | F51: Generación vida útil (kWh) | G51: =C50*C4 -> 2767598325
F52: Costos Vida Útil | G52: =SUM('T9 CF'!L28:L53) -> 766574028.3
F53: Costos Valor Presente | G53: =G52/((1+C28)^(C4)) -> 467250534.8
F54: Costo Total Vida Útil | G54: =G53+G34 -> 678602224.8
F55: LCOE (USD/kWh) | G55: =G54/G51 -> 0.2451953445

Sheet T9 CF (hidden)
B2: SUPUESTOS FINANCIEROS | D2: DATOS DE FINANCIAMIENTO | H2: RESULTADOS (EBTDA)
B3: Vida útil del proyecto (años) | C3: ='T9'!C4 -> 25 | D3: ='INPUT DE DATOS'!B43 -> Porcentaje de financiamiento | E3: ='INPUT DE DATOS'!C43 -> 0 | H3: Payback | I3: =Q21 -> 25
B4: Cash flow (años) | C4: ='T9'!C31 -> 20 | D4: ='INPUT DE DATOS'!B44 -> Plazo de financiamiento | E4: ='INPUT DE DATOS'!C44 -> 15 | H4: Payback descontado | I4: =R21 -> 25
B5: Inflación | C5: ='T9'!C28 -> 0.02 | D5: ='INPUT DE DATOS'!B45 -> Tasa de interés bancaria | E5: ='INPUT DE DATOS'!C45 -> 0.05 | H5: TIR | I5: =Q22 -> 0
B6: Tasa de Descuento | C6: ='T9'!C29 -> 0.0831 | D6: ='T9'!F39 -> Capital aportado | E6: ='T9'!G39 -> 211351690 | H6: VAN | I6: =Q23 -> -383278238.2
B7: Incentivo Fiscal | C7: No | D7: ='T9'!F40 -> Deuda adquirida | E7: ='T9'!G40 -> 0
B8: Impuestos | C8: - | D8: ='T9'!F42 -> Pago anual del crédito con intereses | E8: ='T9'!G42 -> 0
B9: Incremento anual energéticos | C9: ='T9'!C30 -> 0.04
B11: Ingresos / año | D11: OPEX / año
B12: Concepto | C12: MXN | D12: Concepto | E12: MXN
B13: ='T9'!F27 -> Tarifa de Tratamiento | C13: ='T9'!G27 -> 5460120 | D13: ='T9'!F21 -> Subtotal OPEX | E13: ='T9'!G21 -> 24395551.69
B14: ='T9'!F28 -> Venta de electricidad | C14: ='T9'!G28 -> 0 | D14: ='T9'!F22 -> Costo envío de rechazo a relleno sanitario | E14: ='T9'!G22 -> 308496.78
B15: ='T9'!F29 -> Venta de composta | C15: ='T9'!G29 -> 455010
B16: ='T9'!F30 -> Venta de valorizables | C16: ='T9'!G30 -> 1856440.8
P17: PROYECTO: EBTDA
Q18: Payback | R18: Payback Descont.
Q19: =IF(VLOOKUP(LOOKUP(0,P28:P53),P28:S53,COUNT(P28:S28),FALSE)>50,"Mas de 50",VLOOKUP(LOOKUP(0,P28:P53),P28:S53,4,FALSE)) -> 25 | R19: =IF(VLOOKUP(LOOKUP(0,R28:R53),R28:S53,2,FALSE)>50,"Mas de 50",VLOOKUP(LOOKUP(0,R28:R53),R28:S53,2,FALSE)) -> 25
B20: Ingresos Totales | C20: =SUM(C13:C19) -> 7771570.8 | D20: Costos Totales | E20: =SUM(E13:E19) -> 24704048.47 | Q20: =IF(Q19>C4,0,-VLOOKUP(Q19,B28:P53,COUNT(B28:P28),FALSE)/(-VLOOKUP(Q19,B28:P53,COUNT(B28:P28),FALSE)+VLOOKUP(Q19+1,B28:P53,COUNT(B28:P28),FALSE))) -> 0 | R20: =IF(R19>C4,0,-VLOOKUP(R19,B28:R53,COUNT(B28:R28),FALSE)/(-VLOOKUP(R19,B28:R53,COUNT(B28:R28),FALSE)+VLOOKUP(R19+1,B28:R53,COUNT(B28:R28),FALSE))) -> 0
P21: Payback | Q21: =Q19+Q20 -> 25 | R21: =IF(VLOOKUP(LOOKUP(0,R28:R53),R28:S53,2,FALSE)>50,"Mas de 50",R19+R20) -> 25
P22: TIR | Q22: =IFERROR(VLOOKUP(C4,S28:V53,2,0),0) -> 0
P23: VAN | Q23: =VLOOKUP(C4,S28:V53,3,0) -> -383278238.2
B24: Año | C24: Manejo de residuos | D24: INGRESOS | H24: Ingresos totales | I24: COSTOS / OPEX | L24: Egresos Totales | M24: Utilidad Bruta | N24: CAPEX | O24: Cálculo TIR | P24: Flujo Acumulado | Q24: Utilidad Neta Valor del Tiempo | R24: Flujo Acumulado Descontado | S24: Año | T24: TIR | U24: VAN | V24: VAN
D25: =B13 -> Tarifa de Tratamiento | E25: =B14 -> Venta de electricidad | F25: =B15 -> Venta de composta | G25: =B16 -> Venta de valorizables | I25: =D13 -> Subtotal OPEX | J25: =D14 -> Costo envío de rechazo a relleno sanitario | K25: Financiamiento
M26: EBTDA | P26: Cáclulo Payback | Q26: Tasa Descuento | T26: Nominal | U26: Tasa de Descuento | V26: TIR Nominal
C27: (ton/año) | D27: =C5 -> 0.02 | E27: =C9 -> 0.04 | F27: =C5 -> 0.02 | G27: =C5 -> 0.02 | I27: =$C$5 -> 0.02 | J27: =C5 -> 0.02 | O27: Cálculo TIR | Q27: =C6 -> 0.0831
B28: 0 | C28: 0 | D28: 0 | E28: 0 | F28: 0 | G28: 0 | H28: =SUM(D28:G28) -> 0 | I28: 0 | J28: 0 | K28: 0 | L28: =SUM(I28:K28) -> 0 | M28: 0 | N28: =-'T9'!G11 -> -211351690 | O28: =M28+N28 -> -211351690 | P28: =O28 -> -211351690 | Q28: =O28*(1+$Q$27)^(-S28) -> -211351690 | R28: =Q28 -> -211351690 | S28: 0 | T28: 0 | U28: 0 | V28: 0
B29: 1 | C29: =C30*(24-('T9'!C20))/12 -> 0 | D29: =C13*C29/C30 -> 0 | E29: =C14*C29/C30 -> 0 | F29: =C15*C29/C30 -> 0 | G29: =C16*C29/C30 -> 0 | H29: =SUM(D29:G29) -> 0 | I29: =E13*(C29/C30) -> 0 | J29: =E14*(C29/C30) -> 0 | K29: =IF(B29>E$4,0,E$8) -> 0 | L29: 0 | M29: =H29-L29 -> 0 | N29: 0 | O29: =M29+N29 -> 0 | P29: =P28+O29 -> -211351690 | Q29: =O29*(1+$Q$27)^(-S29) -> 0 | R29: =Q29+R28 -> -211351690 | S29: 1 | T29: =IRR($O$28:O29) ->  | U29: =NPV($Q$27,O29)+O28 -> -211351690 | V29: =NPV(T29,O29)+O28 -> 
B30: 2 | C30: ='T9'!C35 -> 227505 | D30: =C13*(1+D27) -> 5569322.4 | E30: =C14*(1+E27) -> 0 | F30: =C15*(1+F27) -> 464110.2 | G30: =C16*(1+'T9 CF'!G27) -> 1893569.616 | H30: =SUM(D30:G30) -> 7927002.216 | I30: =E13*(1+I$27) -> 24883462.72 | J30: =E14*(1+J$27) -> 314666.7156 | K30: =IF(B30>E$4,0,E$8) -> 0 | L30: 25198129.43 | M30: -17271127.22 | N30: 0 | O30: =M30+N30 -> -17271127.22 | P30: =P29+O30 -> -228622817.2 | Q30: =O30*(1+$Q$27)^(-S30) -> -14722568.09 | R30: =Q30+R29 -> -226074258.1 | S30: 2 | T30: =IRR($O$28:O30) ->  | U30: =NPV($Q$27,$O$29:O30)+$O$28 -> -226074258.1 | V30: =NPV(T30,$O$29:O30)+$O$28 -> 
B31: 3 | C31: =C30 -> 227505 | D31: =D30*(1+D$27) -> 5680708.848 | E31: =E30*(1+E$27) -> 0 | F31: =F30*(1+F$27) -> 473392.404 | G31: =G30*(1+G$27) -> 1931441.008 | H31: 8085542.26 | I31: =I30*(1+I$27) -> 25381131.97 | J31: 320960.0499 | K31: 0 | L31: 25702092.02 | M31: -17616549.76 | N31: 0 | O31: =M31+N31 -> -17616549.76 | P31: =P30+O31 -> -246239367 | Q31: =O31*(1+$Q$27)^(-S31) -> -13864850.38 | R31: =Q31+R30 -> -239939108.5 | S31: 3 | T31: =IRR(O$28:$O31) ->  | U31: =NPV($Q$27,$O$29:O31)+$O$28 -> -239939108.5
B32: 4 | C32: =C31 -> 227505 | D32: =D31*(1+D$27) -> 5794323.025 | E32: =E31*(1+E$27) -> 0 | F32: =F31*(1+F$27) -> 482860.2521 | G32: 1970069.828 | H32: =SUM(D32:G32) -> 8247253.106 | I32: 25888754.61 | J32: 327379.2509 | K32: 0 | L32: 26216133.86 | M32: -17968880.76 | N32: 0 | O32: -17968880.76 | P32: -264208247.7 | Q32: -13057102.2 | R32: -252996210.7 | S32: 4 | T32: =IRR($O$28:O32) ->  | U32: =NPV($Q$27,$O$29:O32)+$O$28 -> -252996210.7
B33: 5 | C33: 227505 | D33: 5910209.485 | E33: 0 | F33: 492517.4571 | G33: 2009471.225 | H33: 8412198.168 | I33: 26406529.71 | J33: 333926.8359 | K33: 0 | L33: 26740456.54 | M33: -18328258.37 | N33: 0 | O33: -18328258.37 | P33: -282536506.1 | Q33: -12296412.37 | R33: -265292623 | S33: 5 | T33: =IRR($O$28:O33) ->  | U33: =NPV($Q$27,$O$29:O33)+$O$28 -> -265292623
B34: 6 | C34: 227505 | D34: 6028413.675 | E34: 0 | F34: 502367.8063 | G34: 2049660.65 | H34: 8580442.131 | I34: 26934660.3 | J34: 340605.3726 | K34: 0 | L34: 27275265.67 | M34: -18694823.54 | N34: 0 | O34: -18694823.54 | P34: -301231329.6 | Q34: -11580039.35 | R34: -276872662.4 | S34: 6 | T34: =IRR($O$28:O34) ->  | U34: =NPV($Q$27,$O$29:O34)+$O$28 -> -276872662.4
B35: 7 | C35: 227505 | D35: 6148981.949 | E35: 0 | F35: 512415.1624 | G35: 2090653.863 | H35: 8752050.974 | I35: 27473353.51 | J35: 347417.4801 | K35: 0 | L35: 27820770.99 | M35: -19068720.01 | N35: 0 | O35: -19068720.01 | P35: -320300049.7 | Q35: -10905401.29 | R35: -287778063.7 | S35: 7 | T35: =IRR($O$28:O35) ->  | U35: -287778063.7
B36: 8 | C36: 227505 | D36: 6271961.588 | E36: 0 | F36: 522663.4656 | G36: 2132466.94 | H36: =SUM(D36:G36) -> 8927091.993 | I36: 28022820.58 | J36: 354365.8297 | K36: 0 | L36: 28377186.41 | M36: -19450094.41 | N36: 0 | O36: -19450094.41 | P36: -339750144.1 | Q36: -10270066.77 | R36: -298048130.4 | S36: 8 | T36: =IRR($O$28:O36) ->  | U36: -298048130.4 | V36: =NPV(T36,$O$29:O36)+$O$28 -> 
B37: 9 | C37: 227505 | D37: 6397400.819 | E37: 0 | F37: 533116.7349 | G37: 2175116.279 | H37: 9105633.833 | I37: 28583276.99 | J37: 361453.1463 | K37: 0 | L37: 28944730.13 | M37: -19839096.3 | N37: 0 | O37: -19839096.3 | P37: -359589240.4 | Q37: =O37*(1+$Q$27)^(-S37) -> -9671746.011 | R37: -307719876.5 | S37: 9 | T37: =IRR($O$28:O37) ->  | U37: -307719876.5
B38: 10 | C38: 227505 | D38: 6525348.836 | E38: 0 | F38: 543779.0696 | G38: 2218618.604 | H38: 9287746.51 | I38: 29154942.53 | J38: 368682.2092 | K38: 0 | L38: 29523624.74 | M38: -20235878.23 | N38: 0 | O38: -20235878.23 | P38: =P37+O38 -> -379825118.6 | Q38: -9108282.643 | R38: -316828159.1 | S38: 10 | T38: =IRR($O$28:O38) ->  | U38: -316828159.1
B39: 11 | C39: 227505 | D39: 6655855.813 | E39: 0 | F39: 554654.651 | G39: 2262990.976 | H39: 9473501.44 | I39: 29738041.38 | J39: 376055.8534 | K39: 0 | L39: 30114097.23 | M39: -20640595.79 | N39: 0 | O39: -20640595.79 | P39: -400465714.4 | Q39: -8577645.92 | R39: -325405805 | S39: 11 | T39: =IRR($O$28:O39) ->  | U39: -325405805
B40: 12 | C40: 227505 | D40: 6788972.929 | E40: 0 | F40: 565747.7441 | G40: 2308250.796 | H40: 9662971.469 | I40: 30332802.2 | J40: 383576.9705 | K40: 0 | L40: 30716379.18 | M40: -21053407.71 | N40: 0 | O40: -21053407.71 | P40: -421519122.1 | Q40: -8077923.404 | R40: =Q40+R39 -> -333483728.4 | S40: 12 | T40: =IRR($O$28:O40) ->  | U40: -333483728.4
B41: 13 | C41: 227505 | D41: 6924752.387 | E41: 0 | F41: 577062.6989 | G41: 2354415.812 | H41: 9856230.898 | I41: 30939458.25 | J41: 391248.5099 | K41: 0 | L41: 31330706.76 | M41: -21474475.86 | N41: 0 | O41: -21474475.86 | P41: -442993598 | Q41: -7607314.072 | R41: =Q41+R40 -> -341091042.5 | S41: 13 | T41: =IRR($O$28:O41) ->  | U41: -341091042.5
B42: 14 | C42: 227505 | D42: 7063247.435 | E42: 0 | F42: 588603.9529 | G42: 2401504.128 | H42: 10053355.52 | I42: 31558247.41 | J42: 399073.4801 | K42: 0 | L42: 31957320.89 | M42: -21903965.38 | N42: 0 | O42: -21903965.38 | P42: -464897563.3 | Q42: -7164121.83 | R42: -348255164.3 | S42: 14 | T42: =IRR($O$28:O42) ->  | U42: -348255164.3
B43: 15 | C43: 227505 | D43: 7204512.384 | E43: 0 | F43: 600376.032 | G43: 2449534.21 | H43: 10254422.63 | I43: 32189412.36 | J43: 407054.9497 | K43: 0 | L43: 32596467.31 | M43: -22342044.69 | N43: 0 | O43: -22342044.69 | P43: -487239608 | Q43: -6746749.392 | R43: -355001913.7 | S43: 15 | T43: =IRR($O$28:O43) ->  | U43: -355001913.7
B44: 16 | C44: 227505 | D44: 7348602.631 | E44: 0 | F44: 612383.5526 | G44: 2498524.895 | H44: 10459511.08 | I44: 32833200.61 | J44: 415196.0487 | K44: 0 | L44: 33248396.66 | M44: -22788885.58 | N44: 0 | O44: -22788885.58 | P44: -510028493.6 | Q44: -6353692.53 | R44: -361355606.3 | S44: 16 | T44: =IRR($O$28:O44) ->  | U44: -361355606.3
B45: 17 | C45: 227505 | D45: 7495574.684 | E45: 0 | F45: 624631.2237 | G45: 2548495.393 | H45: 10668701.3 | I45: 33489864.62 | J45: 423499.9697 | K45: 0 | L45: 33913364.59 | M45: -23244663.29 | N45: 0 | O45: -23244663.29 | P45: =P44+O45 -> -533273156.9 | Q45: -5983534.652 | R45: -367339140.9 | S45: 17 | T45: =IRR($O$28:O45) ->  | U45: -367339140.9
B46: 18 | C46: 227505 | D46: 7645486.178 | E46: 0 | F46: 637123.8481 | G46: 2599465.3 | H46: 10882075.33 | I46: 34159661.91 | J46: 431969.969 | K46: 0 | L46: 34591631.88 | M46: -23709556.56 | N46: 0 | O46: -23709556.56 | P46: -556982713.4 | Q46: -5634941.69 | R46: -372974082.6 | S46: 18 | T46: =IRR($O$28:O46) ->  | U46: -372974082.6 | V46: =NPV(T46,$O$29:O46)+$O$28 -> 
B47: 19 | C47: 227505 | D47: 7798395.901 | E47: 0 | F47: 649866.3251 | G47: 2651454.606 | H47: 11099716.83 | I47: =I46*(1+I$27) -> 34842855.15 | J47: 440609.3684 | K47: 0 | L47: 35283464.52 | M47: -24183747.69 | N47: 0 | O47: -24183747.69 | P47: -581166461.1 | Q47: =O47*(1+$Q$27)^(-S47) -> -5306657.302 | R47: -378280739.9 | S47: 19 | T47: =IRR($O$28:O47) ->  | U47: -378280739.9
B48: 20 | C48: 227505 | D48: =D47*(1+D$27) -> 7954363.819 | E48: 0 | F48: 662863.6516 | G48: 2704483.699 | H48: 11321711.17 | I48: 35539712.26 | J48: 449421.5558 | K48: 0 | L48: 35989133.81 | M48: -24667422.64 | N48: 0 | O48: -24667422.64 | P48: -605833883.8 | Q48: =O48*(1+$Q$27)^(-S48) -> -4997498.336 | R48: -383278238.2 | S48: 20 | T48: =IRR($O$28:O48) ->  | U48: -383278238.2
B49: 21 | C49: 227505 | D49: 8113451.096 | E49: 0 | F49: 676120.9246 | G49: 2758573.373 | H49: 11548145.39 | I49: 36250506.5 | J49: 458409.9869 | K49: 0 | L49: 36708916.49 | M49: -25160771.09 | N49: 0 | O49: -25160771.09 | P49: -630994654.9 | Q49: -4706350.571 | R49: -387984588.8 | S49: 21 | T49: =IRR($O$28:O49) ->  | U49: -387984588.8
B50: 22 | C50: 227505 | D50: 8275720.118 | E50: 0 | F50: 689643.3431 | G50: 2813744.84 | H50: 11779108.3 | I50: 36975516.63 | J50: 467578.1866 | K50: 0 | L50: 37443094.82 | M50: -25663986.52 | N50: 0 | O50: -25663986.52 | P50: -656658641.4 | Q50: -4432164.696 | R50: -392416753.5 | S50: 22 | T50: =IRR($O$28:O50) ->  | U50: -392416753.5
B51: 23 | C51: 227505 | D51: 8441234.52 | E51: 0 | F51: 703436.21 | G51: 2870019.737 | H51: 12014690.47 | I51: 37715026.96 | J51: 476929.7504 | K51: 0 | L51: 38191956.71 | M51: -26177266.25 | N51: 0 | O51: -26177266.25 | P51: -682835907.6 | Q51: -4173952.534 | R51: -396590706 | S51: 23 | T51: =IRR($O$28:O51) ->  | U51: -396590706
B52: 24 | C52: 227505 | D52: 8610059.21 | E52: 0 | F52: 717504.9342 | G52: 2927420.132 | H52: 12254984.28 | I52: 38469327.5 | J52: 486468.3454 | K52: 0 | L52: 38955795.85 | M52: -26700811.57 | N52: 0 | O52: -26700811.57 | P52: -709536719.2 | Q52: -3930783.478 | R52: -400521489.5 | S52: 24 | T52: =IRR($O$28:O52) ->  | U52: -400521489.5
B53: 25 | C53: 227505 | D53: 8782260.395 | E53: 0 | F53: 731855.0329 | G53: 2985968.534 | H53: =SUM(D53:G53) -> 12500083.96 | I53: 39238714.05 | J53: 496197.7123 | K53: 0 | L53: 39734911.76 | M53: -27234827.8 | N53: 0 | O53: -27234827.8 | P53: -736771547 | Q53: -3701781.135 | R53: -404223270.6 | S53: 25 | T53: =IRR($O$28:O53) ->  | U53: -404223270.6

Sheet T10 (hidden)
B2: =TECNOLOGIAS!C13 -> Planta de clasificación automática + Digestión Anaerobia (biometano/CO2) + compostaje (TMB Completa) + Termovalorización | F2: CAPEX | I2: DIAGRAMA DE PROCESO
B3: BASES & SUPUESTOS | F3: Concepto | G3: USD
B4: Vida útil | C4: 25 | D4: años | F4: Planta de selección
B5: CapEx | C5: =TECNOLOGIAS!K13 -> 928.998 | D5: USD/tpa | F5: Planta de biogas | S5: Generación de electricidad
B6: OpEx | C6: =TECNOLOGIAS!P13 -> 107.2308375 | D6: USD/tpa | F6: Sistema de upgrading biogás a biometano | N6: =$B$49 -> Valorizables | S6: =$C$50 -> 102832.26 | T6: =$D$50 -> ton/año
B7: Agua de entrada | C7: 0.1 | D7: ton/ton de residuo orgánico | F7: Sistema de recuperación de CO2 | N7: =$C$49 -> 10920.24 | O7: =$D$49 -> ton/año
B8: Composta | C8: 0.4 | D8: ton/ton de residuo orgánico | F8: Sistema de compostaje
B9: Agua residual | C9: 0.4 | D9: ton/ton de residuo orgánico | F9: Planta de termovalorización
B10: Proporción CDR | C10: 0.8 | D10: ton/ton de inorgánico | F10: Obra Civil, Otros Equipos y Obras Auxiliares
B11: Factor de eficiencia de separación | C11: 0.4 | F11: Estudios de Factibilidad, Gestión, Permisos & Otros
B12: Densidad biogas | C12: 1.2 | D12: kg/Nm3 | F12: Total | G12: =C5*C38 -> 211351690
B13: Rendimiento Biogas - FO | C13: 130 | D13: Nm3/ton
B14: Contenido de Dióxido de Carbono (CH4) | C14: 0.4 | F14: OPEX / año
B15: Contenido de Metano (CH4) | C15: 0.6 | F15: Concepto | G15: USD | I15: =$B$38 -> Residuos sólidos urbanos | K15: Planta de selección automática | N15: CDR | P15: Termovalorización | V15: CO2
B16: Potencial energético biometano | C16: 37 | D16: MJ/Nm3 | F16: Mantenimiento de planta de biogas | I16: =$C$38 -> 227505 | J16: =$D$38 -> ton/año | N16: =$C$50 -> 102832.26 | O16: =$D$50 -> ton/año | S16: =$F$7 -> Sistema de recuperación de CO2 | V16: =$C$47 -> 5915130 | W16: =$D$47 -> Nm3/año
B17: Cenizas | C17: 0.2 | D17: ton/ton de residuo incinerado | F17: Mantenimiento Upgrading Biometano + CO2
B18: Consumo energía eléctrica | C18: 55 | D18: kWh/ton de residuo orgánico | F18: Mantemimiento Compostaje
B19: Generación de electricidad | C19: 250 | D19: kWh/ton de residuo orgánico | F19: Mantenimiento Obra Civil
B20: Generación eléctric termo cdr | C20: 900 | D20: kWh/ton de residuo incinerado | F20: Mantenimiento Maquinaria & Eq. Auxiliares
B21: Tiempo de construcción | C21: 24 | D21: meses | F21: Administración & Operación
B22: SUPUESTOS DE INGRESOS | F22: Subtotal OPEX | G22: =C38*C6 -> 24395551.69
B23: Tarifa de disposición final | C23: ='INPUT DE DATOS'!C17 -> 15 | D23: ='INPUT DE DATOS'!D17 -> USD/ton | F23: Costo envío de rechazo a relleno sanitario | G23: =C53*C23 -> 308496.78
B24: Tarifa de tratamiento | C24: ='INPUT DE DATOS'!C18 -> 24 | D24: ='INPUT DE DATOS'!D18 -> USD/ton | F24: Total | G24: =G22+G23 -> 24704048.47 | N24: =$B$40 -> Fracción orgánica | P24: Digestor Anaerobio | V24: Biometano (98% CH4)
B25: Precio electricidad | C25: ='INPUT DE DATOS'!C21 -> 0 | D25: ='INPUT DE DATOS'!D21 -> USD/kWh | N25: =$C$40 -> 113752.5 | O25: =$D$40 -> ton/año | S25: =$F$6 -> Sistema de upgrading biogás a biometano | V25: =$C$46 -> 9053770.408 | W25: =$D$46 -> Nm3/año
B26: Precio biometano | C26: ='INPUT DE DATOS'!C22 -> 0.01 | D26: USD/GJ | F26: Ingresos / año
B27: Precio CO2 | C27: ='INPUT DE DATOS'!C23 -> 0 | D27: USD/KG | F27: Concepto | G27: USD
B28: Precio valorizables | C28: ='INPUT DE DATOS'!C30 -> 170 | D28: ='INPUT DE DATOS'!D31 -> USD/ton | F28: Tarifa de Tratamiento | G28: =C24*C38 -> 5460120
B29: Precio composta | C29: ='INPUT DE DATOS'!C24 -> 10 | D29: USD/ton | F29: Venta de electricidad | G29: =C58*C25 -> 0
B30: SUPUESTOS FINANCIEROS | F30: Venta/Ahorro Biometano | G30: =C26*C55 -> 3349.895051
B31: Inflación | C31: ='INPUT DE DATOS'!C38 -> 0.02 | F31: Venta CO2 | G31: =C48*C27 -> 0
B32: Tasa de Descuento | C32: ='INPUT DE DATOS'!C40 -> 0.0831 | F32: Venta de composta | G32: =C51*C29 -> 455010
B33: Incremento Anual Energéticos | C33: ='INPUT DE DATOS'!C39 -> 0.04 | F33: Venta de valorizables | G33: =C49*C28 -> 1856440.8 | T33: Planta de Compostaje | V33: Composta
B34: Cash Flow | C34: ='INPUT DE DATOS'!C41 -> 20 | D34: años | F34: Total | G34: =SUM(G28:G33) -> 7774920.695 | N34: =$B$53 -> Cenizas / rechazo | P34: Relleno sanitario | V34: =$C$45 -> 14787825 | W34: =$D$45 -> Nm3/año
N35: =$C$53 -> 20566.452 | O35: =$D$53 -> ton/año
B36: DIMENSIONAMIENTO | F36: RESULTADOS FINANCIEROS
B37: INPUT | F37: CAPEX | G37: =G12 -> 211351690
B38: Residuos sólidos urbanos | C38: ='INPUT DE DATOS'!C10 -> 227505 | D38: ton/año | F38: OPEX (anual) | G38: =G24 -> 24704048.47
B39: COMPOSICIÓN | F39: INGRESOS (anual) | G39: =G34 -> 7774920.695
B40: Fracción orgánica | C40: =C38*'INPUT DE DATOS'!C12 -> 113752.5 | D40: ton/año
B41: Fracción inorgánica | C41: =C38*'INPUT DE DATOS'!C13 -> 86451.9 | D41: ton/año | F41: FINANCIAMIENTO
B42: Valorizables | C42: =C38*'INPUT DE DATOS'!C14 -> 27300.6 | D42: ton/año | F42: Capital aportado | G42: =G37-G43 -> 211351690
B43: Agua | C43: =C7*C40 -> 11375.25 | D43: m3/año | F43: Deuda adquirida | G43: =G37*'INPUT DE DATOS'!C43 -> 0
B44: OUTPUT | F44: Plazo | G44: ='INPUT DE DATOS'!C44 -> 15
B45: Producción de Biogas | C45: =C40*C13 -> 14787825 | D45: Nm3/año | F45: Pago anual del crédito con intereses | G45: =IF(AND('INPUT DE DATOS'!C44=0,'INPUT DE DATOS'!C45=0),0,PMT(('INPUT DE DATOS'!C45/12),('INPUT DE DATOS'!C44*12),G43)*12*-1) -> 0
B46: Producción de Biometano (98% CH4) | C46: =C45*C15/0.98 -> 9053770.408 | D46: Nm3/año | I46: DESCRIPCIÓN DE TECNOLOGÍA
B47: Producción de CO2 | C47: =C14*C45 -> 5915130 | D47: Nm3/año | F47: ANÁLISIS - CASH FLOW 15 AÑOS EBDTA | I47: T10. Planta de clasificación automática + Digestión Anaerobia (biometano/CO2) + compostaje (TMB Completa) + Termovalorización de CDR: la función de esta planta es seleccionar el contenido del material entrante mediante una combinación de procesos de separación mecánicos o automatizados con el fin de recuperar las fracciones valorizables y prepararlas para su posterior comercialización o tratamiento. A la fracción orgánica de los residuos clasificados se les da un tratamiento de biometanización, después de varias etapas se transforma la fracción orgánica en biogás, a este proceso se le conoce como digestión anaerobia. El biogás que se obtiene en el proceso se adecúa para su comercialización. La fracción inorgánica (CDR) se transforma en energía por medio de un tratamiento térmico.
C48: =C47*1.9772 -> 11695395.04 | D48: kg/año | F48: Payback | G48: ='T10 CF'!J3 -> 25
B49: Valorizables | C49: =C42*C11 -> 10920.24 | D49: ton/año | F49: Payback descontado | G49: ='T10 CF'!J4 -> 25
B50: CDR/rechazo para termovalorización | C50: =C41+C42-C49 -> 102832.26 | D50: ton/año | F50: TIR (CF 15 años) | G50: ='T10 CF'!J5 -> 0
B51: Composta | C51: =C40*C8 -> 45501 | D51: ton/año | F51: VAN (CF 15 años) | G51: ='T10 CF'!J6 -> -382381106.3
B52: Agua residual | C52: =C40*C9 -> 45501 | D52: m3/año
B53: Cenizas / rechazo | C53: =C50*C17 -> 20566.452 | D53: ton/año | F53: LCOE
B54: ENERGÍA | F54: Generación vida útil (kWh) | G54: =C57*C4 -> 2313725850
B55: Producción energética Biometano | C55: =C16*C46/1000 -> 334989.5051 | D55: GJ/año | F55: Costos Vida Útil | G55: =SUM('T10 CF'!N28:N53) -> 766574028.3
B56: Consumo energía eléctrica | C56: =C18*C40 -> 6256387.5 | D56: kWh/año | F56: Costos Valor Presente | G56: =G55/((1+C31)^(C4)) -> 467250534.8
B57: Generación de electricidad | C57: =C50*C20 -> 92549034 | D57: kWh/año | F57: Costo Total Vida Útil | G57: =G56+G37 -> 678602224.8
B58: Energía libre | C58: =C57-C56 -> 86292646.5 | D58: kWh/año | F58: LCOE (USD/kWh) | G58: =G57/G54 -> 0.2932941363

Sheet T10 CF (hidden)
B2: SUPUESTOS FINANCIEROS | D2: DATOS DE FINANCIAMIENTO | I2: RESULTADOS (EBTDA)
B3: Vida útil del proyecto | C3: ='T10'!C4 -> 25 | D3: ='INPUT DE DATOS'!B43 -> Porcentaje de financiamiento | E3: ='INPUT DE DATOS'!C43 -> 0 | I3: Payback | J3: =V21 -> 25
B4: Cash flow | C4: ='T10'!C34 -> 20 | D4: ='INPUT DE DATOS'!B44 -> Plazo de financiamiento | E4: ='INPUT DE DATOS'!C44 -> 15 | I4: Payback Descontado | J4: =W21 -> 25
B5: Inflación | C5: ='T10'!C31 -> 0.02 | D5: ='INPUT DE DATOS'!B45 -> Tasa de interés bancaria | E5: ='INPUT DE DATOS'!C45 -> 0.05 | I5: TIR | J5: =V22 -> 0
B6: Tasa de Descuento | C6: ='T10'!C32 -> 0.0831 | D6: ='T7'!F40 -> Capital aportado | E6: ='T10'!G42 -> 211351690 | I6: VAN | J6: =V23 -> -382381106.3
B7: Incentivo Fiscal | C7: No | D7: ='T7'!F41 -> Deuda adquirida | E7: ='T10'!G43 -> 0
B8: Impuesto (ISR) | C8: 0 | D8: ='T7'!F43 -> Pago anual del crédito con intereses | E8: ='T10'!G45 -> 0
B9: Incremento anual energéticos | C9: ='T10'!C33 -> 0.04
B11: Ingresos / año | D11: OPEX / año
B12: Concepto | C12: MXN | D12: Concepto | E12: MXN
B13: ='T10'!F28 -> Tarifa de Tratamiento | C13: ='T10'!G28 -> 5460120 | D13: ='T10'!F22 -> Subtotal OPEX | E13: ='T10'!G22 -> 24395551.69
B14: ='T10'!F30 -> Venta/Ahorro Biometano | C14: ='T10'!G30 -> 3349.895051 | D14: ='T10'!F23 -> Costo envío de rechazo a relleno sanitario | E14: ='T10'!G23 -> 308496.78
B15: ='T10'!F31 -> Venta CO2 | C15: ='T10'!G31 -> 0
B16: ='T10'!F32 -> Venta de composta | C16: ='T10'!G32 -> 455010
B17: ='T10'!F33 -> Venta de valorizables | C17: ='T10'!G33 -> 1856440.8 | U17: PROYECTO: EBTDA
B18: ='T10'!F29 -> Venta de electricidad | C18: ='T10'!G29 -> 0 | V18: Payback | W18: Payback Descont.
V19: =IF(VLOOKUP(LOOKUP(0,R28:R53),R28:U53,COUNT(R28:U28),FALSE)>50,"Mas de 50",VLOOKUP(LOOKUP(0,R28:R53),R28:U53,4,FALSE)) -> 25 | W19: =IF(VLOOKUP(LOOKUP(0,T28:T53),T28:U53,2,FALSE)>50,"Mas de 50",VLOOKUP(LOOKUP(0,T28:T53),T28:U53,2,FALSE)) -> 25
B20: Ingresos Totales | C20: =SUM(C13:C19) -> 7774920.695 | D20: Costos Totales | E20: =SUM(E13:E19) -> 24704048.47 | V20: =IF(V19>C4,0,-VLOOKUP(V19,B28:R53,COUNT(B28:R28),FALSE)/(-VLOOKUP(V19,B28:R53,COUNT(B28:R28),FALSE)+VLOOKUP(V19+1,B28:R53,COUNT(B28:R28),FALSE))) -> 0 | W20: =IF(W19>C4,0,-VLOOKUP(W19,B28:T53,COUNT(B28:T28),FALSE)/(-VLOOKUP(W19,B28:T53,COUNT(B28:T28),FALSE)+VLOOKUP(W19+1,B28:T53,COUNT(B28:T28),FALSE))) -> 0
U21: Payback | V21: =V19+V20 -> 25 | W21: =IF(VLOOKUP(LOOKUP(0,T28:T53),T28:U53,2,FALSE)>50,"Mas de 50",W19+W20) -> 25
U22: TIR | V22: =IFERROR(VLOOKUP(C4,U28:X53,2,0),0) -> 0
U23: VAN | V23: =VLOOKUP(C4,U28:X53,3,0) -> -382381106.3
B24: Año | C24: Manejo de residuos | D24: INGRESOS | J24: Ingresos totales | K24: COSTOS / OPEX | N24: Egresos Totales | O24: Utilidad Bruta | P24: CAPEX | Q24: Cálculo TIR | R24: Flujo Acumulado | S24: Utilidad Neta Valor del Tiempo | T24: Flujo Acumulado Descontado | U24: Año | V24: TIR | W24: VAN | X24: VAN
D25: =B13 -> Tarifa de Tratamiento | E25: =B14 -> Venta/Ahorro Biometano | F25: Venta composta | G25: =B18 -> Venta de electricidad | H25: =B17 -> Venta de valorizables | I25: =B15 -> Venta CO2 | K25: =D13 -> Subtotal OPEX | L25: =D14 -> Costo envío de rechazo a relleno sanitario | M25: Financiamiento
O26: EBTDA | R26: Cáclulo Payback | S26: Tasa Descuento | V26: Nominal | W26: Tasa de Descuento | X26: TIR Nominal
C27: (ton/año) | D27: =C5 -> 0.02 | E27: =C9 -> 0.04 | F27: =C5 -> 0.02 | G27: =C9 -> 0.04 | H27: =C5 -> 0.02 | I27: =C5 -> 0.02 | K27: =$C$5 -> 0.02 | L27: =C5 -> 0.02 | Q27: Cálculo TIR | S27: =C6 -> 0.0831
B28: 0 | C28: 0 | D28: 0 | E28: 0 | F28: 0 | G28: 0 | H28: 0 | I28: 0 | J28: =SUM(D28:I28) -> 0 | K28: 0 | L28: 0 | M28: 0 | N28: =SUM(K28:M28) -> 0 | O28: 0 | P28: =-'T10'!G12 -> -211351690 | Q28: =O28+P28 -> -211351690 | R28: =Q28 -> -211351690 | S28: =Q28*(1+$S$27)^(-U28) -> -211351690 | T28: =S28 -> -211351690 | U28: 0 | V28: 0 | W28: 0 | X28: 0
B29: 1 | C29: =C30*(24-('T10'!C21))/12 -> 0 | D29: =C13*C29/C30 -> 0 | E29: =C14*C29/C30 -> 0 | F29: =C16*C29/C30 -> 0 | G29: =C18*E29/E30 -> 0 | H29: =C17*B29/B30 -> 928220.4 | I29: =C15*C29/C30 -> 0 | J29: 928220.4 | K29: =E13*(C29/C30) -> 0 | L29: =E14*(C29/C30) -> 0 | M29: =IF(B29>E$4,0,E$8) -> 0 | N29: =SUM(K29:M29) -> 0 | O29: =J29-N29 -> 928220.4 | P29: 0 | Q29: =O29+P29 -> 928220.4 | R29: =R28+Q29 -> -210423469.6 | S29: =Q29*(1+$S$27)^(-U29) -> 857003.4161 | T29: =S29+T28 -> -210494686.6 | U29: 1 | V29: =IRR($Q$28:Q29) -> -0.9956081714 | W29: =NPV($S$27,Q29)+Q28 -> -210494686.6 | X29: =NPV(V29,Q29)+Q28 -> 2.026557922e-06
B30: 2 | C30: ='T10'!C$38 -> 227505 | D30: =C13*(1+D$27) -> 5569322.4 | E30: =C14*(1+'T10 CF'!E27) -> 3483.890853 | F30: =C16*(1+'T10 CF'!F27) -> 464110.2 | G30: =C18*(1+'T10 CF'!G27) -> 0 | H30: =C17*(1+H27) -> 1893569.616 | I30: =C15*(1+I27) -> 0 | J30: 7930486.107 | K30: =E13*(1+K$27) -> 24883462.72 | L30: =E14*(1+L$27) -> 314666.7156 | M30: =IF(B30>E$4,0,E$8) -> 0 | N30: =SUM(K30:M30) -> 25198129.43 | O30: =J30-N30 -> -17267643.33 | P30: 0 | Q30: =O30+P30 -> -17267643.33 | R30: =R29+Q30 -> -227691112.9 | S30: =Q30*(1+$S$27)^(-U30) -> -14719598.29 | T30: =S30+T29 -> -225214284.9 | U30: 2 | V30: =IRR($Q$28:Q30) ->  | W30: =NPV($S$27,$Q$29:Q30)+$Q$28 -> -225214284.9 | X30: =NPV(V30,$Q$29:Q30)+$Q$28 -> 
B31: 3 | C31: ='T10'!C$38 -> 227505 | D31: =D30*(1+D$27) -> 5680708.848 | E31: 3623.246487 | F31: 473392.404 | G31: 0 | H31: 1931441.008 | I31: 0 | J31: 8089165.507 | K31: =K30*(1+K$27) -> 25381131.97 | L31: 320960.0499 | M31: 0 | N31: 25702092.02 | O31: =J31-N31 -> -17612926.52 | P31: 0 | Q31: =O31+P31 -> -17612926.52 | R31: =R30+Q31 -> -245304039.4 | S31: =Q31*(1+$S$27)^(-U31) -> -13861998.76 | T31: =S31+T30 -> -239076283.6 | U31: 3 | V31: =IRR(Q$28:$Q31) ->  | W31: =NPV($S$27,$Q$29:Q31)+$Q$28 -> -239076283.6
B32: 4 | C32: ='T10'!C$38 -> 227505 | D32: =D31*(1+D$27) -> 5794323.025 | E32: =E31*(1+E$27) -> 3768.176347 | F32: =F31*(1+F$27) -> 482860.2521 | G32: =G31*(1+G$27) -> 0 | H32: 1970069.828 | I32: 0 | J32: 8251021.282 | K32: 25888754.61 | L32: 327379.2509 | M32: 0 | N32: 26216133.86 | O32: -17965112.58 | P32: 0 | Q32: -17965112.58 | R32: -263269152 | S32: -13054364.05 | T32: -252130647.7 | U32: 4 | V32: =IRR($Q$28:Q32) ->  | W32: =NPV($S$27,$Q$29:Q32)+$Q$28 -> -252130647.7
B33: 5 | C33: ='T10'!C$38 -> 227505 | D33: 5910209.485 | E33: 3918.903401 | F33: 492517.4571 | G33: 0 | H33: 2009471.225 | I33: 0 | J33: 8416117.071 | K33: 26406529.71 | L33: 333926.8359 | M33: 0 | N33: 26740456.54 | O33: -18324339.47 | P33: 0 | Q33: -18324339.47 | R33: -281593491.5 | S33: -12293783.19 | T33: -264424430.9 | U33: 5 | V33: =IRR($Q$28:Q33) ->  | W33: =NPV($S$27,$Q$29:Q33)+$Q$28 -> -264424430.9
B34: 6 | C34: ='T10'!C$38 -> 227505 | D34: 6028413.675 | E34: 4075.659537 | F34: 502367.8063 | G34: 0 | H34: 2049660.65 | I34: 0 | J34: 8584517.791 | K34: 26934660.3 | L34: 340605.3726 | M34: 0 | N34: 27275265.67 | O34: -18690747.88 | P34: 0 | Q34: -18690747.88 | R34: -300284239.4 | S34: -11577514.79 | T34: -276001945.6 | U34: 6 | V34: =IRR($Q$28:Q34) ->  | W34: =NPV($S$27,$Q$29:Q34)+$Q$28 -> -276001945.6
B35: 7 | C35: ='T10'!C$38 -> 227505 | D35: 6148981.949 | E35: 4238.685918 | F35: 512415.1624 | G35: 0 | H35: 2090653.863 | I35: 0 | J35: 8756289.66 | K35: 27473353.51 | L35: 347417.4801 | M35: 0 | N35: 27820770.99 | O35: -19064481.33 | P35: 0 | Q35: -19064481.33 | R35: -319348720.7 | S35: -10902977.19 | T35: -286904922.8 | U35: 7 | V35: =IRR($Q$28:Q35) ->  | W35: -286904922.8
B36: 8 | C36: ='T10'!C$38 -> 227505 | D36: 6271961.588 | E36: 4408.233355 | F36: 522663.4656 | G36: 0 | H36: 2132466.94 | I36: 0 | J36: 8931500.226 | K36: 28022820.58 | L36: 354365.8297 | M36: 0 | N36: 28377186.41 | O36: -19445686.18 | P36: 0 | Q36: -19445686.18 | R36: -338794406.9 | S36: -10267739.13 | T36: -297172662 | U36: 8 | V36: =IRR($Q$28:Q36) ->  | W36: -297172662
B37: 9 | C37: ='T10'!C$38 -> 227505 | D37: 6397400.819 | E37: 4584.562689 | F37: 533116.7349 | G37: 0 | H37: 2175116.279 | I37: 0 | J37: 9110218.396 | K37: 28583276.99 | L37: 361453.1463 | M37: 0 | N37: 28944730.13 | O37: -19834511.74 | P37: 0 | Q37: -19834511.74 | R37: -358628918.6 | S37: =Q37*(1+$S$27)^(-U37) -> -9669510.993 | T37: -306842173 | U37: 9 | V37: =IRR($Q$28:Q37) ->  | W37: -306842173
B38: 10 | C38: ='T10'!C$38 -> 227505 | D38: 6525348.836 | E38: 4767.945196 | F38: 543779.0696 | G38: 0 | H38: 2218618.604 | I38: 0 | J38: 9292514.455 | K38: 29154942.53 | L38: 368682.2092 | M38: 0 | N38: 29523624.74 | O38: -20231110.28 | P38: 0 | Q38: -20231110.28 | R38: =R37+Q38 -> -378860028.9 | S38: -9106136.564 | T38: -315948309.5 | U38: 10 | V38: =IRR($Q$28:Q38) ->  | W38: -315948309.5
B39: 11 | C39: ='T10'!C$38 -> 227505 | D39: 6655855.813 | E39: 4958.663004 | F39: 554654.651 | G39: 0 | H39: 2262990.976 | I39: 0 | J39: 9478460.103 | K39: 29738041.38 | L39: 376055.8534 | M39: 0 | N39: 30114097.23 | O39: -20635637.13 | P39: 0 | Q39: -20635637.13 | R39: -399495666 | S39: -8575585.241 | T39: -324523894.8 | U39: 11 | V39: =IRR($Q$28:Q39) ->  | W39: -324523894.8
B40: 12 | C40: ='T10'!C$38 -> 227505 | D40: 6788972.929 | E40: 5157.009525 | F40: 565747.7441 | G40: 0 | H40: 2308250.796 | I40: 0 | J40: 9668128.478 | K40: 30332802.2 | L40: 383576.9705 | M40: 0 | N40: 30716379.18 | O40: -21048250.7 | P40: 0 | Q40: -21048250.7 | R40: -420543916.7 | S40: -8075944.725 | T40: =S40+T39 -> -332599839.5 | U40: 12 | V40: =IRR($Q$28:Q40) ->  | W40: -332599839.5
B41: 13 | C41: ='T10'!C$38 -> 227505 | D41: 6924752.387 | E41: 5363.289906 | F41: 577062.6989 | G41: 0 | H41: 2354415.812 | I41: 0 | J41: 9861594.188 | K41: 30939458.25 | L41: 391248.5099 | M41: 0 | N41: 31330706.76 | O41: -21469112.57 | P41: 0 | Q41: -21469112.57 | R41: -442013029.3 | S41: -7605414.132 | T41: =S41+T40 -> -340205253.6 | U41: 13 | V41: =IRR($Q$28:Q41) ->  | W41: -340205253.6
B42: 14 | C42: ='T10'!C$38 -> 227505 | D42: 7063247.435 | E42: 5577.821502 | F42: 588603.9529 | G42: 0 | H42: 2401504.128 | I42: 0 | J42: 10058933.34 | K42: 31558247.41 | L42: 399073.4801 | M42: 0 | N42: 31957320.89 | O42: -21898387.56 | P42: 0 | Q42: -21898387.56 | R42: -463911416.8 | S42: -7162297.494 | T42: -347367551.1 | U42: 14 | V42: =IRR($Q$28:Q42) ->  | W42: -347367551.1
B43: 15 | C43: ='T10'!C$38 -> 227505 | D43: 7204512.384 | E43: 5800.934362 | F43: 600376.032 | G43: 0 | H43: 2449534.21 | I43: 0 | J43: 10260223.56 | K43: 32189412.36 | L43: 407054.9497 | M43: 0 | N43: 32596467.31 | O43: -22336243.75 | P43: 0 | Q43: -22336243.75 | R43: -486247660.6 | S43: -6744997.652 | T43: -354112548.8 | U43: 15 | V43: =IRR($Q$28:Q43) ->  | W43: -354112548.8
B44: 16 | C44: ='T10'!C$38 -> 227505 | D44: 7348602.631 | E44: 6032.971736 | F44: 612383.5526 | G44: 0 | H44: 2498524.895 | I44: 0 | J44: 10465544.05 | K44: 32833200.61 | L44: 415196.0487 | M44: 0 | N44: 33248396.66 | O44: -22782852.61 | P44: 0 | Q44: -22782852.61 | R44: -509030513.2 | S44: -6352010.498 | T44: -360464559.3 | U44: 16 | V44: =IRR($Q$28:Q44) ->  | W44: -360464559.3
B45: 17 | C45: ='T10'!C$38 -> 227505 | D45: 7495574.684 | E45: 6274.290606 | F45: 624631.2237 | G45: 0 | H45: 2548495.393 | I45: 0 | J45: 10674975.59 | K45: 33489864.62 | L45: 423499.9697 | M45: 0 | N45: 33913364.59 | O45: -23238389 | P45: 0 | Q45: -23238389 | R45: =R44+Q45 -> -532268902.2 | S45: -5981919.552 | T45: -366446478.8 | U45: 17 | V45: =IRR($Q$28:Q45) ->  | W45: -366446478.8
B46: 18 | C46: ='T10'!C$38 -> 227505 | D46: 7645486.178 | E46: 6525.26223 | F46: 637123.8481 | G46: 0 | H46: 2599465.3 | I46: 0 | J46: 10888600.59 | K46: 34159661.91 | L46: 431969.969 | M46: 0 | N46: 34591631.88 | O46: -23703031.29 | P46: 0 | Q46: -23703031.29 | R46: -555971933.5 | S46: -5633390.861 | T46: -372079869.7 | U46: 18 | V46: =IRR($Q$28:Q46) ->  | W46: -372079869.7 | X46: =NPV(V46,$Q$29:Q46)+$Q$28 -> 
B47: 19 | C47: ='T10'!C$38 -> 227505 | D47: 7798395.901 | E47: 6786.272719 | F47: 649866.3251 | G47: 0 | H47: 2651454.606 | I47: 0 | J47: 11106503.11 | K47: =K46*(1+K$27) -> 34842855.15 | L47: 440609.3684 | M47: 0 | N47: 35283464.52 | O47: -24176961.42 | P47: 0 | Q47: -24176961.42 | R47: -580148894.9 | S47: =Q47*(1+$S$27)^(-U47) -> -5305168.185 | T47: -377385037.9 | U47: 19 | V47: =IRR($Q$28:Q47) ->  | W47: -377385037.9
B48: 20 | C48: ='T10'!C$38 -> 227505 | D48: =D47*(1+D$27) -> 7954363.819 | E48: 7057.723628 | F48: 662863.6516 | G48: =G47*(1+G$27) -> 0 | H48: 2704483.699 | I48: 0 | J48: 11328768.89 | K48: 35539712.26 | L48: 449421.5558 | M48: 0 | N48: 35989133.81 | O48: -24660364.92 | P48: 0 | Q48: -24660364.92 | R48: -604809259.8 | S48: =Q48*(1+$S$27)^(-U48) -> -4996068.476 | T48: -382381106.3 | U48: 20 | V48: =IRR($Q$28:Q48) ->  | W48: -382381106.3
B49: 21 | C49: ='T10'!C$38 -> 227505 | D49: 8113451.096 | E49: 7340.032573 | F49: 676120.9246 | G49: =G48*(1+G$27) -> 0 | H49: 2758573.373 | I49: 0 | J49: 11555485.43 | K49: 36250506.5 | L49: 458409.9869 | M49: 0 | N49: 36708916.49 | O49: -25153431.06 | P49: 0 | Q49: -25153431.06 | R49: -629962690.9 | S49: -4704977.609 | T49: -387086083.9 | U49: 21 | V49: =IRR($Q$28:Q49) ->  | W49: -387086083.9
B50: 22 | C50: ='T10'!C$38 -> 227505 | D50: 8275720.118 | E50: 7633.633876 | F50: 689643.3431 | G50: =G49*(1+G$27) -> 0 | H50: 2813744.84 | I50: 0 | J50: 11786741.93 | K50: 36975516.63 | L50: 467578.1866 | M50: 0 | N50: 37443094.82 | O50: -25656352.88 | P50: 0 | Q50: -25656352.88 | R50: -655619043.8 | S50: -4430846.369 | T50: -391516930.3 | U50: 22 | V50: =IRR($Q$28:Q50) ->  | W50: -391516930.3
B51: 23 | C51: ='T10'!C$38 -> 227505 | D51: 8441234.52 | E51: 7938.979231 | F51: 703436.21 | G51: =G50*(1+G$27) -> 0 | H51: 2870019.737 | I51: 0 | J51: 12022629.45 | K51: 37715026.96 | L51: 476929.7504 | M51: 0 | N51: 38191956.71 | O51: -26169327.27 | P51: 0 | Q51: -26169327.27 | R51: -681788371 | S51: -4172686.668 | T51: -395689617 | U51: 23 | V51: =IRR($Q$28:Q51) ->  | W51: -395689617
B52: 24 | C52: ='T10'!C$38 -> 227505 | D52: 8610059.21 | E52: 8256.5384 | F52: 717504.9342 | G52: =G51*(1+G$27) -> 0 | H52: 2927420.132 | I52: 0 | J52: 12263240.81 | K52: 38469327.5 | L52: 486468.3454 | M52: 0 | N52: 38955795.85 | O52: -26692555.03 | P52: 0 | Q52: -26692555.03 | R52: -708480926.1 | S52: -3929567.984 | T52: -399619185 | U52: 24 | V52: =IRR($Q$28:Q52) ->  | W52: -399619185
B53: 25 | C53: ='T10'!C$38 -> 227505 | D53: 8782260.395 | E53: 8586.799936 | F53: 731855.0329 | G53: =G52*(1+G$27) -> 0 | H53: 2985968.534 | I53: 0 | J53: 12508670.76 | K53: 39238714.05 | L53: 496197.7123 | M53: =IF(B53>E$4,0,E$8) -> 0 | N53: 39734911.76 | O53: -27226241 | P53: 0 | Q53: -27226241 | R53: -735707167.1 | S53: -3700614.01 | T53: -403319799 | U53: 25 | V53: =IRR($Q$28:Q53) ->  | W53: -403319799

Sheet T11 (hidden)
B2: =TECNOLOGIAS!C14 -> Planta de clasificación automática + Pretratamiento + Termovalorización | F2: CAPEX | I2: DIAGRAMA DE PROCESO
B3: BASES & SUPUESTOS | F3: Concepto | G3: USD
B4: Vida útil | C4: 25 | D4: años | F4: Planta de selección
B5: CapEx | C5: =TECNOLOGIAS!K14 -> 721.561875 | D5: USD/tpa | F5: Planta de termovalorización
B6: OpEx | C6: =TECNOLOGIAS!P14 -> 74.312375 | D6: USD/tpa | F6: Obra Civil, Otros Equipos y Obras Auxiliares
B7: Factor de eficiencia de separación | C7: 0.4 | F7: Estudios de Factibilidad, Gestión, Permisos & Otros
B8: Cenizas | C8: 0.2 | D8: ton/ton de residuo incinerado | F8: Total | G8: =C5*C25 -> 164158934.4 | N8: =$B$31 -> Valorizables
B9: Eficiencia pretratamiento (bio-secado) | C9: 0.9 | D9: ton/ton de RSM | N9: =$C$31 -> 10920.24 | O9: =$D$31 -> ton/año
B10: Generación eléctric termo cdr | C10: 800 | D10: kWh/ton de residuo incinerado | F10: OPEX / año
B11: Tiempo de construcción | C11: 24 | D11: meses | F11: Concepto | G11: USD
B12: SUPUESTOS DE INGRESOS | F12: Mantenimiento planta
B13: Tarifa de disposición final | C13: ='INPUT DE DATOS'!C17 -> 15 | D13: ='INPUT DE DATOS'!D17 -> USD/ton | F13: Mantenimiento Obra Civil
B14: Tarifa de tratamiento | C14: ='INPUT DE DATOS'!C18 -> 24 | D14: ='INPUT DE DATOS'!D18 -> USD/ton | F14: Mantenimiento Maquinaria & Eq. Auxiliares
B15: Precio electricidad | C15: ='INPUT DE DATOS'!C21 -> 0 | D15: ='INPUT DE DATOS'!D21 -> USD/kWh | F15: Administración & Operación
B16: Precio valorizables | C16: ='INPUT DE DATOS'!C30 -> 170 | D16: ='INPUT DE DATOS'!D30 -> USD/ton | F16: Subtotal OPEX | G16: =C6*C25 -> 16906436.87
B17: SUPUESTOS FINANCIEROS | F17: Costo envío de rechazo a relleno sanitario | G17: =C33*C13 -> 584778.852 | T17: Generación de electricidad
B18: Inflación | C18: ='INPUT DE DATOS'!C38 -> 0.02 | F18: Total | G18: =G16+G17 -> 17491215.73 | I18: =$B$25 -> Residuos sólidos urbanos | K18: Planta de selección automática | N18: CDR | P18: Planta de pretratamiento | R18: Termovalorización | T18: =$C$35 -> 155941027.2 | U18: =$D$35 -> kWh/año
B19: Tasa de Descuento | C19: ='INPUT DE DATOS'!C40 -> 0.0831 | I19: =$C$25 -> 227505 | J19: =$D$25 -> ton/año | N19: =$C$32 -> 194926.284 | O19: =$D$32 -> ton/año
B20: Incremento Anual Energéticos | C20: ='INPUT DE DATOS'!C39 -> 0.04 | F20: Ingresos / año
B21: Cash Flow | C21: ='INPUT DE DATOS'!C41 -> 20 | D21: años | F21: Concepto | G21: USD
F22: Tarifa de Tratamiento | G22: =C14*C25 -> 5460120
B23: DIMENSIONAMIENTO | F23: Venta de electricidad | G23: =C35*C15 -> 0
B24: INPUT | F24: Venta de valorizables | G24: =C31*C16 -> 1856440.8
B25: Residuos sólidos urbanos | C25: ='INPUT DE DATOS'!C10 -> 227505 | D25: ton/año | F25: Total | G25: =SUM(G22:G24) -> 7316560.8
B26: COMPOSICIÓN
B27: Fracción orgánica | C27: =C25*'INPUT DE DATOS'!C12 -> 113752.5 | D27: ton/año | F27: RESULTADOS FINANCIEROS
B28: Fracción inorgánica | C28: =C25*'INPUT DE DATOS'!C13 -> 86451.9 | D28: ton/año | F28: CAPEX | G28: =G8 -> 164158934.4 | R28: =$B$33 -> Cenizas / rechazo | T28: Relleno sanitario
B29: Valorizables | C29: =C25*'INPUT DE DATOS'!C14 -> 27300.6 | D29: ton/año | F29: OPEX (anual) | G29: =G18 -> 17491215.73 | R29: =$C$33 -> 38985.2568 | S29: =$D$33 -> ton/año
B30: OUTPUT | F30: INGRESOS (anual) | G30: =G25 -> 7316560.8
B31: Valorizables | C31: =C29*C7 -> 10920.24 | D31: ton/año
B32: Fracción CDR/rechazo a termovalorización | C32: =(C25-C31)*C9 -> 194926.284 | D32: ton/año | F32: FINANCIAMIENTO
B33: Cenizas / rechazo | C33: =C32*C8 -> 38985.2568 | D33: ton/año | F33: Capital aportado | G33: =G28-G34 -> 164158934.4
B34: ENERGÍA | F34: Deuda adquirida | G34: =G28*'INPUT DE DATOS'!C43 -> 0
B35: Generación de electricidad | C35: =C32*C10 -> 155941027.2 | D35: kWh/año | F35: Plazo | G35: ='INPUT DE DATOS'!C44 -> 15
F36: Pago anual del crédito con intereses | G36: =IF(AND('INPUT DE DATOS'!C44=0,'INPUT DE DATOS'!C45=0),0,PMT(('INPUT DE DATOS'!C45/12),('INPUT DE DATOS'!C44*12),G34)*12*-1) -> 0
F38: ANÁLISIS - CASH FLOW 15 AÑOS EBDTA
F39: Payback | G39: ='T11 CF'!I3 -> 25
F40: Payback descontado | G40: ='T11 CF'!I4 -> 25
F41: TIR (CF 15 años) | G41: ='T11 CF'!I5 -> 0
F42: VAN (CF 15 años) | G42: ='T11 CF'!I6 -> -267468877.3 | I42: DESCRIPCIÓN DE TECNOLOGÍA
I43: T11. Planta de clasificación automática + Pretratamiento + Termovalorización: la función de esta planta es seleccionar el contenido del material entrante mediante una combinación de procesos de separación mecánicos o automatizados con el fin de recuperar las fracciones valorizables y preparar el resto para generar energía por medio de un tratamiento térmico.
F44: LCOE
F45: Generación vida útil | G45: =C35*C4 -> 3898525680
F46: Costos Vida Útil | G46: =SUM('T11 CF'!L28:L53) -> 542757666.5
F47: Costos Valor Presente | G47: =G46/((1+C18)^(C4)) -> 330827553
F48: Costo Total Vida Útil | G48: =G47+G28 -> 494986487.3
F49: LCOE | G49: =G48/G45 -> 0.1269676098

Sheet T11 CF (hidden)
B2: SUPUESTOS FINANCIEROS | D2: DATOS DE FINANCIAMIENTO | H2: RESULTADOS (EBTDA)
B3: Vida útil del proyecto (años) | C3: ='T11'!C4 -> 25 | D3: ='INPUT DE DATOS'!B43 -> Porcentaje de financiamiento | E3: ='INPUT DE DATOS'!C43 -> 0 | H3: Payback | I3: =Q21 -> 25
B4: Cash flow (años) | C4: ='T11'!C21 -> 20 | D4: ='INPUT DE DATOS'!B44 -> Plazo de financiamiento | E4: ='INPUT DE DATOS'!C44 -> 15 | H4: Payback descontado | I4: =R21 -> 25
B5: Inflación | C5: ='T11'!C18 -> 0.02 | D5: ='INPUT DE DATOS'!B45 -> Tasa de interés bancaria | E5: ='INPUT DE DATOS'!C45 -> 0.05 | H5: TIR | I5: =Q22 -> 0
B6: Tasa de Descuento | C6: ='T11'!C19 -> 0.0831 | D6: ='T11'!F33 -> Capital aportado | E6: ='T11'!G33 -> 164158934.4 | H6: VAN | I6: =Q23 -> -267468877.3
B7: Incentivo Fiscal | C7: No | D7: ='T11'!F34 -> Deuda adquirida | E7: ='T11'!G34 -> 0
B8: Impuestos | C8: - | D8: ='T11'!F36 -> Pago anual del crédito con intereses | E8: ='T11'!G36 -> 0
B9: Incremento anual energéticos | C9: ='T11'!C20 -> 0.04
B11: Ingresos / año | D11: OPEX / año
